Workbook

Sheet Summary
D4: Tenor | E4: =Inputs!F38 -> 17
D7: P50 Debt
D8: P90 Debt
D9: Debt to Capital

Sheet Example Terms
D3: Bank 1 | E3: Bank 2 | F3: Bank 2 | G3: Bank 3 | H3: Bank 3 | I3: Bank 4 | J3: Bank 5 | K3: Bank 6 | L3: Bank 7 | M3: Bank 8 | N3: Bank 9 | O3: Bank 10 | P3: Bank 11
B4: . | C4: Summary | D4: 7-Year Mini-Perm | E4: Unrated PP Bond | F4: Rated PP Bond | G4: Short Mini-Perm | H4: Short Mini-Perm | I4: 7-Year Mini-Perm | J4: 19.5 Year Mini-Perm | K4: 10-Year Term Loan | L4: 7-Year Mini-Perm | M4: Mini-Perm | N4: Bank + Unrated PP | O4: Unrated PP | P4: Bank + Bond
C5: Option | D5: Single issuance for both projects | E5: Separate issuances for each project | F5: Single issuance for both projects | G5: Separate issuances for each project | H5: Single issuance for both projects | I5: Single issuance for both projects | J5: Single issuance for both projects | K5: Single issuance for both projects | L5: Single issuance for both projects | M5: Single issuance for both projects | N5: Three facilities, not tied to specific project | O5: Single issuance for both projects | P5: Single issuance for both projects
C6: DSCR | D6: P50: 1.40x 1-Year P99: 1.00x | E6: 10-year P90: 1.33x, semiannual, with 0.005x annual step-ups Long-term P99: 1.00x | G6: 1-Year P99: 1.00x with 12 month cash flow tail, 80% max leverage | I6: 1-Year P99: 1.00x 1-Year P50: 1.40x | J6: P50: 1.50x for year 1 and increasing by 0.01x until 1.60x 1-Year P90: 1.37x 1-Year P99: 1.00x | K6: P50: 1.40x, PPA minus 1 year 1-Year P99: 1.00x, PPA minus 1 year | L6: P50: 1.40x 1-Year P99: 1.00x | M6: 1-Year P50: 1.40x 1-Year P99: 1.00x | N6: 1-Year P90: 1.30x 1-Year P99: 1.00x | O6: 1-Year P50: 1.30x 1-Year P90: 1.25x 1-Year P99: 1.00x | P6: 1-Year P90: 1.40x P50: 1.40x
C7: Maximum Debt to Capital and Other | D7: Bond and Hybrid Solutions also Available Max 85% Debt | E7: Potential for Delayed Draw Potential for Structured Deposit Note to avoid negative carry | I7: Swap Margin: 0.15% Admin Agent Fee: C$ 75,000 Annually | J7: Max 80% Debt | K7: Max 85% Debt | L7: Max 75% Debt | M7: Also include DSR/MMR and GST Bridge Facilities Max 85% to 90% Debt | P7: Two-year Mini-Perm also available
C8: Term | D8: COD + 7 Years | E8: 21 years / 6 months before PPA end | G8: 5 to 7 Years (C + 3-5 Yrs) | I8: COD + 7 Years Sized to 18 Years (2-year tail to RESA) | J8: COD + 19.5 Years | K8: COD + 10 Years Sized to PPA minus 1 year | L8: COD + 7 Years Sized to 18 Years (2-year tail to RESA) | M8: COD + 7 to 19.5 years (6 to 12 month tail to PPA) | N8: Floating: COD + 7 to 9 Years Fixed: COD + 7 to 19.5 years (6 mo. tail to PPA) | O8: TBD with 6 mo. tail to PPA | P8: 3 Year Mini-Perm
C9: Benchmark | D9: CDOR | E9: GOC: 1.958% | G9: BA | J9: Mid-market, semi-annual YTM of the 10 and 15 year GoC Bonds | K9: CDOR | M9: Swapped CDOR | N9: Floating: Swapped CDOR Fixed: Interpolated GoC | O9: Interpolated GoC | P9: GoC
C10: Spread | D10: 1.45% to 1.50% | E10: 2.150% to 2.200% | F10: 3 to 5 bps premium for execution | G10: 1.625% | I10: Construction: 1.625% Term Loan: 1.625%, 0.25% step-ups in Year 4 and Year 7 | K10: Constr. & Years 1 to 4: 150 to 162.5 Years 5 to 8: 175 to 187.5 Years 9 and 10: 200 to 212.5 | L10: Construction: 1.875% Term Loan: 2.000%; 0.125% step-ups every 3 years | M10: C + 7 Years: 150 bps C + 19.5 Years: 187.5 bps | N10: Floating: 150 to 162.5 bps Fixed: 200 to 220 bps | O10: Fixed Facility: 210 to 220 bps | P10: Years 1 to 3: 137.5 to 150 bps Bond: 195
C11: Indicative All-in Rate | E11: 4.108% to 4.158% | F11: 4.138% to 4.208% | G11: 4.155% | P11: 3.95% Area
C12: Upfront Fees | D12: 1.45% to 1.50% | E12: Sole: 0.35% Joint: 0.45% | G12: Undrawn: 35% of Margin Upfront: 150 bps (area) Structuring Fees: 50 bps (area) | I12: 1.50% for TL and LCs | J12: 1.00% of Construction | K12: 150 to 162.5 bps | L12: Undrawn: 0.50% Upfront: 1.75% Agency: C$ 75k | M12: 150 bps best effort, or underwritten for a premium | N12: Floating: 150 Fixed: 50 arranged or 150 underwritten | O12: 50 bps arranged 150 underwritten | P12: 100 to 125 bps150k to 200k Arrangement
C13: Commitment Fees | D13: 30% of Applicable Margin | G13: Undrawn: 35% of Margin | I13: 0.005 | J13: 0.015 | K13: 50 bps | M13: 30% of drawn spread | N13: Floating: 30% of drawn spread Fixed: TBD | O13: Fixed: TBD | P13: 34.4 to 37.5 bps (25%)
C14: Agency / Admin Fees | J14: Construction: 7k/mo Term Loan: 40k/yr + 2%/yr | K14: $100k per year + inflation | M14: Construction: 60k Operation 40k (indexed) | P14: 55k per lender
C15: Size 1 | E15: 220 to 245 | F15: N/A | G15: 273 | L15: 240
C16: Size 2 | E16: 180 to 200 | F16: N/A | G16: 229 | L16: 205
C17: Combined Size | F17: 400 to 445 | H17: 502 | I17: 304 | M17: 595 | N17: Floating Rate Facility: 170 Fixed Rate: Up to 300 per project Total: 770 | O17: Fixed Rate: Up to 300 per project | P17: 422 to 431
I18: Half size
I19: What is benchmark rate

Sheet Inputs
B2: Timing
C3: Fin Close | E3: Date | F3: 2020-01-01
C4: Construction | E4: Years | F4: 3
C5: COD | E5: Date | F5: =EDATE(F3,12*F4) -> 2023-01-01
C6: Life | E6: Year | F6: 25
C7: Decommissioning | E7: Date | F7: =EDATE(F5,F6*12) -> 2048-01-01
C8: Months Pre-COD | E8: Months | F8: 12
C9: Months Post-COD | E9: Months | F9: 12
B11: Operations
C12: Capital Expenditure | E12: Euro | F12: 1400
C14: P50 Revenue | E14: Euro | F14: 170
C15: P90 Revenue | E15: Euro | F15: 140
C16: Revenue Applied | E16: Euro | F16: 189
C18: P50 Growth | E18: Growth | F18: 0.005
C19: P90 Growth | E19: Growth | F19: 0
C20: Growth Applied | E20: Growth | F20: 0.008
C22: Operating Expense | E22: Euro | F22: 50
C23: Op Expense Growth | E23: Growth | F23: 0.015
C25: Tax Depreciation | E25: Years | F25: 5
C26: Income Tax Rate | E26: % | F26: 0.25
C27: Declining balance | F27: 1.5
C29: Tax Depreciation | G29: 0 | H29: 1 | I29: 2 | J29: 3 | K29: 4 | L29: 5 | M29: 6 | N29: 7 | O29: 8 | P29: 9 | Q29: 10 | R29: 11
C30: Depreciation | H30: =IFERROR(VDB(1,0,$F$25,G29,H29,$F$27),0) -> 0.3 | I30: =IFERROR(VDB(1,0,$F$25,H29,I29,$F$27),0) -> 0.21 | J30: 0.1633333333 | K30: 0.1633333333 | L30: 0.1633333333 | M30: 0 | N30: 0 | O30: 0 | P30: 0 | Q30: 0 | R30: 0
C31: Net Plant Percent | G31: 1 | H31: =G31-G30 -> 1 | I31: =H31-H30 -> 0.7 | J31: 0.49 | K31: 0.3266666667 | L31: 0.1633333333 | M31: 0 | N31: 0 | O31: 0 | P31: 0 | Q31: 0 | R31: 0
B33: Financing
C34: P50 DSCR | E34: x | F34: 1.3
C35: P90 DSCR | E35: x | F35: 1.2
C36: Max Debt to Capital | E36: % | F36: 0.85
C38: Tenure | E38: Years | F38: 17
C39: Sculpting Method for Fixed Debt | E39: Code | F39: 1
D40: End of Repayment | E40: Date | F40: =EDATE(F5,F38*12) -> 2040-01-01
C41: Interest Rate | E41: % | F41: 0.03
C42: Up-front Fee | E42: % | F42: 0.01
C43: DSCR % of Debt Service | E43: % | F43: 0.5
C45: Apply Parallel Model | E45: Flag | F45: FALSE
B48: Constants
C49: Months in Year | F49: 12
E51: exit number | F51: 1
C53: Comp_P50
C54: Comp_P90
C55: DC_Difference
C56: DSRA_DC_comp
C57: DSRA_DC_Diff
C58: DSRA_DC_fix
C59: DSRA_P50_Diff
C60: DSRA_P50_fix
C61: DSRA_P90_comp
C62: DSRA_P90_Diff
C63: DSRA_P90_fix
C64: Fixed_P50
C65: Fixed_P90
C66: p50_comp
C67: p50_diff
C68: P50_Difference
C69: p50_fix
C70: P50_SU_Diff
C71: p90_comp
C72: p90_diff
C73: P90_Difference
C74: p90_fix
C75: P90_SU_Diff
C76: ProjectName

Sheet Model
B2: Timing
C3: Period | J3: 1 | K3: 2 | L3: 3 | M3: 4 | N3: 5 | O3: 6 | P3: 7 | Q3: 8 | R3: 9 | S3: 10 | T3: 11 | U3: 12 | V3: 13 | W3: 14 | X3: 15 | Y3: 16 | Z3: 17 | AA3: 18 | AB3: 19 | AC3: 20 | AD3: 21 | AE3: 22 | AF3: 23 | AG3: 24 | AH3: 25 | AI3: 26 | AJ3: 27 | AK3: 28 | AL3: 29 | AM3: 30 | AN3: 31 | AO3: 32 | AP3: 33 | AQ3: 34 | AR3: 35 | AS3: 36 | AT3: 37 | AU3: 38 | AV3: 39 | AW3: 40 | AX3: 41 | AY3: 42 | AZ3: 43 | BA3: 44 | BB3: 45 | BC3: 46 | BD3: 47 | BE3: 48 | BF3: 49 | BG3: 50 | BH3: 51 | BI3: 52 | BJ3: 53 | BK3: 54 | BL3: 55 | BM3: 56 | BN3: 57 | BO3: 58 | BP3: 59 | BQ3: 60 | BR3: 61 | BS3: 62 | BT3: 63 | BU3: 64 | BV3: 65 | BW3: 66 | BX3: 67 | BY3: 68 | BZ3: 69 | CA3: 70 | CB3: 71 | CC3: 72 | CD3: 73 | CE3: 74 | CF3: 75 | CG3: 76 | CH3: 77 | CI3: 78 | CJ3: 79 | CK3: 80 | CL3: 81 | CM3: 82 | CN3: 83 | CO3: 84 | CP3: 85 | CQ3: 86 | CR3: 87 | CS3: 88 | CT3: 89 | CU3: 90 | CV3: 91 | CW3: 92 | CX3: 93 | CY3: 94 | CZ3: 95 | DA3: 96 | DB3: 97 | DC3: 98 | DD3: 99 | DE3: 100 | DF3: 101 | DG3: 102 | DH3: 103 | DI3: 104 | DJ3: 105 | DK3: 106 | DL3: 107 | DM3: 108 | DN3: 109 | DO3: 110 | DP3: 111 | DQ3: 112 | DR3: 113 | DS3: 114 | DT3: 115 | DU3: 116 | DV3: 117 | DW3: 118 | DX3: 119 | DY3: 120 | DZ3: 121 | EA3: 122 | EB3: 123 | EC3: 124 | ED3: 125 | EE3: 126 | EF3: 127 | EG3: 128 | EH3: 129 | EI3: 130 | EJ3: 131 | EK3: 132 | EL3: 133 | EM3: 134 | EN3: 135 | EO3: 136 | EP3: 137 | EQ3: 138 | ER3: 139 | ES3: 140 | ET3: 141 | EU3: 142 | EV3: 143 | EW3: 144 | EX3: 145 | EY3: 146 | EZ3: 147 | FA3: 148 | FB3: 149 | FC3: 150 | FD3: 151 | FE3: 152 | FF3: 153 | FG3: 154 | FH3: 155 | FI3: 156 | FJ3: 157 | FK3: 158 | FL3: 159 | FM3: 160 | FN3: 161 | FO3: 162 | FP3: 163 | FQ3: 164 | FR3: 165 | FS3: 166 | FT3: 167 | FU3: 168 | FV3: 169 | FW3: 170 | FX3: 171 | FY3: 172 | FZ3: 173 | GA3: 174 | GB3: 175 | GC3: 176 | GD3: 177 | GE3: 178 | GF3: 179 | GG3: 180 | GH3: 181 | GI3: 182 | GJ3: 183 | GK3: 184 | GL3: 185 | GM3: 186 | GN3: 187 | GO3: 188 | GP3: 189 | GQ3: 190 | GR3: 191 | GS3: 192 | GT3: 193 | GU3: 194 | GV3: 195 | GW3: 196 | GX3: 197 | GY3: 198 | GZ3: 199 | HA3: 200
C4: Construction | E4: Period | F4: =Inputs!$F$4 -> 3 | J4: =(J3<=$F$4)*1 -> 1 | K4: =(K3<=$F$4)*1 -> 1 | L4: 1 | M4: 0 | N4: 0 | O4: 0 | P4: 0 | Q4: 0 | R4: 0 | S4: 0 | T4: 0 | U4: 0 | V4: 0 | W4: 0 | X4: 0 | Y4: 0 | Z4: 0 | AA4: 0 | AB4: 0 | AC4: 0 | AD4: 0 | AE4: 0 | AF4: 0 | AG4: 0 | AH4: 0 | AI4: 0 | AJ4: 0 | AK4: 0 | AL4: 0 | AM4: 0 | AN4: 0 | AO4: 0 | AP4: 0 | AQ4: 0 | AR4: 0 | AS4: 0 | AT4: 0 | AU4: 0 | AV4: 0 | AW4: 0 | AX4: 0 | AY4: 0 | AZ4: 0 | BA4: 0 | BB4: 0 | BC4: 0 | BD4: 0 | BE4: 0 | BF4: 0 | BG4: 0 | BH4: 0 | BI4: 0 | BJ4: 0 | BK4: 0 | BL4: 0 | BM4: 0 | BN4: 0 | BO4: 0 | BP4: 0 | BQ4: 0 | BR4: 0 | BS4: 0 | BT4: 0 | BU4: 0 | BV4: 0 | BW4: =(BW3<=$F$4)*1 -> 0 | BX4: 0 | BY4: 0 | BZ4: 0 | CA4: 0 | CB4: 0 | CC4: 0 | CD4: 0 | CE4: 0 | CF4: 0 | CG4: 0 | CH4: 0 | CI4: 0 | CJ4: 0 | CK4: 0 | CL4: 0 | CM4: 0 | CN4: 0 | CO4: 0 | CP4: 0 | CQ4: 0 | CR4: 0 | CS4: 0 | CT4: 0 | CU4: 0 | CV4: 0 | CW4: 0 | CX4: 0 | CY4: 0 | CZ4: 0 | DA4: 0 | DB4: 0 | DC4: 0 | DD4: 0 | DE4: 0 | DF4: 0 | DG4: 0 | DH4: 0 | DI4: 0 | DJ4: 0 | DK4: 0 | DL4: 0 | DM4: 0 | DN4: 0 | DO4: 0 | DP4: 0 | DQ4: 0 | DR4: 0 | DS4: 0 | DT4: 0 | DU4: 0 | DV4: 0 | DW4: 0 | DX4: 0 | DY4: 0 | DZ4: 0 | EA4: 0 | EB4: 0 | EC4: 0 | ED4: 0 | EE4: 0 | EF4: 0 | EG4: 0 | EH4: 0 | EI4: =(EI3<=$F$4)*1 -> 0 | EJ4: 0 | EK4: 0 | EL4: 0 | EM4: 0 | EN4: 0 | EO4: 0 | EP4: 0 | EQ4: 0 | ER4: 0 | ES4: 0 | ET4: 0 | EU4: 0 | EV4: 0 | EW4: 0 | EX4: 0 | EY4: 0 | EZ4: 0 | FA4: 0 | FB4: 0 | FC4: 0 | FD4: 0 | FE4: 0 | FF4: 0 | FG4: 0 | FH4: 0 | FI4: 0 | FJ4: 0 | FK4: 0 | FL4: 0 | FM4: 0 | FN4: 0 | FO4: 0 | FP4: 0 | FQ4: 0 | FR4: 0 | FS4: 0 | FT4: 0 | FU4: 0 | FV4: 0 | FW4: 0 | FX4: 0 | FY4: 0 | FZ4: 0 | GA4: 0 | GB4: 0 | GC4: 0 | GD4: 0 | GE4: 0 | GF4: 0 | GG4: 0 | GH4: 0 | GI4: 0 | GJ4: 0 | GK4: 0 | GL4: 0 | GM4: 0 | GN4: 0 | GO4: 0 | GP4: 0 | GQ4: 0 | GR4: 0 | GS4: 0 | GT4: 0 | GU4: =(GU3<=$F$4)*1 -> 0 | GV4: 0 | GW4: 0 | GX4: 0 | GY4: 0 | GZ4: 0 | HA4: 0
C5: Months in Period | F5: =Inputs!$F$8 -> 12 | G5: =Inputs!$F$9 -> 12 | J5: =IF(J4=1,$F$5,$G$5) -> 12 | K5: =IF(K4=1,$F$5,$G$5) -> 12 | L5: 12 | M5: 12 | N5: 12 | O5: 12 | P5: 12 | Q5: 12 | R5: 12 | S5: 12 | T5: 12 | U5: 12 | V5: 12 | W5: 12 | X5: 12 | Y5: 12 | Z5: 12 | AA5: 12 | AB5: 12 | AC5: 12 | AD5: 12 | AE5: 12 | AF5: 12 | AG5: 12 | AH5: 12 | AI5: 12 | AJ5: 12 | AK5: 12 | AL5: 12 | AM5: 12 | AN5: 12 | AO5: 12 | AP5: 12 | AQ5: 12 | AR5: 12 | AS5: 12 | AT5: 12 | AU5: 12 | AV5: 12 | AW5: 12 | AX5: 12 | AY5: 12 | AZ5: 12 | BA5: 12 | BB5: 12 | BC5: 12 | BD5: 12 | BE5: 12 | BF5: 12 | BG5: 12 | BH5: 12 | BI5: 12 | BJ5: 12 | BK5: 12 | BL5: 12 | BM5: 12 | BN5: 12 | BO5: 12 | BP5: 12 | BQ5: 12 | BR5: 12 | BS5: 12 | BT5: 12 | BU5: 12 | BV5: 12 | BW5: =IF(BW4=1,$F$5,$G$5) -> 12 | BX5: 12 | BY5: 12 | BZ5: 12 | CA5: 12 | CB5: 12 | CC5: 12 | CD5: 12 | CE5: 12 | CF5: 12 | CG5: 12 | CH5: 12 | CI5: 12 | CJ5: 12 | CK5: 12 | CL5: 12 | CM5: 12 | CN5: 12 | CO5: 12 | CP5: 12 | CQ5: 12 | CR5: 12 | CS5: 12 | CT5: 12 | CU5: 12 | CV5: 12 | CW5: 12 | CX5: 12 | CY5: 12 | CZ5: 12 | DA5: 12 | DB5: 12 | DC5: 12 | DD5: 12 | DE5: 12 | DF5: 12 | DG5: 12 | DH5: 12 | DI5: 12 | DJ5: 12 | DK5: 12 | DL5: 12 | DM5: 12 | DN5: 12 | DO5: 12 | DP5: 12 | DQ5: 12 | DR5: 12 | DS5: 12 | DT5: 12 | DU5: 12 | DV5: 12 | DW5: 12 | DX5: 12 | DY5: 12 | DZ5: 12 | EA5: 12 | EB5: 12 | EC5: 12 | ED5: 12 | EE5: 12 | EF5: 12 | EG5: 12 | EH5: 12 | EI5: =IF(EI4=1,$F$5,$G$5) -> 12 | EJ5: 12 | EK5: 12 | EL5: 12 | EM5: 12 | EN5: 12 | EO5: 12 | EP5: 12 | EQ5: 12 | ER5: 12 | ES5: 12 | ET5: 12 | EU5: 12 | EV5: 12 | EW5: 12 | EX5: 12 | EY5: 12 | EZ5: 12 | FA5: 12 | FB5: 12 | FC5: 12 | FD5: 12 | FE5: 12 | FF5: 12 | FG5: 12 | FH5: 12 | FI5: 12 | FJ5: 12 | FK5: 12 | FL5: 12 | FM5: 12 | FN5: 12 | FO5: 12 | FP5: 12 | FQ5: 12 | FR5: 12 | FS5: 12 | FT5: 12 | FU5: 12 | FV5: 12 | FW5: 12 | FX5: 12 | FY5: 12 | FZ5: 12 | GA5: 12 | GB5: 12 | GC5: 12 | GD5: 12 | GE5: 12 | GF5: 12 | GG5: 12 | GH5: 12 | GI5: 12 | GJ5: 12 | GK5: 12 | GL5: 12 | GM5: 12 | GN5: 12 | GO5: 12 | GP5: 12 | GQ5: 12 | GR5: 12 | GS5: 12 | GT5: 12 | GU5: =IF(GU4=1,$F$5,$G$5) -> 12 | GV5: 12 | GW5: 12 | GX5: 12 | GY5: 12 | GZ5: 12 | HA5: 12
C6: Start Date | J6: =I7+1 -> 2020-01-01 | K6: =J7+1 -> 2021-01-01 | L6: 2022-01-01 | M6: 2023-01-01 | N6: 2024-01-01 | O6: 2025-01-01 | P6: 2026-01-01 | Q6: 2027-01-01 | R6: 2028-01-01 | S6: 2029-01-01 | T6: 2030-01-01 | U6: 2031-01-01 | V6: 2032-01-01 | W6: 2033-01-01 | X6: 2034-01-01 | Y6: 2035-01-01 | Z6: 2036-01-01 | AA6: 2037-01-01 | AB6: 2038-01-01 | AC6: 2039-01-01 | AD6: 2040-01-01 | AE6: 2041-01-01 | AF6: 2042-01-01 | AG6: 2043-01-01 | AH6: 2044-01-01 | AI6: 2045-01-01 | AJ6: 2046-01-01 | AK6: 2047-01-01 | AL6: 2048-01-01 | AM6: 2049-01-01 | AN6: 2050-01-01 | AO6: 2051-01-01 | AP6: 2052-01-01 | AQ6: 2053-01-01 | AR6: 2054-01-01 | AS6: 2055-01-01 | AT6: 2056-01-01 | AU6: 2057-01-01 | AV6: 2058-01-01 | AW6: 2059-01-01 | AX6: 2060-01-01 | AY6: 2061-01-01 | AZ6: 2062-01-01 | BA6: 2063-01-01 | BB6: 2064-01-01 | BC6: 2065-01-01 | BD6: 2066-01-01 | BE6: 2067-01-01 | BF6: 2068-01-01 | BG6: 2069-01-01 | BH6: 2070-01-01 | BI6: 2071-01-01 | BJ6: 2072-01-01 | BK6: 2073-01-01 | BL6: 2074-01-01 | BM6: 2075-01-01 | BN6: 2076-01-01 | BO6: 2077-01-01 | BP6: 2078-01-01 | BQ6: 2079-01-01
D7: End Date | I7: =Inputs!$F$3-1 -> 2019-12-31 | J7: =EDATE(J6,J5)-1 -> 2020-12-31 | K7: =EDATE(K6,K5)-1 -> 2021-12-31 | L7: =EDATE(L6,L5)-1 -> 2022-12-31 | M7: =EDATE(M6,M5)-1 -> 2023-12-31 | N7: 2024-12-31 | O7: 2025-12-31 | P7: 2026-12-31 | Q7: 2027-12-31 | R7: 2028-12-31 | S7: 2029-12-31 | T7: 2030-12-31 | U7: 2031-12-31 | V7: 2032-12-31 | W7: 2033-12-31 | X7: 2034-12-31 | Y7: 2035-12-31 | Z7: 2036-12-31 | AA7: 2037-12-31 | AB7: 2038-12-31 | AC7: 2039-12-31 | AD7: 2040-12-31 | AE7: 2041-12-31 | AF7: 2042-12-31 | AG7: 2043-12-31 | AH7: 2044-12-31 | AI7: 2045-12-31 | AJ7: 2046-12-31 | AK7: 2047-12-31 | AL7: 2048-12-31 | AM7: 2049-12-31 | AN7: 2050-12-31 | AO7: 2051-12-31 | AP7: 2052-12-31 | AQ7: 2053-12-31 | AR7: 2054-12-31 | AS7: 2055-12-31 | AT7: 2056-12-31 | AU7: 2057-12-31 | AV7: 2058-12-31 | AW7: 2059-12-31 | AX7: 2060-12-31 | AY7: 2061-12-31 | AZ7: 2062-12-31 | BA7: 2063-12-31 | BB7: 2064-12-31 | BC7: 2065-12-31 | BD7: 2066-12-31 | BE7: 2067-12-31 | BF7: 2068-12-31 | BG7: 2069-12-31 | BH7: 2070-12-31 | BI7: 2071-12-31 | BJ7: 2072-12-31 | BK7: 2073-12-31 | BL7: 2074-12-31 | BM7: 2075-12-31 | BN7: 2076-12-31 | BO7: 2077-12-31 | BP7: 2078-12-31 | BQ7: 2079-12-31
C8: Operating Period | E8: Swtich | F8: =Inputs!$F$5 -> 2023-01-01 | G8: =Inputs!$F$7 -> 2048-01-01 | J8: =AND(J6>=$F$8,J6<$G$8) -> FALSE | K8: =AND(K6>=$F$8,K6<$G$8) -> FALSE | L8: FALSE | M8: TRUE | N8: TRUE | O8: TRUE | P8: TRUE | Q8: TRUE | R8: TRUE | S8: TRUE | T8: TRUE | U8: TRUE | V8: TRUE | W8: TRUE | X8: TRUE | Y8: TRUE | Z8: TRUE | AA8: TRUE | AB8: TRUE | AC8: TRUE | AD8: TRUE | AE8: TRUE | AF8: TRUE | AG8: TRUE | AH8: TRUE | AI8: TRUE | AJ8: TRUE | AK8: TRUE | AL8: FALSE | AM8: FALSE | AN8: FALSE | AO8: FALSE | AP8: FALSE | AQ8: FALSE | AR8: FALSE | AS8: FALSE | AT8: FALSE | AU8: FALSE | AV8: FALSE | AW8: FALSE | AX8: FALSE | AY8: FALSE | AZ8: FALSE | BA8: FALSE | BB8: FALSE | BC8: FALSE | BD8: FALSE | BE8: FALSE | BF8: FALSE | BG8: FALSE | BH8: FALSE | BI8: FALSE | BJ8: FALSE | BK8: FALSE | BL8: FALSE | BM8: FALSE | BN8: FALSE | BO8: FALSE | BP8: FALSE | BQ8: FALSE
B10: Operations
C11: Total Capital Expenditures | E11: Euro | F11: =Inputs!F12 -> 1400 | J11: =$F$11 -> 1400 | K11: =$F$11 -> 1400 | L11: 1400 | M11: 1400 | N11: 1400 | O11: 1400 | P11: 1400 | Q11: 1400 | R11: 1400 | S11: 1400 | T11: 1400 | U11: 1400 | V11: 1400 | W11: 1400 | X11: 1400 | Y11: 1400 | Z11: 1400 | AA11: 1400 | AB11: 1400 | AC11: 1400 | AD11: 1400 | AE11: 1400 | AF11: 1400 | AG11: 1400 | AH11: 1400 | AI11: 1400 | AJ11: 1400 | AK11: 1400 | AL11: 1400 | AM11: 1400 | AN11: 1400 | AO11: 1400 | AP11: 1400 | AQ11: 1400 | AR11: 1400 | AS11: 1400 | AT11: 1400 | AU11: 1400 | AV11: 1400 | AW11: 1400 | AX11: 1400 | AY11: 1400 | AZ11: 1400 | BA11: 1400 | BB11: 1400 | BC11: 1400 | BD11: 1400 | BE11: 1400 | BF11: 1400 | BG11: 1400 | BH11: 1400 | BI11: 1400 | BJ11: 1400 | BK11: 1400 | BL11: 1400 | BM11: 1400 | BN11: 1400 | BO11: 1400 | BP11: 1400 | BQ11: 1400
C12: S-Curve | E12: Periods | F12: =Inputs!F4 -> 3 | J12: =1/$F$12*J4 -> 0.3333333333 | K12: =1/$F$12*K4 -> 0.3333333333 | L12: 0.3333333333 | M12: 0 | N12: 0 | O12: 0 | P12: 0 | Q12: 0 | R12: 0 | S12: 0 | T12: 0 | U12: 0 | V12: 0 | W12: 0 | X12: 0 | Y12: 0 | Z12: 0 | AA12: 0 | AB12: 0 | AC12: 0 | AD12: 0 | AE12: 0 | AF12: 0 | AG12: 0 | AH12: 0 | AI12: 0 | AJ12: 0 | AK12: 0 | AL12: 0 | AM12: 0 | AN12: 0 | AO12: 0 | AP12: 0 | AQ12: 0 | AR12: 0 | AS12: 0 | AT12: 0 | AU12: 0 | AV12: 0 | AW12: 0 | AX12: 0 | AY12: 0 | AZ12: 0 | BA12: 0 | BB12: 0 | BC12: 0 | BD12: 0 | BE12: 0 | BF12: 0 | BG12: 0 | BH12: 0 | BI12: 0 | BJ12: 0 | BK12: 0 | BL12: 0 | BM12: 0 | BN12: 0 | BO12: 0 | BP12: 0 | BQ12: 0
C13: Cap Exp | E13: Euro | F13: =Inputs!F12 -> 1400 | J13: =J11*J12 -> 466.6666667 | K13: =K11*K12 -> 466.6666667 | L13: 466.6666667 | M13: 0 | N13: 0 | O13: 0 | P13: 0 | Q13: 0 | R13: 0 | S13: 0 | T13: 0 | U13: 0 | V13: 0 | W13: 0 | X13: 0 | Y13: 0 | Z13: 0 | AA13: 0 | AB13: 0 | AC13: 0 | AD13: 0 | AE13: 0 | AF13: 0 | AG13: 0 | AH13: 0 | AI13: 0 | AJ13: 0 | AK13: 0 | AL13: 0 | AM13: 0 | AN13: 0 | AO13: 0 | AP13: 0 | AQ13: 0 | AR13: 0 | AS13: 0 | AT13: 0 | AU13: 0 | AV13: 0 | AW13: 0 | AX13: 0 | AY13: 0 | AZ13: 0 | BA13: 0 | BB13: 0 | BC13: 0 | BD13: 0 | BE13: 0 | BF13: 0 | BG13: 0 | BH13: 0 | BI13: 0 | BJ13: 0 | BK13: 0 | BL13: 0 | BM13: 0 | BN13: 0 | BO13: 0 | BP13: 0 | BQ13: 0
C15: P50 - Base | E15: Euro | F15: =Inputs!$F$14 -> 170 | G15: =Inputs!$F$18 -> 0.005 | I15: =F15 -> 170 | J15: =I15*(1+$G$15) -> 170.85 | K15: =J15*(1+$G$15) -> 171.70425 | L15: 172.5627712 | M15: 173.4255851 | N15: 174.292713 | O15: 175.1641766 | P15: 176.0399975 | Q15: 176.9201975 | R15: 177.8047985 | S15: 178.6938224 | T15: 179.5872916 | U15: 180.485228 | V15: 181.3876542 | W15: 182.2945924 | X15: 183.2060654 | Y15: 184.1220957 | Z15: 185.0427062 | AA15: 185.9679197 | AB15: 186.8977593 | AC15: 187.8322481 | AD15: 188.7714094 | AE15: 189.7152664 | AF15: 190.6638427 | AG15: 191.617162 | AH15: 192.5752478 | AI15: 193.538124 | AJ15: 194.5058146 | AK15: 195.4783437 | AL15: 196.4557354 | AM15: 197.4380141 | AN15: 198.4252042 | AO15: 199.4173302 | AP15: 200.4144168 | AQ15: 201.4164889 | AR15: 202.4235714 | AS15: 203.4356892 | AT15: 204.4528677 | AU15: 205.475132 | AV15: 206.5025077 | AW15: 207.5350202 | AX15: 208.5726953 | AY15: 209.6155588 | AZ15: 210.6636366 | BA15: 211.7169548 | BB15: 212.7755395 | BC15: 213.8394172 | BD15: 214.9086143 | BE15: 215.9831574 | BF15: 217.0630732 | BG15: 218.1483885 | BH15: 219.2391305 | BI15: 220.3353261 | BJ15: 221.4370028 | BK15: 222.5441878 | BL15: 223.6569087 | BM15: 224.7751933 | BN15: 225.8990692 | BO15: 227.0285646 | BP15: 228.1637074 | BQ15: 229.3045259
C16: P90 - Base | E16: Euro | F16: =Inputs!$F$15 -> 140 | G16: =Inputs!$F$19 -> 0 | I16: =F16 -> 140 | J16: =I16*(1+$G$16) -> 140 | K16: =J16*(1+$G$16) -> 140 | L16: 140 | M16: 140 | N16: 140 | O16: 140 | P16: 140 | Q16: 140 | R16: 140 | S16: 140 | T16: 140 | U16: 140 | V16: 140 | W16: 140 | X16: 140 | Y16: 140 | Z16: 140 | AA16: 140 | AB16: 140 | AC16: 140 | AD16: 140 | AE16: 140 | AF16: 140 | AG16: 140 | AH16: 140 | AI16: 140 | AJ16: 140 | AK16: 140 | AL16: 140 | AM16: 140 | AN16: 140 | AO16: 140 | AP16: 140 | AQ16: 140 | AR16: 140 | AS16: 140 | AT16: 140 | AU16: 140 | AV16: 140 | AW16: 140 | AX16: 140 | AY16: 140 | AZ16: 140 | BA16: 140 | BB16: 140 | BC16: 140 | BD16: 140 | BE16: 140 | BF16: 140 | BG16: 140 | BH16: 140 | BI16: 140 | BJ16: 140 | BK16: 140 | BL16: 140 | BM16: 140 | BN16: 140 | BO16: 140 | BP16: 140 | BQ16: 140
C17: Applied - Base | E17: Euro | F17: =Inputs!$F$16 -> 189 | G17: =Inputs!$F$20 -> 0.008 | I17: 189 | J17: =I17*(1+$G$17) -> 190.512 | K17: =J17*(1+$G$17) -> 192.036096 | L17: 193.5723848 | M17: 195.1209638 | N17: 196.6819316 | O17: 198.255387 | P17: 199.8414301 | Q17: 201.4401615 | R17: 203.0516828 | S17: 204.6760963 | T17: 206.3135051 | U17: 207.9640131 | V17: 209.6277252 | W17: 211.304747 | X17: 212.995185 | Y17: 214.6991465 | Z17: 216.4167396 | AA17: 218.1480736 | AB17: 219.8932582 | AC17: 221.6524042 | AD17: 223.4256235 | AE17: 225.2130284 | AF17: 227.0147327 | AG17: 228.8308505 | AH17: 230.6614973 | AI17: 232.5067893 | AJ17: 234.3668436 | AK17: 236.2417784 | AL17: 238.1317126 | AM17: 240.0367663 | AN17: 241.9570604 | AO17: 243.8927169 | AP17: 245.8438587 | AQ17: 247.8106095 | AR17: 249.7930944 | AS17: 251.7914392 | AT17: 253.8057707 | AU17: 255.8362168 | AV17: 257.8829066 | AW17: 259.9459698 | AX17: 262.0255376 | AY17: 264.1217419 | AZ17: 266.2347158 | BA17: 268.3645935 | BB17: 270.5115103 | BC17: 272.6756024 | BD17: 274.8570072 | BE17: 277.0558632 | BF17: 279.2723102 | BG17: 281.5064886 | BH17: 283.7585405 | BI17: 286.0286089 | BJ17: 288.3168377 | BK17: 290.6233724 | BL17: 292.9483594 | BM17: 295.2919463 | BN17: 297.6542819 | BO17: 300.0355161 | BP17: 302.4358002 | BQ17: 304.8552866
C19: P50 - Applied | E19: Euro | J19: =J15*J8 -> 0 | K19: =K15*K8 -> 0 | L19: 0 | M19: 173.4255851 | N19: 174.292713 | O19: 175.1641766 | P19: 176.0399975 | Q19: 176.9201975 | R19: 177.8047985 | S19: 178.6938224 | T19: 179.5872916 | U19: 180.485228 | V19: 181.3876542 | W19: 182.2945924 | X19: 183.2060654 | Y19: 184.1220957 | Z19: 185.0427062 | AA19: 185.9679197 | AB19: 186.8977593 | AC19: 187.8322481 | AD19: 188.7714094 | AE19: 189.7152664 | AF19: 190.6638427 | AG19: 191.617162 | AH19: 192.5752478 | AI19: 193.538124 | AJ19: 194.5058146 | AK19: 195.4783437 | AL19: 0 | AM19: 0 | AN19: 0 | AO19: 0 | AP19: 0 | AQ19: 0 | AR19: 0 | AS19: 0 | AT19: 0 | AU19: 0 | AV19: 0 | AW19: 0 | AX19: 0 | AY19: 0 | AZ19: 0 | BA19: 0 | BB19: 0 | BC19: 0 | BD19: 0 | BE19: 0 | BF19: 0 | BG19: 0 | BH19: 0 | BI19: 0 | BJ19: 0 | BK19: 0 | BL19: 0 | BM19: 0 | BN19: 0 | BO19: 0 | BP19: 0 | BQ19: 0
C20: P90 - Applied | E20: Euro | J20: =J16*J8 -> 0 | K20: =K16*K8 -> 0 | L20: 0 | M20: 140 | N20: 140 | O20: 140 | P20: 140 | Q20: 140 | R20: 140 | S20: 140 | T20: 140 | U20: 140 | V20: 140 | W20: 140 | X20: 140 | Y20: 140 | Z20: 140 | AA20: 140 | AB20: 140 | AC20: 140 | AD20: 140 | AE20: 140 | AF20: 140 | AG20: 140 | AH20: 140 | AI20: 140 | AJ20: 140 | AK20: 140 | AL20: 0 | AM20: 0 | AN20: 0 | AO20: 0 | AP20: 0 | AQ20: 0 | AR20: 0 | AS20: 0 | AT20: 0 | AU20: 0 | AV20: 0 | AW20: 0 | AX20: 0 | AY20: 0 | AZ20: 0 | BA20: 0 | BB20: 0 | BC20: 0 | BD20: 0 | BE20: 0 | BF20: 0 | BG20: 0 | BH20: 0 | BI20: 0 | BJ20: 0 | BK20: 0 | BL20: 0 | BM20: 0 | BN20: 0 | BO20: 0 | BP20: 0 | BQ20: 0
C21: Applied - Applied | E21: Euro | J21: =J17*J8 -> 0 | K21: =K17*K8 -> 0 | L21: 0 | M21: 195.1209638 | N21: 196.6819316 | O21: 198.255387 | P21: 199.8414301 | Q21: 201.4401615 | R21: 203.0516828 | S21: 204.6760963 | T21: 206.3135051 | U21: 207.9640131 | V21: 209.6277252 | W21: 211.304747 | X21: 212.995185 | Y21: 214.6991465 | Z21: 216.4167396 | AA21: 218.1480736 | AB21: 219.8932582 | AC21: 221.6524042 | AD21: 223.4256235 | AE21: 225.2130284 | AF21: 227.0147327 | AG21: 228.8308505 | AH21: 230.6614973 | AI21: 232.5067893 | AJ21: 234.3668436 | AK21: 236.2417784 | AL21: 0 | AM21: 0 | AN21: 0 | AO21: 0 | AP21: 0 | AQ21: 0 | AR21: 0 | AS21: 0 | AT21: 0 | AU21: 0 | AV21: 0 | AW21: 0 | AX21: 0 | AY21: 0 | AZ21: 0 | BA21: 0 | BB21: 0 | BC21: 0 | BD21: 0 | BE21: 0 | BF21: 0 | BG21: 0 | BH21: 0 | BI21: 0 | BJ21: 0 | BK21: 0 | BL21: 0 | BM21: 0 | BN21: 0 | BO21: 0 | BP21: 0 | BQ21: 0
C23: Operating Expense - Base | E23: Euro | F23: =Inputs!F22 -> 50 | G23: =Inputs!F23 -> 0.015 | I23: =F23 -> 50 | J23: =I23*(1+$G$23) -> 50.75 | K23: =J23*(1+$G$23) -> 51.51125 | L23: 52.28391875 | M23: 53.06817753 | N23: 53.86420019 | O23: 54.6721632 | P23: 55.49224565 | Q23: 56.32462933 | R23: 57.16949877 | S23: 58.02704125 | T23: 58.89744687 | U23: 59.78090857 | V23: 60.6776222 | W23: 61.58778653 | X23: 62.51160333 | Y23: 63.44927738 | Z23: 64.40101654 | AA23: 65.36703179 | AB23: 66.34753727 | AC23: 67.34275033 | AD23: 68.35289158 | AE23: 69.37818496 | AF23: 70.41885773 | AG23: 71.4751406 | AH23: 72.54726771 | AI23: 73.63547672 | AJ23: 74.74000887 | AK23: 75.861109 | AL23: 76.99902564 | AM23: 78.15401102 | AN23: 79.32632119 | AO23: 80.51621601 | AP23: 81.72395925 | AQ23: 82.94981864 | AR23: 84.19406592 | AS23: 85.4569769 | AT23: 86.73883156 | AU23: 88.03991403 | AV23: 89.36051274 | AW23: 90.70092043 | AX23: 92.06143424 | AY23: 93.44235575 | AZ23: 94.84399109 | BA23: 96.26665096 | BB23: 97.71065072 | BC23: 99.17631048 | BD23: 100.6639551 | BE23: 102.1739145 | BF23: 103.7065232 | BG23: 105.262121 | BH23: 106.8410528 | BI23: 108.4436686 | BJ23: 110.0703237 | BK23: 111.7213785 | BL23: 113.3971992 | BM23: 115.0981572 | BN23: 116.8246295 | BO23: 118.576999 | BP23: 120.355654 | BQ23: 122.1609888
C24: Operating Expense - Base | E24: Euro | J24: =J23*J8 -> 0 | K24: =K23*K8 -> 0 | L24: 0 | M24: 53.06817753 | N24: 53.86420019 | O24: 54.6721632 | P24: 55.49224565 | Q24: 56.32462933 | R24: 57.16949877 | S24: 58.02704125 | T24: 58.89744687 | U24: 59.78090857 | V24: 60.6776222 | W24: 61.58778653 | X24: 62.51160333 | Y24: 63.44927738 | Z24: 64.40101654 | AA24: 65.36703179 | AB24: 66.34753727 | AC24: 67.34275033 | AD24: 68.35289158 | AE24: 69.37818496 | AF24: 70.41885773 | AG24: 71.4751406 | AH24: 72.54726771 | AI24: 73.63547672 | AJ24: 74.74000887 | AK24: 75.861109 | AL24: 0 | AM24: 0 | AN24: 0 | AO24: 0 | AP24: 0 | AQ24: 0 | AR24: 0 | AS24: 0 | AT24: 0 | AU24: 0 | AV24: 0 | AW24: 0 | AX24: 0 | AY24: 0 | AZ24: 0 | BA24: 0 | BB24: 0 | BC24: 0 | BD24: 0 | BE24: 0 | BF24: 0 | BG24: 0 | BH24: 0 | BI24: 0 | BJ24: 0 | BK24: 0 | BL24: 0 | BM24: 0 | BN24: 0 | BO24: 0 | BP24: 0 | BQ24: 0
C26: EBITDA P50 | E26: Euro | J26: =J19-J24 -> 0 | K26: =K19-K24 -> 0 | L26: =L19-L24 -> 0 | M26: 120.3574076 | N26: 120.4285128 | O26: 120.4920134 | P26: 120.5477518 | Q26: 120.5955681 | R26: 120.6352997 | S26: 120.6667812 | T26: 120.6898447 | U26: 120.7043194 | V26: 120.710032 | W26: 120.7068059 | X26: 120.6944621 | Y26: 120.6728183 | Z26: 120.6416897 | AA26: 120.6008879 | AB26: 120.5502221 | AC26: 120.4894978 | AD26: 120.4185178 | AE26: 120.3370815 | AF26: 120.244985 | AG26: 120.1420214 | AH26: 120.0279801 | AI26: 119.9026473 | AJ26: 119.7658058 | AK26: 119.6172347 | AL26: 0 | AM26: 0 | AN26: 0 | AO26: 0 | AP26: 0 | AQ26: 0 | AR26: 0 | AS26: 0 | AT26: 0 | AU26: 0 | AV26: 0 | AW26: 0 | AX26: 0 | AY26: 0 | AZ26: 0 | BA26: 0 | BB26: 0 | BC26: 0 | BD26: 0 | BE26: 0 | BF26: 0 | BG26: 0 | BH26: 0 | BI26: 0 | BJ26: 0 | BK26: 0 | BL26: 0 | BM26: 0 | BN26: 0 | BO26: 0 | BP26: 0 | BQ26: 0
C27: EBITDA P90 | E27: Euro | J27: =J20-J24 -> 0 | K27: =K20-K24 -> 0 | L27: =L20-L24 -> 0 | M27: 86.93182247 | N27: 86.13579981 | O27: 85.3278368 | P27: 84.50775435 | Q27: 83.67537067 | R27: 82.83050123 | S27: 81.97295875 | T27: 81.10255313 | U27: 80.21909143 | V27: 79.3223778 | W27: 78.41221347 | X27: 77.48839667 | Y27: 76.55072262 | Z27: 75.59898346 | AA27: 74.63296821 | AB27: 73.65246273 | AC27: 72.65724967 | AD27: 71.64710842 | AE27: 70.62181504 | AF27: 69.58114227 | AG27: 68.5248594 | AH27: 67.45273229 | AI27: 66.36452328 | AJ27: 65.25999113 | AK27: 64.138891 | AL27: 0 | AM27: 0 | AN27: 0 | AO27: 0 | AP27: 0 | AQ27: 0 | AR27: 0 | AS27: 0 | AT27: 0 | AU27: 0 | AV27: 0 | AW27: 0 | AX27: 0 | AY27: 0 | AZ27: 0 | BA27: 0 | BB27: 0 | BC27: 0 | BD27: 0 | BE27: 0 | BF27: 0 | BG27: 0 | BH27: 0 | BI27: 0 | BJ27: 0 | BK27: 0 | BL27: 0 | BM27: 0 | BN27: 0 | BO27: 0 | BP27: 0 | BQ27: 0
C28: EBITDA Applied | E28: Euro | J28: =J21-J24 -> 0 | K28: =K21-K24 -> 0 | L28: =L21-L24 -> 0 | M28: 142.0527863 | N28: 142.8177314 | O28: 143.5832238 | P28: 144.3491845 | Q28: 145.1155322 | R28: 145.8821841 | S28: 146.6490551 | T28: 147.4160582 | U28: 148.1831045 | V28: 148.950103 | W28: 149.7169605 | X28: 150.4835817 | Y28: 151.2498691 | Z28: 152.0157231 | AA28: 152.7810418 | AB28: 153.5457209 | AC28: 154.3096539 | AD28: 155.0727319 | AE28: 155.8348435 | AF28: 156.5958749 | AG28: 157.3557099 | AH28: 158.1142296 | AI28: 158.8713126 | AJ28: 159.6268348 | AK28: 160.3806694 | AL28: 0 | AM28: 0 | AN28: 0 | AO28: 0 | AP28: 0 | AQ28: 0 | AR28: 0 | AS28: 0 | AT28: 0 | AU28: 0 | AV28: 0 | AW28: 0 | AX28: 0 | AY28: 0 | AZ28: 0 | BA28: 0 | BB28: 0 | BC28: 0 | BD28: 0 | BE28: 0 | BF28: 0 | BG28: 0 | BH28: 0 | BI28: 0 | BJ28: 0 | BK28: 0 | BL28: 0 | BM28: 0 | BN28: 0 | BO28: 0 | BP28: 0 | BQ28: 0
C30: Project Cash Flow | E30: Euro | J30: =J28-J13 -> -466.6666667 | K30: -466.6666667 | L30: -466.6666667 | M30: 142.0527863 | N30: 142.8177314 | O30: 143.5832238 | P30: 144.3491845 | Q30: 145.1155322 | R30: 145.8821841 | S30: 146.6490551 | T30: 147.4160582 | U30: 148.1831045 | V30: 148.950103 | W30: 149.7169605 | X30: 150.4835817 | Y30: 151.2498691 | Z30: 152.0157231 | AA30: 152.7810418 | AB30: 153.5457209 | AC30: 154.3096539 | AD30: 155.0727319 | AE30: 155.8348435 | AF30: 156.5958749 | AG30: 157.3557099 | AH30: 158.1142296 | AI30: 158.8713126 | AJ30: 159.6268348 | AK30: 160.3806694 | AL30: 0 | AM30: 0 | AN30: 0 | AO30: 0 | AP30: =AP28-AP13 -> 0 | AQ30: 0 | AR30: 0 | AS30: 0 | AT30: 0 | AU30: 0 | AV30: 0 | AW30: 0 | AX30: 0 | AY30: 0 | AZ30: 0 | BA30: 0 | BB30: 0 | BC30: 0 | BD30: 0 | BE30: 0 | BF30: 0 | BG30: 0 | BH30: 0 | BI30: 0 | BJ30: 0 | BK30: 0 | BL30: 0 | BM30: 0 | BN30: 0 | BO30: 0 | BP30: 0 | BQ30: 0
C31: Project IRR - Pre-tax | F31: =IRR(30:30) -> 0.0846066972
B33: Depreciation and Taxes
C34: Age | I34: 0 | J34: =I34+J8 -> 0 | K34: =J34+K8 -> 0 | L34: 0 | M34: 1 | N34: 2 | O34: 3 | P34: 4 | Q34: 5 | R34: 6 | S34: 7 | T34: 8 | U34: 9 | V34: 10 | W34: 11 | X34: 12 | Y34: 13 | Z34: 14 | AA34: 15 | AB34: 16 | AC34: 17 | AD34: 18 | AE34: 19 | AF34: 20 | AG34: 21 | AH34: 22 | AI34: 23 | AJ34: 24 | AK34: 25 | AL34: 25 | AM34: 25 | AN34: 25 | AO34: 25 | AP34: 25 | AQ34: 25 | AR34: 25 | AS34: 25 | AT34: 25 | AU34: 25 | AV34: 25 | AW34: 25 | AX34: 25 | AY34: 25 | AZ34: 25 | BA34: 25 | BB34: 25 | BC34: 25 | BD34: 25 | BE34: 25 | BF34: 25 | BG34: 25 | BH34: 25 | BI34: 25 | BJ34: 25 | BK34: 25 | BL34: 25 | BM34: 25 | BN34: 25 | BO34: 25 | BP34: 25 | BQ34: 25
C35: Depreciation Rate | E35: % | F35: =Inputs!F25 -> 5 | G35: =1/F35 -> 0.2 | J35: =_xlfn.XLOOKUP(J34,Inputs!29:29,Inputs!30:30,FALSE) -> 0 | K35: =_xlfn.XLOOKUP(K34,Inputs!29:29,Inputs!30:30,FALSE) -> 0 | L35: =_xlfn.XLOOKUP(L34,Inputs!29:29,Inputs!30:30,FALSE) -> 0 | M35: =_xlfn.XLOOKUP(M34,Inputs!29:29,Inputs!30:30,FALSE) -> 0.3 | N35: =_xlfn.XLOOKUP(N34,Inputs!29:29,Inputs!30:30,FALSE) -> 0.21 | O35: =_xlfn.XLOOKUP(O34,Inputs!29:29,Inputs!30:30,FALSE) -> 0.1633333333 | P35: =_xlfn.XLOOKUP(P34,Inputs!29:29,Inputs!30:30,FALSE) -> 0.1633333333 | Q35: =_xlfn.XLOOKUP(Q34,Inputs!29:29,Inputs!30:30,FALSE) -> 0.1633333333 | R35: =_xlfn.XLOOKUP(R34,Inputs!29:29,Inputs!30:30,FALSE) -> 0 | S35: =_xlfn.XLOOKUP(S34,Inputs!29:29,Inputs!30:30,FALSE) -> 0 | T35: =_xlfn.XLOOKUP(T34,Inputs!29:29,Inputs!30:30,FALSE) -> 0 | U35: =_xlfn.XLOOKUP(U34,Inputs!29:29,Inputs!30:30,FALSE) -> 0 | V35: =_xlfn.XLOOKUP(V34,Inputs!29:29,Inputs!30:30,FALSE) -> 0 | W35: =_xlfn.XLOOKUP(W34,Inputs!29:29,Inputs!30:30,FALSE) -> 0 | X35: =_xlfn.XLOOKUP(X34,Inputs!29:29,Inputs!30:30,FALSE) -> FALSE | Y35: =_xlfn.XLOOKUP(Y34,Inputs!29:29,Inputs!30:30,FALSE) -> FALSE | Z35: =_xlfn.XLOOKUP(Z34,Inputs!29:29,Inputs!30:30,FALSE) -> FALSE | AA35: =_xlfn.XLOOKUP(AA34,Inputs!29:29,Inputs!30:30,FALSE) -> FALSE | AB35: =_xlfn.XLOOKUP(AB34,Inputs!29:29,Inputs!30:30,FALSE) -> FALSE | AC35: =_xlfn.XLOOKUP(AC34,Inputs!29:29,Inputs!30:30,FALSE) -> FALSE | AD35: =_xlfn.XLOOKUP(AD34,Inputs!29:29,Inputs!30:30,FALSE) -> FALSE | AE35: =_xlfn.XLOOKUP(AE34,Inputs!29:29,Inputs!30:30,FALSE) -> FALSE | AF35: =_xlfn.XLOOKUP(AF34,Inputs!29:29,Inputs!30:30,FALSE) -> FALSE | AG35: =_xlfn.XLOOKUP(AG34,Inputs!29:29,Inputs!30:30,FALSE) -> FALSE | AH35: =_xlfn.XLOOKUP(AH34,Inputs!29:29,Inputs!30:30,FALSE) -> FALSE | AI35: =_xlfn.XLOOKUP(AI34,Inputs!29:29,Inputs!30:30,FALSE) -> FALSE | AJ35: =_xlfn.XLOOKUP(AJ34,Inputs!29:29,Inputs!30:30,FALSE) -> FALSE | AK35: =_xlfn.XLOOKUP(AK34,Inputs!29:29,Inputs!30:30,FALSE) -> FALSE | AL35: =_xlfn.XLOOKUP(AL34,Inputs!29:29,Inputs!30:30,FALSE) -> FALSE | AM35: =_xlfn.XLOOKUP(AM34,Inputs!29:29,Inputs!30:30,FALSE) -> FALSE | AN35: =_xlfn.XLOOKUP(AN34,Inputs!29:29,Inputs!30:30,FALSE) -> FALSE | AO35: =_xlfn.XLOOKUP(AO34,Inputs!29:29,Inputs!30:30,FALSE) -> FALSE | AP35: =_xlfn.XLOOKUP(AP34,Inputs!29:29,Inputs!30:30,FALSE) -> FALSE | AQ35: =_xlfn.XLOOKUP(AQ34,Inputs!29:29,Inputs!30:30,FALSE) -> FALSE | AR35: =_xlfn.XLOOKUP(AR34,Inputs!29:29,Inputs!30:30,FALSE) -> FALSE | AS35: =_xlfn.XLOOKUP(AS34,Inputs!29:29,Inputs!30:30,FALSE) -> FALSE | AT35: =_xlfn.XLOOKUP(AT34,Inputs!29:29,Inputs!30:30,FALSE) -> FALSE | AU35: =_xlfn.XLOOKUP(AU34,Inputs!29:29,Inputs!30:30,FALSE) -> FALSE | AV35: =_xlfn.XLOOKUP(AV34,Inputs!29:29,Inputs!30:30,FALSE) -> FALSE | AW35: =_xlfn.XLOOKUP(AW34,Inputs!29:29,Inputs!30:30,FALSE) -> FALSE | AX35: =_xlfn.XLOOKUP(AX34,Inputs!29:29,Inputs!30:30,FALSE) -> FALSE | AY35: =_xlfn.XLOOKUP(AY34,Inputs!29:29,Inputs!30:30,FALSE) -> FALSE | AZ35: =_xlfn.XLOOKUP(AZ34,Inputs!29:29,Inputs!30:30,FALSE) -> FALSE | BA35: =_xlfn.XLOOKUP(BA34,Inputs!29:29,Inputs!30:30,FALSE) -> FALSE | BB35: =_xlfn.XLOOKUP(BB34,Inputs!29:29,Inputs!30:30,FALSE) -> FALSE | BC35: =_xlfn.XLOOKUP(BC34,Inputs!29:29,Inputs!30:30,FALSE) -> FALSE | BD35: =_xlfn.XLOOKUP(BD34,Inputs!29:29,Inputs!30:30,FALSE) -> FALSE | BE35: =_xlfn.XLOOKUP(BE34,Inputs!29:29,Inputs!30:30,FALSE) -> FALSE | BF35: =_xlfn.XLOOKUP(BF34,Inputs!29:29,Inputs!30:30,FALSE) -> FALSE | BG35: =_xlfn.XLOOKUP(BG34,Inputs!29:29,Inputs!30:30,FALSE) -> FALSE | BH35: =_xlfn.XLOOKUP(BH34,Inputs!29:29,Inputs!30:30,FALSE) -> FALSE | BI35: =_xlfn.XLOOKUP(BI34,Inputs!29:29,Inputs!30:30,FALSE) -> FALSE | BJ35: =_xlfn.XLOOKUP(BJ34,Inputs!29:29,Inputs!30:30,FALSE) -> FALSE | BK35: =_xlfn.XLOOKUP(BK34,Inputs!29:29,Inputs!30:30,FALSE) -> FALSE | BL35: =_xlfn.XLOOKUP(BL34,Inputs!29:29,Inputs!30:30,FALSE) -> FALSE | BM35: =_xlfn.XLOOKUP(BM34,Inputs!29:29,Inputs!30:30,FALSE) -> FALSE | BN35: =_xlfn.XLOOKUP(BN34,Inputs!29:29,Inputs!30:30,FALSE) -> FALSE | BO35: =_xlfn.XLOOKUP(BO34,Inputs!29:29,Inputs!30:30,FALSE) -> FALSE | BP35: =_xlfn.XLOOKUP(BP34,Inputs!29:29,Inputs!30:30,FALSE) -> FALSE | BQ35: =_xlfn.XLOOKUP(BQ34,Inputs!29:29,Inputs!30:30,FALSE) -> FALSE
C36: Net Plant Percent | E36: % | J36: 1 | K36: =J36-K35 -> 1 | L36: 1 | M36: 0.7 | N36: 0.49 | O36: 0.3266666667 | P36: 0.1633333333 | Q36: 0 | R36: 0 | S36: 0 | T36: 0 | U36: 0 | V36: 0 | W36: 0 | X36: 0 | Y36: 0 | Z36: 0 | AA36: 0 | AB36: 0 | AC36: 0 | AD36: 0 | AE36: 0 | AF36: 0 | AG36: 0 | AH36: 0 | AI36: 0 | AJ36: 0 | AK36: 0 | AL36: 0 | AM36: 0 | AN36: 0 | AO36: 0 | AP36: 0 | AQ36: =AP36-AQ35 -> 0 | AR36: 0 | AS36: 0 | AT36: 0 | AU36: 0 | AV36: 0 | AW36: 0 | AX36: 0 | AY36: 0 | AZ36: 0 | BA36: 0 | BB36: 0 | BC36: 0 | BD36: 0 | BE36: 0 | BF36: 0 | BG36: 0 | BH36: 0 | BI36: 0 | BJ36: 0 | BK36: 0 | BL36: 0 | BM36: 0 | BN36: 0 | BO36: 0 | BP36: 0 | BQ36: 0
C38: Depreciation Base | E38: Euro | F38: =F13 -> 1400 | J38: =$F$38 -> 1400 | K38: =$F$38 -> 1400 | L38: =$F$38 -> 1400 | M38: 1400 | N38: 1400 | O38: 1400 | P38: 1400 | Q38: 1400 | R38: 1400 | S38: 1400 | T38: 1400 | U38: 1400 | V38: 1400 | W38: 1400 | X38: 1400 | Y38: 1400 | Z38: 1400 | AA38: 1400 | AB38: 1400 | AC38: 1400 | AD38: 1400 | AE38: 1400 | AF38: 1400 | AG38: 1400 | AH38: 1400 | AI38: 1400 | AJ38: 1400 | AK38: 1400 | AL38: 1400 | AM38: 1400 | AN38: 1400 | AO38: 1400 | AP38: 1400 | AQ38: 1400 | AR38: 1400 | AS38: 1400 | AT38: 1400 | AU38: 1400 | AV38: 1400 | AW38: 1400 | AX38: 1400 | AY38: 1400 | AZ38: 1400 | BA38: 1400 | BB38: 1400 | BC38: 1400 | BD38: 1400 | BE38: 1400 | BF38: 1400 | BG38: 1400 | BH38: 1400 | BI38: 1400 | BJ38: 1400 | BK38: 1400 | BL38: 1400 | BM38: 1400 | BN38: 1400 | BO38: 1400 | BP38: 1400 | BQ38: 1400
C39: Depreciation Expense | E39: Euro | J39: =J38*J35 -> 0 | K39: =K38*K35 -> 0 | L39: 0 | M39: 420 | N39: 294 | O39: 228.6666667 | P39: 228.6666667 | Q39: 228.6666667 | R39: 0 | S39: 0 | T39: 0 | U39: 0 | V39: 0 | W39: 0 | X39: 0 | Y39: 0 | Z39: 0 | AA39: 0 | AB39: 0 | AC39: 0 | AD39: 0 | AE39: 0 | AF39: 0 | AG39: 0 | AH39: 0 | AI39: 0 | AJ39: 0 | AK39: 0 | AL39: 0 | AM39: 0 | AN39: 0 | AO39: 0 | AP39: 0 | AQ39: =AQ38*AQ35 -> 0 | AR39: 0 | AS39: 0 | AT39: 0 | AU39: 0 | AV39: 0 | AW39: 0 | AX39: 0 | AY39: 0 | AZ39: 0 | BA39: 0 | BB39: 0 | BC39: 0 | BD39: 0 | BE39: 0 | BF39: 0 | BG39: 0 | BH39: 0 | BI39: 0 | BJ39: 0 | BK39: 0 | BL39: 0 | BM39: 0 | BN39: 0 | BO39: 0 | BP39: 0 | BQ39: 0
C41: EBIT 50 | E41: Euro | J41: =J26-J39 -> 0 | K41: =K26-K39 -> 0 | L41: =L26-L39 -> 0 | M41: -299.6425924 | N41: -173.5714872 | O41: -108.1746533 | P41: -108.1189148 | Q41: -108.0710985 | R41: 120.6352997 | S41: 120.6667812 | T41: 120.6898447 | U41: 120.7043194 | V41: 120.710032 | W41: 120.7068059 | X41: 120.6944621 | Y41: 120.6728183 | Z41: 120.6416897 | AA41: 120.6008879 | AB41: 120.5502221 | AC41: 120.4894978 | AD41: 120.4185178 | AE41: 120.3370815 | AF41: 120.244985 | AG41: 120.1420214 | AH41: 120.0279801 | AI41: 119.9026473 | AJ41: 119.7658058 | AK41: 119.6172347 | AL41: 0 | AM41: 0 | AN41: 0 | AO41: 0 | AP41: 0 | AQ41: 0 | AR41: 0 | AS41: 0 | AT41: 0 | AU41: 0 | AV41: 0 | AW41: 0 | AX41: 0 | AY41: 0 | AZ41: 0 | BA41: 0 | BB41: 0 | BC41: 0 | BD41: 0 | BE41: 0 | BF41: 0 | BG41: 0 | BH41: 0 | BI41: 0 | BJ41: 0 | BK41: 0 | BL41: 0 | BM41: 0 | BN41: 0 | BO41: 0 | BP41: 0 | BQ41: 0
C42: EBIT 90 | E42: Euro | J42: =J27-J39 -> 0 | K42: =K27-K39 -> 0 | L42: =L27-L39 -> 0 | M42: -333.0681775 | N42: -207.8642002 | O42: -143.3388299 | P42: -144.1589123 | Q42: -144.991296 | R42: 82.83050123 | S42: 81.97295875 | T42: 81.10255313 | U42: 80.21909143 | V42: 79.3223778 | W42: 78.41221347 | X42: 77.48839667 | Y42: 76.55072262 | Z42: 75.59898346 | AA42: 74.63296821 | AB42: 73.65246273 | AC42: 72.65724967 | AD42: 71.64710842 | AE42: 70.62181504 | AF42: 69.58114227 | AG42: 68.5248594 | AH42: 67.45273229 | AI42: 66.36452328 | AJ42: 65.25999113 | AK42: 64.138891 | AL42: 0 | AM42: 0 | AN42: 0 | AO42: 0 | AP42: 0 | AQ42: 0 | AR42: 0 | AS42: 0 | AT42: 0 | AU42: 0 | AV42: 0 | AW42: 0 | AX42: 0 | AY42: 0 | AZ42: 0 | BA42: 0 | BB42: 0 | BC42: 0 | BD42: 0 | BE42: 0 | BF42: 0 | BG42: 0 | BH42: 0 | BI42: 0 | BJ42: 0 | BK42: 0 | BL42: 0 | BM42: 0 | BN42: 0 | BO42: 0 | BP42: 0 | BQ42: 0
C43: EBIT Applied | E43: Euro | J43: =J28-J39 -> 0 | K43: =K28-K39 -> 0 | L43: =L28-L39 -> 0 | M43: -277.9472137 | N43: -151.1822686 | O43: -85.08344285 | P43: -84.31748221 | Q43: -83.55113445 | R43: 145.8821841 | S43: 146.6490551 | T43: 147.4160582 | U43: 148.1831045 | V43: 148.950103 | W43: 149.7169605 | X43: 150.4835817 | Y43: 151.2498691 | Z43: 152.0157231 | AA43: 152.7810418 | AB43: 153.5457209 | AC43: 154.3096539 | AD43: 155.0727319 | AE43: 155.8348435 | AF43: 156.5958749 | AG43: 157.3557099 | AH43: 158.1142296 | AI43: 158.8713126 | AJ43: 159.6268348 | AK43: 160.3806694 | AL43: 0 | AM43: 0 | AN43: 0 | AO43: 0 | AP43: 0 | AQ43: 0 | AR43: 0 | AS43: 0 | AT43: 0 | AU43: 0 | AV43: 0 | AW43: 0 | AX43: 0 | AY43: 0 | AZ43: 0 | BA43: 0 | BB43: 0 | BC43: 0 | BD43: 0 | BE43: 0 | BF43: 0 | BG43: 0 | BH43: 0 | BI43: 0 | BJ43: 0 | BK43: 0 | BL43: 0 | BM43: 0 | BN43: 0 | BO43: 0 | BP43: 0 | BQ43: 0
C45: Taxes on EBIT | E45: Euro | F45: =Inputs!F26 -> 0.25 | J45: =J43*$F$45 -> 0 | K45: =K43*$F$45 -> 0 | L45: 0 | M45: -69.48680342 | N45: -37.79556716 | O45: -21.27086071 | P45: -21.07937055 | Q45: -20.88778361 | R45: 36.47054602 | S45: 36.66226376 | T45: 36.85401455 | U45: 37.04577613 | V45: 37.23752575 | W45: 37.42924012 | X45: 37.62089542 | Y45: 37.81246727 | Z45: 38.00393078 | AA45: 38.19526044 | AB45: 38.38643022 | AC45: 38.57741347 | AD45: 38.76818297 | AE45: 38.95871087 | AF45: 39.14896873 | AG45: 39.33892748 | AH45: 39.52855741 | AI45: 39.71782815 | AJ45: 39.90670869 | AK45: 40.09516734 | AL45: 0 | AM45: 0 | AN45: 0 | AO45: 0 | AP45: 0 | AQ45: 0 | AR45: 0 | AS45: 0 | AT45: 0 | AU45: 0 | AV45: 0 | AW45: 0 | AX45: 0 | AY45: 0 | AZ45: 0 | BA45: 0 | BB45: 0 | BC45: 0 | BD45: 0 | BE45: 0 | BF45: 0 | BG45: 0 | BH45: 0 | BI45: 0 | BJ45: 0 | BK45: 0 | BL45: 0 | BM45: 0 | BN45: 0 | BO45: 0 | BP45: 0 | BQ45: 0
C46: After-tax Cash Flow | E46: Euro | J46: =J30-J45 -> -466.6666667 | K46: =K30-K45 -> -466.6666667 | L46: -466.6666667 | M46: 211.5395897 | N46: 180.6132985 | O46: 164.8540845 | P46: 165.428555 | Q46: 166.0033158 | R46: 109.4116381 | S46: 109.9867913 | T46: 110.5620437 | U46: 111.1373284 | V46: 111.7125773 | W46: 112.2877204 | X46: 112.8626862 | Y46: 113.4374018 | Z46: 114.0117923 | AA46: 114.5857813 | AB46: 115.1592907 | AC46: 115.7322404 | AD46: 116.3045489 | AE46: 116.8761326 | AF46: 117.4469062 | AG46: 118.0167824 | AH46: 118.5856722 | AI46: 119.1534844 | AJ46: 119.7201261 | AK46: 120.285502 | AL46: 0 | AM46: 0 | AN46: 0 | AO46: 0 | AP46: 0 | AQ46: 0 | AR46: 0 | AS46: 0 | AT46: 0 | AU46: 0 | AV46: 0 | AW46: 0 | AX46: 0 | AY46: 0 | AZ46: 0 | BA46: 0 | BB46: 0 | BC46: 0 | BD46: 0 | BE46: 0 | BF46: 0 | BG46: 0 | BH46: 0 | BI46: 0 | BJ46: 0 | BK46: 0 | BL46: 0 | BM46: 0 | BN46: 0 | BO46: 0 | BP46: 0 | BQ46: 0
C47: Project IRR | E47: % | F47: =IRR(J46:BQ46) -> 0.07681179812
B49: Debt Sizing - P50
C50: P50 CFADS
D51: Target DSCR | E51: =Inputs!$F$34 -> 1.3 | J51: =$E51 -> 1.3 | K51: =$E51 -> 1.3 | L51: 1.3 | M51: 1.3 | N51: 1.3 | O51: 1.3 | P51: 1.3 | Q51: 1.3 | R51: 1.3 | S51: 1.3 | T51: 1.3 | U51: 1.3 | V51: 1.3 | W51: 1.3 | X51: 1.3 | Y51: 1.3 | Z51: 1.3 | AA51: 1.3 | AB51: 1.3 | AC51: 1.3 | AD51: 1.3 | AE51: 1.3 | AF51: 1.3 | AG51: 1.3 | AH51: 1.3 | AI51: 1.3 | AJ51: 1.3 | AK51: 1.3 | AL51: 1.3 | AM51: 1.3 | AN51: 1.3 | AO51: 1.3 | AP51: 1.3 | AQ51: 1.3 | AR51: 1.3 | AS51: 1.3 | AT51: 1.3 | AU51: 1.3 | AV51: 1.3 | AW51: 1.3 | AX51: 1.3 | AY51: 1.3 | AZ51: 1.3 | BA51: 1.3 | BB51: 1.3 | BC51: 1.3 | BD51: 1.3 | BE51: 1.3 | BF51: 1.3 | BG51: 1.3 | BH51: 1.3 | BI51: 1.3 | BJ51: 1.3 | BK51: 1.3 | BL51: 1.3 | BM51: 1.3 | BN51: 1.3 | BO51: 1.3 | BP51: 1.3 | BQ51: 1.3
D52: Interest Rate | E52: =Inputs!$F$41 -> 0.03 | J52: =$E$52 -> 0.03 | K52: =$E$52 -> 0.03 | L52: 0.03 | M52: 0.03 | N52: 0.03 | O52: 0.03 | P52: 0.03 | Q52: 0.03 | R52: 0.03 | S52: 0.03 | T52: 0.03 | U52: 0.03 | V52: 0.03 | W52: 0.03 | X52: 0.03 | Y52: 0.03 | Z52: 0.03 | AA52: 0.03 | AB52: 0.03 | AC52: 0.03 | AD52: 0.03 | AE52: 0.03 | AF52: 0.03 | AG52: 0.03 | AH52: 0.03 | AI52: 0.03 | AJ52: 0.03 | AK52: 0.03 | AL52: 0.03 | AM52: 0.03 | AN52: 0.03 | AO52: 0.03 | AP52: 0.03 | AQ52: 0.03 | AR52: 0.03 | AS52: 0.03 | AT52: 0.03 | AU52: 0.03 | AV52: 0.03 | AW52: 0.03 | AX52: 0.03 | AY52: 0.03 | AZ52: 0.03 | BA52: 0.03 | BB52: 0.03 | BC52: 0.03 | BD52: 0.03 | BE52: 0.03 | BF52: 0.03 | BG52: 0.03 | BH52: 0.03 | BI52: 0.03 | BJ52: 0.03 | BK52: 0.03 | BL52: 0.03 | BM52: 0.03 | BN52: 0.03 | BO52: 0.03 | BP52: 0.03 | BQ52: 0.03
D53: Project Age | J53: =I53+J$8 -> 0 | K53: =J53+K$8 -> 0 | L53: 0 | M53: 1 | N53: 2 | O53: 3 | P53: 4 | Q53: 5 | R53: 6 | S53: 7 | T53: 8 | U53: 9 | V53: 10 | W53: 11 | X53: 12 | Y53: 13 | Z53: 14 | AA53: 15 | AB53: 16 | AC53: 17 | AD53: 18 | AE53: 19 | AF53: 20 | AG53: 21 | AH53: 22 | AI53: 23 | AJ53: 24 | AK53: 25 | AL53: 25 | AM53: 25 | AN53: 25 | AO53: 25 | AP53: 25 | AQ53: 25 | AR53: 25 | AS53: 25 | AT53: 25 | AU53: 25 | AV53: 25 | AW53: 25 | AX53: 25 | AY53: 25 | AZ53: 25 | BA53: 25 | BB53: 25 | BC53: 25 | BD53: 25 | BE53: 25 | BF53: 25 | BG53: 25 | BH53: 25 | BI53: 25 | BJ53: 25 | BK53: 25 | BL53: 25 | BM53: 25 | BN53: 25 | BO53: 25 | BP53: 25 | BQ53: 25
D54: Debt Period | E54: =Inputs!$F$38 -> 17 | I54: =SUM(J54:BQ54) -> 17 | J54: =AND(J$53<=$E54,J$8)*1 -> 0 | K54: =AND(K$53<=$E54,K$8)*1 -> 0 | L54: 0 | M54: 1 | N54: 1 | O54: 1 | P54: 1 | Q54: 1 | R54: 1 | S54: 1 | T54: 1 | U54: 1 | V54: 1 | W54: 1 | X54: 1 | Y54: 1 | Z54: 1 | AA54: 1 | AB54: 1 | AC54: 1 | AD54: 0 | AE54: 0 | AF54: 0 | AG54: 0 | AH54: 0 | AI54: 0 | AJ54: 0 | AK54: 0 | AL54: 0 | AM54: 0 | AN54: 0 | AO54: 0 | AP54: 0 | AQ54: 0 | AR54: 0 | AS54: 0 | AT54: 0 | AU54: 0 | AV54: 0 | AW54: 0 | AX54: 0 | AY54: 0 | AZ54: 0 | BA54: 0 | BB54: 0 | BC54: 0 | BD54: 0 | BE54: 0 | BF54: 0 | BG54: 0 | BH54: 0 | BI54: 0 | BJ54: 0 | BK54: 0 | BL54: 0 | BM54: 0 | BN54: 0 | BO54: 0 | BP54: 0 | BQ54: 0
D56: EBITDA P50 | J56: =J$26 -> 0 | K56: =K$26 -> 0 | L56: 0 | M56: 120.3574076 | N56: 120.4285128 | O56: 120.4920134 | P56: 120.5477518 | Q56: 120.5955681 | R56: 120.6352997 | S56: 120.6667812 | T56: 120.6898447 | U56: 120.7043194 | V56: 120.710032 | W56: 120.7068059 | X56: 120.6944621 | Y56: 120.6728183 | Z56: 120.6416897 | AA56: 120.6008879 | AB56: 120.5502221 | AC56: 120.4894978 | AD56: 120.4185178 | AE56: 120.3370815 | AF56: 120.244985 | AG56: 120.1420214 | AH56: 120.0279801 | AI56: 119.9026473 | AJ56: 119.7658058 | AK56: 119.6172347 | AL56: 0 | AM56: 0 | AN56: 0 | AO56: 0 | AP56: 0 | AQ56: 0 | AR56: 0 | AS56: 0 | AT56: 0 | AU56: 0 | AV56: 0 | AW56: 0 | AX56: 0 | AY56: 0 | AZ56: 0 | BA56: 0 | BB56: 0 | BC56: 0 | BD56: 0 | BE56: 0 | BF56: 0 | BG56: 0 | BH56: 0 | BI56: 0 | BJ56: 0 | BK56: 0 | BL56: 0 | BM56: 0 | BN56: 0 | BO56: 0 | BP56: 0 | BQ56: 0
D57: Less: Base Depreciation | J57: =J$39 -> 0 | K57: =K$39 -> 0 | L57: 0 | M57: 420 | N57: 294 | O57: 228.6666667 | P57: 228.6666667 | Q57: 228.6666667 | R57: 0 | S57: 0 | T57: 0 | U57: 0 | V57: 0 | W57: 0 | X57: 0 | Y57: 0 | Z57: 0 | AA57: 0 | AB57: 0 | AC57: 0 | AD57: 0 | AE57: 0 | AF57: 0 | AG57: 0 | AH57: 0 | AI57: 0 | AJ57: 0 | AK57: 0 | AL57: 0 | AM57: 0 | AN57: 0 | AO57: 0 | AP57: 0 | AQ57: 0 | AR57: 0 | AS57: 0 | AT57: 0 | AU57: 0 | AV57: 0 | AW57: 0 | AX57: 0 | AY57: 0 | AZ57: 0 | BA57: 0 | BB57: 0 | BC57: 0 | BD57: 0 | BE57: 0 | BF57: 0 | BG57: 0 | BH57: 0 | BI57: 0 | BJ57: 0 | BK57: 0 | BL57: 0 | BM57: 0 | BN57: 0 | BO57: 0 | BP57: 0 | BQ57: 0
D58: Less: IDC and Fees Depreciation | J58: =J$108 -> 0 | K58: =K$108 -> 0 | L58: 0 | M58: 13.8633596 | N58: 9.704351723 | O58: 7.547829118 | P58: 7.547829118 | Q58: 7.547829118 | R58: 0 | S58: 0 | T58: 0 | U58: 0 | V58: 0 | W58: 0 | X58: 0 | Y58: 0 | Z58: 0 | AA58: 0 | AB58: 0 | AC58: 0 | AD58: 0 | AE58: 0 | AF58: 0 | AG58: 0 | AH58: 0 | AI58: 0 | AJ58: 0 | AK58: 0 | AL58: 0 | AM58: 0 | AN58: 0 | AO58: 0 | AP58: 0 | AQ58: 0 | AR58: 0 | AS58: 0 | AT58: 0 | AU58: 0 | AV58: 0 | AW58: 0 | AX58: 0 | AY58: 0 | AZ58: 0 | BA58: 0 | BB58: 0 | BC58: 0 | BD58: 0 | BE58: 0 | BF58: 0 | BG58: 0 | BH58: 0 | BI58: 0 | BJ58: 0 | BK58: 0 | BL58: 0 | BM58: 0 | BN58: 0 | BO58: 0 | BP58: 0 | BQ58: 0
D59: Less: Interest | J59: =J84 -> 0 | K59: =K84 -> 0 | L59: =L84 -> 0 | M59: 35.68538233 | N59: 33.97846516 | O59: 32.21869959 | P59: 30.40467565 | Q59: 28.53494473 | R59: 26.60801842 | S59: 24.62236744 | T59: 22.57642044 | U59: 20.46856279 | V59: 18.29713538 | W59: 16.06043332 | X59: 13.75670464 | Y59: 11.38414896 | Z59: 8.940916086 | AA59: 6.425104577 | AB59: 4.024977703 | AC59: 2.036059858 | AD59: -1.875832822e-14 | AE59: -1.932107807e-14 | AF59: -1.990071041e-14 | AG59: -2.049773173e-14 | AH59: -2.111266368e-14 | AI59: -2.174604359e-14 | AJ59: -2.239842489e-14 | AK59: -2.307037764e-14 | AL59: -2.376248897e-14 | AM59: -2.447536364e-14 | AN59: -2.520962455e-14 | AO59: -2.596591329e-14 | AP59: -2.674489068e-14 | AQ59: -2.754723741e-14 | AR59: -2.837365453e-14 | AS59: -2.922486416e-14 | AT59: -3.010161009e-14 | AU59: -3.100465839e-14 | AV59: -3.193479814e-14 | AW59: -3.289284209e-14 | AX59: -3.387962735e-14 | AY59: -3.489601617e-14 | AZ59: -3.594289665e-14 | BA59: -3.702118355e-14 | BB59: -3.813181906e-14 | BC59: -3.927577363e-14 | BD59: -4.045404684e-14 | BE59: -4.166766825e-14 | BF59: -4.291769829e-14 | BG59: -4.420522924e-14 | BH59: -4.553138612e-14 | BI59: -4.68973277e-14 | BJ59: -4.830424754e-14 | BK59: -4.975337496e-14 | BL59: -5.124597621e-14 | BM59: -5.27833555e-14 | BN59: -5.436685616e-14 | BO59: -5.599786185e-14 | BP59: -5.76777977e-14 | BQ59: -5.940813163e-14
D60: EBT Before NOL | J60: =J56-J57-J59-J58 -> 0 | K60: =K56-K57-K59-K58 -> 0 | L60: 0 | M60: -349.1913344 | N60: -217.254304 | O60: -147.941182 | P60: -146.0714196 | Q60: -144.1538724 | R60: 94.02728127 | S60: 96.04441375 | T60: 98.11342425 | U60: 100.2357567 | V60: 102.4128966 | W60: 104.6463726 | X60: 106.9377574 | Y60: 109.2886694 | Z60: 111.7007736 | AA60: 114.1757834 | AB60: 116.5252444 | AC60: 118.4534379 | AD60: 120.4185178 | AE60: 120.3370815 | AF60: 120.244985 | AG60: 120.1420214 | AH60: 120.0279801 | AI60: 119.9026473 | AJ60: 119.7658058 | AK60: 119.6172347 | AL60: 2.376248897e-14 | AM60: 2.447536364e-14 | AN60: 2.520962455e-14 | AO60: 2.596591329e-14 | AP60: 2.674489068e-14 | AQ60: 2.754723741e-14 | AR60: 2.837365453e-14 | AS60: 2.922486416e-14 | AT60: 3.010161009e-14 | AU60: 3.100465839e-14 | AV60: 3.193479814e-14 | AW60: 3.289284209e-14 | AX60: 3.387962735e-14 | AY60: 3.489601617e-14 | AZ60: 3.594289665e-14 | BA60: 3.702118355e-14 | BB60: 3.813181906e-14 | BC60: 3.927577363e-14 | BD60: 4.045404684e-14 | BE60: 4.166766825e-14 | BF60: 4.291769829e-14 | BG60: 4.420522924e-14 | BH60: 4.553138612e-14 | BI60: 4.68973277e-14 | BJ60: 4.830424754e-14 | BK60: 4.975337496e-14 | BL60: 5.124597621e-14 | BM60: 5.27833555e-14 | BN60: 5.436685616e-14 | BO60: 5.599786185e-14 | BP60: 5.76777977e-14 | BQ60: 5.940813163e-14
D61: NOL Opening | J61: =I64 -> 0 | K61: =J64 -> 0 | L61: 0 | M61: 0 | N61: 349.1913344 | O61: 566.4456384 | P61: 714.3868204 | Q61: 860.45824 | R61: 1004.612112 | S61: 910.5848311 | T61: 814.5404173 | U61: 716.4269931 | V61: 616.1912364 | W61: 513.7783399 | X61: 409.1319673 | Y61: 302.1942099 | Z61: 192.9055405 | AA61: 81.20476692 | AB61: 0 | AC61: 0 | AD61: 0 | AE61: 0 | AF61: 0 | AG61: 0 | AH61: 0 | AI61: 0 | AJ61: 0 | AK61: 0 | AL61: 0 | AM61: 0 | AN61: 0 | AO61: 0 | AP61: 0 | AQ61: 0 | AR61: 0 | AS61: 0 | AT61: 0 | AU61: 0 | AV61: 0 | AW61: 0 | AX61: 0 | AY61: 0 | AZ61: 0 | BA61: 0 | BB61: 0 | BC61: 0 | BD61: 0 | BE61: 0 | BF61: 0 | BG61: 0 | BH61: 0 | BI61: 0 | BJ61: 0 | BK61: 0 | BL61: 0 | BM61: 0 | BN61: 0 | BO61: 0 | BP61: 0 | BQ61: 0
D62: Add: Losses | J62: =MAX(0,-J60) -> 0 | K62: =MAX(0,-K60) -> 0 | L62: 0 | M62: 349.1913344 | N62: 217.254304 | O62: 147.941182 | P62: 146.0714196 | Q62: 144.1538724 | R62: 0 | S62: 0 | T62: 0 | U62: 0 | V62: 0 | W62: 0 | X62: 0 | Y62: 0 | Z62: 0 | AA62: 0 | AB62: 0 | AC62: 0 | AD62: 0 | AE62: 0 | AF62: 0 | AG62: 0 | AH62: 0 | AI62: 0 | AJ62: 0 | AK62: 0 | AL62: 0 | AM62: 0 | AN62: 0 | AO62: 0 | AP62: 0 | AQ62: 0 | AR62: 0 | AS62: 0 | AT62: 0 | AU62: 0 | AV62: 0 | AW62: 0 | AX62: 0 | AY62: 0 | AZ62: 0 | BA62: 0 | BB62: 0 | BC62: 0 | BD62: 0 | BE62: 0 | BF62: 0 | BG62: 0 | BH62: 0 | BI62: 0 | BJ62: 0 | BK62: 0 | BL62: 0 | BM62: 0 | BN62: 0 | BO62: 0 | BP62: 0 | BQ62: 0
D63: Less: Used Losses | J63: =MIN(MAX(0,J60),J61) -> 0 | K63: =MIN(MAX(0,K60),K61) -> 0 | L63: 0 | M63: 0 | N63: 0 | O63: 0 | P63: 0 | Q63: 0 | R63: 94.02728127 | S63: 96.04441375 | T63: 98.11342425 | U63: 100.2357567 | V63: 102.4128966 | W63: 104.6463726 | X63: 106.9377574 | Y63: 109.2886694 | Z63: 111.7007736 | AA63: 81.20476692 | AB63: 0 | AC63: 0 | AD63: 0 | AE63: 0 | AF63: 0 | AG63: 0 | AH63: 0 | AI63: 0 | AJ63: 0 | AK63: 0 | AL63: 0 | AM63: 0 | AN63: 0 | AO63: 0 | AP63: 0 | AQ63: 0 | AR63: 0 | AS63: 0 | AT63: 0 | AU63: 0 | AV63: 0 | AW63: 0 | AX63: 0 | AY63: 0 | AZ63: 0 | BA63: 0 | BB63: 0 | BC63: 0 | BD63: 0 | BE63: 0 | BF63: 0 | BG63: 0 | BH63: 0 | BI63: 0 | BJ63: 0 | BK63: 0 | BL63: 0 | BM63: 0 | BN63: 0 | BO63: 0 | BP63: 0 | BQ63: 0
D64: NOL Closing | J64: =J61+J62-J63 -> 0 | K64: =K61+K62-K63 -> 0 | L64: =L61+L62-L63 -> 0 | M64: 349.1913344 | N64: 566.4456384 | O64: 714.3868204 | P64: 860.45824 | Q64: 1004.612112 | R64: 910.5848311 | S64: 814.5404173 | T64: 716.4269931 | U64: 616.1912364 | V64: 513.7783399 | W64: 409.1319673 | X64: 302.1942099 | Y64: 192.9055405 | Z64: 81.20476692 | AA64: 0 | AB64: 0 | AC64: 0 | AD64: 0 | AE64: 0 | AF64: 0 | AG64: 0 | AH64: 0 | AI64: 0 | AJ64: 0 | AK64: 0 | AL64: 0 | AM64: 0 | AN64: 0 | AO64: 0 | AP64: 0 | AQ64: 0 | AR64: 0 | AS64: 0 | AT64: 0 | AU64: 0 | AV64: 0 | AW64: 0 | AX64: 0 | AY64: 0 | AZ64: 0 | BA64: 0 | BB64: 0 | BC64: 0 | BD64: 0 | BE64: 0 | BF64: 0 | BG64: 0 | BH64: 0 | BI64: 0 | BJ64: 0 | BK64: 0 | BL64: 0 | BM64: 0 | BN64: 0 | BO64: 0 | BP64: 0 | BQ64: 0
D65: EBT After NOL | J65: =J60+J62-J63 -> 0 | K65: =K60+K62-K63 -> 0 | L65: =L60+L62-L63 -> 0 | M65: 0 | N65: 0 | O65: 0 | P65: 0 | Q65: 0 | R65: 0 | S65: 0 | T65: 0 | U65: 0 | V65: 0 | W65: 0 | X65: 0 | Y65: 0 | Z65: 0 | AA65: 32.97101643 | AB65: 116.5252444 | AC65: 118.4534379 | AD65: 120.4185178 | AE65: 120.3370815 | AF65: 120.244985 | AG65: 120.1420214 | AH65: 120.0279801 | AI65: 119.9026473 | AJ65: 119.7658058 | AK65: 119.6172347 | AL65: 2.376248897e-14 | AM65: 2.447536364e-14 | AN65: 2.520962455e-14 | AO65: 2.596591329e-14 | AP65: 2.674489068e-14 | AQ65: 2.754723741e-14 | AR65: 2.837365453e-14 | AS65: 2.922486416e-14 | AT65: 3.010161009e-14 | AU65: 3.100465839e-14 | AV65: 3.193479814e-14 | AW65: 3.289284209e-14 | AX65: 3.387962735e-14 | AY65: 3.489601617e-14 | AZ65: 3.594289665e-14 | BA65: 3.702118355e-14 | BB65: 3.813181906e-14 | BC65: 3.927577363e-14 | BD65: 4.045404684e-14 | BE65: 4.166766825e-14 | BF65: 4.291769829e-14 | BG65: 4.420522924e-14 | BH65: 4.553138612e-14 | BI65: 4.68973277e-14 | BJ65: 4.830424754e-14 | BK65: 4.975337496e-14 | BL65: 5.124597621e-14 | BM65: 5.27833555e-14 | BN65: 5.436685616e-14 | BO65: 5.599786185e-14 | BP65: 5.76777977e-14 | BQ65: 5.940813163e-14
D66: Taxes Paid | F66: =Inputs!F26 -> 0.25 | J66: =$F$66*J65 -> 0 | K66: =$F$66*K65 -> 0 | L66: =$F$66*L65 -> 0 | M66: 0 | N66: 0 | O66: 0 | P66: 0 | Q66: 0 | R66: 0 | S66: 0 | T66: 0 | U66: 0 | V66: 0 | W66: 0 | X66: 0 | Y66: 0 | Z66: 0 | AA66: 8.242754109 | AB66: 29.13131109 | AC66: 29.61335948 | AD66: 30.10462944 | AE66: 30.08427036 | AF66: 30.06124625 | AG66: 30.03550534 | AH66: 30.00699501 | AI66: 29.97566182 | AJ66: 29.94145144 | AK66: 29.90430867 | AL66: 5.940622243e-15 | AM66: 6.11884091e-15 | AN66: 6.302406137e-15 | AO66: 6.491478321e-15 | AP66: 6.686222671e-15 | AQ66: 6.886809351e-15 | AR66: 7.093413632e-15 | AS66: 7.306216041e-15 | AT66: 7.525402522e-15 | AU66: 7.751164598e-15 | AV66: 7.983699536e-15 | AW66: 8.223210522e-15 | AX66: 8.469906837e-15 | AY66: 8.724004042e-15 | AZ66: 8.985724164e-15 | BA66: 9.255295889e-15 | BB66: 9.532954765e-15 | BC66: 9.818943408e-15 | BD66: 1.011351171e-14 | BE66: 1.041691706e-14 | BF66: 1.072942457e-14 | BG66: 1.105130731e-14 | BH66: 1.138284653e-14 | BI66: 1.172433193e-14 | BJ66: 1.207606188e-14 | BK66: 1.243834374e-14 | BL66: 1.281149405e-14 | BM66: 1.319583887e-14 | BN66: 1.359171404e-14 | BO66: 1.399946546e-14 | BP66: 1.441944943e-14 | BQ66: 1.485203291e-14
D68: CFADS over Debt Life - Computed | I68: p50 comp | J68: =J56-J66 -> 0 | K68: =K56-K66 -> 0 | L68: =L56-L66 -> 0 | M68: 120.3574076 | N68: 120.4285128 | O68: 120.4920134 | P68: 120.5477518 | Q68: 120.5955681 | R68: 120.6352997 | S68: 120.6667812 | T68: 120.6898447 | U68: 120.7043194 | V68: 120.710032 | W68: 120.7068059 | X68: 120.6944621 | Y68: 120.6728183 | Z68: 120.6416897 | AA68: 112.3581338 | AB68: 91.41891097 | AC68: 90.87613831 | AD68: 90.31388833 | AE68: 90.25281109 | AF68: 90.18373876 | AG68: 90.10651602 | AH68: 90.02098504 | AI68: 89.92698546 | AJ68: 89.82435431 | AK68: 89.71292602 | AL68: -5.940622243e-15 | AM68: -6.11884091e-15 | AN68: -6.302406137e-15 | AO68: -6.491478321e-15 | AP68: -6.686222671e-15 | AQ68: -6.886809351e-15 | AR68: -7.093413632e-15 | AS68: -7.306216041e-15 | AT68: -7.525402522e-15 | AU68: -7.751164598e-15 | AV68: -7.983699536e-15 | AW68: -8.223210522e-15 | AX68: -8.469906837e-15 | AY68: -8.724004042e-15 | AZ68: -8.985724164e-15 | BA68: -9.255295889e-15 | BB68: -9.532954765e-15 | BC68: -9.818943408e-15 | BD68: -1.011351171e-14 | BE68: -1.041691706e-14 | BF68: -1.072942457e-14 | BG68: -1.105130731e-14 | BH68: -1.138284653e-14 | BI68: -1.172433193e-14 | BJ68: -1.207606188e-14 | BK68: -1.243834374e-14 | BL68: -1.281149405e-14 | BM68: -1.319583887e-14 | BN68: -1.359171404e-14 | BO68: -1.399946546e-14 | BP68: -1.441944943e-14 | BQ68: -1.485203291e-14
D69: CFADS over Debt Life - Fixed | J69: =J72 -> 0 | K69: =K72 -> 0 | L69: 0 | M69: 120.3574076 | N69: 120.4285128 | O69: 120.4920134 | P69: 120.5477518 | Q69: 120.5955681 | R69: 120.6352997 | S69: 120.6667812 | T69: 120.6898447 | U69: 120.7043194 | V69: 120.710032 | W69: 120.7068059 | X69: 120.6944621 | Y69: 120.6728183 | Z69: 120.6416897 | AA69: 112.3581338 | AB69: 91.41891097 | AC69: 90.87613831 | AD69: 90.31388833 | AE69: 90.25281109 | AF69: 90.18373876 | AG69: 90.10651602 | AH69: 90.02098504 | AI69: 89.92698546 | AJ69: 89.82435431 | AK69: 89.71292602 | AL69: -5.940622243e-15 | AM69: -6.11884091e-15 | AN69: -6.302406137e-15 | AO69: -6.491478321e-15 | AP69: -6.686222671e-15 | AQ69: -6.886809351e-15 | AR69: -7.093413632e-15 | AS69: -7.306216041e-15 | AT69: -7.525402522e-15 | AU69: -7.751164598e-15 | AV69: -7.983699536e-15 | AW69: -8.223210522e-15 | AX69: -8.469906837e-15 | AY69: -8.724004042e-15 | AZ69: -8.985724164e-15 | BA69: -9.255295889e-15 | BB69: -9.532954765e-15 | BC69: -9.818943408e-15 | BD69: -1.011351171e-14 | BE69: -1.041691706e-14 | BF69: -1.072942457e-14 | BG69: -1.105130731e-14 | BH69: -1.138284653e-14 | BI69: -1.172433193e-14 | BJ69: -1.207606188e-14 | BK69: -1.243834374e-14 | BL69: -1.281149405e-14 | BM69: -1.319583887e-14 | BN69: -1.359171404e-14 | BO69: -1.399946546e-14 | BP69: -1.441944943e-14 | BQ69: -1.485203291e-14
D70: CFADS over Debt Life - Difference | H70: p50 diff | I70: =SUM(J70:BQ70) -> 0 | J70: =J68-J69 -> 0 | K70: =K68-K69 -> 0 | L70: 0 | M70: 0 | N70: 0 | O70: 0 | P70: 0 | Q70: 0 | R70: 0 | S70: 0 | T70: 0 | U70: 0 | V70: 0 | W70: 0 | X70: 0 | Y70: 0 | Z70: 0 | AA70: 0 | AB70: 0 | AC70: 0 | AD70: 0 | AE70: 0 | AF70: 0 | AG70: 0 | AH70: 0 | AI70: 0 | AJ70: 0 | AK70: 0 | AL70: 0 | AM70: 0 | AN70: 0 | AO70: 0 | AP70: 0 | AQ70: 0 | AR70: 0 | AS70: 0 | AT70: 0 | AU70: 0 | AV70: 0 | AW70: 0 | AX70: 0 | AY70: 0 | AZ70: 0 | BA70: 0 | BB70: 0 | BC70: 0 | BD70: 0 | BE70: 0 | BF70: 0 | BG70: 0 | BH70: 0 | BI70: 0 | BJ70: 0 | BK70: 0 | BL70: 0 | BM70: 0 | BN70: 0 | BO70: 0 | BP70: 0 | BQ70: 0
D71: Target Debt Service | J71: =J69/J51*J54 -> 0 | K71: =K69/K51*K54 -> 0 | L71: 0 | M71: 92.58262121 | N71: 92.63731757 | O71: 92.68616415 | P71: 92.72903987 | Q71: 92.76582164 | R71: 92.79638437 | S71: 92.82060092 | T71: 92.83834207 | U71: 92.8494765 | V71: 92.85387073 | W71: 92.85138915 | X71: 92.84189389 | Y71: 92.82524487 | Z71: 92.80129973 | AA71: 86.42933371 | AB71: 70.32223921 | AC71: 69.90472178 | AD71: 0 | AE71: 0 | AF71: 0 | AG71: 0 | AH71: 0 | AI71: 0 | AJ71: 0 | AK71: 0 | AL71: 0 | AM71: 0 | AN71: 0 | AO71: 0 | AP71: 0 | AQ71: 0 | AR71: 0 | AS71: 0 | AT71: 0 | AU71: 0 | AV71: 0 | AW71: 0 | AX71: 0 | AY71: 0 | AZ71: 0 | BA71: 0 | BB71: 0 | BC71: 0 | BD71: 0 | BE71: 0 | BF71: 0 | BG71: 0 | BH71: 0 | BI71: 0 | BJ71: 0 | BK71: 0 | BL71: 0 | BM71: 0 | BN71: 0 | BO71: 0 | BP71: 0 | BQ71: 0
D72: CFADS over Debt Life - Fixed | I72: p50 fix | J72: 0 | K72: 0 | L72: 0 | M72: 120.3574076 | N72: 120.4285128 | O72: 120.4920134 | P72: 120.5477518 | Q72: 120.5955681 | R72: 120.6352997 | S72: 120.6667812 | T72: 120.6898447 | U72: 120.7043194 | V72: 120.710032 | W72: 120.7068059 | X72: 120.6944621 | Y72: 120.6728183 | Z72: 120.6416897 | AA72: 112.3581338 | AB72: 91.41891097 | AC72: 90.87613831 | AD72: 90.31388833 | AE72: 90.25281109 | AF72: 90.18373876 | AG72: 90.10651602 | AH72: 90.02098504 | AI72: 89.92698546 | AJ72: 89.82435431 | AK72: 89.71292602 | AL72: -5.940622243e-15 | AM72: -6.11884091e-15 | AN72: -6.302406137e-15 | AO72: -6.491478321e-15 | AP72: -6.686222671e-15 | AQ72: -6.886809351e-15 | AR72: -7.093413632e-15 | AS72: -7.306216041e-15 | AT72: -7.525402522e-15 | AU72: -7.751164598e-15 | AV72: -7.983699536e-15 | AW72: -8.223210522e-15 | AX72: -8.469906837e-15 | AY72: -8.724004042e-15 | AZ72: -8.985724164e-15 | BA72: -9.255295889e-15 | BB72: -9.532954765e-15 | BC72: -9.818943408e-15 | BD72: -1.011351171e-14 | BE72: -1.041691706e-14 | BF72: -1.072942457e-14 | BG72: -1.105130731e-14 | BH72: -1.138284653e-14 | BI72: -1.172433193e-14 | BJ72: -1.207606188e-14 | BK72: -1.243834374e-14 | BL72: -1.281149405e-14 | BM72: -1.319583887e-14 | BN72: -1.359171404e-14 | BO72: -1.399946546e-14 | BP72: -1.441944943e-14 | BQ72: -1.485203291e-14
D73: CFADS over Debt Life - UDF | J73: =P50Output!J55 -> 0 | K73: =P50Output!K55 -> 0 | L73: =P50Output!L55 -> 0 | M73: =P50Output!M55 -> 120.3574076 | N73: =P50Output!N55 -> 120.4285128 | O73: =P50Output!O55 -> 120.4920134 | P73: =P50Output!P55 -> 120.5477518 | Q73: =P50Output!Q55 -> 120.5955681 | R73: =P50Output!R55 -> 120.6352997 | S73: =P50Output!S55 -> 120.6667812 | T73: =P50Output!T55 -> 120.6898447 | U73: =P50Output!U55 -> 120.7043194 | V73: =P50Output!V55 -> 120.710032 | W73: =P50Output!W55 -> 120.7068059 | X73: =P50Output!X55 -> 120.6944621 | Y73: =P50Output!Y55 -> 120.6728183 | Z73: =P50Output!Z55 -> 120.6416897 | AA73: =P50Output!AA55 -> 112.3581338 | AB73: =P50Output!AB55 -> 91.41891097 | AC73: =P50Output!AC55 -> 90.87613831 | AD73: =P50Output!AD55 -> 90.31388833 | AE73: =P50Output!AE55 -> 90.25281109 | AF73: =P50Output!AF55 -> 90.18373876 | AG73: =P50Output!AG55 -> 90.10651602 | AH73: =P50Output!AH55 -> 90.02098504 | AI73: =P50Output!AI55 -> 89.92698546 | AJ73: =P50Output!AJ55 -> 89.82435431 | AK73: =P50Output!AK55 -> 89.71292602 | AL73: =P50Output!AL55 -> 0 | AM73: =P50Output!AM55 -> 0 | AN73: =P50Output!AN55 -> 0 | AO73: =P50Output!AO55 -> 0 | AP73: =P50Output!AP55 -> 0 | AQ73: =P50Output!AQ55 -> 0 | AR73: =P50Output!AR55 -> 0 | AS73: =P50Output!AS55 -> 0 | AT73: =P50Output!AT55 -> 0 | AU73: =P50Output!AU55 -> 0 | AV73: =P50Output!AV55 -> 0 | AW73: =P50Output!AW55 -> 0 | AX73: =P50Output!AX55 -> 0 | AY73: =P50Output!AY55 -> 0 | AZ73: =P50Output!AZ55 -> 0 | BA73: =P50Output!BA55 -> 0 | BB73: =P50Output!BB55 -> 0 | BC73: =P50Output!BC55 -> 0 | BD73: =P50Output!BD55 -> 0 | BE73: =P50Output!BE55 -> 0 | BF73: =P50Output!BF55 -> 0 | BG73: =P50Output!BG55 -> 0 | BH73: =P50Output!BH55 -> 0 | BI73: =P50Output!BI55 -> 0 | BJ73: =P50Output!BJ55 -> 0 | BK73: =P50Output!BK55 -> 0 | BL73: =P50Output!BL55 -> 0 | BM73: =P50Output!BM55 -> 0 | BN73: =P50Output!BN55 -> 0 | BO73: =P50Output!BO55 -> 0 | BP73: =P50Output!BP55 -> 0 | BQ73: =P50Output!BQ55 -> 0
D75: Interest Rate Factor | I75: 1 | J75: =I75*(1+J52*J$8) -> 1 | K75: =J75*(1+K52*K$8) -> 1 | L75: 1 | M75: 1.03 | N75: 1.0609 | O75: 1.092727 | P75: 1.12550881 | Q75: 1.159274074 | R75: 1.194052297 | S75: 1.229873865 | T75: 1.266770081 | U75: 1.304773184 | V75: 1.343916379 | W75: 1.384233871 | X75: 1.425760887 | Y75: 1.468533713 | Z75: 1.512589725 | AA75: 1.557967417 | AB75: 1.604706439 | AC75: 1.652847632 | AD75: 1.702433061 | AE75: 1.753506053 | AF75: 1.806111235 | AG75: 1.860294572 | AH75: 1.916103409 | AI75: 1.973586511 | AJ75: 2.032794106 | AK75: 2.09377793 | AL75: 2.09377793 | AM75: 2.09377793 | AN75: 2.09377793 | AO75: 2.09377793 | AP75: 2.09377793 | AQ75: 2.09377793 | AR75: 2.09377793 | AS75: 2.09377793 | AT75: 2.09377793 | AU75: 2.09377793 | AV75: 2.09377793 | AW75: 2.09377793 | AX75: 2.09377793 | AY75: 2.09377793 | AZ75: 2.09377793 | BA75: 2.09377793 | BB75: 2.09377793 | BC75: 2.09377793 | BD75: 2.09377793 | BE75: 2.09377793 | BF75: 2.09377793 | BG75: 2.09377793 | BH75: 2.09377793 | BI75: 2.09377793 | BJ75: 2.09377793 | BK75: 2.09377793 | BL75: 2.09377793 | BM75: 2.09377793 | BN75: 2.09377793 | BO75: 2.09377793 | BP75: 2.09377793 | BQ75: 2.09377793
D76: PV of CFADS over Debt Life (Fixed) | F76: =SUMPRODUCT(J71:BQ71/J75:BQ75) -> 1189.512744
D77: Flag for Pre-COD | F77: =EDATE(Inputs!$F$5,-12) -> 2022-01-01 | J77: =J$6=$F77 -> FALSE | K77: =K$6=$F77 -> FALSE | L77: TRUE | M77: FALSE | N77: FALSE | O77: FALSE | P77: FALSE | Q77: FALSE | R77: FALSE | S77: FALSE | T77: FALSE | U77: FALSE | V77: FALSE | W77: FALSE | X77: FALSE | Y77: FALSE | Z77: FALSE | AA77: FALSE | AB77: FALSE | AC77: FALSE | AD77: FALSE | AE77: FALSE | AF77: FALSE | AG77: FALSE | AH77: FALSE | AI77: FALSE | AJ77: FALSE | AK77: FALSE | AL77: FALSE | AM77: FALSE | AN77: FALSE | AO77: FALSE | AP77: FALSE | AQ77: FALSE | AR77: FALSE | AS77: FALSE | AT77: FALSE | AU77: FALSE | AV77: FALSE | AW77: FALSE | AX77: FALSE | AY77: FALSE | AZ77: FALSE | BA77: FALSE | BB77: FALSE | BC77: FALSE | BD77: FALSE | BE77: FALSE | BF77: FALSE | BG77: FALSE | BH77: FALSE | BI77: FALSE | BJ77: FALSE | BK77: FALSE | BL77: FALSE | BM77: FALSE | BN77: FALSE | BO77: FALSE | BP77: FALSE | BQ77: FALSE
D78: Debt Issue | F78: =F76 -> 1189.512744 | J78: =$F$78*J77 -> 0 | K78: =$F$78*K77 -> 0 | L78: 1189.512744 | M78: 0 | N78: 0 | O78: 0 | P78: 0 | Q78: 0 | R78: 0 | S78: 0 | T78: 0 | U78: 0 | V78: 0 | W78: 0 | X78: 0 | Y78: 0 | Z78: 0 | AA78: 0 | AB78: 0 | AC78: 0 | AD78: 0 | AE78: 0 | AF78: 0 | AG78: 0 | AH78: 0 | AI78: 0 | AJ78: 0 | AK78: 0 | AL78: 0 | AM78: 0 | AN78: 0 | AO78: 0 | AP78: 0 | AQ78: 0 | AR78: 0 | AS78: 0 | AT78: 0 | AU78: 0 | AV78: 0 | AW78: 0 | AX78: 0 | AY78: 0 | AZ78: 0 | BA78: 0 | BB78: 0 | BC78: 0 | BD78: 0 | BE78: 0 | BF78: 0 | BG78: 0 | BH78: 0 | BI78: 0 | BJ78: 0 | BK78: 0 | BL78: 0 | BM78: 0 | BN78: 0 | BO78: 0 | BP78: 0 | BQ78: 0
D80: Opening Balance | J80: =I83 -> 0 | K80: =J83 -> 0 | L80: 0 | M80: 1189.512744 | N80: 1132.615505 | O80: 1073.956653 | P80: 1013.489188 | Q80: 951.1648242 | R80: 886.9339473 | S80: 820.7455814 | T80: 752.5473479 | U80: 682.2854263 | V80: 609.9045126 | W80: 535.3477772 | X80: 458.5568214 | Y80: 379.4716321 | Z80: 298.0305362 | AA80: 214.1701526 | AB80: 134.1659234 | AC80: 67.86866192 | AD80: -6.252776075e-13 | AE80: -6.440359357e-13 | AF80: -6.633570138e-13 | AG80: -6.832577242e-13 | AH80: -7.037554559e-13 | AI80: -7.248681196e-13 | AJ80: -7.466141632e-13 | AK80: -7.690125881e-13 | AL80: -7.920829657e-13 | AM80: -8.158454547e-13 | AN80: -8.403208183e-13 | AO80: -8.655304429e-13 | AP80: -8.914963561e-13 | AQ80: -9.182412468e-13 | AR80: -9.457884842e-13 | AS80: -9.741621388e-13 | AT80: -1.003387003e-12 | AU80: -1.033488613e-12 | AV80: -1.064493271e-12 | AW80: -1.09642807e-12 | AX80: -1.129320912e-12 | AY80: -1.163200539e-12 | AZ80: -1.198096555e-12 | BA80: -1.234039452e-12 | BB80: -1.271060635e-12 | BC80: -1.309192454e-12 | BD80: -1.348468228e-12 | BE80: -1.388922275e-12 | BF80: -1.430589943e-12 | BG80: -1.473507641e-12 | BH80: -1.517712871e-12 | BI80: -1.563244257e-12 | BJ80: -1.610141585e-12 | BK80: -1.658445832e-12 | BL80: -1.708199207e-12 | BM80: -1.759445183e-12 | BN80: -1.812228539e-12 | BO80: -1.866595395e-12 | BP80: -1.922593257e-12 | BQ80: -1.980271054e-12
D81: Add: Debt Issued | J81: =J78 -> 0 | K81: =K78 -> 0 | L81: 1189.512744 | M81: 0 | N81: 0 | O81: 0 | P81: 0 | Q81: 0 | R81: 0 | S81: 0 | T81: 0 | U81: 0 | V81: 0 | W81: 0 | X81: 0 | Y81: 0 | Z81: 0 | AA81: 0 | AB81: 0 | AC81: 0 | AD81: 0 | AE81: 0 | AF81: 0 | AG81: 0 | AH81: 0 | AI81: 0 | AJ81: 0 | AK81: 0 | AL81: 0 | AM81: 0 | AN81: 0 | AO81: 0 | AP81: 0 | AQ81: 0 | AR81: 0 | AS81: 0 | AT81: 0 | AU81: 0 | AV81: 0 | AW81: 0 | AX81: 0 | AY81: 0 | AZ81: 0 | BA81: 0 | BB81: 0 | BC81: 0 | BD81: 0 | BE81: 0 | BF81: 0 | BG81: 0 | BH81: 0 | BI81: 0 | BJ81: 0 | BK81: 0 | BL81: 0 | BM81: 0 | BN81: 0 | BO81: 0 | BP81: 0 | BQ81: 0
D82: Less: Debt Repaid | J82: =J71-J84 -> 0 | K82: =K71-K84 -> 0 | L82: =L71-L84 -> 0 | M82: 56.89723888 | N82: 58.6588524 | O82: 60.46746456 | P82: 62.32436422 | Q82: 64.23087692 | R82: 66.18836595 | S82: 68.19823348 | T82: 70.26192163 | U82: 72.38091371 | V82: 74.55673536 | W82: 76.79095583 | X82: 79.08518925 | Y82: 81.44109591 | Z82: 83.86038365 | AA82: 80.00422914 | AB82: 66.2972615 | AC82: 67.86866192 | AD82: 1.875832822e-14 | AE82: 1.932107807e-14 | AF82: 1.990071041e-14 | AG82: 2.049773173e-14 | AH82: 2.111266368e-14 | AI82: 2.174604359e-14 | AJ82: 2.239842489e-14 | AK82: 2.307037764e-14 | AL82: 2.376248897e-14 | AM82: 2.447536364e-14 | AN82: 2.520962455e-14 | AO82: 2.596591329e-14 | AP82: 2.674489068e-14 | AQ82: 2.754723741e-14 | AR82: 2.837365453e-14 | AS82: 2.922486416e-14 | AT82: 3.010161009e-14 | AU82: 3.100465839e-14 | AV82: 3.193479814e-14 | AW82: 3.289284209e-14 | AX82: 3.387962735e-14 | AY82: 3.489601617e-14 | AZ82: 3.594289665e-14 | BA82: 3.702118355e-14 | BB82: 3.813181906e-14 | BC82: 3.927577363e-14 | BD82: 4.045404684e-14 | BE82: 4.166766825e-14 | BF82: 4.291769829e-14 | BG82: 4.420522924e-14 | BH82: 4.553138612e-14 | BI82: 4.68973277e-14 | BJ82: 4.830424754e-14 | BK82: 4.975337496e-14 | BL82: 5.124597621e-14 | BM82: 5.27833555e-14 | BN82: 5.436685616e-14 | BO82: 5.599786185e-14 | BP82: 5.76777977e-14 | BQ82: 5.940813163e-14
D83: Closing Balance | J83: =J80+J81-J82 -> 0 | K83: =K80+K81-K82 -> 0 | L83: 1189.512744 | M83: 1132.615505 | N83: 1073.956653 | O83: 1013.489188 | P83: 951.1648242 | Q83: 886.9339473 | R83: 820.7455814 | S83: 752.5473479 | T83: 682.2854263 | U83: 609.9045126 | V83: 535.3477772 | W83: 458.5568214 | X83: 379.4716321 | Y83: 298.0305362 | Z83: 214.1701526 | AA83: 134.1659234 | AB83: 67.86866192 | AC83: -6.252776075e-13 | AD83: -6.440359357e-13 | AE83: -6.633570138e-13 | AF83: -6.832577242e-13 | AG83: -7.037554559e-13 | AH83: -7.248681196e-13 | AI83: -7.466141632e-13 | AJ83: -7.690125881e-13 | AK83: -7.920829657e-13 | AL83: -8.158454547e-13 | AM83: -8.403208183e-13 | AN83: -8.655304429e-13 | AO83: -8.914963561e-13 | AP83: -9.182412468e-13 | AQ83: -9.457884842e-13 | AR83: -9.741621388e-13 | AS83: -1.003387003e-12 | AT83: -1.033488613e-12 | AU83: -1.064493271e-12 | AV83: -1.09642807e-12 | AW83: -1.129320912e-12 | AX83: -1.163200539e-12 | AY83: -1.198096555e-12 | AZ83: -1.234039452e-12 | BA83: -1.271060635e-12 | BB83: -1.309192454e-12 | BC83: -1.348468228e-12 | BD83: -1.388922275e-12 | BE83: -1.430589943e-12 | BF83: -1.473507641e-12 | BG83: -1.517712871e-12 | BH83: -1.563244257e-12 | BI83: -1.610141585e-12 | BJ83: -1.658445832e-12 | BK83: -1.708199207e-12 | BL83: -1.759445183e-12 | BM83: -1.812228539e-12 | BN83: -1.866595395e-12 | BO83: -1.922593257e-12 | BP83: -1.980271054e-12 | BQ83: -2.039679186e-12
D84: Interest Expense | J84: =J80*J52 -> 0 | K84: =K80*K52 -> 0 | L84: =L80*L52 -> 0 | M84: 35.68538233 | N84: 33.97846516 | O84: 32.21869959 | P84: 30.40467565 | Q84: 28.53494473 | R84: 26.60801842 | S84: 24.62236744 | T84: 22.57642044 | U84: 20.46856279 | V84: 18.29713538 | W84: 16.06043332 | X84: 13.75670464 | Y84: 11.38414896 | Z84: 8.940916086 | AA84: 6.425104577 | AB84: 4.024977703 | AC84: 2.036059858 | AD84: -1.875832822e-14 | AE84: -1.932107807e-14 | AF84: -1.990071041e-14 | AG84: -2.049773173e-14 | AH84: -2.111266368e-14 | AI84: -2.174604359e-14 | AJ84: -2.239842489e-14 | AK84: -2.307037764e-14 | AL84: -2.376248897e-14 | AM84: -2.447536364e-14 | AN84: -2.520962455e-14 | AO84: -2.596591329e-14 | AP84: -2.674489068e-14 | AQ84: -2.754723741e-14 | AR84: -2.837365453e-14 | AS84: -2.922486416e-14 | AT84: -3.010161009e-14 | AU84: -3.100465839e-14 | AV84: -3.193479814e-14 | AW84: -3.289284209e-14 | AX84: -3.387962735e-14 | AY84: -3.489601617e-14 | AZ84: -3.594289665e-14 | BA84: -3.702118355e-14 | BB84: -3.813181906e-14 | BC84: -3.927577363e-14 | BD84: -4.045404684e-14 | BE84: -4.166766825e-14 | BF84: -4.291769829e-14 | BG84: -4.420522924e-14 | BH84: -4.553138612e-14 | BI84: -4.68973277e-14 | BJ84: -4.830424754e-14 | BK84: -4.975337496e-14 | BL84: -5.124597621e-14 | BM84: -5.27833555e-14 | BN84: -5.436685616e-14 | BO84: -5.599786185e-14 | BP84: -5.76777977e-14 | BQ84: -5.940813163e-14
D85: DSCR Test | J85: =IF(J54,J68/(J84+J82)) -> FALSE | K85: =IF(K54,K68/(K84+K82)) -> FALSE | L85: FALSE | M85: 1.3 | N85: 1.3 | O85: 1.3 | P85: 1.3 | Q85: 1.3 | R85: 1.3 | S85: 1.3 | T85: 1.3 | U85: 1.3 | V85: 1.3 | W85: 1.3 | X85: 1.3 | Y85: 1.3 | Z85: 1.3 | AA85: 1.3 | AB85: 1.3 | AC85: 1.3 | AD85: FALSE | AE85: FALSE | AF85: FALSE | AG85: FALSE | AH85: FALSE | AI85: FALSE | AJ85: FALSE | AK85: FALSE | AL85: FALSE | AM85: FALSE | AN85: FALSE | AO85: FALSE | AP85: FALSE | AQ85: FALSE | AR85: FALSE | AS85: FALSE | AT85: FALSE | AU85: FALSE | AV85: FALSE | AW85: FALSE | AX85: FALSE | AY85: FALSE | AZ85: FALSE | BA85: FALSE | BB85: FALSE | BC85: FALSE | BD85: FALSE | BE85: FALSE | BF85: FALSE | BG85: FALSE | BH85: FALSE | BI85: FALSE | BJ85: FALSE | BK85: FALSE | BL85: FALSE | BM85: FALSE | BN85: FALSE | BO85: FALSE | BP85: FALSE | BQ85: FALSE
F86: =NOT(H86) -> TRUE | H86: =Inputs!F45 -> FALSE
C87: P50 Sources and Uses | E87: Applied | F87: Fixed P50 | G87: Comp P50 | H87: Parallel | I87: Difference
D88: Capital Expenditures | E88: =F88 -> 1400 | F88: 1400 | G88: =SUM(J88:BQ88) -> 1400 | H88: =G88 -> 1400 | J88: =J$13 -> 466.6666667 | K88: =K$13 -> 466.6666667 | L88: 466.6666667 | M88: 0 | N88: 0 | O88: 0 | P88: 0 | Q88: 0 | R88: 0 | S88: 0 | T88: 0 | U88: 0 | V88: 0 | W88: 0 | X88: 0 | Y88: 0 | Z88: 0 | AA88: 0 | AB88: 0 | AC88: 0 | AD88: 0 | AE88: 0 | AF88: 0 | AG88: 0 | AH88: 0 | AI88: 0 | AJ88: 0 | AK88: 0 | AL88: 0 | AM88: 0 | AN88: 0 | AO88: 0 | AP88: 0 | AQ88: 0 | AR88: 0 | AS88: 0 | AT88: 0 | AU88: 0 | AV88: 0 | AW88: 0 | AX88: 0 | AY88: 0 | AZ88: 0 | BA88: 0 | BB88: 0 | BC88: 0 | BD88: 0 | BE88: 0 | BF88: 0 | BG88: 0 | BH88: 0 | BI88: 0 | BJ88: 0 | BK88: 0 | BL88: 0 | BM88: 0 | BN88: 0 | BO88: 0 | BP88: 0 | BQ88: 0
D89: IDC | E89: =IF($H$86,H89,F89) -> 34.31607124 | F89: 34.31607124 | G89: =SUM(J89:BQ89) -> 34.31607124 | H89: =P50Output!H15 -> 34.31607124 | I89: =G89-E89 -> 0 | J89: =J104 -> 0 | K89: =K104 -> 11.44229942 | L89: 22.87377182 | M89: 0 | N89: 0 | O89: 0 | P89: 0 | Q89: 0 | R89: 0 | S89: 0 | T89: 0 | U89: 0 | V89: 0 | W89: 0 | X89: 0 | Y89: 0 | Z89: 0 | AA89: 0 | AB89: 0 | AC89: 0 | AD89: 0 | AE89: 0 | AF89: 0 | AG89: 0 | AH89: 0 | AI89: 0 | AJ89: 0 | AK89: 0 | AL89: 0 | AM89: 0 | AN89: 0 | AO89: 0 | AP89: 0 | AQ89: 0 | AR89: 0 | AS89: 0 | AT89: 0 | AU89: 0 | AV89: 0 | AW89: 0 | AX89: 0 | AY89: 0 | AZ89: 0 | BA89: 0 | BB89: 0 | BC89: 0 | BD89: 0 | BE89: 0 | BF89: 0 | BG89: 0 | BH89: 0 | BI89: 0 | BJ89: 0 | BK89: 0 | BL89: 0 | BM89: 0 | BN89: 0 | BO89: 0 | BP89: 0 | BQ89: 0
D90: Up-Front Fee | E90: =IF($H$86,H90,F90) -> 11.89512744 | F90: 11.89512744 | G90: =SUM(J90:BQ90) -> 11.89512744 | H90: ='UDF Model'!F68 -> 8.852941549 | I90: =G90-E90 -> 0 | J90: =J105 -> 11.89512744 | K90: =K105 -> 0 | L90: 0 | M90: 0 | N90: 0 | O90: 0 | P90: 0 | Q90: 0 | R90: 0 | S90: 0 | T90: 0 | U90: 0 | V90: 0 | W90: 0 | X90: 0 | Y90: 0 | Z90: 0 | AA90: 0 | AB90: 0 | AC90: 0 | AD90: 0 | AE90: 0 | AF90: 0 | AG90: 0 | AH90: 0 | AI90: 0 | AJ90: 0 | AK90: 0 | AL90: 0 | AM90: 0 | AN90: 0 | AO90: 0 | AP90: 0 | AQ90: 0 | AR90: 0 | AS90: 0 | AT90: 0 | AU90: 0 | AV90: 0 | AW90: 0 | AX90: 0 | AY90: 0 | AZ90: 0 | BA90: 0 | BB90: 0 | BC90: 0 | BD90: 0 | BE90: 0 | BF90: 0 | BG90: 0 | BH90: 0 | BI90: 0 | BJ90: 0 | BK90: 0 | BL90: 0 | BM90: 0 | BN90: 0 | BO90: 0 | BP90: 0 | BQ90: 0
D91: DSRA | E91: 46.29131061 | F91: 46.29131061 | G91: =SUM(J91:BQ91) -> 46.29131061 | H91: ='UDF Model'!F69 -> 36.2215927 | I91: =G91-E91 -> 0 | J91: =J126 -> 0 | K91: 0 | L91: 46.29131061 | M91: 0 | N91: 0 | O91: 0 | P91: 0 | Q91: 0 | R91: 0 | S91: 0 | T91: 0 | U91: 0 | V91: 0 | W91: 0 | X91: 0 | Y91: 0 | Z91: 0 | AA91: 0 | AB91: 0 | AC91: 0 | AD91: 0 | AE91: 0 | AF91: 0 | AG91: 0 | AH91: 0 | AI91: 0 | AJ91: 0 | AK91: 0 | AL91: 0 | AM91: 0 | AN91: 0 | AO91: 0 | AP91: =AP126 -> 0 | AQ91: 0 | AR91: 0 | AS91: 0 | AT91: 0 | AU91: 0 | AV91: 0 | AW91: 0 | AX91: 0 | AY91: 0 | AZ91: 0 | BA91: 0 | BB91: 0 | BC91: 0 | BD91: 0 | BE91: 0 | BF91: 0 | BG91: 0 | BH91: 0 | BI91: 0 | BJ91: 0 | BK91: 0 | BL91: 0 | BM91: 0 | BN91: 0 | BO91: 0 | BP91: 0 | BQ91: 0
D92: Total | E92: =SUM(E88:E91) -> 1492.502509 | F92: =SUM(F88:F91) -> 1492.502509 | G92: =SUM(G88:G91) -> 1492.502509 | H92: =SUM(H88:H91) -> 1479.390605 | I92: =SUM(I88:I91) -> 0 | J92: =J88+J89+J90+J91 -> 478.5617941 | K92: =K88+K89+K90+K91 -> 478.1089661 | L92: 535.8317491 | M92: 0 | N92: 0 | O92: 0 | P92: 0 | Q92: 0 | R92: 0 | S92: 0 | T92: 0 | U92: 0 | V92: 0 | W92: 0 | X92: 0 | Y92: 0 | Z92: 0 | AA92: 0 | AB92: 0 | AC92: 0 | AD92: 0 | AE92: 0 | AF92: 0 | AG92: 0 | AH92: 0 | AI92: 0 | AJ92: 0 | AK92: 0 | AL92: 0 | AM92: 0 | AN92: 0 | AO92: 0 | AP92: 0 | AQ92: 0 | AR92: 0 | AS92: 0 | AT92: 0 | AU92: 0 | AV92: 0 | AW92: 0 | AX92: 0 | AY92: 0 | AZ92: 0 | BA92: 0 | BB92: 0 | BC92: 0 | BD92: 0 | BE92: 0 | BF92: 0 | BG92: 0 | BH92: 0 | BI92: 0 | BJ92: 0 | BK92: 0 | BL92: 0 | BM92: 0 | BN92: 0 | BO92: 0 | BP92: 0 | BQ92: 0
I93: P50 SU Diff
D94: Uses | I94: %
D95: Debt | E95: =F76 -> 1189.512744 | G95: =F76 -> 1189.512744 | H95: =P50Output!$H$21 -> 1189.512744 | I95: =E95/E97 -> 0.7969921236 | J95: =$I95*J92 -> 381.4099805 | K95: =$I95*K92 -> 381.0490802 | L95: 427.0536836 | M95: 0 | N95: 0 | O95: 0 | P95: 0 | Q95: 0 | R95: 0 | S95: 0 | T95: 0 | U95: 0 | V95: 0 | W95: 0 | X95: 0 | Y95: 0 | Z95: 0 | AA95: 0 | AB95: 0 | AC95: 0 | AD95: 0 | AE95: 0 | AF95: 0 | AG95: 0 | AH95: 0 | AI95: 0 | AJ95: 0 | AK95: 0 | AL95: 0 | AM95: 0 | AN95: 0 | AO95: 0 | AP95: 0 | AQ95: 0 | AR95: 0 | AS95: 0 | AT95: 0 | AU95: 0 | AV95: 0 | AW95: 0 | AX95: 0 | AY95: 0 | AZ95: 0 | BA95: 0 | BB95: 0 | BC95: 0 | BD95: 0 | BE95: 0 | BF95: 0 | BG95: 0 | BH95: 0 | BI95: 0 | BJ95: 0 | BK95: 0 | BL95: 0 | BM95: 0 | BN95: 0 | BO95: 0 | BP95: 0 | BQ95: 0
D96: Equity | E96: =E92-E95 -> 302.989765 | G96: =G92-G95 -> 302.989765 | I96: =G96/G97 -> 0.2030078764 | J96: =J92-J95 -> 97.15181356 | K96: =K92-K95 -> 97.05988591 | L96: 108.7780655 | M96: 0 | N96: 0 | O96: 0 | P96: 0 | Q96: 0 | R96: 0 | S96: 0 | T96: 0 | U96: 0 | V96: 0 | W96: 0 | X96: 0 | Y96: 0 | Z96: 0 | AA96: 0 | AB96: 0 | AC96: 0 | AD96: 0 | AE96: 0 | AF96: 0 | AG96: 0 | AH96: 0 | AI96: 0 | AJ96: 0 | AK96: 0 | AL96: 0 | AM96: 0 | AN96: 0 | AO96: 0 | AP96: 0 | AQ96: 0 | AR96: 0 | AS96: 0 | AT96: 0 | AU96: 0 | AV96: 0 | AW96: 0 | AX96: 0 | AY96: 0 | AZ96: 0 | BA96: 0 | BB96: 0 | BC96: 0 | BD96: 0 | BE96: 0 | BF96: 0 | BG96: 0 | BH96: 0 | BI96: 0 | BJ96: 0 | BK96: 0 | BL96: 0 | BM96: 0 | BN96: 0 | BO96: 0 | BP96: 0 | BQ96: 0
D97: Total | E97: =SUM(E95:E96) -> 1492.502509 | G97: =SUM(G95:G96) -> 1492.502509 | J97: =SUM(J95:J96) -> 478.5617941 | K97: =SUM(K95:K96) -> 478.1089661 | L97: 535.8317491 | M97: 0 | N97: 0 | O97: 0 | P97: 0 | Q97: 0 | R97: 0 | S97: 0 | T97: 0 | U97: 0 | V97: 0 | W97: 0 | X97: 0 | Y97: 0 | Z97: 0 | AA97: 0 | AB97: 0 | AC97: 0 | AD97: 0 | AE97: 0 | AF97: 0 | AG97: 0 | AH97: 0 | AI97: 0 | AJ97: 0 | AK97: 0 | AL97: 0 | AM97: 0 | AN97: 0 | AO97: 0 | AP97: 0 | AQ97: 0 | AR97: 0 | AS97: 0 | AT97: 0 | AU97: 0 | AV97: 0 | AW97: 0 | AX97: 0 | AY97: 0 | AZ97: 0 | BA97: 0 | BB97: 0 | BC97: 0 | BD97: 0 | BE97: 0 | BF97: 0 | BG97: 0 | BH97: 0 | BI97: 0 | BJ97: 0 | BK97: 0 | BL97: 0 | BM97: 0 | BN97: 0 | BO97: 0 | BP97: 0 | BQ97: 0
D99: Debt Balance
D100: Opening Balance | J100: =I103 -> 0 | K100: =J103 -> 381.4099805 | L100: 762.4590607 | M100: 1189.512744 | N100: 1132.615505 | O100: 1073.956653 | P100: 1013.489188 | Q100: 951.1648242 | R100: 886.9339473 | S100: 820.7455814 | T100: 752.5473479 | U100: 682.2854263 | V100: 609.9045126 | W100: 535.3477772 | X100: 458.5568214 | Y100: 379.4716321 | Z100: 298.0305362 | AA100: 214.1701526 | AB100: 134.1659234 | AC100: 67.86866192 | AD100: -8.526512829e-13 | AE100: -8.714096111e-13 | AF100: -8.907306892e-13 | AG100: -9.106313996e-13 | AH100: -9.311291313e-13 | AI100: -9.52241795e-13 | AJ100: -9.739878386e-13 | AK100: -9.963862635e-13 | AL100: -1.019456641e-12 | AM100: -1.04321913e-12 | AN100: -1.067694494e-12 | AO100: -1.092904118e-12 | AP100: -1.118870032e-12 | AQ100: -1.145614922e-12 | AR100: -1.17316216e-12 | AS100: -1.201535814e-12 | AT100: -1.230760678e-12 | AU100: -1.260862288e-12 | AV100: -1.291866947e-12 | AW100: -1.323801745e-12 | AX100: -1.356694587e-12 | AY100: -1.390574214e-12 | AZ100: -1.425470231e-12 | BA100: -1.461413127e-12 | BB100: -1.498434311e-12 | BC100: -1.53656613e-12 | BD100: -1.575841904e-12 | BE100: -1.61629595e-12 | BF100: -1.657963619e-12 | BG100: -1.700881317e-12 | BH100: -1.745086546e-12 | BI100: -1.790617932e-12 | BJ100: -1.83751526e-12 | BK100: -1.885819507e-12 | BL100: -1.935572882e-12 | BM100: -1.986818859e-12 | BN100: -2.039602214e-12 | BO100: -2.09396907e-12 | BP100: -2.149966932e-12 | BQ100: -2.20764473e-12
D101: Add: Draws | J101: =J95 -> 381.4099805 | K101: 381.0490802 | L101: 427.0536836 | M101: 0 | N101: 0 | O101: 0 | P101: 0 | Q101: 0 | R101: 0 | S101: 0 | T101: 0 | U101: 0 | V101: 0 | W101: 0 | X101: 0 | Y101: 0 | Z101: 0 | AA101: 0 | AB101: 0 | AC101: 0 | AD101: 0 | AE101: 0 | AF101: 0 | AG101: 0 | AH101: 0 | AI101: 0 | AJ101: 0 | AK101: 0 | AL101: 0 | AM101: 0 | AN101: 0 | AO101: 0 | AP101: =AP95 -> 0 | AQ101: 0 | AR101: 0 | AS101: 0 | AT101: 0 | AU101: 0 | AV101: 0 | AW101: 0 | AX101: 0 | AY101: 0 | AZ101: 0 | BA101: 0 | BB101: 0 | BC101: 0 | BD101: 0 | BE101: 0 | BF101: 0 | BG101: 0 | BH101: 0 | BI101: 0 | BJ101: 0 | BK101: 0 | BL101: 0 | BM101: 0 | BN101: 0 | BO101: 0 | BP101: 0 | BQ101: 0
D102: Less: Repayments | J102: =J82 -> 0 | K102: 0 | L102: 0 | M102: 56.89723888 | N102: 58.6588524 | O102: 60.46746456 | P102: 62.32436422 | Q102: 64.23087692 | R102: 66.18836595 | S102: 68.19823348 | T102: 70.26192163 | U102: 72.38091371 | V102: 74.55673536 | W102: 76.79095583 | X102: 79.08518925 | Y102: 81.44109591 | Z102: 83.86038365 | AA102: 80.00422914 | AB102: 66.2972615 | AC102: 67.86866192 | AD102: 1.875832822e-14 | AE102: 1.932107807e-14 | AF102: 1.990071041e-14 | AG102: 2.049773173e-14 | AH102: 2.111266368e-14 | AI102: 2.174604359e-14 | AJ102: 2.239842489e-14 | AK102: 2.307037764e-14 | AL102: 2.376248897e-14 | AM102: 2.447536364e-14 | AN102: 2.520962455e-14 | AO102: 2.596591329e-14 | AP102: =AP82 -> 2.674489068e-14 | AQ102: 2.754723741e-14 | AR102: 2.837365453e-14 | AS102: 2.922486416e-14 | AT102: 3.010161009e-14 | AU102: 3.100465839e-14 | AV102: 3.193479814e-14 | AW102: 3.289284209e-14 | AX102: 3.387962735e-14 | AY102: 3.489601617e-14 | AZ102: 3.594289665e-14 | BA102: 3.702118355e-14 | BB102: 3.813181906e-14 | BC102: 3.927577363e-14 | BD102: 4.045404684e-14 | BE102: 4.166766825e-14 | BF102: 4.291769829e-14 | BG102: 4.420522924e-14 | BH102: 4.553138612e-14 | BI102: 4.68973277e-14 | BJ102: 4.830424754e-14 | BK102: 4.975337496e-14 | BL102: 5.124597621e-14 | BM102: 5.27833555e-14 | BN102: 5.436685616e-14 | BO102: 5.599786185e-14 | BP102: 5.76777977e-14 | BQ102: 5.940813163e-14
D103: Closing Balance | J103: =J100+J101-J102 -> 381.4099805 | K103: =K100+K101-K102 -> 762.4590607 | L103: 1189.512744 | M103: 1132.615505 | N103: 1073.956653 | O103: 1013.489188 | P103: 951.1648242 | Q103: 886.9339473 | R103: 820.7455814 | S103: 752.5473479 | T103: 682.2854263 | U103: 609.9045126 | V103: 535.3477772 | W103: 458.5568214 | X103: 379.4716321 | Y103: 298.0305362 | Z103: 214.1701526 | AA103: 134.1659234 | AB103: 67.86866192 | AC103: -8.526512829e-13 | AD103: -8.714096111e-13 | AE103: -8.907306892e-13 | AF103: -9.106313996e-13 | AG103: -9.311291313e-13 | AH103: -9.52241795e-13 | AI103: -9.739878386e-13 | AJ103: -9.963862635e-13 | AK103: -1.019456641e-12 | AL103: -1.04321913e-12 | AM103: -1.067694494e-12 | AN103: -1.092904118e-12 | AO103: -1.118870032e-12 | AP103: -1.145614922e-12 | AQ103: -1.17316216e-12 | AR103: -1.201535814e-12 | AS103: -1.230760678e-12 | AT103: -1.260862288e-12 | AU103: -1.291866947e-12 | AV103: -1.323801745e-12 | AW103: -1.356694587e-12 | AX103: -1.390574214e-12 | AY103: -1.425470231e-12 | AZ103: -1.461413127e-12 | BA103: -1.498434311e-12 | BB103: -1.53656613e-12 | BC103: -1.575841904e-12 | BD103: -1.61629595e-12 | BE103: -1.657963619e-12 | BF103: -1.700881317e-12 | BG103: -1.745086546e-12 | BH103: -1.790617932e-12 | BI103: -1.83751526e-12 | BJ103: -1.885819507e-12 | BK103: -1.935572882e-12 | BL103: -1.986818859e-12 | BM103: -2.039602214e-12 | BN103: -2.09396907e-12 | BO103: -2.149966932e-12 | BP103: -2.20764473e-12 | BQ103: -2.267052861e-12
D104: IDC | J104: =J100*J52*J$4 -> 0 | K104: 11.44229942 | L104: 22.87377182 | M104: 0 | N104: 0 | O104: 0 | P104: 0 | Q104: 0 | R104: 0 | S104: 0 | T104: 0 | U104: 0 | V104: 0 | W104: 0 | X104: 0 | Y104: 0 | Z104: 0 | AA104: 0 | AB104: 0 | AC104: 0 | AD104: 0 | AE104: 0 | AF104: 0 | AG104: 0 | AH104: 0 | AI104: 0 | AJ104: 0 | AK104: 0 | AL104: 0 | AM104: 0 | AN104: 0 | AO104: 0 | AP104: =AP100*AP52*AP$4 -> 0 | AQ104: 0 | AR104: 0 | AS104: 0 | AT104: 0 | AU104: 0 | AV104: 0 | AW104: 0 | AX104: 0 | AY104: 0 | AZ104: 0 | BA104: 0 | BB104: 0 | BC104: 0 | BD104: 0 | BE104: 0 | BF104: 0 | BG104: 0 | BH104: 0 | BI104: 0 | BJ104: 0 | BK104: 0 | BL104: 0 | BM104: 0 | BN104: 0 | BO104: 0 | BP104: 0 | BQ104: 0
D105: Fees | E105: =Inputs!F42 -> 0.01 | F105: =E95 -> 1189.512744 | J105: =$E105*$F105*(J$3=1) -> 11.89512744 | K105: =$E105*$F105*(K$3=1) -> 0 | L105: 0 | M105: 0 | N105: 0 | O105: 0 | P105: 0 | Q105: 0 | R105: 0 | S105: 0 | T105: 0 | U105: 0 | V105: 0 | W105: 0 | X105: 0 | Y105: 0 | Z105: 0 | AA105: 0 | AB105: 0 | AC105: 0 | AD105: 0 | AE105: 0 | AF105: 0 | AG105: 0 | AH105: 0 | AI105: 0 | AJ105: 0 | AK105: 0 | AL105: 0 | AM105: 0 | AN105: 0 | AO105: 0 | AP105: 0 | AQ105: 0 | AR105: 0 | AS105: 0 | AT105: 0 | AU105: 0 | AV105: 0 | AW105: 0 | AX105: 0 | AY105: 0 | AZ105: 0 | BA105: 0 | BB105: 0 | BC105: 0 | BD105: 0 | BE105: 0 | BF105: 0 | BG105: 0 | BH105: 0 | BI105: 0 | BJ105: 0 | BK105: 0 | BL105: 0 | BM105: 0 | BN105: 0 | BO105: 0 | BP105: 0 | BQ105: 0
D107: Accumulated IDC and Fees | J107: =I107+J104+J105 -> 11.89512744 | K107: =J107+K104+K105 -> 23.33742686 | L107: 46.21119868 | M107: 46.21119868 | N107: 46.21119868 | O107: 46.21119868 | P107: 46.21119868 | Q107: 46.21119868 | R107: 46.21119868 | S107: 46.21119868 | T107: 46.21119868 | U107: 46.21119868 | V107: 46.21119868 | W107: 46.21119868 | X107: 46.21119868 | Y107: 46.21119868 | Z107: 46.21119868 | AA107: 46.21119868 | AB107: 46.21119868 | AC107: 46.21119868 | AD107: 46.21119868 | AE107: 46.21119868 | AF107: 46.21119868 | AG107: 46.21119868 | AH107: 46.21119868 | AI107: 46.21119868 | AJ107: 46.21119868 | AK107: 46.21119868 | AL107: 46.21119868 | AM107: 46.21119868 | AN107: 46.21119868 | AO107: 46.21119868 | AP107: 46.21119868 | AQ107: 46.21119868 | AR107: 46.21119868 | AS107: 46.21119868 | AT107: 46.21119868 | AU107: 46.21119868 | AV107: 46.21119868 | AW107: 46.21119868 | AX107: 46.21119868 | AY107: 46.21119868 | AZ107: 46.21119868 | BA107: 46.21119868 | BB107: 46.21119868 | BC107: 46.21119868 | BD107: 46.21119868 | BE107: 46.21119868 | BF107: 46.21119868 | BG107: 46.21119868 | BH107: 46.21119868 | BI107: 46.21119868 | BJ107: 46.21119868 | BK107: 46.21119868 | BL107: 46.21119868 | BM107: 46.21119868 | BN107: 46.21119868 | BO107: 46.21119868 | BP107: 46.21119868 | BQ107: 46.21119868
D108: IDC Depreciation | J108: =J107*J$35 -> 0 | K108: =K107*K$35 -> 0 | L108: 0 | M108: 13.8633596 | N108: 9.704351723 | O108: 7.547829118 | P108: 7.547829118 | Q108: 7.547829118 | R108: 0 | S108: 0 | T108: 0 | U108: 0 | V108: 0 | W108: 0 | X108: 0 | Y108: 0 | Z108: 0 | AA108: 0 | AB108: 0 | AC108: 0 | AD108: 0 | AE108: 0 | AF108: 0 | AG108: 0 | AH108: 0 | AI108: 0 | AJ108: 0 | AK108: 0 | AL108: 0 | AM108: 0 | AN108: 0 | AO108: 0 | AP108: 0 | AQ108: 0 | AR108: 0 | AS108: 0 | AT108: 0 | AU108: 0 | AV108: 0 | AW108: 0 | AX108: 0 | AY108: 0 | AZ108: 0 | BA108: 0 | BB108: 0 | BC108: 0 | BD108: 0 | BE108: 0 | BF108: 0 | BG108: 0 | BH108: 0 | BI108: 0 | BJ108: 0 | BK108: 0 | BL108: 0 | BM108: 0 | BN108: 0 | BO108: 0 | BP108: 0 | BQ108: 0
C110: DSRA
D111: Interest Expense | J111: =J100*J$8*J52 -> 0 | K111: 0 | L111: 0 | M111: 35.68538233 | N111: 33.97846516 | O111: 32.21869959 | P111: 30.40467565 | Q111: 28.53494473 | R111: 26.60801842 | S111: 24.62236744 | T111: 22.57642044 | U111: 20.46856279 | V111: 18.29713538 | W111: 16.06043332 | X111: 13.75670464 | Y111: 11.38414896 | Z111: 8.940916086 | AA111: 6.425104577 | AB111: 4.024977703 | AC111: 2.036059858 | AD111: -2.557953849e-14 | AE111: -2.614228833e-14 | AF111: -2.672192068e-14 | AG111: -2.731894199e-14 | AH111: -2.793387394e-14 | AI111: -2.856725385e-14 | AJ111: -2.921963516e-14 | AK111: -2.989158791e-14 | AL111: 0 | AM111: 0 | AN111: 0 | AO111: 0 | AP111: =AP100*AP$8*AP52 -> 0 | AQ111: 0 | AR111: 0 | AS111: 0 | AT111: 0 | AU111: 0 | AV111: 0 | AW111: 0 | AX111: 0 | AY111: 0 | AZ111: 0 | BA111: 0 | BB111: 0 | BC111: 0 | BD111: 0 | BE111: 0 | BF111: 0 | BG111: 0 | BH111: 0 | BI111: 0 | BJ111: 0 | BK111: 0 | BL111: 0 | BM111: 0 | BN111: 0 | BO111: 0 | BP111: 0 | BQ111: 0
D112: Debt Service | J112: =J111+J102 -> 0 | K112: =K111+K102 -> 0 | L112: 0 | M112: 92.58262121 | N112: 92.63731757 | O112: 92.68616415 | P112: 92.72903987 | Q112: 92.76582164 | R112: 92.79638437 | S112: 92.82060092 | T112: 92.83834207 | U112: 92.8494765 | V112: 92.85387073 | W112: 92.85138915 | X112: 92.84189389 | Y112: 92.82524487 | Z112: 92.80129973 | AA112: 86.42933371 | AB112: 70.32223921 | AC112: 69.90472178 | AD112: -6.821210263e-15 | AE112: -6.821210263e-15 | AF112: -6.821210263e-15 | AG112: -6.821210263e-15 | AH112: -6.821210263e-15 | AI112: -6.821210263e-15 | AJ112: -6.821210263e-15 | AK112: -6.821210263e-15 | AL112: 2.376248897e-14 | AM112: 2.447536364e-14 | AN112: 2.520962455e-14 | AO112: 2.596591329e-14 | AP112: 2.674489068e-14 | AQ112: 2.754723741e-14 | AR112: 2.837365453e-14 | AS112: 2.922486416e-14 | AT112: 3.010161009e-14 | AU112: 3.100465839e-14 | AV112: 3.193479814e-14 | AW112: 3.289284209e-14 | AX112: 3.387962735e-14 | AY112: 3.489601617e-14 | AZ112: 3.594289665e-14 | BA112: 3.702118355e-14 | BB112: 3.813181906e-14 | BC112: 3.927577363e-14 | BD112: 4.045404684e-14 | BE112: 4.166766825e-14 | BF112: 4.291769829e-14 | BG112: 4.420522924e-14 | BH112: 4.553138612e-14 | BI112: 4.68973277e-14 | BJ112: 4.830424754e-14 | BK112: 4.975337496e-14 | BL112: 5.124597621e-14 | BM112: 5.27833555e-14 | BN112: 5.436685616e-14 | BO112: 5.599786185e-14 | BP112: 5.76777977e-14 | BQ112: 5.940813163e-14
D114: Debt Service Requirement | E114: =Inputs!$F$43 -> 0.5 | J114: =K112*$E114 -> 0 | K114: =L112*$E114 -> 0 | L114: 46.29131061 | M114: 46.31865878 | N114: 46.34308208 | O114: 46.36451994 | P114: 46.38291082 | Q114: 46.39819219 | R114: 46.41030046 | S114: 46.41917103 | T114: 46.42473825 | U114: 46.42693537 | V114: 46.42569457 | W114: 46.42094695 | X114: 46.41262244 | Y114: 46.40064987 | Z114: 43.21466686 | AA114: 35.1611196 | AB114: 34.95236089 | AC114: -3.410605132e-15 | AD114: -3.410605132e-15 | AE114: -3.410605132e-15 | AF114: -3.410605132e-15 | AG114: -3.410605132e-15 | AH114: -3.410605132e-15 | AI114: -3.410605132e-15 | AJ114: -3.410605132e-15 | AK114: 1.188124449e-14 | AL114: 1.223768182e-14 | AM114: 1.260481227e-14 | AN114: 1.298295664e-14 | AO114: 1.337244534e-14 | AP114: 1.37736187e-14 | AQ114: 1.418682726e-14 | AR114: 1.461243208e-14 | AS114: 1.505080504e-14 | AT114: 1.55023292e-14 | AU114: 1.596739907e-14 | AV114: 1.644642104e-14 | AW114: 1.693981367e-14 | AX114: 1.744800808e-14 | AY114: 1.797144833e-14 | AZ114: 1.851059178e-14 | BA114: 1.906590953e-14 | BB114: 1.963788682e-14 | BC114: 2.022702342e-14 | BD114: 2.083383412e-14 | BE114: 2.145884915e-14 | BF114: 2.210261462e-14 | BG114: 2.276569306e-14 | BH114: 2.344866385e-14 | BI114: 2.415212377e-14 | BJ114: 2.487668748e-14 | BK114: 2.562298811e-14 | BL114: 2.639167775e-14 | BM114: 2.718342808e-14 | BN114: 2.799893092e-14 | BO114: 2.883889885e-14 | BP114: 2.970406582e-14 | BQ114: 0
D115: Less: Opening | J115: =J118 -> 0 | K115: =K118 -> 0 | L115: 0 | M115: 46.29131061 | N115: 46.31865878 | O115: 46.34308208 | P115: 46.36451994 | Q115: 46.38291082 | R115: 46.39819219 | S115: 46.41030046 | T115: 46.41917103 | U115: 46.42473825 | V115: 46.42693537 | W115: 46.42569457 | X115: 46.42094695 | Y115: 46.41262244 | Z115: 46.40064987 | AA115: 43.21466686 | AB115: 35.1611196 | AC115: 34.95236089 | AD115: 0 | AE115: -3.410605132e-15 | AF115: -3.410605132e-15 | AG115: -3.410605132e-15 | AH115: -3.410605132e-15 | AI115: -3.410605132e-15 | AJ115: -3.410605132e-15 | AK115: -3.410605132e-15 | AL115: 1.188124449e-14 | AM115: 1.188124449e-14 | AN115: 1.188124449e-14 | AO115: 1.188124449e-14 | AP115: 1.188124449e-14 | AQ115: 1.188124449e-14 | AR115: 1.188124449e-14 | AS115: 1.188124449e-14 | AT115: 1.188124449e-14 | AU115: 1.188124449e-14 | AV115: 1.188124449e-14 | AW115: 1.188124449e-14 | AX115: 1.188124449e-14 | AY115: 1.188124449e-14 | AZ115: 1.188124449e-14 | BA115: 1.188124449e-14 | BB115: 1.188124449e-14 | BC115: 1.188124449e-14 | BD115: 1.188124449e-14 | BE115: 1.188124449e-14 | BF115: 1.188124449e-14 | BG115: 1.188124449e-14 | BH115: 1.188124449e-14 | BI115: 1.188124449e-14 | BJ115: 1.188124449e-14 | BK115: 1.188124449e-14 | BL115: 1.188124449e-14 | BM115: 1.188124449e-14 | BN115: 1.188124449e-14 | BO115: 1.188124449e-14 | BP115: 1.188124449e-14 | BQ115: 1.188124449e-14
D116: Required Change | J116: =J114-J115 -> 0 | K116: =K114-K115 -> 0 | L116: 46.29131061 | M116: 0.02734817791 | N116: 0.02442329317 | O116: 0.02143785963 | P116: 0.01839088566 | Q116: 0.01528136438 | R116: 0.01210827336 | S116: 0.00887057441 | T116: 0.005567213364 | U116: 0.002197119803 | V116: -0.001240793169 | W116: -0.004747629185 | X116: -0.008324508862 | Y116: -0.01197257006 | Z116: -3.18598301 | AA116: -8.053547253 | AB116: -0.2087587146 | AC116: -34.95236089 | AD116: -3.410605132e-15 | AE116: 0 | AF116: 0 | AG116: 0 | AH116: -3.155443621e-30 | AI116: 0 | AJ116: 0 | AK116: 1.529184962e-14 | AL116: 3.564373346e-16 | AM116: 7.235677892e-16 | AN116: 1.101712157e-15 | AO116: 1.491200857e-15 | AP116: 1.892374217e-15 | AQ116: 2.305582778e-15 | AR116: 2.731187596e-15 | AS116: 3.169560558e-15 | AT116: 3.62108471e-15 | AU116: 4.086154586e-15 | AV116: 4.565176558e-15 | AW116: 5.058569189e-15 | AX116: 5.566763599e-15 | AY116: 6.090203842e-15 | AZ116: 6.629347292e-15 | BA116: 7.184665045e-15 | BB116: 7.756642331e-15 | BC116: 8.345778935e-15 | BD116: 8.952589638e-15 | BE116: 9.577604662e-15 | BF116: 1.022137014e-14 | BG116: 1.088444857e-14 | BH116: 1.156741937e-14 | BI116: 1.227087928e-14 | BJ116: 1.2995443e-14 | BK116: 1.374174362e-14 | BL116: 1.451043326e-14 | BM116: 1.53021836e-14 | BN116: 1.611768644e-14 | BO116: 1.695765437e-14 | BP116: 1.782282133e-14 | BQ116: -1.188124449e-14
D118: Opening | J118: =I121 -> 0 | K118: =J121 -> 0 | L118: 0 | M118: 46.29131061 | N118: 46.31865878 | O118: 46.34308208 | P118: 46.36451994 | Q118: 46.38291082 | R118: 46.39819219 | S118: 46.41030046 | T118: 46.41917103 | U118: 46.42473825 | V118: 46.42693537 | W118: 46.42569457 | X118: 46.42094695 | Y118: 46.41262244 | Z118: 46.40064987 | AA118: 43.21466686 | AB118: 35.1611196 | AC118: 34.95236089 | AD118: 0 | AE118: -3.410605132e-15 | AF118: -3.410605132e-15 | AG118: -3.410605132e-15 | AH118: -3.410605132e-15 | AI118: -3.410605132e-15 | AJ118: -3.410605132e-15 | AK118: -3.410605132e-15 | AL118: 1.188124449e-14 | AM118: 1.188124449e-14 | AN118: 1.188124449e-14 | AO118: 1.188124449e-14 | AP118: 1.188124449e-14 | AQ118: 1.188124449e-14 | AR118: 1.188124449e-14 | AS118: 1.188124449e-14 | AT118: 1.188124449e-14 | AU118: 1.188124449e-14 | AV118: 1.188124449e-14 | AW118: 1.188124449e-14 | AX118: 1.188124449e-14 | AY118: 1.188124449e-14 | AZ118: 1.188124449e-14 | BA118: 1.188124449e-14 | BB118: 1.188124449e-14 | BC118: 1.188124449e-14 | BD118: 1.188124449e-14 | BE118: 1.188124449e-14 | BF118: 1.188124449e-14 | BG118: 1.188124449e-14 | BH118: 1.188124449e-14 | BI118: 1.188124449e-14 | BJ118: 1.188124449e-14 | BK118: 1.188124449e-14 | BL118: 1.188124449e-14 | BM118: 1.188124449e-14 | BN118: 1.188124449e-14 | BO118: 1.188124449e-14 | BP118: 1.188124449e-14 | BQ118: 1.188124449e-14
D119: Add: Pre-COD DSRA Computed | I119: DSRA P50 comp | J119: =J116*J$4 -> 0 | K119: =K116*K$4 -> 0 | L119: 46.29131061 | M119: 0 | N119: 0 | O119: 0 | P119: 0 | Q119: 0 | R119: 0 | S119: 0 | T119: 0 | U119: 0 | V119: 0 | W119: 0 | X119: 0 | Y119: 0 | Z119: 0 | AA119: 0 | AB119: 0 | AC119: 0 | AD119: 0 | AE119: 0 | AF119: 0 | AG119: 0 | AH119: 0 | AI119: 0 | AJ119: 0 | AK119: 0 | AL119: 0 | AM119: 0 | AN119: 0 | AO119: 0 | AP119: 0 | AQ119: 0 | AR119: 0 | AS119: 0 | AT119: 0 | AU119: 0 | AV119: 0 | AW119: 0 | AX119: 0 | AY119: 0 | AZ119: 0 | BA119: 0 | BB119: 0 | BC119: 0 | BD119: 0 | BE119: 0 | BF119: 0 | BG119: 0 | BH119: 0 | BI119: 0 | BJ119: 0 | BK119: 0 | BL119: 0 | BM119: 0 | BN119: 0 | BO119: 0 | BP119: 0 | BQ119: 0
D120: Add: Post COD | J120: =J116*J$8 -> 0 | K120: =K116*K$8 -> 0 | L120: 0 | M120: 0.02734817791 | N120: 0.02442329317 | O120: 0.02143785963 | P120: 0.01839088566 | Q120: 0.01528136438 | R120: 0.01210827336 | S120: 0.00887057441 | T120: 0.005567213364 | U120: 0.002197119803 | V120: -0.001240793169 | W120: -0.004747629185 | X120: -0.008324508862 | Y120: -0.01197257006 | Z120: -3.18598301 | AA120: -8.053547253 | AB120: -0.2087587146 | AC120: -34.95236089 | AD120: -3.410605132e-15 | AE120: 0 | AF120: 0 | AG120: 0 | AH120: -3.155443621e-30 | AI120: 0 | AJ120: 0 | AK120: 1.529184962e-14 | AL120: 0 | AM120: 0 | AN120: 0 | AO120: 0 | AP120: 0 | AQ120: 0 | AR120: 0 | AS120: 0 | AT120: 0 | AU120: 0 | AV120: 0 | AW120: 0 | AX120: 0 | AY120: 0 | AZ120: 0 | BA120: 0 | BB120: 0 | BC120: 0 | BD120: 0 | BE120: 0 | BF120: 0 | BG120: 0 | BH120: 0 | BI120: 0 | BJ120: 0 | BK120: 0 | BL120: 0 | BM120: 0 | BN120: 0 | BO120: 0 | BP120: 0 | BQ120: 0
D121: Closing | J121: =J118+J119+J120 -> 0 | K121: =K118+K119+K120 -> 0 | L121: 46.29131061 | M121: 46.31865878 | N121: 46.34308208 | O121: 46.36451994 | P121: 46.38291082 | Q121: 46.39819219 | R121: 46.41030046 | S121: 46.41917103 | T121: 46.42473825 | U121: 46.42693537 | V121: 46.42569457 | W121: 46.42094695 | X121: 46.41262244 | Y121: 46.40064987 | Z121: 43.21466686 | AA121: 35.1611196 | AB121: 34.95236089 | AC121: 0 | AD121: -3.410605132e-15 | AE121: -3.410605132e-15 | AF121: -3.410605132e-15 | AG121: -3.410605132e-15 | AH121: -3.410605132e-15 | AI121: -3.410605132e-15 | AJ121: -3.410605132e-15 | AK121: 1.188124449e-14 | AL121: 1.188124449e-14 | AM121: 1.188124449e-14 | AN121: 1.188124449e-14 | AO121: 1.188124449e-14 | AP121: 1.188124449e-14 | AQ121: 1.188124449e-14 | AR121: 1.188124449e-14 | AS121: 1.188124449e-14 | AT121: 1.188124449e-14 | AU121: 1.188124449e-14 | AV121: 1.188124449e-14 | AW121: 1.188124449e-14 | AX121: 1.188124449e-14 | AY121: 1.188124449e-14 | AZ121: 1.188124449e-14 | BA121: 1.188124449e-14 | BB121: 1.188124449e-14 | BC121: 1.188124449e-14 | BD121: 1.188124449e-14 | BE121: 1.188124449e-14 | BF121: 1.188124449e-14 | BG121: 1.188124449e-14 | BH121: 1.188124449e-14 | BI121: 1.188124449e-14 | BJ121: 1.188124449e-14 | BK121: 1.188124449e-14 | BL121: 1.188124449e-14 | BM121: 1.188124449e-14 | BN121: 1.188124449e-14 | BO121: 1.188124449e-14 | BP121: 1.188124449e-14 | BQ121: 1.188124449e-14
D123: Pre-COD Fixed DSRA Applied | J123: =J126 -> 0 | K123: =K126 -> 0 | L123: 46.29131061 | M123: 0 | N123: 0 | O123: 0 | P123: 0 | Q123: 0 | R123: 0 | S123: 0 | T123: 0 | U123: 0 | V123: 0 | W123: 0 | X123: 0 | Y123: 0 | Z123: 0 | AA123: 0 | AB123: 0 | AC123: 0 | AD123: 0 | AE123: 0 | AF123: 0 | AG123: 0 | AH123: 0 | AI123: 0 | AJ123: 0 | AK123: 0 | AL123: 0 | AM123: 0 | AN123: 0 | AO123: 0 | AP123: 0 | AQ123: 0 | AR123: 0 | AS123: 0 | AT123: 0 | AU123: 0 | AV123: 0 | AW123: 0 | AX123: 0 | AY123: 0 | AZ123: 0 | BA123: 0 | BB123: 0 | BC123: 0 | BD123: 0 | BE123: 0 | BF123: 0 | BG123: 0 | BH123: 0 | BI123: 0 | BJ123: 0 | BK123: 0 | BL123: 0 | BM123: 0 | BN123: 0 | BO123: 0 | BP123: 0 | BQ123: 0
D124: Difference | H124: DSRA P50 Diff | I124: =SUM(J124:BQ124) -> 0 | J124: =J126-J119 -> 0 | K124: 0 | L124: 0 | M124: 0 | N124: 0 | O124: 0 | P124: 0 | Q124: 0 | R124: 0 | S124: 0 | T124: 0 | U124: 0 | V124: 0 | W124: 0 | X124: 0 | Y124: 0 | Z124: 0 | AA124: 0 | AB124: 0 | AC124: 0 | AD124: 0 | AE124: 0 | AF124: 0 | AG124: 0 | AH124: 0 | AI124: 0 | AJ124: 0 | AK124: 0 | AL124: 0 | AM124: 0 | AN124: 0 | AO124: 0 | AP124: =AP126-AP119 -> 0 | AQ124: 0 | AR124: 0 | AS124: 0 | AT124: 0 | AU124: 0 | AV124: 0 | AW124: 0 | AX124: 0 | AY124: 0 | AZ124: 0 | BA124: 0 | BB124: 0 | BC124: 0 | BD124: 0 | BE124: 0 | BF124: 0 | BG124: 0 | BH124: 0 | BI124: 0 | BJ124: 0 | BK124: 0 | BL124: 0 | BM124: 0 | BN124: 0 | BO124: 0 | BP124: 0 | BQ124: 0
D126: Pre-COD Fixed DSRA Applied | I126: DSRA P50 fix | J126: 0 | K126: 0 | L126: 46.29131061 | M126: 0 | N126: 0 | O126: 0 | P126: 0 | Q126: 0 | R126: 0 | S126: 0 | T126: 0 | U126: 0 | V126: 0 | W126: 0 | X126: 0 | Y126: 0 | Z126: 0 | AA126: 0 | AB126: 0 | AC126: 0 | AD126: 0 | AE126: 0 | AF126: 0 | AG126: 0 | AH126: 0 | AI126: 0 | AJ126: 0 | AK126: 0 | AL126: 0 | AM126: 0 | AN126: 0 | AO126: 0 | AP126: 0 | AQ126: 0 | AR126: 0 | AS126: 0 | AT126: 0 | AU126: 0 | AV126: 0 | AW126: 0 | AX126: 0 | AY126: 0 | AZ126: 0 | BA126: 0 | BB126: 0 | BC126: 0 | BD126: 0 | BE126: 0 | BF126: 0 | BG126: 0 | BH126: 0 | BI126: 0 | BJ126: 0 | BK126: 0 | BL126: 0 | BM126: 0 | BN126: 0 | BO126: 0 | BP126: 0 | BQ126: 0
C128: Total Circular Reference
D129: CFADS Difference | I129: =_xlfn.SINGLE(p50_diff) -> 0
D130: Sourced Difference | I130: =I92 -> 0
D131: DSRA Difference | I131: =I124 -> 0
D132: Total Difference | H132: P50 Difference | I132: =SUM(I129:I131) -> 0
B135: Debt Sizing - P90
C136: P90 CFADS
D137: Target DSCR | E137: =Inputs!$F$35 -> 1.2 | J137: =$E137 -> 1.2 | K137: =$E137 -> 1.2 | L137: 1.2 | M137: 1.2 | N137: 1.2 | O137: 1.2 | P137: 1.2 | Q137: 1.2 | R137: 1.2 | S137: 1.2 | T137: 1.2 | U137: 1.2 | V137: 1.2 | W137: 1.2 | X137: 1.2 | Y137: 1.2 | Z137: 1.2 | AA137: 1.2 | AB137: 1.2 | AC137: 1.2 | AD137: 1.2 | AE137: 1.2 | AF137: 1.2 | AG137: 1.2 | AH137: 1.2 | AI137: 1.2 | AJ137: 1.2 | AK137: 1.2 | AL137: 1.2 | AM137: 1.2 | AN137: 1.2 | AO137: 1.2 | AP137: 1.2 | AQ137: 1.2 | AR137: 1.2 | AS137: 1.2 | AT137: 1.2 | AU137: 1.2 | AV137: 1.2 | AW137: 1.2 | AX137: 1.2 | AY137: 1.2 | AZ137: 1.2 | BA137: 1.2 | BB137: 1.2 | BC137: 1.2 | BD137: 1.2 | BE137: 1.2 | BF137: 1.2 | BG137: 1.2 | BH137: 1.2 | BI137: 1.2 | BJ137: 1.2 | BK137: 1.2 | BL137: 1.2 | BM137: 1.2 | BN137: 1.2 | BO137: 1.2 | BP137: 1.2 | BQ137: 1.2
D138: Interest Rate | E138: =Inputs!F$41 -> 0.03 | J138: =$E$52 -> 0.03 | K138: =$E$52 -> 0.03 | L138: 0.03 | M138: 0.03 | N138: 0.03 | O138: 0.03 | P138: 0.03 | Q138: 0.03 | R138: 0.03 | S138: 0.03 | T138: 0.03 | U138: 0.03 | V138: 0.03 | W138: 0.03 | X138: 0.03 | Y138: 0.03 | Z138: 0.03 | AA138: 0.03 | AB138: 0.03 | AC138: 0.03 | AD138: 0.03 | AE138: 0.03 | AF138: 0.03 | AG138: 0.03 | AH138: 0.03 | AI138: 0.03 | AJ138: 0.03 | AK138: 0.03 | AL138: 0.03 | AM138: 0.03 | AN138: 0.03 | AO138: 0.03 | AP138: 0.03 | AQ138: 0.03 | AR138: 0.03 | AS138: 0.03 | AT138: 0.03 | AU138: 0.03 | AV138: 0.03 | AW138: 0.03 | AX138: 0.03 | AY138: 0.03 | AZ138: 0.03 | BA138: 0.03 | BB138: 0.03 | BC138: 0.03 | BD138: 0.03 | BE138: 0.03 | BF138: 0.03 | BG138: 0.03 | BH138: 0.03 | BI138: 0.03 | BJ138: 0.03 | BK138: 0.03 | BL138: 0.03 | BM138: 0.03 | BN138: 0.03 | BO138: 0.03 | BP138: 0.03 | BQ138: 0.03
D139: Project Age | J139: =I139+J$8 -> 0 | K139: =J139+K$8 -> 0 | L139: 0 | M139: 1 | N139: 2 | O139: 3 | P139: 4 | Q139: 5 | R139: 6 | S139: 7 | T139: 8 | U139: 9 | V139: 10 | W139: 11 | X139: 12 | Y139: 13 | Z139: 14 | AA139: 15 | AB139: 16 | AC139: 17 | AD139: 18 | AE139: 19 | AF139: 20 | AG139: 21 | AH139: 22 | AI139: 23 | AJ139: 24 | AK139: 25 | AL139: 25 | AM139: 25 | AN139: 25 | AO139: 25 | AP139: 25 | AQ139: 25 | AR139: 25 | AS139: 25 | AT139: 25 | AU139: 25 | AV139: 25 | AW139: 25 | AX139: 25 | AY139: 25 | AZ139: 25 | BA139: 25 | BB139: 25 | BC139: 25 | BD139: 25 | BE139: 25 | BF139: 25 | BG139: 25 | BH139: 25 | BI139: 25 | BJ139: 25 | BK139: 25 | BL139: 25 | BM139: 25 | BN139: 25 | BO139: 25 | BP139: 25 | BQ139: 25
D140: Debt Period | E140: =Inputs!$F$38 -> 17 | I140: =SUM(J140:BQ140) -> 17 | J140: =AND(J$53<=$E140,J$8)*1 -> 0 | K140: =AND(K$53<=$E140,K$8)*1 -> 0 | L140: 0 | M140: 1 | N140: 1 | O140: 1 | P140: 1 | Q140: 1 | R140: 1 | S140: 1 | T140: 1 | U140: 1 | V140: 1 | W140: 1 | X140: 1 | Y140: 1 | Z140: 1 | AA140: 1 | AB140: 1 | AC140: 1 | AD140: 0 | AE140: 0 | AF140: 0 | AG140: 0 | AH140: 0 | AI140: 0 | AJ140: 0 | AK140: 0 | AL140: 0 | AM140: 0 | AN140: 0 | AO140: 0 | AP140: 0 | AQ140: 0 | AR140: 0 | AS140: 0 | AT140: 0 | AU140: 0 | AV140: 0 | AW140: 0 | AX140: 0 | AY140: 0 | AZ140: 0 | BA140: 0 | BB140: 0 | BC140: 0 | BD140: 0 | BE140: 0 | BF140: 0 | BG140: 0 | BH140: 0 | BI140: 0 | BJ140: 0 | BK140: 0 | BL140: 0 | BM140: 0 | BN140: 0 | BO140: 0 | BP140: 0 | BQ140: 0
D142: EBITDA P90 | J142: =J27 -> 0 | K142: 0 | L142: 0 | M142: 86.93182247 | N142: 86.13579981 | O142: 85.3278368 | P142: 84.50775435 | Q142: 83.67537067 | R142: 82.83050123 | S142: 81.97295875 | T142: 81.10255313 | U142: 80.21909143 | V142: 79.3223778 | W142: 78.41221347 | X142: 77.48839667 | Y142: 76.55072262 | Z142: 75.59898346 | AA142: 74.63296821 | AB142: 73.65246273 | AC142: 72.65724967 | AD142: 71.64710842 | AE142: 70.62181504 | AF142: 69.58114227 | AG142: 68.5248594 | AH142: 67.45273229 | AI142: 66.36452328 | AJ142: 65.25999113 | AK142: 64.138891 | AL142: 0 | AM142: 0 | AN142: 0 | AO142: 0 | AP142: =AP27 -> 0 | AQ142: 0 | AR142: 0 | AS142: 0 | AT142: 0 | AU142: 0 | AV142: 0 | AW142: 0 | AX142: 0 | AY142: 0 | AZ142: 0 | BA142: 0 | BB142: 0 | BC142: 0 | BD142: 0 | BE142: 0 | BF142: 0 | BG142: 0 | BH142: 0 | BI142: 0 | BJ142: 0 | BK142: 0 | BL142: 0 | BM142: 0 | BN142: 0 | BO142: 0 | BP142: 0 | BQ142: 0
D143: Less: Base Depreciation | J143: =J$39 -> 0 | K143: =K$39 -> 0 | L143: 0 | M143: 420 | N143: 294 | O143: 228.6666667 | P143: 228.6666667 | Q143: 228.6666667 | R143: 0 | S143: 0 | T143: 0 | U143: 0 | V143: 0 | W143: 0 | X143: 0 | Y143: 0 | Z143: 0 | AA143: 0 | AB143: 0 | AC143: 0 | AD143: 0 | AE143: 0 | AF143: 0 | AG143: 0 | AH143: 0 | AI143: 0 | AJ143: 0 | AK143: 0 | AL143: 0 | AM143: 0 | AN143: 0 | AO143: 0 | AP143: 0 | AQ143: 0 | AR143: 0 | AS143: 0 | AT143: 0 | AU143: 0 | AV143: 0 | AW143: 0 | AX143: 0 | AY143: 0 | AZ143: 0 | BA143: 0 | BB143: 0 | BC143: 0 | BD143: 0 | BE143: 0 | BF143: 0 | BG143: 0 | BH143: 0 | BI143: 0 | BJ143: 0 | BK143: 0 | BL143: 0 | BM143: 0 | BN143: 0 | BO143: 0 | BP143: 0 | BQ143: 0
D144: Less: IDC and Fees Depreciation | J144: =J$108 -> 0 | K144: =K$108 -> 0 | L144: 0 | M144: 13.8633596 | N144: 9.704351723 | O144: 7.547829118 | P144: 7.547829118 | Q144: 7.547829118 | R144: 0 | S144: 0 | T144: 0 | U144: 0 | V144: 0 | W144: 0 | X144: 0 | Y144: 0 | Z144: 0 | AA144: 0 | AB144: 0 | AC144: 0 | AD144: 0 | AE144: 0 | AF144: 0 | AG144: 0 | AH144: 0 | AI144: 0 | AJ144: 0 | AK144: 0 | AL144: 0 | AM144: 0 | AN144: 0 | AO144: 0 | AP144: 0 | AQ144: 0 | AR144: 0 | AS144: 0 | AT144: 0 | AU144: 0 | AV144: 0 | AW144: 0 | AX144: 0 | AY144: 0 | AZ144: 0 | BA144: 0 | BB144: 0 | BC144: 0 | BD144: 0 | BE144: 0 | BF144: 0 | BG144: 0 | BH144: 0 | BI144: 0 | BJ144: 0 | BK144: 0 | BL144: 0 | BM144: 0 | BN144: 0 | BO144: 0 | BP144: 0 | BQ144: 0
D145: Less: Interest | J145: =J170 -> 0 | K145: =K170 -> 0 | L145: =L170 -> 0 | M145: 26.55882465 | N145: 25.18229382 | O145: 23.78436764 | P145: 22.36470275 | Q145: 20.92294998 | R145: 19.45875421 | S145: 17.97175431 | T145: 16.46158297 | U145: 14.92786663 | V145: 13.37022534 | W145: 11.78827265 | X145: 10.1816155 | Y145: 8.549854046 | Z145: 6.892581602 | AA145: 5.209384463 | AB145: 3.499841792 | AC145: 1.763525477 | AD145: -1.364242053e-14 | AE145: -1.405169314e-14 | AF145: -1.447324394e-14 | AG145: -1.490744125e-14 | AH145: -1.535466449e-14 | AI145: -1.581530443e-14 | AJ145: -1.628976356e-14 | AK145: -1.677845647e-14 | AL145: -1.728181016e-14 | AM145: -1.780026447e-14 | AN145: -1.83342724e-14 | AO145: -1.888430057e-14 | AP145: -1.945082959e-14 | AQ145: -2.003435448e-14 | AR145: -2.063538511e-14 | AS145: -2.125444666e-14 | AT145: -2.189208006e-14 | AU145: -2.254884247e-14 | AV145: -2.322530774e-14 | AW145: -2.392206697e-14 | AX145: -2.463972898e-14 | AY145: -2.537892085e-14 | AZ145: -2.614028848e-14 | BA145: -2.692449713e-14 | BB145: -2.773223204e-14 | BC145: -2.856419901e-14 | BD145: -2.942112498e-14 | BE145: -3.030375873e-14 | BF145: -3.121287149e-14 | BG145: -3.214925763e-14 | BH145: -3.311373536e-14 | BI145: -3.410714742e-14 | BJ145: -3.513036184e-14 | BK145: -3.61842727e-14 | BL145: -3.726980088e-14 | BM145: -3.838789491e-14 | BN145: -3.953953175e-14 | BO145: -4.072571771e-14 | BP145: -4.194748924e-14 | BQ145: -4.320591391e-14
D146: EBT Before NOL | J146: =J142-J143-J145-J144 -> 0 | K146: =K142-K143-K145-K144 -> 0 | L146: 0 | M146: -373.4903618 | N146: -242.7508457 | O146: -174.6710266 | P146: -174.0714442 | Q146: -173.4620751 | R146: 63.37174702 | S146: 64.00120444 | T146: 64.64097016 | U146: 65.2912248 | V146: 65.95215246 | W146: 66.62394081 | X146: 67.30678117 | Y146: 68.00086857 | Z146: 68.70640185 | AA146: 69.42358375 | AB146: 70.15262094 | AC146: 70.8937242 | AD146: 71.64710842 | AE146: 70.62181504 | AF146: 69.58114227 | AG146: 68.5248594 | AH146: 67.45273229 | AI146: 66.36452328 | AJ146: 65.25999113 | AK146: 64.138891 | AL146: 1.728181016e-14 | AM146: 1.780026447e-14 | AN146: 1.83342724e-14 | AO146: 1.888430057e-14 | AP146: 1.945082959e-14 | AQ146: 2.003435448e-14 | AR146: 2.063538511e-14 | AS146: 2.125444666e-14 | AT146: 2.189208006e-14 | AU146: 2.254884247e-14 | AV146: 2.322530774e-14 | AW146: 2.392206697e-14 | AX146: 2.463972898e-14 | AY146: 2.537892085e-14 | AZ146: 2.614028848e-14 | BA146: 2.692449713e-14 | BB146: 2.773223204e-14 | BC146: 2.856419901e-14 | BD146: 2.942112498e-14 | BE146: 3.030375873e-14 | BF146: 3.121287149e-14 | BG146: 3.214925763e-14 | BH146: 3.311373536e-14 | BI146: 3.410714742e-14 | BJ146: 3.513036184e-14 | BK146: 3.61842727e-14 | BL146: 3.726980088e-14 | BM146: 3.838789491e-14 | BN146: 3.953953175e-14 | BO146: 4.072571771e-14 | BP146: 4.194748924e-14 | BQ146: 4.320591391e-14
D147: NOL Opening | J147: =I150 -> 0 | K147: =J150 -> 0 | L147: =K150 -> 0 | M147: =L150 -> 0 | N147: =M150 -> 373.4903618 | O147: =N150 -> 616.2412075 | P147: =O150 -> 790.9122341 | Q147: =P150 -> 964.9836783 | R147: =Q150 -> 1138.445753 | S147: =R150 -> 1075.074006 | T147: =S150 -> 1011.072802 | U147: =T150 -> 946.4318318 | V147: =U150 -> 881.140607 | W147: =V150 -> 815.1884545 | X147: =W150 -> 748.5645137 | Y147: =X150 -> 681.2577326 | Z147: =Y150 -> 613.256864 | AA147: =Z150 -> 544.5504621 | AB147: =AA150 -> 475.1268784 | AC147: =AB150 -> 404.9742574 | AD147: =AC150 -> 334.0805332 | AE147: =AD150 -> 262.4334248 | AF147: =AE150 -> 191.8116098 | AG147: =AF150 -> 122.2304675 | AH147: =AG150 -> 53.70560811 | AI147: =AH150 -> 0 | AJ147: =AI150 -> 0 | AK147: =AJ150 -> 0 | AL147: =AK150 -> 0 | AM147: =AL150 -> 0 | AN147: =AM150 -> 0 | AO147: =AN150 -> 0 | AP147: =AO150 -> 0 | AQ147: =AP150 -> 0 | AR147: =AQ150 -> 0 | AS147: =AR150 -> 0 | AT147: =AS150 -> 0 | AU147: =AT150 -> 0 | AV147: =AU150 -> 0 | AW147: =AV150 -> 0 | AX147: =AW150 -> 0 | AY147: =AX150 -> 0 | AZ147: =AY150 -> 0 | BA147: =AZ150 -> 0 | BB147: =BA150 -> 0 | BC147: =BB150 -> 0 | BD147: =BC150 -> 0 | BE147: =BD150 -> 0 | BF147: =BE150 -> 0 | BG147: =BF150 -> 0 | BH147: =BG150 -> 0 | BI147: =BH150 -> 0 | BJ147: =BI150 -> 0 | BK147: =BJ150 -> 0 | BL147: =BK150 -> 0 | BM147: =BL150 -> 0 | BN147: =BM150 -> 0 | BO147: =BN150 -> 0 | BP147: =BO150 -> 0 | BQ147: =BP150 -> 0
D148: Add: Losses | J148: =MAX(-J146,0) -> 0 | K148: =MAX(-K146,0) -> 0 | L148: =MAX(-L146,0) -> 0 | M148: 373.4903618 | N148: 242.7508457 | O148: 174.6710266 | P148: 174.0714442 | Q148: 173.4620751 | R148: 0 | S148: 0 | T148: 0 | U148: 0 | V148: 0 | W148: 0 | X148: 0 | Y148: 0 | Z148: 0 | AA148: 0 | AB148: 0 | AC148: 0 | AD148: 0 | AE148: 0 | AF148: 0 | AG148: 0 | AH148: 0 | AI148: 0 | AJ148: 0 | AK148: 0 | AL148: 0 | AM148: 0 | AN148: 0 | AO148: 0 | AP148: 0 | AQ148: 0 | AR148: 0 | AS148: 0 | AT148: 0 | AU148: 0 | AV148: 0 | AW148: 0 | AX148: 0 | AY148: 0 | AZ148: 0 | BA148: 0 | BB148: 0 | BC148: 0 | BD148: 0 | BE148: 0 | BF148: 0 | BG148: 0 | BH148: 0 | BI148: 0 | BJ148: 0 | BK148: 0 | BL148: 0 | BM148: 0 | BN148: 0 | BO148: 0 | BP148: 0 | BQ148: 0
D149: Less: Used Losses | J149: =MIN(J147,MAX(J146,0)) -> 0 | K149: =MIN(K147,MAX(K146,0)) -> 0 | L149: =MIN(L147,MAX(L146,0)) -> 0 | M149: 0 | N149: 0 | O149: 0 | P149: 0 | Q149: 0 | R149: 63.37174702 | S149: 64.00120444 | T149: 64.64097016 | U149: 65.2912248 | V149: 65.95215246 | W149: 66.62394081 | X149: 67.30678117 | Y149: 68.00086857 | Z149: 68.70640185 | AA149: 69.42358375 | AB149: 70.15262094 | AC149: 70.8937242 | AD149: 71.64710842 | AE149: 70.62181504 | AF149: 69.58114227 | AG149: 68.5248594 | AH149: 53.70560811 | AI149: 0 | AJ149: 0 | AK149: 0 | AL149: 0 | AM149: 0 | AN149: 0 | AO149: 0 | AP149: 0 | AQ149: 0 | AR149: 0 | AS149: 0 | AT149: 0 | AU149: 0 | AV149: 0 | AW149: 0 | AX149: 0 | AY149: 0 | AZ149: 0 | BA149: 0 | BB149: 0 | BC149: 0 | BD149: 0 | BE149: 0 | BF149: 0 | BG149: 0 | BH149: 0 | BI149: 0 | BJ149: 0 | BK149: 0 | BL149: 0 | BM149: 0 | BN149: 0 | BO149: 0 | BP149: 0 | BQ149: 0
D150: NOL Closing | J150: =J147+J148-J149 -> 0 | K150: =K147+K148-K149 -> 0 | L150: =L147+L148-L149 -> 0 | M150: 373.4903618 | N150: 616.2412075 | O150: 790.9122341 | P150: 964.9836783 | Q150: 1138.445753 | R150: 1075.074006 | S150: 1011.072802 | T150: 946.4318318 | U150: 881.140607 | V150: 815.1884545 | W150: 748.5645137 | X150: 681.2577326 | Y150: 613.256864 | Z150: 544.5504621 | AA150: 475.1268784 | AB150: 404.9742574 | AC150: 334.0805332 | AD150: 262.4334248 | AE150: 191.8116098 | AF150: 122.2304675 | AG150: 53.70560811 | AH150: 0 | AI150: 0 | AJ150: 0 | AK150: 0 | AL150: 0 | AM150: 0 | AN150: 0 | AO150: 0 | AP150: 0 | AQ150: 0 | AR150: 0 | AS150: 0 | AT150: 0 | AU150: 0 | AV150: 0 | AW150: 0 | AX150: 0 | AY150: 0 | AZ150: 0 | BA150: 0 | BB150: 0 | BC150: 0 | BD150: 0 | BE150: 0 | BF150: 0 | BG150: 0 | BH150: 0 | BI150: 0 | BJ150: 0 | BK150: 0 | BL150: 0 | BM150: 0 | BN150: 0 | BO150: 0 | BP150: 0 | BQ150: 0
D151: EBT After NOL | J151: =J146+J148-J149 -> 0 | K151: =K146+K148-K149 -> 0 | L151: =L146+L148-L149 -> 0 | M151: 0 | N151: 0 | O151: 0 | P151: 0 | Q151: 0 | R151: 0 | S151: 0 | T151: 0 | U151: 0 | V151: 0 | W151: 0 | X151: 0 | Y151: 0 | Z151: 0 | AA151: 0 | AB151: 0 | AC151: 0 | AD151: 0 | AE151: 0 | AF151: 0 | AG151: 0 | AH151: 13.74712418 | AI151: 66.36452328 | AJ151: 65.25999113 | AK151: 64.138891 | AL151: 1.728181016e-14 | AM151: 1.780026447e-14 | AN151: 1.83342724e-14 | AO151: 1.888430057e-14 | AP151: 1.945082959e-14 | AQ151: 2.003435448e-14 | AR151: 2.063538511e-14 | AS151: 2.125444666e-14 | AT151: 2.189208006e-14 | AU151: 2.254884247e-14 | AV151: 2.322530774e-14 | AW151: 2.392206697e-14 | AX151: 2.463972898e-14 | AY151: 2.537892085e-14 | AZ151: 2.614028848e-14 | BA151: 2.692449713e-14 | BB151: 2.773223204e-14 | BC151: 2.856419901e-14 | BD151: 2.942112498e-14 | BE151: 3.030375873e-14 | BF151: 3.121287149e-14 | BG151: 3.214925763e-14 | BH151: 3.311373536e-14 | BI151: 3.410714742e-14 | BJ151: 3.513036184e-14 | BK151: 3.61842727e-14 | BL151: 3.726980088e-14 | BM151: 3.838789491e-14 | BN151: 3.953953175e-14 | BO151: 4.072571771e-14 | BP151: 4.194748924e-14 | BQ151: 4.320591391e-14
D152: Taxes Paid | F152: =Inputs!$F$26 -> 0.25 | J152: =$F$66*J151 -> 0 | K152: =$F$66*K151 -> 0 | L152: =$F$66*L151 -> 0 | M152: 0 | N152: 0 | O152: 0 | P152: 0 | Q152: 0 | R152: 0 | S152: 0 | T152: 0 | U152: 0 | V152: 0 | W152: 0 | X152: 0 | Y152: 0 | Z152: 0 | AA152: 0 | AB152: 0 | AC152: 0 | AD152: 0 | AE152: 0 | AF152: 0 | AG152: 0 | AH152: 3.436781045 | AI152: 16.59113082 | AJ152: 16.31499778 | AK152: 16.03472275 | AL152: 4.32045254e-15 | AM152: 4.450066116e-15 | AN152: 4.5835681e-15 | AO152: 4.721075143e-15 | AP152: 4.862707397e-15 | AQ152: 5.008588619e-15 | AR152: 5.158846278e-15 | AS152: 5.313611666e-15 | AT152: 5.473020016e-15 | AU152: 5.637210616e-15 | AV152: 5.806326935e-15 | AW152: 5.980516743e-15 | AX152: 6.159932245e-15 | AY152: 6.344730213e-15 | AZ152: 6.535072119e-15 | BA152: 6.731124283e-15 | BB152: 6.933058011e-15 | BC152: 7.141049751e-15 | BD152: 7.355281244e-15 | BE152: 7.575939681e-15 | BF152: 7.803217872e-15 | BG152: 8.037314408e-15 | BH152: 8.27843384e-15 | BI152: 8.526786855e-15 | BJ152: 8.782590461e-15 | BK152: 9.046068175e-15 | BL152: 9.31745022e-15 | BM152: 9.596973727e-15 | BN152: 9.884882938e-15 | BO152: 1.018142943e-14 | BP152: 1.048687231e-14 | BQ152: 1.080147848e-14
D154: CFADS over Debt Life - Computed | I154: p90 comp | J154: =J142-J152 -> 0 | K154: =K142-K152 -> 0 | L154: =L142-L152 -> 0 | M154: 86.93182247 | N154: 86.13579981 | O154: 85.3278368 | P154: 84.50775435 | Q154: 83.67537067 | R154: 82.83050123 | S154: 81.97295875 | T154: 81.10255313 | U154: 80.21909143 | V154: 79.3223778 | W154: 78.41221347 | X154: 77.48839667 | Y154: 76.55072262 | Z154: 75.59898346 | AA154: 74.63296821 | AB154: 73.65246273 | AC154: 72.65724967 | AD154: 71.64710842 | AE154: 70.62181504 | AF154: 69.58114227 | AG154: 68.5248594 | AH154: 64.01595125 | AI154: 49.77339246 | AJ154: 48.94499335 | AK154: 48.10416825 | AL154: -4.32045254e-15 | AM154: -4.450066116e-15 | AN154: -4.5835681e-15 | AO154: -4.721075143e-15 | AP154: -4.862707397e-15 | AQ154: -5.008588619e-15 | AR154: -5.158846278e-15 | AS154: -5.313611666e-15 | AT154: -5.473020016e-15 | AU154: -5.637210616e-15 | AV154: -5.806326935e-15 | AW154: -5.980516743e-15 | AX154: -6.159932245e-15 | AY154: -6.344730213e-15 | AZ154: -6.535072119e-15 | BA154: -6.731124283e-15 | BB154: -6.933058011e-15 | BC154: -7.141049751e-15 | BD154: -7.355281244e-15 | BE154: -7.575939681e-15 | BF154: -7.803217872e-15 | BG154: -8.037314408e-15 | BH154: -8.27843384e-15 | BI154: -8.526786855e-15 | BJ154: -8.782590461e-15 | BK154: -9.046068175e-15 | BL154: -9.31745022e-15 | BM154: -9.596973727e-15 | BN154: -9.884882938e-15 | BO154: -1.018142943e-14 | BP154: -1.048687231e-14 | BQ154: -1.080147848e-14
D155: CFADS over Debt Life - Fixed | J155: =J158 -> 0 | K155: =K158 -> 0 | L155: 0 | M155: 86.93182247 | N155: 86.13579981 | O155: 85.3278368 | P155: 84.50775435 | Q155: 83.67537067 | R155: 82.83050123 | S155: 81.97295875 | T155: 81.10255313 | U155: 80.21909143 | V155: 79.3223778 | W155: 78.41221347 | X155: 77.48839667 | Y155: 76.55072262 | Z155: 75.59898346 | AA155: 74.63296821 | AB155: 73.65246273 | AC155: 72.65724967 | AD155: 71.64710842 | AE155: 70.62181504 | AF155: 69.58114227 | AG155: 68.5248594 | AH155: 64.01595125 | AI155: 49.77339246 | AJ155: 48.94499335 | AK155: 48.10416825 | AL155: -4.32045254e-15 | AM155: -4.450066116e-15 | AN155: -4.5835681e-15 | AO155: -4.721075143e-15 | AP155: -4.862707397e-15 | AQ155: -5.008588619e-15 | AR155: -5.158846278e-15 | AS155: -5.313611666e-15 | AT155: -5.473020016e-15 | AU155: -5.637210616e-15 | AV155: -5.806326935e-15 | AW155: -5.980516743e-15 | AX155: -6.159932245e-15 | AY155: -6.344730213e-15 | AZ155: -6.535072119e-15 | BA155: -6.731124283e-15 | BB155: -6.933058011e-15 | BC155: -7.141049751e-15 | BD155: -7.355281244e-15 | BE155: -7.575939681e-15 | BF155: -7.803217872e-15 | BG155: -8.037314408e-15 | BH155: -8.27843384e-15 | BI155: -8.526786855e-15 | BJ155: -8.782590461e-15 | BK155: -9.046068175e-15 | BL155: -9.31745022e-15 | BM155: -9.596973727e-15 | BN155: -9.884882938e-15 | BO155: -1.018142943e-14 | BP155: -1.048687231e-14 | BQ155: -1.080147848e-14
D156: CFADS over Debt Life - Difference | H156: p90 diff | I156: =SUM(J156:BQ156) -> 0 | J156: =J154-J155 -> 0 | K156: =K154-K155 -> 0 | L156: 0 | M156: 0 | N156: 0 | O156: 0 | P156: 0 | Q156: 0 | R156: 0 | S156: 0 | T156: 0 | U156: 0 | V156: 0 | W156: 0 | X156: 0 | Y156: 0 | Z156: 0 | AA156: 0 | AB156: 0 | AC156: 0 | AD156: 0 | AE156: 0 | AF156: 0 | AG156: 0 | AH156: 0 | AI156: 0 | AJ156: 0 | AK156: 0 | AL156: 0 | AM156: 0 | AN156: 0 | AO156: 0 | AP156: 0 | AQ156: 0 | AR156: 0 | AS156: 0 | AT156: 0 | AU156: 0 | AV156: 0 | AW156: 0 | AX156: 0 | AY156: 0 | AZ156: 0 | BA156: 0 | BB156: 0 | BC156: 0 | BD156: 0 | BE156: 0 | BF156: 0 | BG156: 0 | BH156: 0 | BI156: 0 | BJ156: 0 | BK156: 0 | BL156: 0 | BM156: 0 | BN156: 0 | BO156: 0 | BP156: 0 | BQ156: 0
D157: Target Debt Service | J157: =J155/J137*J140 -> 0 | K157: =K155/K137*K140 -> 0 | L157: 0 | M157: =M155/M137*M140 -> 72.44318539 | N157: 71.77983317 | O157: 71.10653067 | P157: 70.42312863 | Q157: 69.72947556 | R157: 69.02541769 | S157: 68.31079896 | T157: 67.58546094 | U157: 66.84924286 | V157: 66.1019815 | W157: 65.34351122 | X157: 64.57366389 | Y157: 63.79226885 | Z157: 62.99915288 | AA157: 62.19414017 | AB157: 61.37705228 | AC157: 60.54770806 | AD157: 0 | AE157: 0 | AF157: 0 | AG157: 0 | AH157: 0 | AI157: 0 | AJ157: 0 | AK157: 0 | AL157: 0 | AM157: 0 | AN157: 0 | AO157: 0 | AP157: 0 | AQ157: 0 | AR157: 0 | AS157: 0 | AT157: 0 | AU157: 0 | AV157: 0 | AW157: 0 | AX157: 0 | AY157: 0 | AZ157: 0 | BA157: 0 | BB157: 0 | BC157: 0 | BD157: 0 | BE157: 0 | BF157: 0 | BG157: 0 | BH157: 0 | BI157: 0 | BJ157: 0 | BK157: 0 | BL157: 0 | BM157: 0 | BN157: 0 | BO157: 0 | BP157: 0 | BQ157: 0
D158: CFADS over Debt Life - Fixed | I158: p90 fix | J158: 0 | K158: 0 | L158: 0 | M158: 86.93182247 | N158: 86.13579981 | O158: 85.3278368 | P158: 84.50775435 | Q158: 83.67537067 | R158: 82.83050123 | S158: 81.97295875 | T158: 81.10255313 | U158: 80.21909143 | V158: 79.3223778 | W158: 78.41221347 | X158: 77.48839667 | Y158: 76.55072262 | Z158: 75.59898346 | AA158: 74.63296821 | AB158: 73.65246273 | AC158: 72.65724967 | AD158: 71.64710842 | AE158: 70.62181504 | AF158: 69.58114227 | AG158: 68.5248594 | AH158: 64.01595125 | AI158: 49.77339246 | AJ158: 48.94499335 | AK158: 48.10416825 | AL158: -4.32045254e-15 | AM158: -4.450066116e-15 | AN158: -4.5835681e-15 | AO158: -4.721075143e-15 | AP158: -4.862707397e-15 | AQ158: -5.008588619e-15 | AR158: -5.158846278e-15 | AS158: -5.313611666e-15 | AT158: -5.473020016e-15 | AU158: -5.637210616e-15 | AV158: -5.806326935e-15 | AW158: -5.980516743e-15 | AX158: -6.159932245e-15 | AY158: -6.344730213e-15 | AZ158: -6.535072119e-15 | BA158: -6.731124283e-15 | BB158: -6.933058011e-15 | BC158: -7.141049751e-15 | BD158: -7.355281244e-15 | BE158: -7.575939681e-15 | BF158: -7.803217872e-15 | BG158: -8.037314408e-15 | BH158: -8.27843384e-15 | BI158: -8.526786855e-15 | BJ158: -8.782590461e-15 | BK158: -9.046068175e-15 | BL158: -9.31745022e-15 | BM158: -9.596973727e-15 | BN158: -9.884882938e-15 | BO158: -1.018142943e-14 | BP158: -1.048687231e-14 | BQ158: -1.080147848e-14
D159: CFADS over Debt Life - UDF | J159: 0 | K159: 0 | L159: 0 | M159: 141.5589252 | N159: 144.6023764 | O159: 147.7098807 | P159: 150.882767 | Q159: 154.1223913 | R159: 157.4301377 | S159: 160.8074184 | T159: 164.2556749 | U159: 167.7763782 | V159: 171.3710294 | W159: 175.0411605 | X159: 178.7883348 | Y159: 179.9281305 | Z159: 139.890171 | AA159: 142.8811775 | AB159: 145.9349021 | AC159: 149.0526428 | AD159: 152.2357239 | AE159: 155.4854971 | AF159: 158.8033415 | AG159: 162.190665 | AH159: 165.6489037 | AI159: 169.1795235 | AJ159: 172.7840204 | AK159: 176.4639209 | AL159: -5.947698985e-15 | AM159: -6.126129955e-15 | AN159: -6.309913853e-15 | AO159: -6.499211269e-15 | AP159: -6.694187607e-15 | AQ159: -6.895013235e-15 | AR159: -7.101863632e-15 | AS159: -7.314919541e-15 | AT159: -7.534367128e-15 | AU159: -7.760398141e-15 | AV159: -7.993210086e-15 | AW159: -8.233006388e-15 | AX159: -8.47999658e-15 | AY159: -8.734396477e-15 | AZ159: -8.996428372e-15 | BA159: -9.266321223e-15 | BB159: -9.544310859e-15 | BC159: -9.830640185e-15 | BD159: -1.012555939e-14 | BE159: -1.042932617e-14 | BF159: -1.074220596e-14 | BG159: -1.106447214e-14 | BH159: -1.13964063e-14 | BI159: -1.173829849e-14 | BJ159: -1.209044744e-14 | BK159: -1.245316087e-14 | BL159: -1.282675569e-14 | BM159: -1.321155836e-14 | BN159: -1.360790512e-14 | BO159: -1.401614227e-14 | BP159: -1.443662654e-14 | BQ159: -1.486972533e-14
D161: Interest Rate Factor | I161: 1 | J161: =I161*(1+J138*J$8) -> 1 | K161: =J161*(1+K138*K$8) -> 1 | L161: 1 | M161: 1.03 | N161: 1.0609 | O161: 1.092727 | P161: 1.12550881 | Q161: 1.159274074 | R161: 1.194052297 | S161: 1.229873865 | T161: 1.266770081 | U161: 1.304773184 | V161: 1.343916379 | W161: 1.384233871 | X161: 1.425760887 | Y161: 1.468533713 | Z161: 1.512589725 | AA161: 1.557967417 | AB161: 1.604706439 | AC161: 1.652847632 | AD161: 1.702433061 | AE161: 1.753506053 | AF161: 1.806111235 | AG161: 1.860294572 | AH161: 1.916103409 | AI161: 1.973586511 | AJ161: 2.032794106 | AK161: 2.09377793 | AL161: 2.09377793 | AM161: 2.09377793 | AN161: 2.09377793 | AO161: 2.09377793 | AP161: 2.09377793 | AQ161: 2.09377793 | AR161: 2.09377793 | AS161: 2.09377793 | AT161: 2.09377793 | AU161: 2.09377793 | AV161: 2.09377793 | AW161: 2.09377793 | AX161: 2.09377793 | AY161: 2.09377793 | AZ161: 2.09377793 | BA161: 2.09377793 | BB161: 2.09377793 | BC161: 2.09377793 | BD161: 2.09377793 | BE161: 2.09377793 | BF161: 2.09377793 | BG161: 2.09377793 | BH161: 2.09377793 | BI161: 2.09377793 | BJ161: 2.09377793 | BK161: 2.09377793 | BL161: 2.09377793 | BM161: 2.09377793 | BN161: 2.09377793 | BO161: 2.09377793 | BP161: 2.09377793 | BQ161: 2.09377793
D162: PV of CFADS over Debt Life (Fixed) | F162: =SUMPRODUCT(J157:BQ157/J161:BQ161) -> 885.2941549
D163: Flag for Pre-COD | F163: =EDATE(Inputs!$F$5,-12) -> 2022-01-01 | J163: =J$6=$F163 -> FALSE | K163: =K$6=$F163 -> FALSE | L163: TRUE | M163: FALSE | N163: FALSE | O163: FALSE | P163: FALSE | Q163: FALSE | R163: FALSE | S163: FALSE | T163: FALSE | U163: FALSE | V163: FALSE | W163: FALSE | X163: FALSE | Y163: FALSE | Z163: FALSE | AA163: FALSE | AB163: FALSE | AC163: FALSE | AD163: FALSE | AE163: FALSE | AF163: FALSE | AG163: FALSE | AH163: FALSE | AI163: FALSE | AJ163: FALSE | AK163: FALSE | AL163: FALSE | AM163: FALSE | AN163: FALSE | AO163: FALSE | AP163: FALSE | AQ163: FALSE | AR163: FALSE | AS163: FALSE | AT163: FALSE | AU163: FALSE | AV163: FALSE | AW163: FALSE | AX163: FALSE | AY163: FALSE | AZ163: FALSE | BA163: FALSE | BB163: FALSE | BC163: FALSE | BD163: FALSE | BE163: FALSE | BF163: FALSE | BG163: FALSE | BH163: FALSE | BI163: FALSE | BJ163: FALSE | BK163: FALSE | BL163: FALSE | BM163: FALSE | BN163: FALSE | BO163: FALSE | BP163: FALSE | BQ163: FALSE
D164: Debt Issue | F164: =F162 -> 885.2941549 | J164: =J163*$F164 -> 0 | K164: =K163*$F164 -> 0 | L164: 885.2941549 | M164: 0 | N164: 0 | O164: 0 | P164: 0 | Q164: 0 | R164: 0 | S164: 0 | T164: 0 | U164: 0 | V164: 0 | W164: 0 | X164: 0 | Y164: 0 | Z164: 0 | AA164: 0 | AB164: 0 | AC164: 0 | AD164: 0 | AE164: 0 | AF164: 0 | AG164: 0 | AH164: 0 | AI164: 0 | AJ164: 0 | AK164: 0 | AL164: 0 | AM164: 0 | AN164: 0 | AO164: 0 | AP164: 0 | AQ164: 0 | AR164: 0 | AS164: 0 | AT164: 0 | AU164: 0 | AV164: 0 | AW164: 0 | AX164: 0 | AY164: 0 | AZ164: 0 | BA164: 0 | BB164: 0 | BC164: 0 | BD164: 0 | BE164: 0 | BF164: 0 | BG164: 0 | BH164: 0 | BI164: 0 | BJ164: 0 | BK164: 0 | BL164: 0 | BM164: 0 | BN164: 0 | BO164: 0 | BP164: 0 | BQ164: 0
D166: Opening Balance | J166: =I169 -> 0 | K166: =J169 -> 0 | L166: =K169 -> 0 | M166: =L169 -> 885.2941549 | N166: =M169 -> 839.4097941 | O166: =N169 -> 792.8122548 | P166: =O169 -> 745.4900918 | Q166: =P169 -> 697.4316659 | R166: =Q169 -> 648.6251403 | S166: =R169 -> 599.0584768 | T166: =S169 -> 548.7194322 | U166: =T169 -> 497.5955542 | V166: =U169 -> 445.674178 | W166: =V169 -> 392.9424218 | X166: =W169 -> 339.3871833 | Y166: =X169 -> 284.9951349 | Z166: =Y169 -> 229.7527201 | AA166: =Z169 -> 173.6461488 | AB166: =AA169 -> 116.6613931 | AC166: =AB169 -> 58.78418258 | AD166: =AC169 -> -4.547473509e-13 | AE166: =AD169 -> -4.683897714e-13 | AF166: =AE169 -> -4.824414646e-13 | AG166: =AF169 -> -4.969147085e-13 | AH166: =AG169 -> -5.118221497e-13 | AI166: =AH169 -> -5.271768142e-13 | AJ166: =AI169 -> -5.429921187e-13 | AK166: =AJ169 -> -5.592818822e-13 | AL166: =AK169 -> -5.760603387e-13 | AM166: =AL169 -> -5.933421489e-13 | AN166: =AM169 -> -6.111424133e-13 | AO166: =AN169 -> -6.294766857e-13 | AP166: =AO169 -> -6.483609863e-13 | AQ166: =AP169 -> -6.678118159e-13 | AR166: =AQ169 -> -6.878461704e-13 | AS166: =AR169 -> -7.084815555e-13 | AT166: =AS169 -> -7.297360021e-13 | AU166: =AT169 -> -7.516280822e-13 | AV166: =AU169 -> -7.741769247e-13 | AW166: =AV169 -> -7.974022324e-13 | AX166: =AW169 -> -8.213242994e-13 | AY166: =AX169 -> -8.459640284e-13 | AZ166: =AY169 -> -8.713429492e-13 | BA166: =AZ169 -> -8.974832377e-13 | BB166: =BA169 -> -9.244077348e-13 | BC166: =BB169 -> -9.521399669e-13 | BD166: =BC169 -> -9.807041659e-13 | BE166: =BD169 -> -1.010125291e-12 | BF166: =BE169 -> -1.04042905e-12 | BG166: =BF169 -> -1.071641921e-12 | BH166: =BG169 -> -1.103791179e-12 | BI166: =BH169 -> -1.136904914e-12 | BJ166: =BI169 -> -1.171012061e-12 | BK166: =BJ169 -> -1.206142423e-12 | BL166: =BK169 -> -1.242326696e-12 | BM166: =BL169 -> -1.279596497e-12 | BN166: =BM169 -> -1.317984392e-12 | BO166: =BN169 -> -1.357523924e-12 | BP166: =BO169 -> -1.398249641e-12 | BQ166: =BP169 -> -1.44019713e-12
D167: Add: Debt Issued | J167: =J164 -> 0 | K167: =K164 -> 0 | L167: 885.2941549 | M167: 0 | N167: 0 | O167: 0 | P167: 0 | Q167: 0 | R167: 0 | S167: 0 | T167: 0 | U167: 0 | V167: 0 | W167: 0 | X167: 0 | Y167: 0 | Z167: 0 | AA167: 0 | AB167: 0 | AC167: 0 | AD167: 0 | AE167: 0 | AF167: 0 | AG167: 0 | AH167: 0 | AI167: 0 | AJ167: 0 | AK167: 0 | AL167: 0 | AM167: 0 | AN167: 0 | AO167: 0 | AP167: 0 | AQ167: 0 | AR167: 0 | AS167: 0 | AT167: 0 | AU167: 0 | AV167: 0 | AW167: 0 | AX167: 0 | AY167: 0 | AZ167: 0 | BA167: 0 | BB167: 0 | BC167: 0 | BD167: 0 | BE167: 0 | BF167: 0 | BG167: 0 | BH167: 0 | BI167: 0 | BJ167: 0 | BK167: 0 | BL167: 0 | BM167: 0 | BN167: 0 | BO167: 0 | BP167: 0 | BQ167: 0
D168: Less: Debt Repaid | J168: =J157-J170 -> 0 | K168: =K157-K170 -> 0 | L168: =L157-L170 -> 0 | M168: 45.88436074 | N168: 46.59753935 | O168: 47.32216303 | P168: 48.05842588 | Q168: 48.80652558 | R168: 49.56666348 | S168: 50.33904465 | T168: 51.12387798 | U168: 51.92137623 | V168: 52.73175616 | W168: 53.55523857 | X168: 54.39204839 | Y168: 55.2424148 | Z168: 56.10657128 | AA168: 56.98475571 | AB168: 57.87721048 | AC168: 58.78418258 | AD168: 1.364242053e-14 | AE168: 1.405169314e-14 | AF168: 1.447324394e-14 | AG168: 1.490744125e-14 | AH168: 1.535466449e-14 | AI168: 1.581530443e-14 | AJ168: 1.628976356e-14 | AK168: 1.677845647e-14 | AL168: 1.728181016e-14 | AM168: 1.780026447e-14 | AN168: 1.83342724e-14 | AO168: 1.888430057e-14 | AP168: 1.945082959e-14 | AQ168: 2.003435448e-14 | AR168: 2.063538511e-14 | AS168: 2.125444666e-14 | AT168: 2.189208006e-14 | AU168: 2.254884247e-14 | AV168: 2.322530774e-14 | AW168: 2.392206697e-14 | AX168: 2.463972898e-14 | AY168: 2.537892085e-14 | AZ168: 2.614028848e-14 | BA168: 2.692449713e-14 | BB168: 2.773223204e-14 | BC168: 2.856419901e-14 | BD168: 2.942112498e-14 | BE168: 3.030375873e-14 | BF168: 3.121287149e-14 | BG168: 3.214925763e-14 | BH168: 3.311373536e-14 | BI168: 3.410714742e-14 | BJ168: 3.513036184e-14 | BK168: 3.61842727e-14 | BL168: 3.726980088e-14 | BM168: 3.838789491e-14 | BN168: 3.953953175e-14 | BO168: 4.072571771e-14 | BP168: 4.194748924e-14 | BQ168: 4.320591391e-14
D169: Closing Balance | J169: =J166+J167-J168 -> 0 | K169: =K166+K167-K168 -> 0 | L169: 885.2941549 | M169: 839.4097941 | N169: 792.8122548 | O169: 745.4900918 | P169: 697.4316659 | Q169: 648.6251403 | R169: 599.0584768 | S169: 548.7194322 | T169: 497.5955542 | U169: 445.674178 | V169: 392.9424218 | W169: 339.3871833 | X169: 284.9951349 | Y169: 229.7527201 | Z169: 173.6461488 | AA169: 116.6613931 | AB169: 58.78418258 | AC169: -4.547473509e-13 | AD169: -4.683897714e-13 | AE169: -4.824414646e-13 | AF169: -4.969147085e-13 | AG169: -5.118221497e-13 | AH169: -5.271768142e-13 | AI169: -5.429921187e-13 | AJ169: -5.592818822e-13 | AK169: -5.760603387e-13 | AL169: -5.933421489e-13 | AM169: -6.111424133e-13 | AN169: -6.294766857e-13 | AO169: -6.483609863e-13 | AP169: -6.678118159e-13 | AQ169: -6.878461704e-13 | AR169: -7.084815555e-13 | AS169: -7.297360021e-13 | AT169: -7.516280822e-13 | AU169: -7.741769247e-13 | AV169: -7.974022324e-13 | AW169: -8.213242994e-13 | AX169: -8.459640284e-13 | AY169: -8.713429492e-13 | AZ169: -8.974832377e-13 | BA169: -9.244077348e-13 | BB169: -9.521399669e-13 | BC169: -9.807041659e-13 | BD169: -1.010125291e-12 | BE169: -1.04042905e-12 | BF169: -1.071641921e-12 | BG169: -1.103791179e-12 | BH169: -1.136904914e-12 | BI169: -1.171012061e-12 | BJ169: -1.206142423e-12 | BK169: -1.242326696e-12 | BL169: -1.279596497e-12 | BM169: -1.317984392e-12 | BN169: -1.357523924e-12 | BO169: -1.398249641e-12 | BP169: -1.44019713e-12 | BQ169: -1.483403044e-12
D170: Interest Expense | J170: =J166*J138 -> 0 | K170: =K166*K138 -> 0 | L170: =L166*L138 -> 0 | M170: 26.55882465 | N170: 25.18229382 | O170: 23.78436764 | P170: 22.36470275 | Q170: 20.92294998 | R170: 19.45875421 | S170: 17.97175431 | T170: 16.46158297 | U170: 14.92786663 | V170: 13.37022534 | W170: 11.78827265 | X170: 10.1816155 | Y170: 8.549854046 | Z170: 6.892581602 | AA170: 5.209384463 | AB170: 3.499841792 | AC170: 1.763525477 | AD170: -1.364242053e-14 | AE170: -1.405169314e-14 | AF170: -1.447324394e-14 | AG170: -1.490744125e-14 | AH170: -1.535466449e-14 | AI170: -1.581530443e-14 | AJ170: -1.628976356e-14 | AK170: -1.677845647e-14 | AL170: -1.728181016e-14 | AM170: -1.780026447e-14 | AN170: -1.83342724e-14 | AO170: -1.888430057e-14 | AP170: -1.945082959e-14 | AQ170: -2.003435448e-14 | AR170: -2.063538511e-14 | AS170: -2.125444666e-14 | AT170: -2.189208006e-14 | AU170: -2.254884247e-14 | AV170: -2.322530774e-14 | AW170: -2.392206697e-14 | AX170: -2.463972898e-14 | AY170: -2.537892085e-14 | AZ170: -2.614028848e-14 | BA170: -2.692449713e-14 | BB170: -2.773223204e-14 | BC170: -2.856419901e-14 | BD170: -2.942112498e-14 | BE170: -3.030375873e-14 | BF170: -3.121287149e-14 | BG170: -3.214925763e-14 | BH170: -3.311373536e-14 | BI170: -3.410714742e-14 | BJ170: -3.513036184e-14 | BK170: -3.61842727e-14 | BL170: -3.726980088e-14 | BM170: -3.838789491e-14 | BN170: -3.953953175e-14 | BO170: -4.072571771e-14 | BP170: -4.194748924e-14 | BQ170: -4.320591391e-14
D171: DSCR Test | J171: =IF(J140,J154/(J170+J168)) -> FALSE | K171: =IF(K140,K154/(K170+K168)) -> FALSE | L171: FALSE | M171: 1.2 | N171: 1.2 | O171: 1.2 | P171: 1.2 | Q171: 1.2 | R171: 1.2 | S171: 1.2 | T171: 1.2 | U171: 1.2 | V171: 1.2 | W171: 1.2 | X171: 1.2 | Y171: 1.2 | Z171: 1.2 | AA171: 1.2 | AB171: 1.2 | AC171: 1.2 | AD171: FALSE | AE171: FALSE | AF171: FALSE | AG171: FALSE | AH171: FALSE | AI171: FALSE | AJ171: FALSE | AK171: FALSE | AL171: FALSE | AM171: FALSE | AN171: FALSE | AO171: FALSE | AP171: FALSE | AQ171: FALSE | AR171: FALSE | AS171: FALSE | AT171: FALSE | AU171: FALSE | AV171: FALSE | AW171: FALSE | AX171: FALSE | AY171: FALSE | AZ171: FALSE | BA171: FALSE | BB171: FALSE | BC171: FALSE | BD171: FALSE | BE171: FALSE | BF171: FALSE | BG171: FALSE | BH171: FALSE | BI171: FALSE | BJ171: FALSE | BK171: FALSE | BL171: FALSE | BM171: FALSE | BN171: FALSE | BO171: FALSE | BP171: FALSE | BQ171: FALSE
C173: P90 Sources and Uses | E173: Applied | F173: Fixed P90 | G173: Comp P90 | H173: Parallel | I173: Difference
D174: Capital Expenditures | E174: =F174 -> 1400 | F174: 1400 | G174: =SUM(J174:BQ174) -> 1400 | J174: =J$13 -> 466.6666667 | K174: =K$13 -> 466.6666667 | L174: 466.6666667 | M174: 0 | N174: 0 | O174: 0 | P174: 0 | Q174: 0 | R174: 0 | S174: 0 | T174: 0 | U174: 0 | V174: 0 | W174: 0 | X174: 0 | Y174: 0 | Z174: 0 | AA174: 0 | AB174: 0 | AC174: 0 | AD174: 0 | AE174: 0 | AF174: 0 | AG174: 0 | AH174: 0 | AI174: 0 | AJ174: 0 | AK174: 0 | AL174: 0 | AM174: 0 | AN174: 0 | AO174: 0 | AP174: 0 | AQ174: 0 | AR174: 0 | AS174: 0 | AT174: 0 | AU174: 0 | AV174: 0 | AW174: 0 | AX174: 0 | AY174: 0 | AZ174: 0 | BA174: 0 | BB174: 0 | BC174: 0 | BD174: 0 | BE174: 0 | BF174: 0 | BG174: 0 | BH174: 0 | BI174: 0 | BJ174: 0 | BK174: 0 | BL174: 0 | BM174: 0 | BN174: 0 | BO174: 0 | BP174: 0 | BQ174: 0
D175: IDC | E175: =F175 -> 25.75462184 | F175: 25.75462184 | G175: =SUM(J175:BQ175) -> 25.75462184 | I175: =G175-E175 -> 0 | J175: =J190 -> 0 | K175: =K190 -> 8.586477796 | L175: 17.16814404 | M175: 0 | N175: 0 | O175: 0 | P175: 0 | Q175: 0 | R175: 0 | S175: 0 | T175: 0 | U175: 0 | V175: 0 | W175: 0 | X175: 0 | Y175: 0 | Z175: 0 | AA175: 0 | AB175: 0 | AC175: 0 | AD175: 0 | AE175: 0 | AF175: 0 | AG175: 0 | AH175: 0 | AI175: 0 | AJ175: 0 | AK175: 0 | AL175: 0 | AM175: 0 | AN175: 0 | AO175: 0 | AP175: 0 | AQ175: 0 | AR175: 0 | AS175: 0 | AT175: 0 | AU175: 0 | AV175: 0 | AW175: 0 | AX175: 0 | AY175: 0 | AZ175: 0 | BA175: 0 | BB175: 0 | BC175: 0 | BD175: 0 | BE175: 0 | BF175: 0 | BG175: 0 | BH175: 0 | BI175: 0 | BJ175: 0 | BK175: 0 | BL175: 0 | BM175: 0 | BN175: 0 | BO175: 0 | BP175: 0 | BQ175: 0
D176: Up-Front Fee | E176: 8.852941549 | F176: 8.852941549 | G176: =SUM(J176:BQ176) -> 8.852941549 | I176: =G176-E176 -> 0 | J176: =J191 -> 8.852941549 | K176: =K191 -> 0 | L176: 0 | M176: 0 | N176: 0 | O176: 0 | P176: 0 | Q176: 0 | R176: 0 | S176: 0 | T176: 0 | U176: 0 | V176: 0 | W176: 0 | X176: 0 | Y176: 0 | Z176: 0 | AA176: 0 | AB176: 0 | AC176: 0 | AD176: 0 | AE176: 0 | AF176: 0 | AG176: 0 | AH176: 0 | AI176: 0 | AJ176: 0 | AK176: 0 | AL176: 0 | AM176: 0 | AN176: 0 | AO176: 0 | AP176: 0 | AQ176: 0 | AR176: 0 | AS176: 0 | AT176: 0 | AU176: 0 | AV176: 0 | AW176: 0 | AX176: 0 | AY176: 0 | AZ176: 0 | BA176: 0 | BB176: 0 | BC176: 0 | BD176: 0 | BE176: 0 | BF176: 0 | BG176: 0 | BH176: 0 | BI176: 0 | BJ176: 0 | BK176: 0 | BL176: 0 | BM176: 0 | BN176: 0 | BO176: 0 | BP176: 0 | BQ176: 0
D177: DSRA | E177: 36.2215927 | F177: 36.2215927 | G177: =SUM(J177:BQ177) -> 36.2215927 | I177: =G177-E177 -> 0 | J177: =J212 -> 0 | K177: 0 | L177: 36.2215927 | M177: 0 | N177: 0 | O177: 0 | P177: 0 | Q177: 0 | R177: 0 | S177: 0 | T177: 0 | U177: 0 | V177: 0 | W177: 0 | X177: 0 | Y177: 0 | Z177: 0 | AA177: 0 | AB177: 0 | AC177: 0 | AD177: 0 | AE177: 0 | AF177: 0 | AG177: 0 | AH177: 0 | AI177: 0 | AJ177: 0 | AK177: 0 | AL177: 0 | AM177: 0 | AN177: 0 | AO177: 0 | AP177: =AP212 -> 0 | AQ177: 0 | AR177: 0 | AS177: 0 | AT177: 0 | AU177: 0 | AV177: 0 | AW177: 0 | AX177: 0 | AY177: 0 | AZ177: 0 | BA177: 0 | BB177: 0 | BC177: 0 | BD177: 0 | BE177: 0 | BF177: 0 | BG177: 0 | BH177: 0 | BI177: 0 | BJ177: 0 | BK177: 0 | BL177: 0 | BM177: 0 | BN177: 0 | BO177: 0 | BP177: 0 | BQ177: 0
D178: Total | E178: =SUM(E174:E177) -> 1470.829156 | F178: 1470.829156 | G178: =SUM(G174:G177) -> 1470.829156 | I178: =SUM(I174:I177) -> 0 | J178: =J174+J175+J176+J177 -> 475.5196082 | K178: =K174+K175+K176+K177 -> 475.2531445 | L178: 520.0564034 | M178: 0 | N178: 0 | O178: 0 | P178: 0 | Q178: 0 | R178: 0 | S178: 0 | T178: 0 | U178: 0 | V178: 0 | W178: 0 | X178: 0 | Y178: 0 | Z178: 0 | AA178: 0 | AB178: 0 | AC178: 0 | AD178: 0 | AE178: 0 | AF178: 0 | AG178: 0 | AH178: 0 | AI178: 0 | AJ178: 0 | AK178: 0 | AL178: 0 | AM178: 0 | AN178: 0 | AO178: 0 | AP178: 0 | AQ178: 0 | AR178: 0 | AS178: 0 | AT178: 0 | AU178: 0 | AV178: 0 | AW178: 0 | AX178: 0 | AY178: 0 | AZ178: 0 | BA178: 0 | BB178: 0 | BC178: 0 | BD178: 0 | BE178: 0 | BF178: 0 | BG178: 0 | BH178: 0 | BI178: 0 | BJ178: 0 | BK178: 0 | BL178: 0 | BM178: 0 | BN178: 0 | BO178: 0 | BP178: 0 | BQ178: 0
I179: P90 SU Diff
D180: Uses | I180: %
D181: Debt | E181: =F162 -> 885.2941549 | G181: =F162 -> 885.2941549 | H181: =P90Output!H21 -> 885.2941549 | I181: =E181/E183 -> 0.6019014181 | J181: =$I181*J178 -> 286.2159265 | K181: =$I181*K178 -> 286.0555416 | L181: 313.0226867 | M181: 0 | N181: 0 | O181: 0 | P181: 0 | Q181: 0 | R181: 0 | S181: 0 | T181: 0 | U181: 0 | V181: 0 | W181: 0 | X181: 0 | Y181: 0 | Z181: 0 | AA181: 0 | AB181: 0 | AC181: 0 | AD181: 0 | AE181: 0 | AF181: 0 | AG181: 0 | AH181: 0 | AI181: 0 | AJ181: 0 | AK181: 0 | AL181: 0 | AM181: 0 | AN181: 0 | AO181: 0 | AP181: 0 | AQ181: 0 | AR181: 0 | AS181: 0 | AT181: 0 | AU181: 0 | AV181: 0 | AW181: 0 | AX181: 0 | AY181: 0 | AZ181: 0 | BA181: 0 | BB181: 0 | BC181: 0 | BD181: 0 | BE181: 0 | BF181: 0 | BG181: 0 | BH181: 0 | BI181: 0 | BJ181: 0 | BK181: 0 | BL181: 0 | BM181: 0 | BN181: 0 | BO181: 0 | BP181: 0 | BQ181: 0
D182: Equity | E182: =E178-E181 -> 585.5350012 | G182: =G178-G181 -> 585.5350012 | I182: =G182/G183 -> 0.3980985819 | J182: =J178-J181 -> 189.3036817 | K182: =K178-K181 -> 189.1976028 | L182: 207.0337167 | M182: 0 | N182: 0 | O182: 0 | P182: 0 | Q182: 0 | R182: 0 | S182: 0 | T182: 0 | U182: 0 | V182: 0 | W182: 0 | X182: 0 | Y182: 0 | Z182: 0 | AA182: 0 | AB182: 0 | AC182: 0 | AD182: 0 | AE182: 0 | AF182: 0 | AG182: 0 | AH182: 0 | AI182: 0 | AJ182: 0 | AK182: 0 | AL182: 0 | AM182: 0 | AN182: 0 | AO182: 0 | AP182: 0 | AQ182: 0 | AR182: 0 | AS182: 0 | AT182: 0 | AU182: 0 | AV182: 0 | AW182: 0 | AX182: 0 | AY182: 0 | AZ182: 0 | BA182: 0 | BB182: 0 | BC182: 0 | BD182: 0 | BE182: 0 | BF182: 0 | BG182: 0 | BH182: 0 | BI182: 0 | BJ182: 0 | BK182: 0 | BL182: 0 | BM182: 0 | BN182: 0 | BO182: 0 | BP182: 0 | BQ182: 0
D183: Total | E183: =SUM(E181:E182) -> 1470.829156 | G183: =SUM(G181:G182) -> 1470.829156 | J183: =SUM(J181:J182) -> 475.5196082 | K183: =SUM(K181:K182) -> 475.2531445 | L183: 520.0564034 | M183: 0 | N183: 0 | O183: 0 | P183: 0 | Q183: 0 | R183: 0 | S183: 0 | T183: 0 | U183: 0 | V183: 0 | W183: 0 | X183: 0 | Y183: 0 | Z183: 0 | AA183: 0 | AB183: 0 | AC183: 0 | AD183: 0 | AE183: 0 | AF183: 0 | AG183: 0 | AH183: 0 | AI183: 0 | AJ183: 0 | AK183: 0 | AL183: 0 | AM183: 0 | AN183: 0 | AO183: 0 | AP183: 0 | AQ183: 0 | AR183: 0 | AS183: 0 | AT183: 0 | AU183: 0 | AV183: 0 | AW183: 0 | AX183: 0 | AY183: 0 | AZ183: 0 | BA183: 0 | BB183: 0 | BC183: 0 | BD183: 0 | BE183: 0 | BF183: 0 | BG183: 0 | BH183: 0 | BI183: 0 | BJ183: 0 | BK183: 0 | BL183: 0 | BM183: 0 | BN183: 0 | BO183: 0 | BP183: 0 | BQ183: 0
D185: Debt Balance
D186: Opening Balance | J186: =I189 -> 0 | K186: =J189 -> 286.2159265 | L186: =K189 -> 572.2714682 | M186: =L189 -> 885.2941549 | N186: =M189 -> 839.4097941 | O186: =N189 -> 792.8122548 | P186: =O189 -> 745.4900918 | Q186: =P189 -> 697.4316659 | R186: =Q189 -> 648.6251403 | S186: =R189 -> 599.0584768 | T186: =S189 -> 548.7194322 | U186: =T189 -> 497.5955542 | V186: =U189 -> 445.674178 | W186: =V189 -> 392.9424218 | X186: =W189 -> 339.3871833 | Y186: =X189 -> 284.9951349 | Z186: =Y189 -> 229.7527201 | AA186: =Z189 -> 173.6461488 | AB186: =AA189 -> 116.6613931 | AC186: =AB189 -> 58.78418258 | AD186: =AC189 -> -6.821210263e-13 | AE186: =AD189 -> -6.957634469e-13 | AF186: =AE189 -> -7.0981514e-13 | AG186: =AF189 -> -7.242883839e-13 | AH186: =AG189 -> -7.391958252e-13 | AI186: =AH189 -> -7.545504897e-13 | AJ186: =AI189 -> -7.703657941e-13 | AK186: =AJ189 -> -7.866555577e-13 | AL186: =AK189 -> -8.034340141e-13 | AM186: =AL189 -> -8.207158243e-13 | AN186: =AM189 -> -8.385160888e-13 | AO186: =AN189 -> -8.568503612e-13 | AP186: =AO189 -> -8.757346617e-13 | AQ186: =AP189 -> -8.951854913e-13 | AR186: =AQ189 -> -9.152198458e-13 | AS186: =AR189 -> -9.358552309e-13 | AT186: =AS189 -> -9.571096776e-13 | AU186: =AT189 -> -9.790017576e-13 | AV186: =AU189 -> -1.0015506e-12 | AW186: =AV189 -> -1.024775908e-12 | AX186: =AW189 -> -1.048697975e-12 | AY186: =AX189 -> -1.073337704e-12 | AZ186: =AY189 -> -1.098716625e-12 | BA186: =AZ189 -> -1.124856913e-12 | BB186: =BA189 -> -1.15178141e-12 | BC186: =BB189 -> -1.179513642e-12 | BD186: =BC189 -> -1.208077841e-12 | BE186: =BD189 -> -1.237498966e-12 | BF186: =BE189 -> -1.267802725e-12 | BG186: =BF189 -> -1.299015596e-12 | BH186: =BG189 -> -1.331164854e-12 | BI186: =BH189 -> -1.364278589e-12 | BJ186: =BI189 -> -1.398385737e-12 | BK186: =BJ189 -> -1.433516099e-12 | BL186: =BK189 -> -1.469700371e-12 | BM186: =BL189 -> -1.506970172e-12 | BN186: =BM189 -> -1.545358067e-12 | BO186: =BN189 -> -1.584897599e-12 | BP186: =BO189 -> -1.625623317e-12 | BQ186: =BP189 -> -1.667570806e-12
D187: Add: Draws | J187: =J181 -> 286.2159265 | K187: =K181 -> 286.0555416 | L187: 313.0226867 | M187: 0 | N187: 0 | O187: 0 | P187: 0 | Q187: 0 | R187: 0 | S187: 0 | T187: 0 | U187: 0 | V187: 0 | W187: 0 | X187: 0 | Y187: 0 | Z187: 0 | AA187: 0 | AB187: 0 | AC187: 0 | AD187: 0 | AE187: 0 | AF187: 0 | AG187: 0 | AH187: 0 | AI187: 0 | AJ187: 0 | AK187: 0 | AL187: 0 | AM187: 0 | AN187: 0 | AO187: 0 | AP187: 0 | AQ187: 0 | AR187: 0 | AS187: 0 | AT187: 0 | AU187: 0 | AV187: 0 | AW187: 0 | AX187: 0 | AY187: 0 | AZ187: 0 | BA187: 0 | BB187: 0 | BC187: 0 | BD187: 0 | BE187: 0 | BF187: 0 | BG187: 0 | BH187: 0 | BI187: 0 | BJ187: 0 | BK187: 0 | BL187: 0 | BM187: 0 | BN187: 0 | BO187: 0 | BP187: 0 | BQ187: 0
D188: Less: Repayments | J188: =J168 -> 0 | K188: =K168 -> 0 | L188: 0 | M188: 45.88436074 | N188: 46.59753935 | O188: 47.32216303 | P188: 48.05842588 | Q188: 48.80652558 | R188: 49.56666348 | S188: 50.33904465 | T188: 51.12387798 | U188: 51.92137623 | V188: 52.73175616 | W188: 53.55523857 | X188: 54.39204839 | Y188: 55.2424148 | Z188: 56.10657128 | AA188: 56.98475571 | AB188: 57.87721048 | AC188: 58.78418258 | AD188: 1.364242053e-14 | AE188: 1.405169314e-14 | AF188: 1.447324394e-14 | AG188: 1.490744125e-14 | AH188: 1.535466449e-14 | AI188: 1.581530443e-14 | AJ188: 1.628976356e-14 | AK188: 1.677845647e-14 | AL188: 1.728181016e-14 | AM188: 1.780026447e-14 | AN188: 1.83342724e-14 | AO188: 1.888430057e-14 | AP188: 1.945082959e-14 | AQ188: 2.003435448e-14 | AR188: 2.063538511e-14 | AS188: 2.125444666e-14 | AT188: 2.189208006e-14 | AU188: 2.254884247e-14 | AV188: 2.322530774e-14 | AW188: 2.392206697e-14 | AX188: 2.463972898e-14 | AY188: 2.537892085e-14 | AZ188: 2.614028848e-14 | BA188: 2.692449713e-14 | BB188: 2.773223204e-14 | BC188: 2.856419901e-14 | BD188: 2.942112498e-14 | BE188: 3.030375873e-14 | BF188: 3.121287149e-14 | BG188: 3.214925763e-14 | BH188: 3.311373536e-14 | BI188: 3.410714742e-14 | BJ188: 3.513036184e-14 | BK188: 3.61842727e-14 | BL188: 3.726980088e-14 | BM188: 3.838789491e-14 | BN188: 3.953953175e-14 | BO188: 4.072571771e-14 | BP188: 4.194748924e-14 | BQ188: 4.320591391e-14
D189: Closing Balance | J189: =J186+J187-J188 -> 286.2159265 | K189: =K186+K187-K188 -> 572.2714682 | L189: 885.2941549 | M189: 839.4097941 | N189: 792.8122548 | O189: 745.4900918 | P189: 697.4316659 | Q189: 648.6251403 | R189: 599.0584768 | S189: 548.7194322 | T189: 497.5955542 | U189: 445.674178 | V189: 392.9424218 | W189: 339.3871833 | X189: 284.9951349 | Y189: 229.7527201 | Z189: 173.6461488 | AA189: 116.6613931 | AB189: 58.78418258 | AC189: -6.821210263e-13 | AD189: -6.957634469e-13 | AE189: -7.0981514e-13 | AF189: -7.242883839e-13 | AG189: -7.391958252e-13 | AH189: -7.545504897e-13 | AI189: -7.703657941e-13 | AJ189: -7.866555577e-13 | AK189: -8.034340141e-13 | AL189: -8.207158243e-13 | AM189: -8.385160888e-13 | AN189: -8.568503612e-13 | AO189: -8.757346617e-13 | AP189: -8.951854913e-13 | AQ189: -9.152198458e-13 | AR189: -9.358552309e-13 | AS189: -9.571096776e-13 | AT189: -9.790017576e-13 | AU189: -1.0015506e-12 | AV189: -1.024775908e-12 | AW189: -1.048697975e-12 | AX189: -1.073337704e-12 | AY189: -1.098716625e-12 | AZ189: -1.124856913e-12 | BA189: -1.15178141e-12 | BB189: -1.179513642e-12 | BC189: -1.208077841e-12 | BD189: -1.237498966e-12 | BE189: -1.267802725e-12 | BF189: -1.299015596e-12 | BG189: -1.331164854e-12 | BH189: -1.364278589e-12 | BI189: -1.398385737e-12 | BJ189: -1.433516099e-12 | BK189: -1.469700371e-12 | BL189: -1.506970172e-12 | BM189: -1.545358067e-12 | BN189: -1.584897599e-12 | BO189: -1.625623317e-12 | BP189: -1.667570806e-12 | BQ189: -1.71077672e-12
D190: IDC | J190: =J186*J138*J$4 -> 0 | K190: =K186*K138*K$4 -> 8.586477796 | L190: 17.16814404 | M190: 0 | N190: 0 | O190: 0 | P190: 0 | Q190: 0 | R190: 0 | S190: 0 | T190: 0 | U190: 0 | V190: 0 | W190: 0 | X190: 0 | Y190: 0 | Z190: 0 | AA190: 0 | AB190: 0 | AC190: 0 | AD190: 0 | AE190: 0 | AF190: 0 | AG190: 0 | AH190: 0 | AI190: 0 | AJ190: 0 | AK190: 0 | AL190: 0 | AM190: 0 | AN190: 0 | AO190: 0 | AP190: 0 | AQ190: 0 | AR190: 0 | AS190: 0 | AT190: 0 | AU190: 0 | AV190: 0 | AW190: 0 | AX190: 0 | AY190: 0 | AZ190: 0 | BA190: 0 | BB190: 0 | BC190: 0 | BD190: 0 | BE190: 0 | BF190: 0 | BG190: 0 | BH190: 0 | BI190: 0 | BJ190: 0 | BK190: 0 | BL190: 0 | BM190: 0 | BN190: 0 | BO190: 0 | BP190: 0 | BQ190: 0
D191: Fees | E191: =Inputs!F42 -> 0.01 | F191: =E181 -> 885.2941549 | J191: =$E191*$F191*(J$3=1) -> 8.852941549 | K191: =$E191*$F191*(K$3=1) -> 0 | L191: =$E191*$F191*(L$3=1) -> 0 | M191: 0 | N191: 0 | O191: 0 | P191: 0 | Q191: 0 | R191: 0 | S191: 0 | T191: 0 | U191: 0 | V191: 0 | W191: 0 | X191: 0 | Y191: 0 | Z191: 0 | AA191: 0 | AB191: 0 | AC191: 0 | AD191: 0 | AE191: 0 | AF191: 0 | AG191: 0 | AH191: 0 | AI191: 0 | AJ191: 0 | AK191: 0 | AL191: 0 | AM191: 0 | AN191: 0 | AO191: 0 | AP191: 0 | AQ191: 0 | AR191: 0 | AS191: 0 | AT191: 0 | AU191: 0 | AV191: 0 | AW191: 0 | AX191: 0 | AY191: 0 | AZ191: 0 | BA191: 0 | BB191: 0 | BC191: 0 | BD191: 0 | BE191: 0 | BF191: 0 | BG191: 0 | BH191: 0 | BI191: 0 | BJ191: 0 | BK191: 0 | BL191: 0 | BM191: 0 | BN191: 0 | BO191: 0 | BP191: 0 | BQ191: 0
D193: Accumulated IDC and Fees | J193: =I193+J190+J191 -> 8.852941549 | K193: =J193+K190+K191 -> 17.43941935 | L193: =K193+L190+L191 -> 34.60756339 | M193: =L193+M190+M191 -> 34.60756339 | N193: =M193+N190+N191 -> 34.60756339 | O193: =N193+O190+O191 -> 34.60756339 | P193: =O193+P190+P191 -> 34.60756339 | Q193: =P193+Q190+Q191 -> 34.60756339 | R193: =Q193+R190+R191 -> 34.60756339 | S193: =R193+S190+S191 -> 34.60756339 | T193: =S193+T190+T191 -> 34.60756339 | U193: =T193+U190+U191 -> 34.60756339 | V193: =U193+V190+V191 -> 34.60756339 | W193: =V193+W190+W191 -> 34.60756339 | X193: =W193+X190+X191 -> 34.60756339 | Y193: =X193+Y190+Y191 -> 34.60756339 | Z193: =Y193+Z190+Z191 -> 34.60756339 | AA193: =Z193+AA190+AA191 -> 34.60756339 | AB193: =AA193+AB190+AB191 -> 34.60756339 | AC193: =AB193+AC190+AC191 -> 34.60756339 | AD193: =AC193+AD190+AD191 -> 34.60756339 | AE193: =AD193+AE190+AE191 -> 34.60756339 | AF193: =AE193+AF190+AF191 -> 34.60756339 | AG193: =AF193+AG190+AG191 -> 34.60756339 | AH193: =AG193+AH190+AH191 -> 34.60756339 | AI193: =AH193+AI190+AI191 -> 34.60756339 | AJ193: =AI193+AJ190+AJ191 -> 34.60756339 | AK193: =AJ193+AK190+AK191 -> 34.60756339 | AL193: =AK193+AL190+AL191 -> 34.60756339 | AM193: =AL193+AM190+AM191 -> 34.60756339 | AN193: =AM193+AN190+AN191 -> 34.60756339 | AO193: =AN193+AO190+AO191 -> 34.60756339 | AP193: =AO193+AP190+AP191 -> 34.60756339 | AQ193: =AP193+AQ190+AQ191 -> 34.60756339 | AR193: =AQ193+AR190+AR191 -> 34.60756339 | AS193: =AR193+AS190+AS191 -> 34.60756339 | AT193: =AS193+AT190+AT191 -> 34.60756339 | AU193: =AT193+AU190+AU191 -> 34.60756339 | AV193: =AU193+AV190+AV191 -> 34.60756339 | AW193: =AV193+AW190+AW191 -> 34.60756339 | AX193: =AW193+AX190+AX191 -> 34.60756339 | AY193: =AX193+AY190+AY191 -> 34.60756339 | AZ193: =AY193+AZ190+AZ191 -> 34.60756339 | BA193: =AZ193+BA190+BA191 -> 34.60756339 | BB193: =BA193+BB190+BB191 -> 34.60756339 | BC193: =BB193+BC190+BC191 -> 34.60756339 | BD193: =BC193+BD190+BD191 -> 34.60756339 | BE193: =BD193+BE190+BE191 -> 34.60756339 | BF193: =BE193+BF190+BF191 -> 34.60756339 | BG193: =BF193+BG190+BG191 -> 34.60756339 | BH193: =BG193+BH190+BH191 -> 34.60756339 | BI193: =BH193+BI190+BI191 -> 34.60756339 | BJ193: =BI193+BJ190+BJ191 -> 34.60756339 | BK193: =BJ193+BK190+BK191 -> 34.60756339 | BL193: =BK193+BL190+BL191 -> 34.60756339 | BM193: =BL193+BM190+BM191 -> 34.60756339 | BN193: =BM193+BN190+BN191 -> 34.60756339 | BO193: =BN193+BO190+BO191 -> 34.60756339 | BP193: =BO193+BP190+BP191 -> 34.60756339 | BQ193: =BP193+BQ190+BQ191 -> 34.60756339
D194: IDC Depreciation | J194: =J193*J$35 -> 0 | K194: =K193*K$35 -> 0 | L194: =L193*L$35 -> 0 | M194: =M193*M$35 -> 10.38226902 | N194: =N193*N$35 -> 7.267588312 | O194: =O193*O$35 -> 5.652568687 | P194: =P193*P$35 -> 5.652568687 | Q194: =Q193*Q$35 -> 5.652568687 | R194: =R193*R$35 -> 0 | S194: =S193*S$35 -> 0 | T194: =T193*T$35 -> 0 | U194: =U193*U$35 -> 0 | V194: =V193*V$35 -> 0 | W194: =W193*W$35 -> 0 | X194: =X193*X$35 -> 0 | Y194: =Y193*Y$35 -> 0 | Z194: =Z193*Z$35 -> 0 | AA194: =AA193*AA$35 -> 0 | AB194: =AB193*AB$35 -> 0 | AC194: =AC193*AC$35 -> 0 | AD194: =AD193*AD$35 -> 0 | AE194: =AE193*AE$35 -> 0 | AF194: =AF193*AF$35 -> 0 | AG194: =AG193*AG$35 -> 0 | AH194: =AH193*AH$35 -> 0 | AI194: =AI193*AI$35 -> 0 | AJ194: =AJ193*AJ$35 -> 0 | AK194: =AK193*AK$35 -> 0 | AL194: =AL193*AL$35 -> 0 | AM194: =AM193*AM$35 -> 0 | AN194: =AN193*AN$35 -> 0 | AO194: =AO193*AO$35 -> 0 | AP194: =AP193*AP$35 -> 0 | AQ194: =AQ193*AQ$35 -> 0 | AR194: =AR193*AR$35 -> 0 | AS194: =AS193*AS$35 -> 0 | AT194: =AT193*AT$35 -> 0 | AU194: =AU193*AU$35 -> 0 | AV194: =AV193*AV$35 -> 0 | AW194: =AW193*AW$35 -> 0 | AX194: =AX193*AX$35 -> 0 | AY194: =AY193*AY$35 -> 0 | AZ194: =AZ193*AZ$35 -> 0 | BA194: =BA193*BA$35 -> 0 | BB194: =BB193*BB$35 -> 0 | BC194: =BC193*BC$35 -> 0 | BD194: =BD193*BD$35 -> 0 | BE194: =BE193*BE$35 -> 0 | BF194: =BF193*BF$35 -> 0 | BG194: =BG193*BG$35 -> 0 | BH194: =BH193*BH$35 -> 0 | BI194: =BI193*BI$35 -> 0 | BJ194: =BJ193*BJ$35 -> 0 | BK194: =BK193*BK$35 -> 0 | BL194: =BL193*BL$35 -> 0 | BM194: =BM193*BM$35 -> 0 | BN194: =BN193*BN$35 -> 0 | BO194: =BO193*BO$35 -> 0 | BP194: =BP193*BP$35 -> 0 | BQ194: =BQ193*BQ$35 -> 0
C196: DSRA
D197: Interest Expense | J197: =J186*J$8*J138 -> 0 | K197: =K186*K$8*K138 -> 0 | L197: 0 | M197: 26.55882465 | N197: 25.18229382 | O197: 23.78436764 | P197: 22.36470275 | Q197: 20.92294998 | R197: 19.45875421 | S197: 17.97175431 | T197: 16.46158297 | U197: 14.92786663 | V197: 13.37022534 | W197: 11.78827265 | X197: 10.1816155 | Y197: 8.549854046 | Z197: 6.892581602 | AA197: 5.209384463 | AB197: 3.499841792 | AC197: 1.763525477 | AD197: -2.046363079e-14 | AE197: -2.087290341e-14 | AF197: -2.12944542e-14 | AG197: -2.172865152e-14 | AH197: -2.217587476e-14 | AI197: -2.263651469e-14 | AJ197: -2.311097382e-14 | AK197: -2.359966673e-14 | AL197: 0 | AM197: 0 | AN197: 0 | AO197: 0 | AP197: 0 | AQ197: 0 | AR197: 0 | AS197: 0 | AT197: 0 | AU197: 0 | AV197: 0 | AW197: 0 | AX197: 0 | AY197: 0 | AZ197: 0 | BA197: 0 | BB197: 0 | BC197: 0 | BD197: 0 | BE197: 0 | BF197: 0 | BG197: 0 | BH197: 0 | BI197: 0 | BJ197: 0 | BK197: 0 | BL197: 0 | BM197: 0 | BN197: 0 | BO197: 0 | BP197: 0 | BQ197: 0
D198: Debt Service | J198: =J197+J188 -> 0 | K198: =K197+K188 -> 0 | L198: 0 | M198: 72.44318539 | N198: 71.77983317 | O198: 71.10653067 | P198: 70.42312863 | Q198: 69.72947556 | R198: 69.02541769 | S198: 68.31079896 | T198: 67.58546094 | U198: 66.84924286 | V198: 66.1019815 | W198: 65.34351122 | X198: 64.57366389 | Y198: 63.79226885 | Z198: 62.99915288 | AA198: 62.19414017 | AB198: 61.37705228 | AC198: 60.54770806 | AD198: -6.821210263e-15 | AE198: -6.821210263e-15 | AF198: -6.821210263e-15 | AG198: -6.821210263e-15 | AH198: -6.821210263e-15 | AI198: -6.821210263e-15 | AJ198: -6.821210263e-15 | AK198: -6.821210263e-15 | AL198: 1.728181016e-14 | AM198: 1.780026447e-14 | AN198: 1.83342724e-14 | AO198: 1.888430057e-14 | AP198: 1.945082959e-14 | AQ198: 2.003435448e-14 | AR198: 2.063538511e-14 | AS198: 2.125444666e-14 | AT198: 2.189208006e-14 | AU198: 2.254884247e-14 | AV198: 2.322530774e-14 | AW198: 2.392206697e-14 | AX198: 2.463972898e-14 | AY198: 2.537892085e-14 | AZ198: 2.614028848e-14 | BA198: 2.692449713e-14 | BB198: 2.773223204e-14 | BC198: 2.856419901e-14 | BD198: 2.942112498e-14 | BE198: 3.030375873e-14 | BF198: 3.121287149e-14 | BG198: 3.214925763e-14 | BH198: 3.311373536e-14 | BI198: 3.410714742e-14 | BJ198: 3.513036184e-14 | BK198: 3.61842727e-14 | BL198: 3.726980088e-14 | BM198: 3.838789491e-14 | BN198: 3.953953175e-14 | BO198: 4.072571771e-14 | BP198: 4.194748924e-14 | BQ198: 4.320591391e-14
D200: Debt Service Requirement | E200: =Inputs!$F$43 -> 0.5 | J200: =K198*$E$114 -> 0 | K200: =L198*$E$114 -> 0 | L200: =M198*$E$114 -> 36.2215927 | M200: =N198*$E$114 -> 35.88991659 | N200: =O198*$E$114 -> 35.55326533 | O200: =P198*$E$114 -> 35.21156431 | P200: =Q198*$E$114 -> 34.86473778 | Q200: =R198*$E$114 -> 34.51270885 | R200: =S198*$E$114 -> 34.15539948 | S200: =T198*$E$114 -> 33.79273047 | T200: =U198*$E$114 -> 33.42462143 | U200: =V198*$E$114 -> 33.05099075 | V200: =W198*$E$114 -> 32.67175561 | W200: =X198*$E$114 -> 32.28683194 | X200: =Y198*$E$114 -> 31.89613442 | Y200: =Z198*$E$114 -> 31.49957644 | Z200: =AA198*$E$114 -> 31.09707009 | AA200: =AB198*$E$114 -> 30.68852614 | AB200: =AC198*$E$114 -> 30.27385403 | AC200: =AD198*$E$114 -> -3.410605132e-15 | AD200: =AE198*$E$114 -> -3.410605132e-15 | AE200: =AF198*$E$114 -> -3.410605132e-15 | AF200: =AG198*$E$114 -> -3.410605132e-15 | AG200: =AH198*$E$114 -> -3.410605132e-15 | AH200: =AI198*$E$114 -> -3.410605132e-15 | AI200: =AJ198*$E$114 -> -3.410605132e-15 | AJ200: =AK198*$E$114 -> -3.410605132e-15 | AK200: =AL198*$E$114 -> 8.64090508e-15 | AL200: =AM198*$E$114 -> 8.900132233e-15 | AM200: =AN198*$E$114 -> 9.1671362e-15 | AN200: =AO198*$E$114 -> 9.442150286e-15 | AO200: =AP198*$E$114 -> 9.725414794e-15 | AP200: =AQ198*$E$114 -> 1.001717724e-14 | AQ200: =AR198*$E$114 -> 1.031769256e-14 | AR200: =AS198*$E$114 -> 1.062722333e-14 | AS200: =AT198*$E$114 -> 1.094604003e-14 | AT200: =AU198*$E$114 -> 1.127442123e-14 | AU200: =AV198*$E$114 -> 1.161265387e-14 | AV200: =AW198*$E$114 -> 1.196103349e-14 | AW200: =AX198*$E$114 -> 1.231986449e-14 | AX200: =AY198*$E$114 -> 1.268946043e-14 | AY200: =AZ198*$E$114 -> 1.307014424e-14 | AZ200: =BA198*$E$114 -> 1.346224857e-14 | BA200: =BB198*$E$114 -> 1.386611602e-14 | BB200: =BC198*$E$114 -> 1.42820995e-14 | BC200: =BD198*$E$114 -> 1.471056249e-14 | BD200: =BE198*$E$114 -> 1.515187936e-14 | BE200: =BF198*$E$114 -> 1.560643574e-14 | BF200: =BG198*$E$114 -> 1.607462882e-14 | BG200: =BH198*$E$114 -> 1.655686768e-14 | BH200: =BI198*$E$114 -> 1.705357371e-14 | BI200: =BJ198*$E$114 -> 1.756518092e-14 | BJ200: =BK198*$E$114 -> 1.809213635e-14 | BK200: =BL198*$E$114 -> 1.863490044e-14 | BL200: =BM198*$E$114 -> 1.919394745e-14 | BM200: =BN198*$E$114 -> 1.976976588e-14 | BN200: =BO198*$E$114 -> 2.036285885e-14 | BO200: =BP198*$E$114 -> 2.097374462e-14 | BP200: =BQ198*$E$114 -> 2.160295696e-14 | BQ200: =BR198*$E$114 -> 0
D201: Less: Opening | J201: =J204 -> 0 | K201: =K204 -> 0 | L201: 0 | M201: 36.2215927 | N201: 35.88991659 | O201: 35.55326533 | P201: 35.21156431 | Q201: 34.86473778 | R201: 34.51270885 | S201: 34.15539948 | T201: 33.79273047 | U201: 33.42462143 | V201: 33.05099075 | W201: 32.67175561 | X201: 32.28683194 | Y201: 31.89613442 | Z201: 31.49957644 | AA201: 31.09707009 | AB201: 30.68852614 | AC201: 30.27385403 | AD201: 0 | AE201: -3.410605132e-15 | AF201: -3.410605132e-15 | AG201: -3.410605132e-15 | AH201: -3.410605132e-15 | AI201: -3.410605132e-15 | AJ201: -3.410605132e-15 | AK201: -3.410605132e-15 | AL201: 8.64090508e-15 | AM201: 8.64090508e-15 | AN201: 8.64090508e-15 | AO201: 8.64090508e-15 | AP201: 8.64090508e-15 | AQ201: 8.64090508e-15 | AR201: 8.64090508e-15 | AS201: 8.64090508e-15 | AT201: 8.64090508e-15 | AU201: 8.64090508e-15 | AV201: 8.64090508e-15 | AW201: 8.64090508e-15 | AX201: 8.64090508e-15 | AY201: 8.64090508e-15 | AZ201: 8.64090508e-15 | BA201: 8.64090508e-15 | BB201: 8.64090508e-15 | BC201: 8.64090508e-15 | BD201: 8.64090508e-15 | BE201: 8.64090508e-15 | BF201: 8.64090508e-15 | BG201: 8.64090508e-15 | BH201: 8.64090508e-15 | BI201: 8.64090508e-15 | BJ201: 8.64090508e-15 | BK201: 8.64090508e-15 | BL201: 8.64090508e-15 | BM201: 8.64090508e-15 | BN201: 8.64090508e-15 | BO201: 8.64090508e-15 | BP201: 8.64090508e-15 | BQ201: 8.64090508e-15
D202: Required Change | J202: =J200-J201 -> 0 | K202: =K200-K201 -> 0 | L202: 36.2215927 | M202: -0.3316761096 | N202: -0.3366512512 | O202: -0.34170102 | P202: -0.3468265353 | Q202: -0.3520289333 | R202: -0.3573093673 | S202: -0.3626690078 | T202: -0.3681090429 | U202: -0.3736306786 | V202: -0.3792351388 | W202: -0.3849236658 | X202: -0.3906975208 | Y202: -0.3965579836 | Z202: -0.4025063534 | AA202: -0.4085439487 | AB202: -0.4146721079 | AC202: -30.27385403 | AD202: -3.410605132e-15 | AE202: 0 | AF202: 0 | AG202: 0 | AH202: 0 | AI202: 0 | AJ202: 0 | AK202: 1.205151021e-14 | AL202: 2.592271524e-16 | AM202: 5.262311194e-16 | AN202: 8.012452054e-16 | AO202: 1.084509714e-15 | AP202: 1.376272158e-15 | AQ202: 1.676787475e-15 | AR202: 1.986318252e-15 | AS202: 2.305134952e-15 | AT202: 2.633516153e-15 | AU202: 2.97174879e-15 | AV202: 3.320128406e-15 | AW202: 3.67895941e-15 | AX202: 4.048555345e-15 | AY202: 4.429239158e-15 | AZ202: 4.821343485e-15 | BA202: 5.225210942e-15 | BB202: 5.641194422e-15 | BC202: 6.069657408e-15 | BD202: 6.510974282e-15 | BE202: 6.965530663e-15 | BF202: 7.433723735e-15 | BG202: 7.9159626e-15 | BH202: 8.41266863e-15 | BI202: 8.924275842e-15 | BJ202: 9.451231269e-15 | BK202: 9.99399536e-15 | BL202: 1.055304237e-14 | BM202: 1.11288608e-14 | BN202: 1.172195377e-14 | BO202: 1.233283954e-14 | BP202: 1.296205188e-14 | BQ202: -8.64090508e-15
D204: Opening | J204: =I207 -> 0 | K204: =J207 -> 0 | L204: =K207 -> 0 | M204: =L207 -> 36.2215927 | N204: =M207 -> 35.88991659 | O204: =N207 -> 35.55326533 | P204: =O207 -> 35.21156431 | Q204: =P207 -> 34.86473778 | R204: =Q207 -> 34.51270885 | S204: =R207 -> 34.15539948 | T204: =S207 -> 33.79273047 | U204: =T207 -> 33.42462143 | V204: =U207 -> 33.05099075 | W204: =V207 -> 32.67175561 | X204: =W207 -> 32.28683194 | Y204: =X207 -> 31.89613442 | Z204: =Y207 -> 31.49957644 | AA204: =Z207 -> 31.09707009 | AB204: =AA207 -> 30.68852614 | AC204: =AB207 -> 30.27385403 | AD204: =AC207 -> 0 | AE204: =AD207 -> -3.410605132e-15 | AF204: =AE207 -> -3.410605132e-15 | AG204: =AF207 -> -3.410605132e-15 | AH204: =AG207 -> -3.410605132e-15 | AI204: =AH207 -> -3.410605132e-15 | AJ204: =AI207 -> -3.410605132e-15 | AK204: =AJ207 -> -3.410605132e-15 | AL204: =AK207 -> 8.64090508e-15 | AM204: =AL207 -> 8.64090508e-15 | AN204: =AM207 -> 8.64090508e-15 | AO204: =AN207 -> 8.64090508e-15 | AP204: =AO207 -> 8.64090508e-15 | AQ204: =AP207 -> 8.64090508e-15 | AR204: =AQ207 -> 8.64090508e-15 | AS204: =AR207 -> 8.64090508e-15 | AT204: =AS207 -> 8.64090508e-15 | AU204: =AT207 -> 8.64090508e-15 | AV204: =AU207 -> 8.64090508e-15 | AW204: =AV207 -> 8.64090508e-15 | AX204: =AW207 -> 8.64090508e-15 | AY204: =AX207 -> 8.64090508e-15 | AZ204: =AY207 -> 8.64090508e-15 | BA204: =AZ207 -> 8.64090508e-15 | BB204: =BA207 -> 8.64090508e-15 | BC204: =BB207 -> 8.64090508e-15 | BD204: =BC207 -> 8.64090508e-15 | BE204: =BD207 -> 8.64090508e-15 | BF204: =BE207 -> 8.64090508e-15 | BG204: =BF207 -> 8.64090508e-15 | BH204: =BG207 -> 8.64090508e-15 | BI204: =BH207 -> 8.64090508e-15 | BJ204: =BI207 -> 8.64090508e-15 | BK204: =BJ207 -> 8.64090508e-15 | BL204: =BK207 -> 8.64090508e-15 | BM204: =BL207 -> 8.64090508e-15 | BN204: =BM207 -> 8.64090508e-15 | BO204: =BN207 -> 8.64090508e-15 | BP204: =BO207 -> 8.64090508e-15 | BQ204: =BP207 -> 8.64090508e-15
D205: Add: Pre-COD DSRA Computed | I205: DSRA P90 comp | J205: =J202*J$4 -> 0 | K205: =K202*K$4 -> 0 | L205: 36.2215927 | M205: 0 | N205: 0 | O205: 0 | P205: 0 | Q205: 0 | R205: 0 | S205: 0 | T205: 0 | U205: 0 | V205: 0 | W205: 0 | X205: 0 | Y205: 0 | Z205: 0 | AA205: 0 | AB205: 0 | AC205: 0 | AD205: 0 | AE205: 0 | AF205: 0 | AG205: 0 | AH205: 0 | AI205: 0 | AJ205: 0 | AK205: 0 | AL205: 0 | AM205: 0 | AN205: 0 | AO205: 0 | AP205: 0 | AQ205: 0 | AR205: 0 | AS205: 0 | AT205: 0 | AU205: 0 | AV205: 0 | AW205: 0 | AX205: 0 | AY205: 0 | AZ205: 0 | BA205: 0 | BB205: 0 | BC205: 0 | BD205: 0 | BE205: 0 | BF205: 0 | BG205: 0 | BH205: 0 | BI205: 0 | BJ205: 0 | BK205: 0 | BL205: 0 | BM205: 0 | BN205: 0 | BO205: 0 | BP205: 0 | BQ205: 0
D206: Add: Post COD | J206: =J202*J$8 -> 0 | K206: =K202*K$8 -> 0 | L206: 0 | M206: -0.3316761096 | N206: -0.3366512512 | O206: -0.34170102 | P206: -0.3468265353 | Q206: -0.3520289333 | R206: -0.3573093673 | S206: -0.3626690078 | T206: -0.3681090429 | U206: -0.3736306786 | V206: -0.3792351388 | W206: -0.3849236658 | X206: -0.3906975208 | Y206: -0.3965579836 | Z206: -0.4025063534 | AA206: -0.4085439487 | AB206: -0.4146721079 | AC206: -30.27385403 | AD206: -3.410605132e-15 | AE206: 0 | AF206: 0 | AG206: 0 | AH206: 0 | AI206: 0 | AJ206: 0 | AK206: 1.205151021e-14 | AL206: 0 | AM206: 0 | AN206: 0 | AO206: 0 | AP206: 0 | AQ206: 0 | AR206: 0 | AS206: 0 | AT206: 0 | AU206: 0 | AV206: 0 | AW206: 0 | AX206: 0 | AY206: 0 | AZ206: 0 | BA206: 0 | BB206: 0 | BC206: 0 | BD206: 0 | BE206: 0 | BF206: 0 | BG206: 0 | BH206: 0 | BI206: 0 | BJ206: 0 | BK206: 0 | BL206: 0 | BM206: 0 | BN206: 0 | BO206: 0 | BP206: 0 | BQ206: 0
D207: Closing | J207: =J204+J205+J206 -> 0 | K207: =K204+K205+K206 -> 0 | L207: 36.2215927 | M207: 35.88991659 | N207: 35.55326533 | O207: 35.21156431 | P207: 34.86473778 | Q207: 34.51270885 | R207: 34.15539948 | S207: 33.79273047 | T207: 33.42462143 | U207: 33.05099075 | V207: 32.67175561 | W207: 32.28683194 | X207: 31.89613442 | Y207: 31.49957644 | Z207: 31.09707009 | AA207: 30.68852614 | AB207: 30.27385403 | AC207: 0 | AD207: -3.410605132e-15 | AE207: -3.410605132e-15 | AF207: -3.410605132e-15 | AG207: -3.410605132e-15 | AH207: -3.410605132e-15 | AI207: -3.410605132e-15 | AJ207: -3.410605132e-15 | AK207: 8.64090508e-15 | AL207: 8.64090508e-15 | AM207: 8.64090508e-15 | AN207: 8.64090508e-15 | AO207: 8.64090508e-15 | AP207: 8.64090508e-15 | AQ207: 8.64090508e-15 | AR207: 8.64090508e-15 | AS207: 8.64090508e-15 | AT207: 8.64090508e-15 | AU207: 8.64090508e-15 | AV207: 8.64090508e-15 | AW207: 8.64090508e-15 | AX207: 8.64090508e-15 | AY207: 8.64090508e-15 | AZ207: 8.64090508e-15 | BA207: 8.64090508e-15 | BB207: 8.64090508e-15 | BC207: 8.64090508e-15 | BD207: 8.64090508e-15 | BE207: 8.64090508e-15 | BF207: 8.64090508e-15 | BG207: 8.64090508e-15 | BH207: 8.64090508e-15 | BI207: 8.64090508e-15 | BJ207: 8.64090508e-15 | BK207: 8.64090508e-15 | BL207: 8.64090508e-15 | BM207: 8.64090508e-15 | BN207: 8.64090508e-15 | BO207: 8.64090508e-15 | BP207: 8.64090508e-15 | BQ207: 8.64090508e-15
D209: Pre-COD Fixed DSRA Applied | J209: =J212 -> 0 | K209: =K212 -> 0 | L209: 36.2215927 | M209: 0 | N209: 0 | O209: 0 | P209: 0 | Q209: 0 | R209: 0 | S209: 0 | T209: 0 | U209: 0 | V209: 0 | W209: 0 | X209: 0 | Y209: 0 | Z209: 0 | AA209: 0 | AB209: 0 | AC209: 0 | AD209: 0 | AE209: 0 | AF209: 0 | AG209: 0 | AH209: 0 | AI209: 0 | AJ209: 0 | AK209: 0 | AL209: 0 | AM209: 0 | AN209: 0 | AO209: 0 | AP209: 0 | AQ209: 0 | AR209: 0 | AS209: 0 | AT209: 0 | AU209: 0 | AV209: 0 | AW209: 0 | AX209: 0 | AY209: 0 | AZ209: 0 | BA209: 0 | BB209: 0 | BC209: 0 | BD209: 0 | BE209: 0 | BF209: 0 | BG209: 0 | BH209: 0 | BI209: 0 | BJ209: 0 | BK209: 0 | BL209: 0 | BM209: 0 | BN209: 0 | BO209: 0 | BP209: 0 | BQ209: 0
D210: Difference | H210: DSRA P90 Diff | I210: =SUM(J210:BQ210) -> 0 | J210: =J212-J205 -> 0 | K210: 0 | L210: 0 | M210: 0 | N210: 0 | O210: 0 | P210: 0 | Q210: 0 | R210: 0 | S210: 0 | T210: 0 | U210: 0 | V210: 0 | W210: 0 | X210: 0 | Y210: 0 | Z210: 0 | AA210: 0 | AB210: 0 | AC210: 0 | AD210: 0 | AE210: 0 | AF210: 0 | AG210: 0 | AH210: 0 | AI210: 0 | AJ210: 0 | AK210: 0 | AL210: 0 | AM210: 0 | AN210: 0 | AO210: 0 | AP210: =AP212-AP205 -> 0 | AQ210: 0 | AR210: 0 | AS210: 0 | AT210: 0 | AU210: 0 | AV210: 0 | AW210: 0 | AX210: 0 | AY210: 0 | AZ210: 0 | BA210: 0 | BB210: 0 | BC210: 0 | BD210: 0 | BE210: 0 | BF210: 0 | BG210: 0 | BH210: 0 | BI210: 0 | BJ210: 0 | BK210: 0 | BL210: 0 | BM210: 0 | BN210: 0 | BO210: 0 | BP210: 0 | BQ210: 0
D212: Pre-COD Fixed DSRA Applied | I212: DSRA P90 fix | J212: 0 | K212: 0 | L212: 36.2215927 | M212: 0 | N212: 0 | O212: 0 | P212: 0 | Q212: 0 | R212: 0 | S212: 0 | T212: 0 | U212: 0 | V212: 0 | W212: 0 | X212: 0 | Y212: 0 | Z212: 0 | AA212: 0 | AB212: 0 | AC212: 0 | AD212: 0 | AE212: 0 | AF212: 0 | AG212: 0 | AH212: 0 | AI212: 0 | AJ212: 0 | AK212: 0 | AL212: 0 | AM212: 0 | AN212: 0 | AO212: 0 | AP212: 0 | AQ212: 0 | AR212: 0 | AS212: 0 | AT212: 0 | AU212: 0 | AV212: 0 | AW212: 0 | AX212: 0 | AY212: 0 | AZ212: 0 | BA212: 0 | BB212: 0 | BC212: 0 | BD212: 0 | BE212: 0 | BF212: 0 | BG212: 0 | BH212: 0 | BI212: 0 | BJ212: 0 | BK212: 0 | BL212: 0 | BM212: 0 | BN212: 0 | BO212: 0 | BP212: 0 | BQ212: 0
C214: Total Circular Reference
D215: CFADS Difference | I215: =_xlfn.SINGLE(p50_diff) -> 0
D216: Sourced Difference | I216: =I178 -> 0
D217: DSRA Difference | I217: =I210 -> 0
D218: Total Difference | H218: P90 Difference | I218: =SUM(I215:I217) -> 0
B220: Debt Sizing - Debt to Capital/P90
C221: P90 CFADS
D223: LLCR Method | E223: =Inputs!$F$35 -> 1.2 | J223: =$E223 -> 1.2 | K223: =$E223 -> 1.2 | L223: 1.2 | M223: 1.2 | N223: 1.2 | O223: 1.2 | P223: 1.2 | Q223: 1.2 | R223: 1.2 | S223: 1.2 | T223: 1.2 | U223: 1.2 | V223: 1.2 | W223: 1.2 | X223: 1.2 | Y223: 1.2 | Z223: 1.2 | AA223: 1.2 | AB223: 1.2 | AC223: 1.2 | AD223: 1.2 | AE223: 1.2 | AF223: 1.2 | AG223: 1.2 | AH223: 1.2 | AI223: 1.2 | AJ223: 1.2 | AK223: 1.2 | AL223: 1.2 | AM223: 1.2 | AN223: 1.2 | AO223: 1.2 | AP223: 1.2 | AQ223: 1.2 | AR223: 1.2 | AS223: 1.2 | AT223: 1.2 | AU223: 1.2 | AV223: 1.2 | AW223: 1.2 | AX223: 1.2 | AY223: 1.2 | AZ223: 1.2 | BA223: 1.2 | BB223: 1.2 | BC223: 1.2 | BD223: 1.2 | BE223: 1.2 | BF223: 1.2 | BG223: 1.2 | BH223: 1.2 | BI223: 1.2 | BJ223: 1.2 | BK223: 1.2 | BL223: 1.2 | BM223: 1.2 | BN223: 1.2 | BO223: 1.2 | BP223: 1.2 | BQ223: 1.2
D224: Flexible Curved Method | E224: =Inputs!$F$35 -> 1.2 | J224: =$E224 -> 1.2 | K224: 1.2 | L224: 1.2 | M224: 1.2 | N224: 1.2 | O224: 1.2 | P224: 1.2 | Q224: 1.2 | R224: 1.2 | S224: 1.2 | T224: 1.2 | U224: 1.2 | V224: 1.2 | W224: 1.2 | X224: 1.2 | Y224: 1.2 | Z224: 1.2 | AA224: 1.2 | AB224: 1.2 | AC224: 1.2 | AD224: 1.2 | AE224: 1.2 | AF224: 1.2 | AG224: 1.2 | AH224: 1.2 | AI224: 1.2 | AJ224: 1.2 | AK224: 1.2 | AL224: 1.2 | AM224: 1.2 | AN224: 1.2 | AO224: 1.2 | AP224: 1.2 | AQ224: 1.2 | AR224: 1.2 | AS224: 1.2 | AT224: 1.2 | AU224: 1.2 | AV224: 1.2 | AW224: 1.2 | AX224: 1.2 | AY224: 1.2 | AZ224: 1.2 | BA224: 1.2 | BB224: 1.2 | BC224: 1.2 | BD224: 1.2 | BE224: 1.2 | BF224: 1.2 | BG224: 1.2 | BH224: 1.2 | BI224: 1.2 | BJ224: 1.2 | BK224: 1.2 | BL224: 1.2 | BM224: 1.2 | BN224: 1.2 | BO224: 1.2 | BP224: 1.2 | BQ224: 1.2
D226: Method Used | E226: =Inputs!F39 -> 1 | J226: =CHOOSE($E$226,J265,J223,J224) -> 1.2 | K226: 1.2 | L226: 1.2 | M226: 1.2 | N226: 1.2 | O226: 1.2 | P226: 1.2 | Q226: 1.2 | R226: 1.2 | S226: 1.2 | T226: 1.2 | U226: 1.2 | V226: 1.2 | W226: 1.2 | X226: 1.2 | Y226: 1.2 | Z226: 1.2 | AA226: 1.2 | AB226: 1.2 | AC226: 1.2 | AD226: 1.2 | AE226: 1.2 | AF226: 1.2 | AG226: 1.2 | AH226: 1.2 | AI226: 1.2 | AJ226: 1.2 | AK226: 1.2 | AL226: 1.2 | AM226: 1.2 | AN226: 1.2 | AO226: 1.2 | AP226: =CHOOSE($E$226,AP265,AP223,AP224) -> 1.2 | AQ226: 1.2 | AR226: 1.2 | AS226: 1.2 | AT226: 1.2 | AU226: 1.2 | AV226: 1.2 | AW226: 1.2 | AX226: 1.2 | AY226: 1.2 | AZ226: 1.2 | BA226: 1.2 | BB226: 1.2 | BC226: 1.2 | BD226: 1.2 | BE226: 1.2 | BF226: 1.2 | BG226: 1.2 | BH226: 1.2 | BI226: 1.2 | BJ226: 1.2 | BK226: 1.2 | BL226: 1.2 | BM226: 1.2 | BN226: 1.2 | BO226: 1.2 | BP226: 1.2 | BQ226: 1.2
D228: Interest Rate | E228: =Inputs!F$41 -> 0.03 | J228: =$E$52 -> 0.03 | K228: =$E$52 -> 0.03 | L228: 0.03 | M228: 0.03 | N228: 0.03 | O228: 0.03 | P228: 0.03 | Q228: 0.03 | R228: 0.03 | S228: 0.03 | T228: 0.03 | U228: 0.03 | V228: 0.03 | W228: 0.03 | X228: 0.03 | Y228: 0.03 | Z228: 0.03 | AA228: 0.03 | AB228: 0.03 | AC228: 0.03 | AD228: 0.03 | AE228: 0.03 | AF228: 0.03 | AG228: 0.03 | AH228: 0.03 | AI228: 0.03 | AJ228: 0.03 | AK228: 0.03 | AL228: 0.03 | AM228: 0.03 | AN228: 0.03 | AO228: 0.03 | AP228: 0.03 | AQ228: 0.03 | AR228: 0.03 | AS228: 0.03 | AT228: 0.03 | AU228: 0.03 | AV228: 0.03 | AW228: 0.03 | AX228: 0.03 | AY228: 0.03 | AZ228: 0.03 | BA228: 0.03 | BB228: 0.03 | BC228: 0.03 | BD228: 0.03 | BE228: 0.03 | BF228: 0.03 | BG228: 0.03 | BH228: 0.03 | BI228: 0.03 | BJ228: 0.03 | BK228: 0.03 | BL228: 0.03 | BM228: 0.03 | BN228: 0.03 | BO228: 0.03 | BP228: 0.03 | BQ228: 0.03
D229: Project Age | J229: =I229+J$8 -> 0 | K229: =J229+K$8 -> 0 | L229: 0 | M229: 1 | N229: 2 | O229: 3 | P229: 4 | Q229: 5 | R229: 6 | S229: 7 | T229: 8 | U229: 9 | V229: 10 | W229: 11 | X229: 12 | Y229: 13 | Z229: 14 | AA229: 15 | AB229: 16 | AC229: 17 | AD229: 18 | AE229: 19 | AF229: 20 | AG229: 21 | AH229: 22 | AI229: 23 | AJ229: 24 | AK229: 25 | AL229: 25 | AM229: 25 | AN229: 25 | AO229: 25 | AP229: 25 | AQ229: 25 | AR229: 25 | AS229: 25 | AT229: 25 | AU229: 25 | AV229: 25 | AW229: 25 | AX229: 25 | AY229: 25 | AZ229: 25 | BA229: 25 | BB229: 25 | BC229: 25 | BD229: 25 | BE229: 25 | BF229: 25 | BG229: 25 | BH229: 25 | BI229: 25 | BJ229: 25 | BK229: 25 | BL229: 25 | BM229: 25 | BN229: 25 | BO229: 25 | BP229: 25 | BQ229: 25
D230: Debt Period | E230: =Inputs!$F$38 -> 17 | I230: =SUM(J230:BQ230) -> 17 | J230: =AND(J$53<=$E230,J$8)*1 -> 0 | K230: =AND(K$53<=$E230,K$8)*1 -> 0 | L230: 0 | M230: 1 | N230: 1 | O230: 1 | P230: 1 | Q230: 1 | R230: 1 | S230: 1 | T230: 1 | U230: 1 | V230: 1 | W230: 1 | X230: 1 | Y230: 1 | Z230: 1 | AA230: 1 | AB230: 1 | AC230: 1 | AD230: 0 | AE230: 0 | AF230: 0 | AG230: 0 | AH230: 0 | AI230: 0 | AJ230: 0 | AK230: 0 | AL230: 0 | AM230: 0 | AN230: 0 | AO230: 0 | AP230: 0 | AQ230: 0 | AR230: 0 | AS230: 0 | AT230: 0 | AU230: 0 | AV230: 0 | AW230: 0 | AX230: 0 | AY230: 0 | AZ230: 0 | BA230: 0 | BB230: 0 | BC230: 0 | BD230: 0 | BE230: 0 | BF230: 0 | BG230: 0 | BH230: 0 | BI230: 0 | BJ230: 0 | BK230: 0 | BL230: 0 | BM230: 0 | BN230: 0 | BO230: 0 | BP230: 0 | BQ230: 0
C234: P90 Sources and Uses | E234: Applied | F234: Fixed DC | G234: Comp DC | H234: Parallel | I234: Difference
D235: Capital Expenditures | E235: =F235 -> 1800 | F235: 1800 | G235: =SUM(J235:BQ235) -> 1400 | J235: =J$13 -> 466.6666667 | K235: =K$13 -> 466.6666667 | L235: 466.6666667 | M235: 0 | N235: 0 | O235: 0 | P235: 0 | Q235: 0 | R235: 0 | S235: 0 | T235: 0 | U235: 0 | V235: 0 | W235: 0 | X235: 0 | Y235: 0 | Z235: 0 | AA235: 0 | AB235: 0 | AC235: 0 | AD235: 0 | AE235: 0 | AF235: 0 | AG235: 0 | AH235: 0 | AI235: 0 | AJ235: 0 | AK235: 0 | AL235: 0 | AM235: 0 | AN235: 0 | AO235: 0 | AP235: 0 | AQ235: 0 | AR235: 0 | AS235: 0 | AT235: 0 | AU235: 0 | AV235: 0 | AW235: 0 | AX235: 0 | AY235: 0 | AZ235: 0 | BA235: 0 | BB235: 0 | BC235: 0 | BD235: 0 | BE235: 0 | BF235: 0 | BG235: 0 | BH235: 0 | BI235: 0 | BJ235: 0 | BK235: 0 | BL235: 0 | BM235: 0 | BN235: 0 | BO235: 0 | BP235: 0 | BQ235: 0
D236: IDC | E236: =F236 -> 32.56390138 | F236: 32.56390138 | G236: =SUM(J236:BQ236) -> 36.85733769 | I236: =G236-E236 -> 4.293436313 | J236: =J297 -> 0 | K236: =K297 -> 12.32156884 | L236: 24.53576885 | M236: 0 | N236: 0 | O236: 0 | P236: 0 | Q236: 0 | R236: 0 | S236: 0 | T236: 0 | U236: 0 | V236: 0 | W236: 0 | X236: 0 | Y236: 0 | Z236: 0 | AA236: 0 | AB236: 0 | AC236: 0 | AD236: 0 | AE236: 0 | AF236: 0 | AG236: 0 | AH236: 0 | AI236: 0 | AJ236: 0 | AK236: 0 | AL236: 0 | AM236: 0 | AN236: 0 | AO236: 0 | AP236: 0 | AQ236: 0 | AR236: 0 | AS236: 0 | AT236: 0 | AU236: 0 | AV236: 0 | AW236: 0 | AX236: 0 | AY236: 0 | AZ236: 0 | BA236: 0 | BB236: 0 | BC236: 0 | BD236: 0 | BE236: 0 | BF236: 0 | BG236: 0 | BH236: 0 | BI236: 0 | BJ236: 0 | BK236: 0 | BL236: 0 | BM236: 0 | BN236: 0 | BO236: 0 | BP236: 0 | BQ236: 0
D237: Up-Front Fee | E237: 11.25809825 | F237: 11.25809825 | G237: =SUM(J237:BQ237) -> 16.53211153 | I237: =G237-E237 -> 5.274013277 | J237: =J298 -> 16.53211153 | K237: =K298 -> 0 | L237: 0 | M237: 0 | N237: 0 | O237: 0 | P237: 0 | Q237: 0 | R237: 0 | S237: 0 | T237: 0 | U237: 0 | V237: 0 | W237: 0 | X237: 0 | Y237: 0 | Z237: 0 | AA237: 0 | AB237: 0 | AC237: 0 | AD237: 0 | AE237: 0 | AF237: 0 | AG237: 0 | AH237: 0 | AI237: 0 | AJ237: 0 | AK237: 0 | AL237: 0 | AM237: 0 | AN237: 0 | AO237: 0 | AP237: 0 | AQ237: 0 | AR237: 0 | AS237: 0 | AT237: 0 | AU237: 0 | AV237: 0 | AW237: 0 | AX237: 0 | AY237: 0 | AZ237: 0 | BA237: 0 | BB237: 0 | BC237: 0 | BD237: 0 | BE237: 0 | BF237: 0 | BG237: 0 | BH237: 0 | BI237: 0 | BJ237: 0 | BK237: 0 | BL237: 0 | BM237: 0 | BN237: 0 | BO237: 0 | BP237: 0 | BQ237: 0
D238: DSRA | E238: 101.1322975 | F238: 101.1322975 | G238: =SUM(J238:BQ238) -> 50.5504083 | I238: =G238-E238 -> -50.5818892 | J238: =J319 -> 0 | K238: 0 | L238: 50.5504083 | M238: 0 | N238: 0 | O238: 0 | P238: 0 | Q238: 0 | R238: 0 | S238: 0 | T238: 0 | U238: 0 | V238: 0 | W238: 0 | X238: 0 | Y238: 0 | Z238: 0 | AA238: 0 | AB238: 0 | AC238: 0 | AD238: 0 | AE238: 0 | AF238: 0 | AG238: 0 | AH238: 0 | AI238: 0 | AJ238: 0 | AK238: 0 | AL238: 0 | AM238: 0 | AN238: 0 | AO238: 0 | AP238: =AP319 -> 0 | AQ238: 0 | AR238: 0 | AS238: 0 | AT238: 0 | AU238: 0 | AV238: 0 | AW238: 0 | AX238: 0 | AY238: 0 | AZ238: 0 | BA238: 0 | BB238: 0 | BC238: 0 | BD238: 0 | BE238: 0 | BF238: 0 | BG238: 0 | BH238: 0 | BI238: 0 | BJ238: 0 | BK238: 0 | BL238: 0 | BM238: 0 | BN238: 0 | BO238: 0 | BP238: 0 | BQ238: 0
D239: Total | E239: =SUM(E235:E238) -> 1944.954297 | F239: =SUM(F235:F238) -> 1944.954297 | G239: =SUM(G235:G238) -> 1503.939858 | I239: =SUM(I235:I238) -> -41.01443961 | J239: =J235+J236+J237+J238 -> 483.1987782 | K239: =K235+K236+K237+K238 -> 478.9882355 | L239: 541.7528438 | M239: 0 | N239: 0 | O239: 0 | P239: 0 | Q239: 0 | R239: 0 | S239: 0 | T239: 0 | U239: 0 | V239: 0 | W239: 0 | X239: 0 | Y239: 0 | Z239: 0 | AA239: 0 | AB239: 0 | AC239: 0 | AD239: 0 | AE239: 0 | AF239: 0 | AG239: 0 | AH239: 0 | AI239: 0 | AJ239: 0 | AK239: 0 | AL239: 0 | AM239: 0 | AN239: 0 | AO239: 0 | AP239: 0 | AQ239: 0 | AR239: 0 | AS239: 0 | AT239: 0 | AU239: 0 | AV239: 0 | AW239: 0 | AX239: 0 | AY239: 0 | AZ239: 0 | BA239: 0 | BB239: 0 | BC239: 0 | BD239: 0 | BE239: 0 | BF239: 0 | BG239: 0 | BH239: 0 | BI239: 0 | BJ239: 0 | BK239: 0 | BL239: 0 | BM239: 0 | BN239: 0 | BO239: 0 | BP239: 0 | BQ239: 0
I240: DC SU Diff
D241: Uses | H241: Target | I241: %
D242: Debt | E242: =H242*E239 -> 1653.211153 | H242: =Inputs!F36 -> 0.85 | I242: =E242/E244 -> 0.85 | J242: =$I242*J239 -> 410.7189615 | K242: =$I242*K239 -> 407.1400002 | L242: 460.4899172 | M242: 0 | N242: 0 | O242: 0 | P242: 0 | Q242: 0 | R242: 0 | S242: 0 | T242: 0 | U242: 0 | V242: 0 | W242: 0 | X242: 0 | Y242: 0 | Z242: 0 | AA242: 0 | AB242: 0 | AC242: 0 | AD242: 0 | AE242: 0 | AF242: 0 | AG242: 0 | AH242: 0 | AI242: 0 | AJ242: 0 | AK242: 0 | AL242: 0 | AM242: 0 | AN242: 0 | AO242: 0 | AP242: 0 | AQ242: 0 | AR242: 0 | AS242: 0 | AT242: 0 | AU242: 0 | AV242: 0 | AW242: 0 | AX242: 0 | AY242: 0 | AZ242: 0 | BA242: 0 | BB242: 0 | BC242: 0 | BD242: 0 | BE242: 0 | BF242: 0 | BG242: 0 | BH242: 0 | BI242: 0 | BJ242: 0 | BK242: 0 | BL242: 0 | BM242: 0 | BN242: 0 | BO242: 0 | BP242: 0 | BQ242: 0
D243: Equity | E243: =E239-E242 -> 291.7431446 | I243: =E243/E244 -> 0.15 | J243: =J239-J242 -> 72.47981673 | K243: =K239-K242 -> 71.84823533 | L243: 81.26292657 | M243: 0 | N243: 0 | O243: 0 | P243: 0 | Q243: 0 | R243: 0 | S243: 0 | T243: 0 | U243: 0 | V243: 0 | W243: 0 | X243: 0 | Y243: 0 | Z243: 0 | AA243: 0 | AB243: 0 | AC243: 0 | AD243: 0 | AE243: 0 | AF243: 0 | AG243: 0 | AH243: 0 | AI243: 0 | AJ243: 0 | AK243: 0 | AL243: 0 | AM243: 0 | AN243: 0 | AO243: 0 | AP243: 0 | AQ243: 0 | AR243: 0 | AS243: 0 | AT243: 0 | AU243: 0 | AV243: 0 | AW243: 0 | AX243: 0 | AY243: 0 | AZ243: 0 | BA243: 0 | BB243: 0 | BC243: 0 | BD243: 0 | BE243: 0 | BF243: 0 | BG243: 0 | BH243: 0 | BI243: 0 | BJ243: 0 | BK243: 0 | BL243: 0 | BM243: 0 | BN243: 0 | BO243: 0 | BP243: 0 | BQ243: 0
D244: Total | E244: =SUM(E242:E243) -> 1944.954297 | J244: =SUM(J242:J243) -> 483.1987782 | K244: =SUM(K242:K243) -> 478.9882355 | L244: 541.7528438 | M244: 0 | N244: 0 | O244: 0 | P244: 0 | Q244: 0 | R244: 0 | S244: 0 | T244: 0 | U244: 0 | V244: 0 | W244: 0 | X244: 0 | Y244: 0 | Z244: 0 | AA244: 0 | AB244: 0 | AC244: 0 | AD244: 0 | AE244: 0 | AF244: 0 | AG244: 0 | AH244: 0 | AI244: 0 | AJ244: 0 | AK244: 0 | AL244: 0 | AM244: 0 | AN244: 0 | AO244: 0 | AP244: 0 | AQ244: 0 | AR244: 0 | AS244: 0 | AT244: 0 | AU244: 0 | AV244: 0 | AW244: 0 | AX244: 0 | AY244: 0 | AZ244: 0 | BA244: 0 | BB244: 0 | BC244: 0 | BD244: 0 | BE244: 0 | BF244: 0 | BG244: 0 | BH244: 0 | BI244: 0 | BJ244: 0 | BK244: 0 | BL244: 0 | BM244: 0 | BN244: 0 | BO244: 0 | BP244: 0 | BQ244: 0
D246: EBITDA P90 | J246: =J112 -> 0 | K246: 0 | L246: 0 | M246: 92.58262121 | N246: 92.63731757 | O246: 92.68616415 | P246: 92.72903987 | Q246: 92.76582164 | R246: 92.79638437 | S246: 92.82060092 | T246: 92.83834207 | U246: 92.8494765 | V246: 92.85387073 | W246: 92.85138915 | X246: 92.84189389 | Y246: 92.82524487 | Z246: 92.80129973 | AA246: 86.42933371 | AB246: 70.32223921 | AC246: 69.90472178 | AD246: -6.821210263e-15 | AE246: -6.821210263e-15 | AF246: -6.821210263e-15 | AG246: -6.821210263e-15 | AH246: -6.821210263e-15 | AI246: -6.821210263e-15 | AJ246: -6.821210263e-15 | AK246: -6.821210263e-15 | AL246: 2.376248897e-14 | AM246: 2.447536364e-14 | AN246: 2.520962455e-14 | AO246: 2.596591329e-14 | AP246: =AP112 -> 2.674489068e-14 | AQ246: 2.754723741e-14 | AR246: 2.837365453e-14 | AS246: 2.922486416e-14 | AT246: 3.010161009e-14 | AU246: 3.100465839e-14 | AV246: 3.193479814e-14 | AW246: 3.289284209e-14 | AX246: 3.387962735e-14 | AY246: 3.489601617e-14 | AZ246: 3.594289665e-14 | BA246: 3.702118355e-14 | BB246: 3.813181906e-14 | BC246: 3.927577363e-14 | BD246: 4.045404684e-14 | BE246: 4.166766825e-14 | BF246: 4.291769829e-14 | BG246: 4.420522924e-14 | BH246: 4.553138612e-14 | BI246: 4.68973277e-14 | BJ246: 4.830424754e-14 | BK246: 4.975337496e-14 | BL246: 5.124597621e-14 | BM246: 5.27833555e-14 | BN246: 5.436685616e-14 | BO246: 5.599786185e-14 | BP246: 5.76777977e-14 | BQ246: 5.940813163e-14
D247: Less: Base Depreciation | J247: =J$39 -> 0 | K247: =K$39 -> 0 | L247: 0 | M247: 420 | N247: 294 | O247: 228.6666667 | P247: 228.6666667 | Q247: 228.6666667 | R247: 0 | S247: 0 | T247: 0 | U247: 0 | V247: 0 | W247: 0 | X247: 0 | Y247: 0 | Z247: 0 | AA247: 0 | AB247: 0 | AC247: 0 | AD247: 0 | AE247: 0 | AF247: 0 | AG247: 0 | AH247: 0 | AI247: 0 | AJ247: 0 | AK247: 0 | AL247: 0 | AM247: 0 | AN247: 0 | AO247: 0 | AP247: 0 | AQ247: 0 | AR247: 0 | AS247: 0 | AT247: 0 | AU247: 0 | AV247: 0 | AW247: 0 | AX247: 0 | AY247: 0 | AZ247: 0 | BA247: 0 | BB247: 0 | BC247: 0 | BD247: 0 | BE247: 0 | BF247: 0 | BG247: 0 | BH247: 0 | BI247: 0 | BJ247: 0 | BK247: 0 | BL247: 0 | BM247: 0 | BN247: 0 | BO247: 0 | BP247: 0 | BQ247: 0
... 74 more rows

Sheet Audit
B1: Overall | C1: =AND(C3:C6) -> FALSE | D1: =IF(C1, "model ok", D8) -> B/s Check Check closing balance = 0 Equity Funding Debt Funding
B3: ='UDF Model'!C83 -> Debt Funding | C3: ='UDF Model'!I83 -> FALSE | D3: =IF(C3,"",B3) -> Debt Funding
B4: ='UDF Model'!C84 -> Equity Funding | C4: ='UDF Model'!I84 -> FALSE | D4: =IF(C4,"",B4) -> Equity Funding
B5: ='UDF Model'!D92 -> Check closing balance = 0 | C5: ='UDF Model'!I90 -> FALSE | D5: Check closing balance = 0
B6: B/s Check | C6: FALSE | D6: B/s Check
D8: =AddtextS(D3:D6) -> B/s Check Check closing balance = 0 Equity Funding Debt Funding

Sheet UDF Model
B2: Timing | H2: Sum
C3: Period | J3: 1 | K3: 2 | L3: 3 | M3: 4 | N3: 5 | O3: 6 | P3: 7 | Q3: 8 | R3: 9 | S3: 10 | T3: 11 | U3: 12 | V3: 13 | W3: 14 | X3: 15 | Y3: 16 | Z3: 17 | AA3: 18 | AB3: 19 | AC3: 20 | AD3: 21 | AE3: 22 | AF3: 23 | AG3: 24 | AH3: 25 | AI3: 26 | AJ3: 27 | AK3: 28 | AL3: 29 | AM3: 30 | AN3: 31 | AO3: 32 | AP3: 33 | AQ3: 34 | AR3: 35 | AS3: 36 | AT3: 37 | AU3: 38 | AV3: 39 | AW3: 40 | AX3: 41 | AY3: 42 | AZ3: 43 | BA3: 44 | BB3: 45 | BC3: 46 | BD3: 47 | BE3: 48 | BF3: 49 | BG3: 50 | BH3: 51 | BI3: 52 | BJ3: 53 | BK3: 54 | BL3: 55 | BM3: 56 | BN3: 57 | BO3: 58 | BP3: 59 | BQ3: 60 | BR3: 61 | BS3: 62 | BT3: 63 | BU3: 64 | BV3: 65 | BW3: 66 | BX3: 67 | BY3: 68 | BZ3: 69 | CA3: 70 | CB3: 71 | CC3: 72 | CD3: 73 | CE3: 74 | CF3: 75 | CG3: 76 | CH3: 77 | CI3: 78 | CJ3: 79 | CK3: 80 | CL3: 81 | CM3: 82 | CN3: 83 | CO3: 84 | CP3: 85 | CQ3: 86 | CR3: 87 | CS3: 88 | CT3: 89 | CU3: 90 | CV3: 91 | CW3: 92 | CX3: 93 | CY3: 94 | CZ3: 95 | DA3: 96 | DB3: 97 | DC3: 98 | DD3: 99 | DE3: 100 | DF3: 101 | DG3: 102 | DH3: 103 | DI3: 104 | DJ3: 105 | DK3: 106 | DL3: 107 | DM3: 108 | DN3: 109 | DO3: 110 | DP3: 111 | DQ3: 112 | DR3: 113 | DS3: 114 | DT3: 115 | DU3: 116 | DV3: 117 | DW3: 118 | DX3: 119 | DY3: 120 | DZ3: 121 | EA3: 122 | EB3: 123 | EC3: 124 | ED3: 125 | EE3: 126 | EF3: 127 | EG3: 128 | EH3: 129 | EI3: 130 | EJ3: 131 | EK3: 132 | EL3: 133 | EM3: 134 | EN3: 135 | EO3: 136 | EP3: 137 | EQ3: 138 | ER3: 139 | ES3: 140 | ET3: 141 | EU3: 142 | EV3: 143 | EW3: 144 | EX3: 145 | EY3: 146 | EZ3: 147 | FA3: 148 | FB3: 149 | FC3: 150 | FD3: 151 | FE3: 152 | FF3: 153 | FG3: 154 | FH3: 155 | FI3: 156 | FJ3: 157 | FK3: 158 | FL3: 159 | FM3: 160 | FN3: 161 | FO3: 162 | FP3: 163 | FQ3: 164 | FR3: 165 | FS3: 166 | FT3: 167 | FU3: 168 | FV3: 169 | FW3: 170 | FX3: 171 | FY3: 172 | FZ3: 173 | GA3: 174 | GB3: 175 | GC3: 176 | GD3: 177 | GE3: 178 | GF3: 179 | GG3: 180 | GH3: 181 | GI3: 182 | GJ3: 183 | GK3: 184 | GL3: 185 | GM3: 186 | GN3: 187 | GO3: 188 | GP3: 189 | GQ3: 190 | GR3: 191 | GS3: 192 | GT3: 193 | GU3: 194 | GV3: 195 | GW3: 196 | GX3: 197 | GY3: 198 | GZ3: 199 | HA3: 200
C4: Construction | E4: Period | F4: =Inputs!$F$4 -> 3 | J4: =(J3<=$F$4)*1 -> 1 | K4: =(K3<=$F$4)*1 -> 1 | L4: 1 | M4: 0 | N4: 0 | O4: 0 | P4: 0 | Q4: 0 | R4: 0 | S4: 0 | T4: 0 | U4: 0 | V4: 0 | W4: 0 | X4: 0 | Y4: 0 | Z4: 0 | AA4: 0 | AB4: 0 | AC4: 0 | AD4: 0 | AE4: 0 | AF4: 0 | AG4: 0 | AH4: 0 | AI4: 0 | AJ4: 0 | AK4: 0 | AL4: 0 | AM4: 0 | AN4: 0 | AO4: 0 | AP4: 0 | AQ4: 0 | AR4: 0 | AS4: 0 | AT4: 0 | AU4: 0 | AV4: 0 | AW4: 0 | AX4: 0 | AY4: 0 | AZ4: 0 | BA4: 0 | BB4: 0 | BC4: 0 | BD4: 0 | BE4: 0 | BF4: 0 | BG4: 0 | BH4: 0 | BI4: 0 | BJ4: 0 | BK4: 0 | BL4: 0 | BM4: 0 | BN4: 0 | BO4: 0 | BP4: 0 | BQ4: 0 | BR4: 0 | BS4: 0 | BT4: 0 | BU4: 0 | BV4: 0 | BW4: =(BW3<=$F$4)*1 -> 0 | BX4: 0 | BY4: 0 | BZ4: 0 | CA4: 0 | CB4: 0 | CC4: 0 | CD4: 0 | CE4: 0 | CF4: 0 | CG4: 0 | CH4: 0 | CI4: 0 | CJ4: 0 | CK4: 0 | CL4: 0 | CM4: 0 | CN4: 0 | CO4: 0 | CP4: 0 | CQ4: 0 | CR4: 0 | CS4: 0 | CT4: 0 | CU4: 0 | CV4: 0 | CW4: 0 | CX4: 0 | CY4: 0 | CZ4: 0 | DA4: 0 | DB4: 0 | DC4: 0 | DD4: 0 | DE4: 0 | DF4: 0 | DG4: 0 | DH4: 0 | DI4: 0 | DJ4: 0 | DK4: 0 | DL4: 0 | DM4: 0 | DN4: 0 | DO4: 0 | DP4: 0 | DQ4: 0 | DR4: 0 | DS4: 0 | DT4: 0 | DU4: 0 | DV4: 0 | DW4: 0 | DX4: 0 | DY4: 0 | DZ4: 0 | EA4: 0 | EB4: 0 | EC4: 0 | ED4: 0 | EE4: 0 | EF4: 0 | EG4: 0 | EH4: 0 | EI4: =(EI3<=$F$4)*1 -> 0 | EJ4: 0 | EK4: 0 | EL4: 0 | EM4: 0 | EN4: 0 | EO4: 0 | EP4: 0 | EQ4: 0 | ER4: 0 | ES4: 0 | ET4: 0 | EU4: 0 | EV4: 0 | EW4: 0 | EX4: 0 | EY4: 0 | EZ4: 0 | FA4: 0 | FB4: 0 | FC4: 0 | FD4: 0 | FE4: 0 | FF4: 0 | FG4: 0 | FH4: 0 | FI4: 0 | FJ4: 0 | FK4: 0 | FL4: 0 | FM4: 0 | FN4: 0 | FO4: 0 | FP4: 0 | FQ4: 0 | FR4: 0 | FS4: 0 | FT4: 0 | FU4: 0 | FV4: 0 | FW4: 0 | FX4: 0 | FY4: 0 | FZ4: 0 | GA4: 0 | GB4: 0 | GC4: 0 | GD4: 0 | GE4: 0 | GF4: 0 | GG4: 0 | GH4: 0 | GI4: 0 | GJ4: 0 | GK4: 0 | GL4: 0 | GM4: 0 | GN4: 0 | GO4: 0 | GP4: 0 | GQ4: 0 | GR4: 0 | GS4: 0 | GT4: 0 | GU4: =(GU3<=$F$4)*1 -> 0 | GV4: 0 | GW4: 0 | GX4: 0 | GY4: 0 | GZ4: 0 | HA4: 0
C5: Months in Period | F5: =Inputs!$F$8 -> 12 | G5: =Inputs!$F$9 -> 12 | J5: =IF(J4=1,$F$5,$G$5) -> 12 | K5: =IF(K4=1,$F$5,$G$5) -> 12 | L5: 12 | M5: 12 | N5: 12 | O5: 12 | P5: 12 | Q5: 12 | R5: 12 | S5: 12 | T5: 12 | U5: 12 | V5: 12 | W5: 12 | X5: 12 | Y5: 12 | Z5: 12 | AA5: 12 | AB5: 12 | AC5: 12 | AD5: 12 | AE5: 12 | AF5: 12 | AG5: 12 | AH5: 12 | AI5: 12 | AJ5: 12 | AK5: 12 | AL5: 12 | AM5: 12 | AN5: 12 | AO5: 12 | AP5: 12 | AQ5: 12 | AR5: 12 | AS5: 12 | AT5: 12 | AU5: 12 | AV5: 12 | AW5: 12 | AX5: 12 | AY5: 12 | AZ5: 12 | BA5: 12 | BB5: 12 | BC5: 12 | BD5: 12 | BE5: 12 | BF5: 12 | BG5: 12 | BH5: 12 | BI5: 12 | BJ5: 12 | BK5: 12 | BL5: 12 | BM5: 12 | BN5: 12 | BO5: 12 | BP5: 12 | BQ5: 12 | BR5: 12 | BS5: 12 | BT5: 12 | BU5: 12 | BV5: 12 | BW5: =IF(BW4=1,$F$5,$G$5) -> 12 | BX5: 12 | BY5: 12 | BZ5: 12 | CA5: 12 | CB5: 12 | CC5: 12 | CD5: 12 | CE5: 12 | CF5: 12 | CG5: 12 | CH5: 12 | CI5: 12 | CJ5: 12 | CK5: 12 | CL5: 12 | CM5: 12 | CN5: 12 | CO5: 12 | CP5: 12 | CQ5: 12 | CR5: 12 | CS5: 12 | CT5: 12 | CU5: 12 | CV5: 12 | CW5: 12 | CX5: 12 | CY5: 12 | CZ5: 12 | DA5: 12 | DB5: 12 | DC5: 12 | DD5: 12 | DE5: 12 | DF5: 12 | DG5: 12 | DH5: 12 | DI5: 12 | DJ5: 12 | DK5: 12 | DL5: 12 | DM5: 12 | DN5: 12 | DO5: 12 | DP5: 12 | DQ5: 12 | DR5: 12 | DS5: 12 | DT5: 12 | DU5: 12 | DV5: 12 | DW5: 12 | DX5: 12 | DY5: 12 | DZ5: 12 | EA5: 12 | EB5: 12 | EC5: 12 | ED5: 12 | EE5: 12 | EF5: 12 | EG5: 12 | EH5: 12 | EI5: =IF(EI4=1,$F$5,$G$5) -> 12 | EJ5: 12 | EK5: 12 | EL5: 12 | EM5: 12 | EN5: 12 | EO5: 12 | EP5: 12 | EQ5: 12 | ER5: 12 | ES5: 12 | ET5: 12 | EU5: 12 | EV5: 12 | EW5: 12 | EX5: 12 | EY5: 12 | EZ5: 12 | FA5: 12 | FB5: 12 | FC5: 12 | FD5: 12 | FE5: 12 | FF5: 12 | FG5: 12 | FH5: 12 | FI5: 12 | FJ5: 12 | FK5: 12 | FL5: 12 | FM5: 12 | FN5: 12 | FO5: 12 | FP5: 12 | FQ5: 12 | FR5: 12 | FS5: 12 | FT5: 12 | FU5: 12 | FV5: 12 | FW5: 12 | FX5: 12 | FY5: 12 | FZ5: 12 | GA5: 12 | GB5: 12 | GC5: 12 | GD5: 12 | GE5: 12 | GF5: 12 | GG5: 12 | GH5: 12 | GI5: 12 | GJ5: 12 | GK5: 12 | GL5: 12 | GM5: 12 | GN5: 12 | GO5: 12 | GP5: 12 | GQ5: 12 | GR5: 12 | GS5: 12 | GT5: 12 | GU5: =IF(GU4=1,$F$5,$G$5) -> 12 | GV5: 12 | GW5: 12 | GX5: 12 | GY5: 12 | GZ5: 12 | HA5: 12
C6: Start Date | J6: =I7+1 -> 2020-01-01 | K6: =J7+1 -> 2021-01-01 | L6: 2022-01-01 | M6: 2023-01-01 | N6: 2024-01-01 | O6: 2025-01-01 | P6: 2026-01-01 | Q6: 2027-01-01 | R6: 2028-01-01 | S6: 2029-01-01 | T6: 2030-01-01 | U6: 2031-01-01 | V6: 2032-01-01 | W6: 2033-01-01 | X6: 2034-01-01 | Y6: 2035-01-01 | Z6: 2036-01-01 | AA6: 2037-01-01 | AB6: 2038-01-01 | AC6: 2039-01-01 | AD6: 2040-01-01 | AE6: 2041-01-01 | AF6: 2042-01-01 | AG6: 2043-01-01 | AH6: 2044-01-01 | AI6: 2045-01-01 | AJ6: 2046-01-01 | AK6: 2047-01-01 | AL6: 2048-01-01 | AM6: 2049-01-01 | AN6: 2050-01-01 | AO6: 2051-01-01 | AP6: 2052-01-01 | AQ6: 2053-01-01 | AR6: 2054-01-01 | AS6: 2055-01-01 | AT6: 2056-01-01 | AU6: 2057-01-01 | AV6: 2058-01-01 | AW6: 2059-01-01 | AX6: 2060-01-01 | AY6: 2061-01-01 | AZ6: 2062-01-01 | BA6: 2063-01-01 | BB6: 2064-01-01 | BC6: 2065-01-01 | BD6: 2066-01-01 | BE6: 2067-01-01 | BF6: 2068-01-01 | BG6: 2069-01-01 | BH6: 2070-01-01 | BI6: 2071-01-01 | BJ6: 2072-01-01 | BK6: 2073-01-01 | BL6: 2074-01-01 | BM6: 2075-01-01 | BN6: 2076-01-01 | BO6: 2077-01-01 | BP6: 2078-01-01 | BQ6: 2079-01-01
D7: End Date | I7: =Inputs!$F$3-1 -> 2019-12-31 | J7: =EDATE(J6,J5)-1 -> 2020-12-31 | K7: =EDATE(K6,K5)-1 -> 2021-12-31 | L7: =EDATE(L6,L5)-1 -> 2022-12-31 | M7: =EDATE(M6,M5)-1 -> 2023-12-31 | N7: 2024-12-31 | O7: 2025-12-31 | P7: 2026-12-31 | Q7: 2027-12-31 | R7: 2028-12-31 | S7: 2029-12-31 | T7: 2030-12-31 | U7: 2031-12-31 | V7: 2032-12-31 | W7: 2033-12-31 | X7: 2034-12-31 | Y7: 2035-12-31 | Z7: 2036-12-31 | AA7: 2037-12-31 | AB7: 2038-12-31 | AC7: 2039-12-31 | AD7: 2040-12-31 | AE7: 2041-12-31 | AF7: 2042-12-31 | AG7: 2043-12-31 | AH7: 2044-12-31 | AI7: 2045-12-31 | AJ7: 2046-12-31 | AK7: 2047-12-31 | AL7: 2048-12-31 | AM7: 2049-12-31 | AN7: 2050-12-31 | AO7: 2051-12-31 | AP7: 2052-12-31 | AQ7: 2053-12-31 | AR7: 2054-12-31 | AS7: 2055-12-31 | AT7: 2056-12-31 | AU7: 2057-12-31 | AV7: 2058-12-31 | AW7: 2059-12-31 | AX7: 2060-12-31 | AY7: 2061-12-31 | AZ7: 2062-12-31 | BA7: 2063-12-31 | BB7: 2064-12-31 | BC7: 2065-12-31 | BD7: 2066-12-31 | BE7: 2067-12-31 | BF7: 2068-12-31 | BG7: 2069-12-31 | BH7: 2070-12-31 | BI7: 2071-12-31 | BJ7: 2072-12-31 | BK7: 2073-12-31 | BL7: 2074-12-31 | BM7: 2075-12-31 | BN7: 2076-12-31 | BO7: 2077-12-31 | BP7: 2078-12-31 | BQ7: 2079-12-31
C8: Operating Period | E8: Swtich | F8: =Inputs!$F$5 -> 2023-01-01 | G8: =Inputs!$F$7 -> 2048-01-01 | J8: =AND(J6>=$F$8,J6<$G$8) -> FALSE | K8: =AND(K6>=$F$8,K6<$G$8) -> FALSE | L8: FALSE | M8: TRUE | N8: TRUE | O8: TRUE | P8: TRUE | Q8: TRUE | R8: TRUE | S8: TRUE | T8: TRUE | U8: TRUE | V8: TRUE | W8: TRUE | X8: TRUE | Y8: TRUE | Z8: TRUE | AA8: TRUE | AB8: TRUE | AC8: TRUE | AD8: TRUE | AE8: TRUE | AF8: TRUE | AG8: TRUE | AH8: TRUE | AI8: TRUE | AJ8: TRUE | AK8: TRUE | AL8: FALSE | AM8: FALSE | AN8: FALSE | AO8: FALSE | AP8: FALSE | AQ8: FALSE | AR8: FALSE | AS8: FALSE | AT8: FALSE | AU8: FALSE | AV8: FALSE | AW8: FALSE | AX8: FALSE | AY8: FALSE | AZ8: FALSE | BA8: FALSE | BB8: FALSE | BC8: FALSE | BD8: FALSE | BE8: FALSE | BF8: FALSE | BG8: FALSE | BH8: FALSE | BI8: FALSE | BJ8: FALSE | BK8: FALSE | BL8: FALSE | BM8: FALSE | BN8: FALSE | BO8: FALSE | BP8: FALSE | BQ8: FALSE
B10: Operations
C11: Total Capital Expenditures | E11: Euro | F11: =Inputs!F12 -> 1400 | J11: =$F$11 -> 1400 | K11: =$F$11 -> 1400 | L11: 1400 | M11: 1400 | N11: 1400 | O11: 1400 | P11: 1400 | Q11: 1400 | R11: 1400 | S11: 1400 | T11: 1400 | U11: 1400 | V11: 1400 | W11: 1400 | X11: 1400 | Y11: 1400 | Z11: 1400 | AA11: 1400 | AB11: 1400 | AC11: 1400 | AD11: 1400 | AE11: 1400 | AF11: 1400 | AG11: 1400 | AH11: 1400 | AI11: 1400 | AJ11: 1400 | AK11: 1400 | AL11: 1400 | AM11: 1400 | AN11: 1400 | AO11: 1400 | AP11: 1400 | AQ11: 1400 | AR11: 1400 | AS11: 1400 | AT11: 1400 | AU11: 1400 | AV11: 1400 | AW11: 1400 | AX11: 1400 | AY11: 1400 | AZ11: 1400 | BA11: 1400 | BB11: 1400 | BC11: 1400 | BD11: 1400 | BE11: 1400 | BF11: 1400 | BG11: 1400 | BH11: 1400 | BI11: 1400 | BJ11: 1400 | BK11: 1400 | BL11: 1400 | BM11: 1400 | BN11: 1400 | BO11: 1400 | BP11: 1400 | BQ11: 1400
C12: S-Curve | E12: Periods | F12: =Inputs!F4 -> 3 | J12: =1/$F$12*J4 -> 0.3333333333 | K12: =1/$F$12*K4 -> 0.3333333333 | L12: 0.3333333333 | M12: 0 | N12: 0 | O12: 0 | P12: 0 | Q12: 0 | R12: 0 | S12: 0 | T12: 0 | U12: 0 | V12: 0 | W12: 0 | X12: 0 | Y12: 0 | Z12: 0 | AA12: 0 | AB12: 0 | AC12: 0 | AD12: 0 | AE12: 0 | AF12: 0 | AG12: 0 | AH12: 0 | AI12: 0 | AJ12: 0 | AK12: 0 | AL12: 0 | AM12: 0 | AN12: 0 | AO12: 0 | AP12: 0 | AQ12: 0 | AR12: 0 | AS12: 0 | AT12: 0 | AU12: 0 | AV12: 0 | AW12: 0 | AX12: 0 | AY12: 0 | AZ12: 0 | BA12: 0 | BB12: 0 | BC12: 0 | BD12: 0 | BE12: 0 | BF12: 0 | BG12: 0 | BH12: 0 | BI12: 0 | BJ12: 0 | BK12: 0 | BL12: 0 | BM12: 0 | BN12: 0 | BO12: 0 | BP12: 0 | BQ12: 0
C13: Cap Exp | E13: Euro | F13: =Inputs!F12 -> 1400 | J13: =J11*J12 -> 466.6666667 | K13: =K11*K12 -> 466.6666667 | L13: 466.6666667 | M13: 0 | N13: 0 | O13: 0 | P13: 0 | Q13: 0 | R13: 0 | S13: 0 | T13: 0 | U13: 0 | V13: 0 | W13: 0 | X13: 0 | Y13: 0 | Z13: 0 | AA13: 0 | AB13: 0 | AC13: 0 | AD13: 0 | AE13: 0 | AF13: 0 | AG13: 0 | AH13: 0 | AI13: 0 | AJ13: 0 | AK13: 0 | AL13: 0 | AM13: 0 | AN13: 0 | AO13: 0 | AP13: 0 | AQ13: 0 | AR13: 0 | AS13: 0 | AT13: 0 | AU13: 0 | AV13: 0 | AW13: 0 | AX13: 0 | AY13: 0 | AZ13: 0 | BA13: 0 | BB13: 0 | BC13: 0 | BD13: 0 | BE13: 0 | BF13: 0 | BG13: 0 | BH13: 0 | BI13: 0 | BJ13: 0 | BK13: 0 | BL13: 0 | BM13: 0 | BN13: 0 | BO13: 0 | BP13: 0 | BQ13: 0
C15: P50 - Base | E15: Euro | F15: =Inputs!$F$14 -> 170 | G15: =Inputs!$F$18 -> 0.005 | I15: =F15 -> 170 | J15: =I15*(1+$G$15) -> 170.85 | K15: =J15*(1+$G$15) -> 171.70425 | L15: 172.5627712 | M15: 173.4255851 | N15: 174.292713 | O15: 175.1641766 | P15: 176.0399975 | Q15: 176.9201975 | R15: 177.8047985 | S15: 178.6938224 | T15: 179.5872916 | U15: 180.485228 | V15: 181.3876542 | W15: 182.2945924 | X15: 183.2060654 | Y15: 184.1220957 | Z15: 185.0427062 | AA15: 185.9679197 | AB15: 186.8977593 | AC15: 187.8322481 | AD15: 188.7714094 | AE15: 189.7152664 | AF15: 190.6638427 | AG15: 191.617162 | AH15: 192.5752478 | AI15: 193.538124 | AJ15: 194.5058146 | AK15: 195.4783437 | AL15: 196.4557354 | AM15: 197.4380141 | AN15: 198.4252042 | AO15: 199.4173302 | AP15: 200.4144168 | AQ15: 201.4164889 | AR15: 202.4235714 | AS15: 203.4356892 | AT15: 204.4528677 | AU15: 205.475132 | AV15: 206.5025077 | AW15: 207.5350202 | AX15: 208.5726953 | AY15: 209.6155588 | AZ15: 210.6636366 | BA15: 211.7169548 | BB15: 212.7755395 | BC15: 213.8394172 | BD15: 214.9086143 | BE15: 215.9831574 | BF15: 217.0630732 | BG15: 218.1483885 | BH15: 219.2391305 | BI15: 220.3353261 | BJ15: 221.4370028 | BK15: 222.5441878 | BL15: 223.6569087 | BM15: 224.7751933 | BN15: 225.8990692 | BO15: 227.0285646 | BP15: 228.1637074 | BQ15: 229.3045259
C16: P90 - Base | E16: Euro | F16: =Inputs!$F$15 -> 140 | G16: =Inputs!$F$19 -> 0 | I16: =F16 -> 140 | J16: =I16*(1+$G$16) -> 140 | K16: =J16*(1+$G$16) -> 140 | L16: 140 | M16: 140 | N16: 140 | O16: 140 | P16: 140 | Q16: 140 | R16: 140 | S16: 140 | T16: 140 | U16: 140 | V16: 140 | W16: 140 | X16: 140 | Y16: 140 | Z16: 140 | AA16: 140 | AB16: 140 | AC16: 140 | AD16: 140 | AE16: 140 | AF16: 140 | AG16: 140 | AH16: 140 | AI16: 140 | AJ16: 140 | AK16: 140 | AL16: 140 | AM16: 140 | AN16: 140 | AO16: 140 | AP16: 140 | AQ16: 140 | AR16: 140 | AS16: 140 | AT16: 140 | AU16: 140 | AV16: 140 | AW16: 140 | AX16: 140 | AY16: 140 | AZ16: 140 | BA16: 140 | BB16: 140 | BC16: 140 | BD16: 140 | BE16: 140 | BF16: 140 | BG16: 140 | BH16: 140 | BI16: 140 | BJ16: 140 | BK16: 140 | BL16: 140 | BM16: 140 | BN16: 140 | BO16: 140 | BP16: 140 | BQ16: 140
C17: Applied - Base | E17: Euro | F17: =Inputs!$F$16 -> 189 | G17: =Inputs!$F$20 -> 0.008 | I17: 189 | J17: =I17*(1+$G$17) -> 190.512 | K17: =J17*(1+$G$17) -> 192.036096 | L17: 193.5723848 | M17: 195.1209638 | N17: 196.6819316 | O17: 198.255387 | P17: 199.8414301 | Q17: 201.4401615 | R17: 203.0516828 | S17: 204.6760963 | T17: 206.3135051 | U17: 207.9640131 | V17: 209.6277252 | W17: 211.304747 | X17: 212.995185 | Y17: 214.6991465 | Z17: 216.4167396 | AA17: 218.1480736 | AB17: 219.8932582 | AC17: 221.6524042 | AD17: 223.4256235 | AE17: 225.2130284 | AF17: 227.0147327 | AG17: 228.8308505 | AH17: 230.6614973 | AI17: 232.5067893 | AJ17: 234.3668436 | AK17: 236.2417784 | AL17: 238.1317126 | AM17: 240.0367663 | AN17: 241.9570604 | AO17: 243.8927169 | AP17: 245.8438587 | AQ17: 247.8106095 | AR17: 249.7930944 | AS17: 251.7914392 | AT17: 253.8057707 | AU17: 255.8362168 | AV17: 257.8829066 | AW17: 259.9459698 | AX17: 262.0255376 | AY17: 264.1217419 | AZ17: 266.2347158 | BA17: 268.3645935 | BB17: 270.5115103 | BC17: 272.6756024 | BD17: 274.8570072 | BE17: 277.0558632 | BF17: 279.2723102 | BG17: 281.5064886 | BH17: 283.7585405 | BI17: 286.0286089 | BJ17: 288.3168377 | BK17: 290.6233724 | BL17: 292.9483594 | BM17: 295.2919463 | BN17: 297.6542819 | BO17: 300.0355161 | BP17: 302.4358002 | BQ17: 304.8552866
C19: P50 - Applied | E19: Euro | J19: =J15*J8 -> 0 | K19: =K15*K8 -> 0 | L19: 0 | M19: 173.4255851 | N19: 174.292713 | O19: 175.1641766 | P19: 176.0399975 | Q19: 176.9201975 | R19: 177.8047985 | S19: 178.6938224 | T19: 179.5872916 | U19: 180.485228 | V19: 181.3876542 | W19: 182.2945924 | X19: 183.2060654 | Y19: 184.1220957 | Z19: 185.0427062 | AA19: 185.9679197 | AB19: 186.8977593 | AC19: 187.8322481 | AD19: 188.7714094 | AE19: 189.7152664 | AF19: 190.6638427 | AG19: 191.617162 | AH19: 192.5752478 | AI19: 193.538124 | AJ19: 194.5058146 | AK19: 195.4783437 | AL19: 0 | AM19: 0 | AN19: 0 | AO19: 0 | AP19: 0 | AQ19: 0 | AR19: 0 | AS19: 0 | AT19: 0 | AU19: 0 | AV19: 0 | AW19: 0 | AX19: 0 | AY19: 0 | AZ19: 0 | BA19: 0 | BB19: 0 | BC19: 0 | BD19: 0 | BE19: 0 | BF19: 0 | BG19: 0 | BH19: 0 | BI19: 0 | BJ19: 0 | BK19: 0 | BL19: 0 | BM19: 0 | BN19: 0 | BO19: 0 | BP19: 0 | BQ19: 0
C20: P90 - Applied | E20: Euro | J20: =J16*J8 -> 0 | K20: =K16*K8 -> 0 | L20: 0 | M20: 140 | N20: 140 | O20: 140 | P20: 140 | Q20: 140 | R20: 140 | S20: 140 | T20: 140 | U20: 140 | V20: 140 | W20: 140 | X20: 140 | Y20: 140 | Z20: 140 | AA20: 140 | AB20: 140 | AC20: 140 | AD20: 140 | AE20: 140 | AF20: 140 | AG20: 140 | AH20: 140 | AI20: 140 | AJ20: 140 | AK20: 140 | AL20: 0 | AM20: 0 | AN20: 0 | AO20: 0 | AP20: 0 | AQ20: 0 | AR20: 0 | AS20: 0 | AT20: 0 | AU20: 0 | AV20: 0 | AW20: 0 | AX20: 0 | AY20: 0 | AZ20: 0 | BA20: 0 | BB20: 0 | BC20: 0 | BD20: 0 | BE20: 0 | BF20: 0 | BG20: 0 | BH20: 0 | BI20: 0 | BJ20: 0 | BK20: 0 | BL20: 0 | BM20: 0 | BN20: 0 | BO20: 0 | BP20: 0 | BQ20: 0
C21: Applied - Applied | E21: Euro | J21: =J17*J8 -> 0 | K21: =K17*K8 -> 0 | L21: 0 | M21: 195.1209638 | N21: 196.6819316 | O21: 198.255387 | P21: 199.8414301 | Q21: 201.4401615 | R21: 203.0516828 | S21: 204.6760963 | T21: 206.3135051 | U21: 207.9640131 | V21: 209.6277252 | W21: 211.304747 | X21: 212.995185 | Y21: 214.6991465 | Z21: 216.4167396 | AA21: 218.1480736 | AB21: 219.8932582 | AC21: 221.6524042 | AD21: 223.4256235 | AE21: 225.2130284 | AF21: 227.0147327 | AG21: 228.8308505 | AH21: 230.6614973 | AI21: 232.5067893 | AJ21: 234.3668436 | AK21: 236.2417784 | AL21: 0 | AM21: 0 | AN21: 0 | AO21: 0 | AP21: 0 | AQ21: 0 | AR21: 0 | AS21: 0 | AT21: 0 | AU21: 0 | AV21: 0 | AW21: 0 | AX21: 0 | AY21: 0 | AZ21: 0 | BA21: 0 | BB21: 0 | BC21: 0 | BD21: 0 | BE21: 0 | BF21: 0 | BG21: 0 | BH21: 0 | BI21: 0 | BJ21: 0 | BK21: 0 | BL21: 0 | BM21: 0 | BN21: 0 | BO21: 0 | BP21: 0 | BQ21: 0
C23: Operating Expense - Base | E23: Euro | F23: =Inputs!F22 -> 50 | G23: =Inputs!F23 -> 0.015 | I23: =F23 -> 50 | J23: =I23*(1+$G$23) -> 50.75 | K23: =J23*(1+$G$23) -> 51.51125 | L23: 52.28391875 | M23: 53.06817753 | N23: 53.86420019 | O23: 54.6721632 | P23: 55.49224565 | Q23: 56.32462933 | R23: 57.16949877 | S23: 58.02704125 | T23: 58.89744687 | U23: 59.78090857 | V23: 60.6776222 | W23: 61.58778653 | X23: 62.51160333 | Y23: 63.44927738 | Z23: 64.40101654 | AA23: 65.36703179 | AB23: 66.34753727 | AC23: 67.34275033 | AD23: 68.35289158 | AE23: 69.37818496 | AF23: 70.41885773 | AG23: 71.4751406 | AH23: 72.54726771 | AI23: 73.63547672 | AJ23: 74.74000887 | AK23: 75.861109 | AL23: 76.99902564 | AM23: 78.15401102 | AN23: 79.32632119 | AO23: 80.51621601 | AP23: 81.72395925 | AQ23: 82.94981864 | AR23: 84.19406592 | AS23: 85.4569769 | AT23: 86.73883156 | AU23: 88.03991403 | AV23: 89.36051274 | AW23: 90.70092043 | AX23: 92.06143424 | AY23: 93.44235575 | AZ23: 94.84399109 | BA23: 96.26665096 | BB23: 97.71065072 | BC23: 99.17631048 | BD23: 100.6639551 | BE23: 102.1739145 | BF23: 103.7065232 | BG23: 105.262121 | BH23: 106.8410528 | BI23: 108.4436686 | BJ23: 110.0703237 | BK23: 111.7213785 | BL23: 113.3971992 | BM23: 115.0981572 | BN23: 116.8246295 | BO23: 118.576999 | BP23: 120.355654 | BQ23: 122.1609888
C24: Operating Expense - Base | E24: Euro | J24: =J23*J8 -> 0 | K24: =K23*K8 -> 0 | L24: 0 | M24: 53.06817753 | N24: 53.86420019 | O24: 54.6721632 | P24: 55.49224565 | Q24: 56.32462933 | R24: 57.16949877 | S24: 58.02704125 | T24: 58.89744687 | U24: 59.78090857 | V24: 60.6776222 | W24: 61.58778653 | X24: 62.51160333 | Y24: 63.44927738 | Z24: 64.40101654 | AA24: 65.36703179 | AB24: 66.34753727 | AC24: 67.34275033 | AD24: 68.35289158 | AE24: 69.37818496 | AF24: 70.41885773 | AG24: 71.4751406 | AH24: 72.54726771 | AI24: 73.63547672 | AJ24: 74.74000887 | AK24: 75.861109 | AL24: 0 | AM24: 0 | AN24: 0 | AO24: 0 | AP24: 0 | AQ24: 0 | AR24: 0 | AS24: 0 | AT24: 0 | AU24: 0 | AV24: 0 | AW24: 0 | AX24: 0 | AY24: 0 | AZ24: 0 | BA24: 0 | BB24: 0 | BC24: 0 | BD24: 0 | BE24: 0 | BF24: 0 | BG24: 0 | BH24: 0 | BI24: 0 | BJ24: 0 | BK24: 0 | BL24: 0 | BM24: 0 | BN24: 0 | BO24: 0 | BP24: 0 | BQ24: 0
C26: EBITDA P50 | E26: Euro | J26: =J19-J24 -> 0 | K26: =K19-K24 -> 0 | L26: =L19-L24 -> 0 | M26: 120.3574076 | N26: 120.4285128 | O26: 120.4920134 | P26: 120.5477518 | Q26: 120.5955681 | R26: 120.6352997 | S26: 120.6667812 | T26: 120.6898447 | U26: 120.7043194 | V26: 120.710032 | W26: 120.7068059 | X26: 120.6944621 | Y26: 120.6728183 | Z26: 120.6416897 | AA26: 120.6008879 | AB26: 120.5502221 | AC26: 120.4894978 | AD26: 120.4185178 | AE26: 120.3370815 | AF26: 120.244985 | AG26: 120.1420214 | AH26: 120.0279801 | AI26: 119.9026473 | AJ26: 119.7658058 | AK26: 119.6172347 | AL26: 0 | AM26: 0 | AN26: 0 | AO26: 0 | AP26: 0 | AQ26: 0 | AR26: 0 | AS26: 0 | AT26: 0 | AU26: 0 | AV26: 0 | AW26: 0 | AX26: 0 | AY26: 0 | AZ26: 0 | BA26: 0 | BB26: 0 | BC26: 0 | BD26: 0 | BE26: 0 | BF26: 0 | BG26: 0 | BH26: 0 | BI26: 0 | BJ26: 0 | BK26: 0 | BL26: 0 | BM26: 0 | BN26: 0 | BO26: 0 | BP26: 0 | BQ26: 0
C27: EBITDA P90 | E27: Euro | J27: =J20-J24 -> 0 | K27: =K20-K24 -> 0 | L27: =L20-L24 -> 0 | M27: 86.93182247 | N27: 86.13579981 | O27: 85.3278368 | P27: 84.50775435 | Q27: 83.67537067 | R27: 82.83050123 | S27: 81.97295875 | T27: 81.10255313 | U27: 80.21909143 | V27: 79.3223778 | W27: 78.41221347 | X27: 77.48839667 | Y27: 76.55072262 | Z27: 75.59898346 | AA27: 74.63296821 | AB27: 73.65246273 | AC27: 72.65724967 | AD27: 71.64710842 | AE27: 70.62181504 | AF27: 69.58114227 | AG27: 68.5248594 | AH27: 67.45273229 | AI27: 66.36452328 | AJ27: 65.25999113 | AK27: 64.138891 | AL27: 0 | AM27: 0 | AN27: 0 | AO27: 0 | AP27: 0 | AQ27: 0 | AR27: 0 | AS27: 0 | AT27: 0 | AU27: 0 | AV27: 0 | AW27: 0 | AX27: 0 | AY27: 0 | AZ27: 0 | BA27: 0 | BB27: 0 | BC27: 0 | BD27: 0 | BE27: 0 | BF27: 0 | BG27: 0 | BH27: 0 | BI27: 0 | BJ27: 0 | BK27: 0 | BL27: 0 | BM27: 0 | BN27: 0 | BO27: 0 | BP27: 0 | BQ27: 0
C28: EBITDA Applied | E28: Euro | J28: =J21-J24 -> 0 | K28: =K21-K24 -> 0 | L28: =L21-L24 -> 0 | M28: 142.0527863 | N28: 142.8177314 | O28: 143.5832238 | P28: 144.3491845 | Q28: 145.1155322 | R28: 145.8821841 | S28: 146.6490551 | T28: 147.4160582 | U28: 148.1831045 | V28: 148.950103 | W28: 149.7169605 | X28: 150.4835817 | Y28: 151.2498691 | Z28: 152.0157231 | AA28: 152.7810418 | AB28: 153.5457209 | AC28: 154.3096539 | AD28: 155.0727319 | AE28: 155.8348435 | AF28: 156.5958749 | AG28: 157.3557099 | AH28: 158.1142296 | AI28: 158.8713126 | AJ28: 159.6268348 | AK28: 160.3806694 | AL28: 0 | AM28: 0 | AN28: 0 | AO28: 0 | AP28: 0 | AQ28: 0 | AR28: 0 | AS28: 0 | AT28: 0 | AU28: 0 | AV28: 0 | AW28: 0 | AX28: 0 | AY28: 0 | AZ28: 0 | BA28: 0 | BB28: 0 | BC28: 0 | BD28: 0 | BE28: 0 | BF28: 0 | BG28: 0 | BH28: 0 | BI28: 0 | BJ28: 0 | BK28: 0 | BL28: 0 | BM28: 0 | BN28: 0 | BO28: 0 | BP28: 0 | BQ28: 0
C30: Project Cash Flow | E30: Euro | J30: =J28-J13 -> -466.6666667 | K30: -466.6666667 | L30: -466.6666667 | M30: 142.0527863 | N30: 142.8177314 | O30: 143.5832238 | P30: 144.3491845 | Q30: 145.1155322 | R30: 145.8821841 | S30: 146.6490551 | T30: 147.4160582 | U30: 148.1831045 | V30: 148.950103 | W30: 149.7169605 | X30: 150.4835817 | Y30: 151.2498691 | Z30: 152.0157231 | AA30: 152.7810418 | AB30: 153.5457209 | AC30: 154.3096539 | AD30: 155.0727319 | AE30: 155.8348435 | AF30: 156.5958749 | AG30: 157.3557099 | AH30: 158.1142296 | AI30: 158.8713126 | AJ30: 159.6268348 | AK30: 160.3806694 | AL30: 0 | AM30: 0 | AN30: 0 | AO30: 0 | AP30: 0 | AQ30: 0 | AR30: 0 | AS30: 0 | AT30: 0 | AU30: 0 | AV30: 0 | AW30: 0 | AX30: 0 | AY30: 0 | AZ30: 0 | BA30: 0 | BB30: 0 | BC30: 0 | BD30: 0 | BE30: 0 | BF30: 0 | BG30: 0 | BH30: 0 | BI30: 0 | BJ30: 0 | BK30: 0 | BL30: 0 | BM30: 0 | BN30: 0 | BO30: 0 | BP30: 0 | BQ30: 0
C31: Project IRR - Pre-tax | F31: =IRR(30:30) -> 0.0846066972
B33: Depreciation and Taxes
C34: Age | I34: 0 | J34: =I34+J8 -> 0 | K34: =J34+K8 -> 0 | L34: 0 | M34: 1 | N34: 2 | O34: 3 | P34: 4 | Q34: 5 | R34: 6 | S34: 7 | T34: 8 | U34: 9 | V34: 10 | W34: 11 | X34: 12 | Y34: 13 | Z34: 14 | AA34: 15 | AB34: 16 | AC34: 17 | AD34: 18 | AE34: 19 | AF34: 20 | AG34: 21 | AH34: 22 | AI34: 23 | AJ34: 24 | AK34: 25 | AL34: 25 | AM34: 25 | AN34: 25 | AO34: 25 | AP34: 25 | AQ34: 25 | AR34: 25 | AS34: 25 | AT34: 25 | AU34: 25 | AV34: 25 | AW34: 25 | AX34: 25 | AY34: 25 | AZ34: 25 | BA34: 25 | BB34: 25 | BC34: 25 | BD34: 25 | BE34: 25 | BF34: 25 | BG34: 25 | BH34: 25 | BI34: 25 | BJ34: 25 | BK34: 25 | BL34: 25 | BM34: 25 | BN34: 25 | BO34: 25 | BP34: 25 | BQ34: 25
C35: Depreciation Rate | E35: % | F35: =Inputs!F25 -> 5 | G35: =1/F35 -> 0.2 | J35: =_xlfn.XLOOKUP(J34,Inputs!29:29,Inputs!30:30,FALSE) -> 0 | K35: =_xlfn.XLOOKUP(K34,Inputs!29:29,Inputs!30:30,FALSE) -> 0 | L35: =_xlfn.XLOOKUP(L34,Inputs!29:29,Inputs!30:30,FALSE) -> 0 | M35: =_xlfn.XLOOKUP(M34,Inputs!29:29,Inputs!30:30,FALSE) -> 0.3 | N35: =_xlfn.XLOOKUP(N34,Inputs!29:29,Inputs!30:30,FALSE) -> 0.21 | O35: =_xlfn.XLOOKUP(O34,Inputs!29:29,Inputs!30:30,FALSE) -> 0.1633333333 | P35: =_xlfn.XLOOKUP(P34,Inputs!29:29,Inputs!30:30,FALSE) -> 0.1633333333 | Q35: =_xlfn.XLOOKUP(Q34,Inputs!29:29,Inputs!30:30,FALSE) -> 0.1633333333 | R35: =_xlfn.XLOOKUP(R34,Inputs!29:29,Inputs!30:30,FALSE) -> 0 | S35: =_xlfn.XLOOKUP(S34,Inputs!29:29,Inputs!30:30,FALSE) -> 0 | T35: =_xlfn.XLOOKUP(T34,Inputs!29:29,Inputs!30:30,FALSE) -> 0 | U35: =_xlfn.XLOOKUP(U34,Inputs!29:29,Inputs!30:30,FALSE) -> 0 | V35: =_xlfn.XLOOKUP(V34,Inputs!29:29,Inputs!30:30,FALSE) -> 0 | W35: =_xlfn.XLOOKUP(W34,Inputs!29:29,Inputs!30:30,FALSE) -> 0 | X35: =_xlfn.XLOOKUP(X34,Inputs!29:29,Inputs!30:30,FALSE) -> FALSE | Y35: =_xlfn.XLOOKUP(Y34,Inputs!29:29,Inputs!30:30,FALSE) -> FALSE | Z35: =_xlfn.XLOOKUP(Z34,Inputs!29:29,Inputs!30:30,FALSE) -> FALSE | AA35: =_xlfn.XLOOKUP(AA34,Inputs!29:29,Inputs!30:30,FALSE) -> FALSE | AB35: =_xlfn.XLOOKUP(AB34,Inputs!29:29,Inputs!30:30,FALSE) -> FALSE | AC35: =_xlfn.XLOOKUP(AC34,Inputs!29:29,Inputs!30:30,FALSE) -> FALSE | AD35: =_xlfn.XLOOKUP(AD34,Inputs!29:29,Inputs!30:30,FALSE) -> FALSE | AE35: =_xlfn.XLOOKUP(AE34,Inputs!29:29,Inputs!30:30,FALSE) -> FALSE | AF35: =_xlfn.XLOOKUP(AF34,Inputs!29:29,Inputs!30:30,FALSE) -> FALSE | AG35: =_xlfn.XLOOKUP(AG34,Inputs!29:29,Inputs!30:30,FALSE) -> FALSE | AH35: =_xlfn.XLOOKUP(AH34,Inputs!29:29,Inputs!30:30,FALSE) -> FALSE | AI35: =_xlfn.XLOOKUP(AI34,Inputs!29:29,Inputs!30:30,FALSE) -> FALSE | AJ35: =_xlfn.XLOOKUP(AJ34,Inputs!29:29,Inputs!30:30,FALSE) -> FALSE | AK35: =_xlfn.XLOOKUP(AK34,Inputs!29:29,Inputs!30:30,FALSE) -> FALSE | AL35: =_xlfn.XLOOKUP(AL34,Inputs!29:29,Inputs!30:30,FALSE) -> FALSE | AM35: =_xlfn.XLOOKUP(AM34,Inputs!29:29,Inputs!30:30,FALSE) -> FALSE | AN35: =_xlfn.XLOOKUP(AN34,Inputs!29:29,Inputs!30:30,FALSE) -> FALSE | AO35: =_xlfn.XLOOKUP(AO34,Inputs!29:29,Inputs!30:30,FALSE) -> FALSE | AP35: =_xlfn.XLOOKUP(AP34,Inputs!29:29,Inputs!30:30,FALSE) -> FALSE | AQ35: =_xlfn.XLOOKUP(AQ34,Inputs!29:29,Inputs!30:30,FALSE) -> FALSE | AR35: =_xlfn.XLOOKUP(AR34,Inputs!29:29,Inputs!30:30,FALSE) -> FALSE | AS35: =_xlfn.XLOOKUP(AS34,Inputs!29:29,Inputs!30:30,FALSE) -> FALSE | AT35: =_xlfn.XLOOKUP(AT34,Inputs!29:29,Inputs!30:30,FALSE) -> FALSE | AU35: =_xlfn.XLOOKUP(AU34,Inputs!29:29,Inputs!30:30,FALSE) -> FALSE | AV35: =_xlfn.XLOOKUP(AV34,Inputs!29:29,Inputs!30:30,FALSE) -> FALSE | AW35: =_xlfn.XLOOKUP(AW34,Inputs!29:29,Inputs!30:30,FALSE) -> FALSE | AX35: =_xlfn.XLOOKUP(AX34,Inputs!29:29,Inputs!30:30,FALSE) -> FALSE | AY35: =_xlfn.XLOOKUP(AY34,Inputs!29:29,Inputs!30:30,FALSE) -> FALSE | AZ35: =_xlfn.XLOOKUP(AZ34,Inputs!29:29,Inputs!30:30,FALSE) -> FALSE | BA35: =_xlfn.XLOOKUP(BA34,Inputs!29:29,Inputs!30:30,FALSE) -> FALSE | BB35: =_xlfn.XLOOKUP(BB34,Inputs!29:29,Inputs!30:30,FALSE) -> FALSE | BC35: =_xlfn.XLOOKUP(BC34,Inputs!29:29,Inputs!30:30,FALSE) -> FALSE | BD35: =_xlfn.XLOOKUP(BD34,Inputs!29:29,Inputs!30:30,FALSE) -> FALSE | BE35: =_xlfn.XLOOKUP(BE34,Inputs!29:29,Inputs!30:30,FALSE) -> FALSE | BF35: =_xlfn.XLOOKUP(BF34,Inputs!29:29,Inputs!30:30,FALSE) -> FALSE | BG35: =_xlfn.XLOOKUP(BG34,Inputs!29:29,Inputs!30:30,FALSE) -> FALSE | BH35: =_xlfn.XLOOKUP(BH34,Inputs!29:29,Inputs!30:30,FALSE) -> FALSE | BI35: =_xlfn.XLOOKUP(BI34,Inputs!29:29,Inputs!30:30,FALSE) -> FALSE | BJ35: =_xlfn.XLOOKUP(BJ34,Inputs!29:29,Inputs!30:30,FALSE) -> FALSE | BK35: =_xlfn.XLOOKUP(BK34,Inputs!29:29,Inputs!30:30,FALSE) -> FALSE | BL35: =_xlfn.XLOOKUP(BL34,Inputs!29:29,Inputs!30:30,FALSE) -> FALSE | BM35: =_xlfn.XLOOKUP(BM34,Inputs!29:29,Inputs!30:30,FALSE) -> FALSE | BN35: =_xlfn.XLOOKUP(BN34,Inputs!29:29,Inputs!30:30,FALSE) -> FALSE | BO35: =_xlfn.XLOOKUP(BO34,Inputs!29:29,Inputs!30:30,FALSE) -> FALSE | BP35: =_xlfn.XLOOKUP(BP34,Inputs!29:29,Inputs!30:30,FALSE) -> FALSE | BQ35: =_xlfn.XLOOKUP(BQ34,Inputs!29:29,Inputs!30:30,FALSE) -> FALSE
C36: Net Plant Percent | E36: % | J36: 1 | K36: =J36-K35 -> 1 | L36: 1 | M36: 0.7 | N36: 0.49 | O36: 0.3266666667 | P36: 0.1633333333 | Q36: 0 | R36: 0 | S36: 0 | T36: 0 | U36: 0 | V36: 0 | W36: 0 | X36: 0 | Y36: 0 | Z36: 0 | AA36: 0 | AB36: 0 | AC36: 0 | AD36: 0 | AE36: 0 | AF36: 0 | AG36: 0 | AH36: 0 | AI36: 0 | AJ36: 0 | AK36: 0 | AL36: 0 | AM36: 0 | AN36: 0 | AO36: 0 | AP36: 0 | AQ36: 0 | AR36: 0 | AS36: 0 | AT36: 0 | AU36: 0 | AV36: 0 | AW36: 0 | AX36: 0 | AY36: 0 | AZ36: 0 | BA36: 0 | BB36: 0 | BC36: 0 | BD36: 0 | BE36: 0 | BF36: 0 | BG36: 0 | BH36: 0 | BI36: 0 | BJ36: 0 | BK36: 0 | BL36: 0 | BM36: 0 | BN36: 0 | BO36: 0 | BP36: 0 | BQ36: 0
C38: Depreciation Base | E38: Euro | F38: =F13 -> 1400 | J38: =$F$38 -> 1400 | K38: =$F$38 -> 1400 | L38: =$F$38 -> 1400 | M38: 1400 | N38: 1400 | O38: 1400 | P38: 1400 | Q38: 1400 | R38: 1400 | S38: 1400 | T38: 1400 | U38: 1400 | V38: 1400 | W38: 1400 | X38: 1400 | Y38: 1400 | Z38: 1400 | AA38: 1400 | AB38: 1400 | AC38: 1400 | AD38: 1400 | AE38: 1400 | AF38: 1400 | AG38: 1400 | AH38: 1400 | AI38: 1400 | AJ38: 1400 | AK38: 1400 | AL38: 1400 | AM38: 1400 | AN38: 1400 | AO38: 1400 | AP38: 1400 | AQ38: 1400 | AR38: 1400 | AS38: 1400 | AT38: 1400 | AU38: 1400 | AV38: 1400 | AW38: 1400 | AX38: 1400 | AY38: 1400 | AZ38: 1400 | BA38: 1400 | BB38: 1400 | BC38: 1400 | BD38: 1400 | BE38: 1400 | BF38: 1400 | BG38: 1400 | BH38: 1400 | BI38: 1400 | BJ38: 1400 | BK38: 1400 | BL38: 1400 | BM38: 1400 | BN38: 1400 | BO38: 1400 | BP38: 1400 | BQ38: 1400
C39: Depreciation Expense | E39: Euro | J39: =J38*J35 -> 0 | K39: 0 | L39: 0 | M39: 420 | N39: 294 | O39: 228.6666667 | P39: 228.6666667 | Q39: 228.6666667 | R39: 0 | S39: 0 | T39: 0 | U39: 0 | V39: 0 | W39: 0 | X39: 0 | Y39: 0 | Z39: 0 | AA39: 0 | AB39: 0 | AC39: 0 | AD39: 0 | AE39: 0 | AF39: 0 | AG39: 0 | AH39: 0 | AI39: 0 | AJ39: 0 | AK39: 0 | AL39: 0 | AM39: 0 | AN39: 0 | AO39: 0 | AP39: 0 | AQ39: 0 | AR39: 0 | AS39: 0 | AT39: 0 | AU39: 0 | AV39: 0 | AW39: 0 | AX39: 0 | AY39: 0 | AZ39: 0 | BA39: 0 | BB39: 0 | BC39: 0 | BD39: 0 | BE39: 0 | BF39: 0 | BG39: 0 | BH39: 0 | BI39: 0 | BJ39: 0 | BK39: 0 | BL39: 0 | BM39: 0 | BN39: 0 | BO39: 0 | BP39: 0 | BQ39: 0
C41: EBIT 50 | E41: Euro | J41: =J26-J39 -> 0 | K41: =K26-K39 -> 0 | L41: =L26-L39 -> 0 | M41: -299.6425924 | N41: -173.5714872 | O41: -108.1746533 | P41: -108.1189148 | Q41: -108.0710985 | R41: 120.6352997 | S41: 120.6667812 | T41: 120.6898447 | U41: 120.7043194 | V41: 120.710032 | W41: 120.7068059 | X41: 120.6944621 | Y41: 120.6728183 | Z41: 120.6416897 | AA41: 120.6008879 | AB41: 120.5502221 | AC41: 120.4894978 | AD41: 120.4185178 | AE41: 120.3370815 | AF41: 120.244985 | AG41: 120.1420214 | AH41: 120.0279801 | AI41: 119.9026473 | AJ41: 119.7658058 | AK41: 119.6172347 | AL41: 0 | AM41: 0 | AN41: 0 | AO41: 0 | AP41: 0 | AQ41: 0 | AR41: 0 | AS41: 0 | AT41: 0 | AU41: 0 | AV41: 0 | AW41: 0 | AX41: 0 | AY41: 0 | AZ41: 0 | BA41: 0 | BB41: 0 | BC41: 0 | BD41: 0 | BE41: 0 | BF41: 0 | BG41: 0 | BH41: 0 | BI41: 0 | BJ41: 0 | BK41: 0 | BL41: 0 | BM41: 0 | BN41: 0 | BO41: 0 | BP41: 0 | BQ41: 0
C42: EBIT 90 | E42: Euro | J42: =J27-J39 -> 0 | K42: =K27-K39 -> 0 | L42: =L27-L39 -> 0 | M42: -333.0681775 | N42: -207.8642002 | O42: -143.3388299 | P42: -144.1589123 | Q42: -144.991296 | R42: 82.83050123 | S42: 81.97295875 | T42: 81.10255313 | U42: 80.21909143 | V42: 79.3223778 | W42: 78.41221347 | X42: 77.48839667 | Y42: 76.55072262 | Z42: 75.59898346 | AA42: 74.63296821 | AB42: 73.65246273 | AC42: 72.65724967 | AD42: 71.64710842 | AE42: 70.62181504 | AF42: 69.58114227 | AG42: 68.5248594 | AH42: 67.45273229 | AI42: 66.36452328 | AJ42: 65.25999113 | AK42: 64.138891 | AL42: 0 | AM42: 0 | AN42: 0 | AO42: 0 | AP42: 0 | AQ42: 0 | AR42: 0 | AS42: 0 | AT42: 0 | AU42: 0 | AV42: 0 | AW42: 0 | AX42: 0 | AY42: 0 | AZ42: 0 | BA42: 0 | BB42: 0 | BC42: 0 | BD42: 0 | BE42: 0 | BF42: 0 | BG42: 0 | BH42: 0 | BI42: 0 | BJ42: 0 | BK42: 0 | BL42: 0 | BM42: 0 | BN42: 0 | BO42: 0 | BP42: 0 | BQ42: 0
C43: EBIT Applied | E43: Euro | J43: =J28-J39 -> 0 | K43: =K28-K39 -> 0 | L43: =L28-L39 -> 0 | M43: -277.9472137 | N43: -151.1822686 | O43: -85.08344285 | P43: -84.31748221 | Q43: -83.55113445 | R43: 145.8821841 | S43: 146.6490551 | T43: 147.4160582 | U43: 148.1831045 | V43: 148.950103 | W43: 149.7169605 | X43: 150.4835817 | Y43: 151.2498691 | Z43: 152.0157231 | AA43: 152.7810418 | AB43: 153.5457209 | AC43: 154.3096539 | AD43: 155.0727319 | AE43: 155.8348435 | AF43: 156.5958749 | AG43: 157.3557099 | AH43: 158.1142296 | AI43: 158.8713126 | AJ43: 159.6268348 | AK43: 160.3806694 | AL43: 0 | AM43: 0 | AN43: 0 | AO43: 0 | AP43: 0 | AQ43: 0 | AR43: 0 | AS43: 0 | AT43: 0 | AU43: 0 | AV43: 0 | AW43: 0 | AX43: 0 | AY43: 0 | AZ43: 0 | BA43: 0 | BB43: 0 | BC43: 0 | BD43: 0 | BE43: 0 | BF43: 0 | BG43: 0 | BH43: 0 | BI43: 0 | BJ43: 0 | BK43: 0 | BL43: 0 | BM43: 0 | BN43: 0 | BO43: 0 | BP43: 0 | BQ43: 0
C45: Taxes on EBIT | E45: Euro | F45: =Inputs!F26 -> 0.25 | J45: =J43*$F$45 -> 0 | K45: =K43*$F$45 -> 0 | L45: 0 | M45: -69.48680342 | N45: -37.79556716 | O45: -21.27086071 | P45: -21.07937055 | Q45: -20.88778361 | R45: 36.47054602 | S45: 36.66226376 | T45: 36.85401455 | U45: 37.04577613 | V45: 37.23752575 | W45: 37.42924012 | X45: 37.62089542 | Y45: 37.81246727 | Z45: 38.00393078 | AA45: 38.19526044 | AB45: 38.38643022 | AC45: 38.57741347 | AD45: 38.76818297 | AE45: 38.95871087 | AF45: 39.14896873 | AG45: 39.33892748 | AH45: 39.52855741 | AI45: 39.71782815 | AJ45: 39.90670869 | AK45: 40.09516734 | AL45: 0 | AM45: 0 | AN45: 0 | AO45: 0 | AP45: 0 | AQ45: 0 | AR45: 0 | AS45: 0 | AT45: 0 | AU45: 0 | AV45: 0 | AW45: 0 | AX45: 0 | AY45: 0 | AZ45: 0 | BA45: 0 | BB45: 0 | BC45: 0 | BD45: 0 | BE45: 0 | BF45: 0 | BG45: 0 | BH45: 0 | BI45: 0 | BJ45: 0 | BK45: 0 | BL45: 0 | BM45: 0 | BN45: 0 | BO45: 0 | BP45: 0 | BQ45: 0
C46: After-tax Cash Flow | E46: Euro | J46: =J30-J45 -> -466.6666667 | K46: =K30-K45 -> -466.6666667 | L46: -466.6666667 | M46: 211.5395897 | N46: 180.6132985 | O46: 164.8540845 | P46: 165.428555 | Q46: 166.0033158 | R46: 109.4116381 | S46: 109.9867913 | T46: 110.5620437 | U46: 111.1373284 | V46: 111.7125773 | W46: 112.2877204 | X46: 112.8626862 | Y46: 113.4374018 | Z46: 114.0117923 | AA46: 114.5857813 | AB46: 115.1592907 | AC46: 115.7322404 | AD46: 116.3045489 | AE46: 116.8761326 | AF46: 117.4469062 | AG46: 118.0167824 | AH46: 118.5856722 | AI46: 119.1534844 | AJ46: 119.7201261 | AK46: 120.285502 | AL46: 0 | AM46: 0 | AN46: 0 | AO46: 0 | AP46: 0 | AQ46: 0 | AR46: 0 | AS46: 0 | AT46: 0 | AU46: 0 | AV46: 0 | AW46: 0 | AX46: 0 | AY46: 0 | AZ46: 0 | BA46: 0 | BB46: 0 | BC46: 0 | BD46: 0 | BE46: 0 | BF46: 0 | BG46: 0 | BH46: 0 | BI46: 0 | BJ46: 0 | BK46: 0 | BL46: 0 | BM46: 0 | BN46: 0 | BO46: 0 | BP46: 0 | BQ46: 0
C47: Project IRR | E47: % | F47: =IRR(J46:BQ46) -> 0.07681179812
B49: Debt Sizing
F50: Size | G50: IDC | H50: Fee | I50: DSRA
D51: P50 Debt Size | E51: 1 | F51: =P50Output!F21 -> 1189.512744 | G51: =P50Output!H15 -> 34.31607124 | H51: =P50Output!H16 -> 11.89512744 | I51: =P50Output!H18 -> 46.29131061
D52: P90 Debt Size | E52: 2 | F52: =P90Output!H21 -> 885.2941549 | G52: =P90Output!H15 -> 25.75462184 | H52: =P90Output!H16 -> 8.852941549 | I52: =P90Output!H18 -> 36.2215927
D53: Max Debt | E53: 3 | F53: =P50Output!H34 -> 1268.627133
D55: Selected Debt | F55: =MIN(F51,F52,F53) -> 885.2941549 | G55: =_xlfn.XLOOKUP(F55,F51:F53,G51:G53) -> 25.75462184 | H55: =_xlfn.XLOOKUP(F55,F51:F53,H51:H53,FALSE) -> 8.852941549 | I55: =_xlfn.XLOOKUP(F55,F51:F53,I51:I53) -> 36.2215927
D56: Code | F56: =_xlfn.XLOOKUP(F55,F51:F53,E51:E53,FALSE,0) -> 2
D57: Type | F57: =_xlfn.XLOOKUP(F55,F51:F53,D51:D53,FALSE) -> P90 Debt Size
D59: P50 Repayment | H59: =SUM(J59:BQ59) -> 1189.512744 | J59: =P50Output!J79 -> 0 | K59: =P50Output!K79 -> 0 | L59: =P50Output!L79 -> 0 | M59: =P50Output!M79 -> 56.89723888 | N59: =P50Output!N79 -> 58.6588524 | O59: =P50Output!O79 -> 60.46746456 | P59: =P50Output!P79 -> 62.32436422 | Q59: =P50Output!Q79 -> 64.23087692 | R59: =P50Output!R79 -> 66.18836595 | S59: =P50Output!S79 -> 68.19823348 | T59: =P50Output!T79 -> 70.26192163 | U59: =P50Output!U79 -> 72.38091371 | V59: =P50Output!V79 -> 74.55673536 | W59: =P50Output!W79 -> 76.79095583 | X59: =P50Output!X79 -> 79.08518925 | Y59: =P50Output!Y79 -> 81.44109591 | Z59: =P50Output!Z79 -> 83.86038365 | AA59: =P50Output!AA79 -> 80.00422914 | AB59: =P50Output!AB79 -> 66.2972615 | AC59: =P50Output!AC79 -> 67.86866192 | AD59: =P50Output!AD79 -> 0 | AE59: =P50Output!AE79 -> 0 | AF59: =P50Output!AF79 -> 0 | AG59: =P50Output!AG79 -> 0 | AH59: =P50Output!AH79 -> 0 | AI59: =P50Output!AI79 -> 0 | AJ59: =P50Output!AJ79 -> 0 | AK59: =P50Output!AK79 -> 0 | AL59: =P50Output!AL79 -> 0 | AM59: =P50Output!AM79 -> 0 | AN59: =P50Output!AN79 -> 0 | AO59: =P50Output!AO79 -> 0 | AP59: =P50Output!AP79 -> 0 | AQ59: =P50Output!AQ79 -> 0 | AR59: =P50Output!AR79 -> 0 | AS59: =P50Output!AS79 -> 0 | AT59: =P50Output!AT79 -> 0 | AU59: =P50Output!AU79 -> 0 | AV59: =P50Output!AV79 -> 0 | AW59: =P50Output!AW79 -> 0 | AX59: =P50Output!AX79 -> 0 | AY59: =P50Output!AY79 -> 0 | AZ59: =P50Output!AZ79 -> 0 | BA59: =P50Output!BA79 -> 0 | BB59: =P50Output!BB79 -> 0 | BC59: =P50Output!BC79 -> 0 | BD59: =P50Output!BD79 -> 0 | BE59: =P50Output!BE79 -> 0 | BF59: =P50Output!BF79 -> 0 | BG59: =P50Output!BG79 -> 0 | BH59: =P50Output!BH79 -> 0 | BI59: =P50Output!BI79 -> 0 | BJ59: =P50Output!BJ79 -> 0 | BK59: =P50Output!BK79 -> 0 | BL59: =P50Output!BL79 -> 0 | BM59: =P50Output!BM79 -> 0 | BN59: =P50Output!BN79 -> 0 | BO59: =P50Output!BO79 -> 0 | BP59: =P50Output!BP79 -> 0 | BQ59: =P50Output!BQ79 -> 0
D60: P90 Repayment | H60: =SUM(J60:BQ60) -> 885.2941549 | J60: =P90Output!J79 -> 0 | K60: =P90Output!K79 -> 0 | L60: =P90Output!L79 -> 0 | M60: =P90Output!M79 -> 45.88436074 | N60: =P90Output!N79 -> 46.59753935 | O60: =P90Output!O79 -> 47.32216303 | P60: =P90Output!P79 -> 48.05842588 | Q60: =P90Output!Q79 -> 48.80652558 | R60: =P90Output!R79 -> 49.56666348 | S60: =P90Output!S79 -> 50.33904465 | T60: =P90Output!T79 -> 51.12387798 | U60: =P90Output!U79 -> 51.92137623 | V60: =P90Output!V79 -> 52.73175616 | W60: =P90Output!W79 -> 53.55523857 | X60: =P90Output!X79 -> 54.39204839 | Y60: =P90Output!Y79 -> 55.2424148 | Z60: =P90Output!Z79 -> 56.10657128 | AA60: =P90Output!AA79 -> 56.98475571 | AB60: =P90Output!AB79 -> 57.87721048 | AC60: =P90Output!AC79 -> 58.78418258 | AD60: =P90Output!AD79 -> 0 | AE60: =P90Output!AE79 -> 0 | AF60: =P90Output!AF79 -> 0 | AG60: =P90Output!AG79 -> 0 | AH60: =P90Output!AH79 -> 0 | AI60: =P90Output!AI79 -> 0 | AJ60: =P90Output!AJ79 -> 0 | AK60: =P90Output!AK79 -> 0 | AL60: =P90Output!AL79 -> 0 | AM60: =P90Output!AM79 -> 0 | AN60: =P90Output!AN79 -> 0 | AO60: =P90Output!AO79 -> 0 | AP60: =P90Output!AP79 -> 0 | AQ60: =P90Output!AQ79 -> 0 | AR60: =P90Output!AR79 -> 0 | AS60: =P90Output!AS79 -> 0 | AT60: =P90Output!AT79 -> 0 | AU60: =P90Output!AU79 -> 0 | AV60: =P90Output!AV79 -> 0 | AW60: =P90Output!AW79 -> 0 | AX60: =P90Output!AX79 -> 0 | AY60: =P90Output!AY79 -> 0 | AZ60: =P90Output!AZ79 -> 0 | BA60: =P90Output!BA79 -> 0 | BB60: =P90Output!BB79 -> 0 | BC60: =P90Output!BC79 -> 0 | BD60: =P90Output!BD79 -> 0 | BE60: =P90Output!BE79 -> 0 | BF60: =P90Output!BF79 -> 0 | BG60: =P90Output!BG79 -> 0 | BH60: =P90Output!BH79 -> 0 | BI60: =P90Output!BI79 -> 0 | BJ60: =P90Output!BJ79 -> 0 | BK60: =P90Output!BK79 -> 0 | BL60: =P90Output!BL79 -> 0 | BM60: =P90Output!BM79 -> 0 | BN60: =P90Output!BN79 -> 0 | BO60: =P90Output!BO79 -> 0 | BP60: =P90Output!BP79 -> 0 | BQ60: =P90Output!BQ79 -> 0
D61: Max Debt Repayment | H61: 0
D63: Selected Repayment | F63: =F56 -> 2 | J63: =CHOOSE($F$63,J59,J60,J61) -> 0 | K63: =CHOOSE($F$63,K59,K60,K61) -> 0 | L63: 0 | M63: 45.88436074 | N63: 46.59753935 | O63: 47.32216303 | P63: 48.05842588 | Q63: 48.80652558 | R63: 49.56666348 | S63: 50.33904465 | T63: 51.12387798 | U63: 51.92137623 | V63: 52.73175616 | W63: 53.55523857 | X63: 54.39204839 | Y63: 55.2424148 | Z63: 56.10657128 | AA63: 56.98475571 | AB63: 57.87721048 | AC63: 58.78418258 | AD63: 0 | AE63: 0 | AF63: 0 | AG63: 0 | AH63: 0 | AI63: 0 | AJ63: 0 | AK63: 0 | AL63: 0 | AM63: 0 | AN63: 0 | AO63: 0 | AP63: 0 | AQ63: 0 | AR63: 0 | AS63: 0 | AT63: 0 | AU63: 0 | AV63: 0 | AW63: 0 | AX63: 0 | AY63: 0 | AZ63: 0 | BA63: 0 | BB63: 0 | BC63: 0 | BD63: 0 | BE63: 0 | BF63: 0 | BG63: 0 | BH63: 0 | BI63: 0 | BJ63: 0 | BK63: 0 | BL63: 0 | BM63: 0 | BN63: 0 | BO63: 0 | BP63: 0 | BQ63: 0
B65: Sources and Uses
C66: Capital Expenditures | F66: =F11 -> 1400
C67: IDC | F67: =G51 -> 34.31607124
C68: Fees | F68: =H55 -> 8.852941549
C69: DSRA | F69: =I55 -> 36.2215927
D70: Total | F70: =SUM(F66:F69) -> 1479.390605
C72: Debt | F72: =F55 -> 885.2941549 | G72: =F72/F74 -> 0.5984181268
C73: Equity | F73: =F70-F72 -> 594.0964506 | G73: =F73/F74 -> 0.4015818732
D74: Total | F74: =SUM(F72:F73) -> 1479.390605
B76: Funding
C77: Capital Expenditures | J77: =J13 -> 466.6666667 | K77: =K13 -> 466.6666667 | L77: 466.6666667 | M77: 0 | N77: 0 | O77: 0 | P77: 0 | Q77: 0 | R77: 0 | S77: 0 | T77: 0 | U77: 0 | V77: 0 | W77: 0 | X77: 0 | Y77: 0 | Z77: 0 | AA77: 0 | AB77: 0 | AC77: 0 | AD77: 0 | AE77: 0 | AF77: 0 | AG77: 0 | AH77: 0 | AI77: 0 | AJ77: 0 | AK77: 0 | AL77: 0 | AM77: 0 | AN77: 0 | AO77: 0 | AP77: 0 | AQ77: 0 | AR77: 0 | AS77: 0 | AT77: 0 | AU77: 0 | AV77: 0 | AW77: 0 | AX77: 0 | AY77: 0 | AZ77: 0 | BA77: 0 | BB77: 0 | BC77: 0 | BD77: 0 | BE77: 0 | BF77: 0 | BG77: 0 | BH77: 0 | BI77: 0 | BJ77: 0 | BK77: 0 | BL77: 0 | BM77: 0 | BN77: 0 | BO77: 0 | BP77: 0 | BQ77: 0
C78: IDC | H78: =SUM(J78:BQ78) -> 25.604684 | J78: =J96 -> 0 | K78: =K96 -> 8.536786596 | L78: 17.06789741 | M78: 0 | N78: 0 | O78: 0 | P78: 0 | Q78: 0 | R78: 0 | S78: 0 | T78: 0 | U78: 0 | V78: 0 | W78: 0 | X78: 0 | Y78: 0 | Z78: 0 | AA78: 0 | AB78: 0 | AC78: 0 | AD78: 0 | AE78: 0 | AF78: 0 | AG78: 0 | AH78: 0 | AI78: 0 | AJ78: 0 | AK78: 0 | AL78: 0 | AM78: 0 | AN78: 0 | AO78: 0 | AP78: 0 | AQ78: 0 | AR78: 0 | AS78: 0 | AT78: 0 | AU78: 0 | AV78: 0 | AW78: 0 | AX78: 0 | AY78: 0 | AZ78: 0 | BA78: 0 | BB78: 0 | BC78: 0 | BD78: 0 | BE78: 0 | BF78: 0 | BG78: 0 | BH78: 0 | BI78: 0 | BJ78: 0 | BK78: 0 | BL78: 0 | BM78: 0 | BN78: 0 | BO78: 0 | BP78: 0 | BQ78: 0
C79: Fees | H79: =SUM(J79:BQ79) -> 8.852941549 | J79: =J99 -> 8.852941549 | K79: =K99 -> 0 | L79: 0 | M79: 0 | N79: 0 | O79: 0 | P79: 0 | Q79: 0 | R79: 0 | S79: 0 | T79: 0 | U79: 0 | V79: 0 | W79: 0 | X79: 0 | Y79: 0 | Z79: 0 | AA79: 0 | AB79: 0 | AC79: 0 | AD79: 0 | AE79: 0 | AF79: 0 | AG79: 0 | AH79: 0 | AI79: 0 | AJ79: 0 | AK79: 0 | AL79: 0 | AM79: 0 | AN79: 0 | AO79: 0 | AP79: 0 | AQ79: 0 | AR79: 0 | AS79: 0 | AT79: 0 | AU79: 0 | AV79: 0 | AW79: 0 | AX79: 0 | AY79: 0 | AZ79: 0 | BA79: 0 | BB79: 0 | BC79: 0 | BD79: 0 | BE79: 0 | BF79: 0 | BG79: 0 | BH79: 0 | BI79: 0 | BJ79: 0 | BK79: 0 | BL79: 0 | BM79: 0 | BN79: 0 | BO79: 0 | BP79: 0 | BQ79: 0
C80: DSRA | H80: =SUM(J80:BQ80) -> 36.2215927 | J80: =J102 -> 0 | K80: =K102 -> 0 | L80: 36.2215927 | M80: 0 | N80: 0 | O80: 0 | P80: 0 | Q80: 0 | R80: 0 | S80: 0 | T80: 0 | U80: 0 | V80: 0 | W80: 0 | X80: 0 | Y80: 0 | Z80: 0 | AA80: 0 | AB80: 0 | AC80: 0 | AD80: 0 | AE80: 0 | AF80: 0 | AG80: 0 | AH80: 0 | AI80: 0 | AJ80: 0 | AK80: 0 | AL80: 0 | AM80: 0 | AN80: 0 | AO80: 0 | AP80: 0 | AQ80: 0 | AR80: 0 | AS80: 0 | AT80: 0 | AU80: 0 | AV80: 0 | AW80: 0 | AX80: 0 | AY80: 0 | AZ80: 0 | BA80: 0 | BB80: 0 | BC80: 0 | BD80: 0 | BE80: 0 | BF80: 0 | BG80: 0 | BH80: 0 | BI80: 0 | BJ80: 0 | BK80: 0 | BL80: 0 | BM80: 0 | BN80: 0 | BO80: 0 | BP80: 0 | BQ80: 0
D81: Funding Needs | J81: =SUM(J77:J80) -> 475.5196082 | K81: =SUM(K77:K80) -> 475.2034533 | L81: 519.9561568 | M81: 0 | N81: 0 | O81: 0 | P81: 0 | Q81: 0 | R81: 0 | S81: 0 | T81: 0 | U81: 0 | V81: 0 | W81: 0 | X81: 0 | Y81: 0 | Z81: 0 | AA81: 0 | AB81: 0 | AC81: 0 | AD81: 0 | AE81: 0 | AF81: 0 | AG81: 0 | AH81: 0 | AI81: 0 | AJ81: 0 | AK81: 0 | AL81: 0 | AM81: 0 | AN81: 0 | AO81: 0 | AP81: 0 | AQ81: 0 | AR81: 0 | AS81: 0 | AT81: 0 | AU81: 0 | AV81: 0 | AW81: 0 | AX81: 0 | AY81: 0 | AZ81: 0 | BA81: 0 | BB81: 0 | BC81: 0 | BD81: 0 | BE81: 0 | BF81: 0 | BG81: 0 | BH81: 0 | BI81: 0 | BJ81: 0 | BK81: 0 | BL81: 0 | BM81: 0 | BN81: 0 | BO81: 0 | BP81: 0 | BQ81: 0
C83: Debt Funding | F83: =G72 -> 0.5984181268 | H83: =SUM(J83:BQ83) -> 880.0811029 | I83: =ROUND(H83-F72,0)=0 -> FALSE | J83: =J81*$F$83 -> 284.5595532 | K83: =K81*$F$83 -> 284.3703603 | L83: 311.1511893 | M83: 0 | N83: 0 | O83: 0 | P83: 0 | Q83: 0 | R83: 0 | S83: 0 | T83: 0 | U83: 0 | V83: 0 | W83: 0 | X83: 0 | Y83: 0 | Z83: 0 | AA83: 0 | AB83: 0 | AC83: 0 | AD83: 0 | AE83: 0 | AF83: 0 | AG83: 0 | AH83: 0 | AI83: 0 | AJ83: 0 | AK83: 0 | AL83: 0 | AM83: 0 | AN83: 0 | AO83: 0 | AP83: 0 | AQ83: 0 | AR83: 0 | AS83: 0 | AT83: 0 | AU83: 0 | AV83: 0 | AW83: 0 | AX83: 0 | AY83: 0 | AZ83: 0 | BA83: 0 | BB83: 0 | BC83: 0 | BD83: 0 | BE83: 0 | BF83: 0 | BG83: 0 | BH83: 0 | BI83: 0 | BJ83: 0 | BK83: 0 | BL83: 0 | BM83: 0 | BN83: 0 | BO83: 0 | BP83: 0 | BQ83: 0
C84: Equity Funding | F84: =G73 -> 0.4015818732 | H84: =SUM(J84:BQ84) -> 590.5981154 | I84: =ROUND(H84-F73,0)=0 -> FALSE | J84: =J81*$F$84 -> 190.960055 | K84: =K81*$F$84 -> 190.8330929 | L84: 208.8049674 | M84: 0 | N84: 0 | O84: 0 | P84: 0 | Q84: 0 | R84: 0 | S84: 0 | T84: 0 | U84: 0 | V84: 0 | W84: 0 | X84: 0 | Y84: 0 | Z84: 0 | AA84: 0 | AB84: 0 | AC84: 0 | AD84: 0 | AE84: 0 | AF84: 0 | AG84: 0 | AH84: 0 | AI84: 0 | AJ84: 0 | AK84: 0 | AL84: 0 | AM84: 0 | AN84: 0 | AO84: 0 | AP84: 0 | AQ84: 0 | AR84: 0 | AS84: 0 | AT84: 0 | AU84: 0 | AV84: 0 | AW84: 0 | AX84: 0 | AY84: 0 | AZ84: 0 | BA84: 0 | BB84: 0 | BC84: 0 | BD84: 0 | BE84: 0 | BF84: 0 | BG84: 0 | BH84: 0 | BI84: 0 | BJ84: 0 | BK84: 0 | BL84: 0 | BM84: 0 | BN84: 0 | BO84: 0 | BP84: 0 | BQ84: 0
D85: Total | J85: =SUM(J83:J84) -> 475.5196082 | K85: =SUM(K83:K84) -> 475.2034533 | L85: 519.9561568 | M85: 0 | N85: 0 | O85: 0 | P85: 0 | Q85: 0 | R85: 0 | S85: 0 | T85: 0 | U85: 0 | V85: 0 | W85: 0 | X85: 0 | Y85: 0 | Z85: 0 | AA85: 0 | AB85: 0 | AC85: 0 | AD85: 0 | AE85: 0 | AF85: 0 | AG85: 0 | AH85: 0 | AI85: 0 | AJ85: 0 | AK85: 0 | AL85: 0 | AM85: 0 | AN85: 0 | AO85: 0 | AP85: 0 | AQ85: 0 | AR85: 0 | AS85: 0 | AT85: 0 | AU85: 0 | AV85: 0 | AW85: 0 | AX85: 0 | AY85: 0 | AZ85: 0 | BA85: 0 | BB85: 0 | BC85: 0 | BD85: 0 | BE85: 0 | BF85: 0 | BG85: 0 | BH85: 0 | BI85: 0 | BJ85: 0 | BK85: 0 | BL85: 0 | BM85: 0 | BN85: 0 | BO85: 0 | BP85: 0 | BQ85: 0
C87: Debt Balance
D88: Opening Balance | J88: =I91 -> 0 | K88: =J91 -> 284.5595532 | L88: 568.9299135 | M88: 880.0811029 | N88: 834.1967421 | O88: 787.5992028 | P88: 740.2770397 | Q88: 692.2186139 | R88: 643.4120883 | S88: 593.8454248 | T88: 543.5063802 | U88: 492.3825022 | V88: 440.4611259 | W88: 387.7293698 | X88: 334.1741312 | Y88: 279.7820828 | Z88: 224.539668 | AA88: 168.4330967 | AB88: 111.448341 | AC88: 53.57113055 | AD88: -5.213052032 | AE88: -5.213052032 | AF88: -5.213052032 | AG88: -5.213052032 | AH88: -5.213052032 | AI88: -5.213052032 | AJ88: -5.213052032 | AK88: -5.213052032 | AL88: -5.213052032 | AM88: -5.213052032 | AN88: -5.213052032 | AO88: -5.213052032 | AP88: -5.213052032 | AQ88: -5.213052032 | AR88: -5.213052032 | AS88: -5.213052032 | AT88: -5.213052032 | AU88: -5.213052032 | AV88: -5.213052032 | AW88: -5.213052032 | AX88: -5.213052032 | AY88: -5.213052032 | AZ88: -5.213052032 | BA88: -5.213052032 | BB88: -5.213052032 | BC88: -5.213052032 | BD88: -5.213052032 | BE88: -5.213052032 | BF88: -5.213052032 | BG88: -5.213052032 | BH88: -5.213052032 | BI88: -5.213052032 | BJ88: -5.213052032 | BK88: -5.213052032 | BL88: -5.213052032 | BM88: -5.213052032 | BN88: -5.213052032 | BO88: -5.213052032 | BP88: -5.213052032 | BQ88: -5.213052032
D89: Add: Funding | H89: =SUM(J89:BQ89) -> 880.0811029 | J89: =J83 -> 284.5595532 | K89: =K83 -> 284.3703603 | L89: 311.1511893 | M89: 0 | N89: 0 | O89: 0 | P89: 0 | Q89: 0 | R89: 0 | S89: 0 | T89: 0 | U89: 0 | V89: 0 | W89: 0 | X89: 0 | Y89: 0 | Z89: 0 | AA89: 0 | AB89: 0 | AC89: 0 | AD89: 0 | AE89: 0 | AF89: 0 | AG89: 0 | AH89: 0 | AI89: 0 | AJ89: 0 | AK89: 0 | AL89: 0 | AM89: 0 | AN89: 0 | AO89: 0 | AP89: 0 | AQ89: 0 | AR89: 0 | AS89: 0 | AT89: 0 | AU89: 0 | AV89: 0 | AW89: 0 | AX89: 0 | AY89: 0 | AZ89: 0 | BA89: 0 | BB89: 0 | BC89: 0 | BD89: 0 | BE89: 0 | BF89: 0 | BG89: 0 | BH89: 0 | BI89: 0 | BJ89: 0 | BK89: 0 | BL89: 0 | BM89: 0 | BN89: 0 | BO89: 0 | BP89: 0 | BQ89: 0
D90: Less: Repayment | H90: =SUM(J90:BQ90) -> 885.2941549 | I90: =ROUND(H90-H89,0)=0 -> FALSE | J90: =J63 -> 0 | K90: =K63 -> 0 | L90: 0 | M90: 45.88436074 | N90: 46.59753935 | O90: 47.32216303 | P90: 48.05842588 | Q90: 48.80652558 | R90: 49.56666348 | S90: 50.33904465 | T90: 51.12387798 | U90: 51.92137623 | V90: 52.73175616 | W90: 53.55523857 | X90: 54.39204839 | Y90: 55.2424148 | Z90: 56.10657128 | AA90: 56.98475571 | AB90: 57.87721048 | AC90: 58.78418258 | AD90: 0 | AE90: 0 | AF90: 0 | AG90: 0 | AH90: 0 | AI90: 0 | AJ90: 0 | AK90: 0 | AL90: 0 | AM90: 0 | AN90: 0 | AO90: 0 | AP90: 0 | AQ90: 0 | AR90: 0 | AS90: 0 | AT90: 0 | AU90: 0 | AV90: 0 | AW90: 0 | AX90: 0 | AY90: 0 | AZ90: 0 | BA90: 0 | BB90: 0 | BC90: 0 | BD90: 0 | BE90: 0 | BF90: 0 | BG90: 0 | BH90: 0 | BI90: 0 | BJ90: 0 | BK90: 0 | BL90: 0 | BM90: 0 | BN90: 0 | BO90: 0 | BP90: 0 | BQ90: 0
D91: Closing Balance | J91: =J88+J89-J90 -> 284.5595532 | K91: =K88+K89-K90 -> 568.9299135 | L91: 880.0811029 | M91: 834.1967421 | N91: 787.5992028 | O91: 740.2770397 | P91: 692.2186139 | Q91: 643.4120883 | R91: 593.8454248 | S91: 543.5063802 | T91: 492.3825022 | U91: 440.4611259 | V91: 387.7293698 | W91: 334.1741312 | X91: 279.7820828 | Y91: 224.539668 | Z91: 168.4330967 | AA91: 111.448341 | AB91: 53.57113055 | AC91: -5.213052032 | AD91: -5.213052032 | AE91: -5.213052032 | AF91: -5.213052032 | AG91: -5.213052032 | AH91: -5.213052032 | AI91: -5.213052032 | AJ91: -5.213052032 | AK91: -5.213052032 | AL91: -5.213052032 | AM91: -5.213052032 | AN91: -5.213052032 | AO91: -5.213052032 | AP91: -5.213052032 | AQ91: -5.213052032 | AR91: -5.213052032 | AS91: -5.213052032 | AT91: -5.213052032 | AU91: -5.213052032 | AV91: -5.213052032 | AW91: -5.213052032 | AX91: -5.213052032 | AY91: -5.213052032 | AZ91: -5.213052032 | BA91: -5.213052032 | BB91: -5.213052032 | BC91: -5.213052032 | BD91: -5.213052032 | BE91: -5.213052032 | BF91: -5.213052032 | BG91: -5.213052032 | BH91: -5.213052032 | BI91: -5.213052032 | BJ91: -5.213052032 | BK91: -5.213052032 | BL91: -5.213052032 | BM91: -5.213052032 | BN91: -5.213052032 | BO91: -5.213052032 | BP91: -5.213052032 | BQ91: -5.213052032
D92: Check closing balance = 0 | E92: =Inputs!F40 -> 2040-01-01 | F92: =_xlfn.XLOOKUP(E92,6:6,91:91) -> -5.213052032 | G92: =ROUND(F92,0)=0 -> FALSE
D94: Interest Rate | F94: =Inputs!F41 -> 0.03 | J94: =$F$94 -> 0.03 | K94: =$F$94 -> 0.03 | L94: 0.03 | M94: 0.03 | N94: 0.03 | O94: 0.03 | P94: 0.03 | Q94: 0.03 | R94: 0.03 | S94: 0.03 | T94: 0.03 | U94: 0.03 | V94: 0.03 | W94: 0.03 | X94: 0.03 | Y94: 0.03 | Z94: 0.03 | AA94: 0.03 | AB94: 0.03 | AC94: 0.03 | AD94: 0.03 | AE94: 0.03 | AF94: 0.03 | AG94: 0.03 | AH94: 0.03 | AI94: 0.03 | AJ94: 0.03 | AK94: 0.03 | AL94: 0.03 | AM94: 0.03 | AN94: 0.03 | AO94: 0.03 | AP94: 0.03 | AQ94: 0.03 | AR94: 0.03 | AS94: 0.03 | AT94: 0.03 | AU94: 0.03 | AV94: 0.03 | AW94: 0.03 | AX94: 0.03 | AY94: 0.03 | AZ94: 0.03 | BA94: 0.03 | BB94: 0.03 | BC94: 0.03 | BD94: 0.03 | BE94: 0.03 | BF94: 0.03 | BG94: 0.03 | BH94: 0.03 | BI94: 0.03 | BJ94: 0.03 | BK94: 0.03 | BL94: 0.03 | BM94: 0.03 | BN94: 0.03 | BO94: 0.03 | BP94: 0.03 | BQ94: 0.03
D95: Interest Cost | J95: =J94*J88 -> 0 | K95: =K94*K88 -> 8.536786596 | L95: 17.06789741 | M95: 26.40243309 | N95: 25.02590226 | O95: 23.62797608 | P95: 22.20831119 | Q95: 20.76655842 | R95: 19.30236265 | S95: 17.81536274 | T95: 16.3051914 | U95: 14.77147507 | V95: 13.21383378 | W95: 11.63188109 | X95: 10.02522394 | Y95: 8.393462485 | Z95: 6.736190041 | AA95: 5.052992902 | AB95: 3.343450231 | AC95: 1.607133917 | AD95: -0.1563915609 | AE95: -0.1563915609 | AF95: -0.1563915609 | AG95: -0.1563915609 | AH95: -0.1563915609 | AI95: -0.1563915609 | AJ95: -0.1563915609 | AK95: -0.1563915609 | AL95: -0.1563915609 | AM95: -0.1563915609 | AN95: -0.1563915609 | AO95: -0.1563915609 | AP95: -0.1563915609 | AQ95: -0.1563915609 | AR95: -0.1563915609 | AS95: -0.1563915609 | AT95: -0.1563915609 | AU95: -0.1563915609 | AV95: -0.1563915609 | AW95: -0.1563915609 | AX95: -0.1563915609 | AY95: -0.1563915609 | AZ95: -0.1563915609 | BA95: -0.1563915609 | BB95: -0.1563915609 | BC95: -0.1563915609 | BD95: -0.1563915609 | BE95: -0.1563915609 | BF95: -0.1563915609 | BG95: -0.1563915609 | BH95: -0.1563915609 | BI95: -0.1563915609 | BJ95: -0.1563915609 | BK95: -0.1563915609 | BL95: -0.1563915609 | BM95: -0.1563915609 | BN95: -0.1563915609 | BO95: -0.1563915609 | BP95: -0.1563915609 | BQ95: -0.1563915609
D96: IDC | H96: =SUM(J96:BQ96) -> 25.604684 | J96: =J95*J4 -> 0 | K96: =K95*K4 -> 8.536786596 | L96: 17.06789741 | M96: 0 | N96: 0 | O96: 0 | P96: 0 | Q96: 0 | R96: 0 | S96: 0 | T96: 0 | U96: 0 | V96: 0 | W96: 0 | X96: 0 | Y96: 0 | Z96: 0 | AA96: 0 | AB96: 0 | AC96: 0 | AD96: 0 | AE96: 0 | AF96: 0 | AG96: 0 | AH96: 0 | AI96: 0 | AJ96: 0 | AK96: 0 | AL96: 0 | AM96: 0 | AN96: 0 | AO96: 0 | AP96: 0 | AQ96: 0 | AR96: 0 | AS96: 0 | AT96: 0 | AU96: 0 | AV96: 0 | AW96: 0 | AX96: 0 | AY96: 0 | AZ96: 0 | BA96: 0 | BB96: 0 | BC96: 0 | BD96: 0 | BE96: 0 | BF96: 0 | BG96: 0 | BH96: 0 | BI96: 0 | BJ96: 0 | BK96: 0 | BL96: 0 | BM96: 0 | BN96: 0 | BO96: 0 | BP96: 0 | BQ96: 0
D97: IDO | H97: =SUM(J97:BQ97) -> 244.9786088 | J97: =J95*J8 -> 0 | K97: =K95*K8 -> 0 | L97: 0 | M97: 26.40243309 | N97: 25.02590226 | O97: 23.62797608 | P97: 22.20831119 | Q97: 20.76655842 | R97: 19.30236265 | S97: 17.81536274 | T97: 16.3051914 | U97: 14.77147507 | V97: 13.21383378 | W97: 11.63188109 | X97: 10.02522394 | Y97: 8.393462485 | Z97: 6.736190041 | AA97: 5.052992902 | AB97: 3.343450231 | AC97: 1.607133917 | AD97: -0.1563915609 | AE97: -0.1563915609 | AF97: -0.1563915609 | AG97: -0.1563915609 | AH97: -0.1563915609 | AI97: -0.1563915609 | AJ97: -0.1563915609 | AK97: -0.1563915609 | AL97: 0 | AM97: 0 | AN97: 0 | AO97: 0 | AP97: 0 | AQ97: 0 | AR97: 0 | AS97: 0 | AT97: 0 | AU97: 0 | AV97: 0 | AW97: 0 | AX97: 0 | AY97: 0 | AZ97: 0 | BA97: 0 | BB97: 0 | BC97: 0 | BD97: 0 | BE97: 0 | BF97: 0 | BG97: 0 | BH97: 0 | BI97: 0 | BJ97: 0 | BK97: 0 | BL97: 0 | BM97: 0 | BN97: 0 | BO97: 0 | BP97: 0 | BQ97: 0
D99: Fees | F99: =Inputs!F42 -> 0.01 | H99: =F72 -> 885.2941549 | J99: =$H$99*$F$99*(J3=1) -> 8.852941549 | K99: =$H$99*$F$99*(K3=1) -> 0 | L99: 0 | M99: 0 | N99: 0 | O99: 0 | P99: 0 | Q99: 0 | R99: 0 | S99: 0 | T99: 0 | U99: 0 | V99: 0 | W99: 0 | X99: 0 | Y99: 0 | Z99: 0 | AA99: 0 | AB99: 0 | AC99: 0 | AD99: 0 | AE99: 0 | AF99: 0 | AG99: 0 | AH99: 0 | AI99: 0 | AJ99: 0 | AK99: 0 | AL99: 0 | AM99: 0 | AN99: 0 | AO99: 0 | AP99: 0 | AQ99: 0 | AR99: 0 | AS99: 0 | AT99: 0 | AU99: 0 | AV99: 0 | AW99: 0 | AX99: 0 | AY99: 0 | AZ99: 0 | BA99: 0 | BB99: 0 | BC99: 0 | BD99: 0 | BE99: 0 | BF99: 0 | BG99: 0 | BH99: 0 | BI99: 0 | BJ99: 0 | BK99: 0 | BL99: 0 | BM99: 0 | BN99: 0 | BO99: 0 | BP99: 0 | BQ99: 0
D101: Flag for DSRA | F101: =Inputs!F5 -> 2023-01-01 | G101: =EDATE(F101,-Inputs!F8) -> 2022-01-01 | H101: =SUM(J101:BQ101) -> 1 | J101: =(J6=$G$101)*1 -> 0 | K101: =(K6=$G$101)*1 -> 0 | L101: 1 | M101: 0 | N101: 0 | O101: 0 | P101: 0 | Q101: 0 | R101: 0 | S101: 0 | T101: 0 | U101: 0 | V101: 0 | W101: 0 | X101: 0 | Y101: 0 | Z101: 0 | AA101: 0 | AB101: 0 | AC101: 0 | AD101: 0 | AE101: 0 | AF101: 0 | AG101: 0 | AH101: 0 | AI101: 0 | AJ101: 0 | AK101: 0 | AL101: 0 | AM101: 0 | AN101: 0 | AO101: 0 | AP101: 0 | AQ101: 0 | AR101: 0 | AS101: 0 | AT101: 0 | AU101: 0 | AV101: 0 | AW101: 0 | AX101: 0 | AY101: 0 | AZ101: 0 | BA101: 0 | BB101: 0 | BC101: 0 | BD101: 0 | BE101: 0 | BF101: 0 | BG101: 0 | BH101: 0 | BI101: 0 | BJ101: 0 | BK101: 0 | BL101: 0 | BM101: 0 | BN101: 0 | BO101: 0 | BP101: 0 | BQ101: 0
D102: DSRA Funding | F102: =F69 -> 36.2215927 | J102: =$F$102*J101 -> 0 | K102: =$F$102*K101 -> 0 | L102: 36.2215927 | M102: 0 | N102: 0 | O102: 0 | P102: 0 | Q102: 0 | R102: 0 | S102: 0 | T102: 0 | U102: 0 | V102: 0 | W102: 0 | X102: 0 | Y102: 0 | Z102: 0 | AA102: 0 | AB102: 0 | AC102: 0 | AD102: 0 | AE102: 0 | AF102: 0 | AG102: 0 | AH102: 0 | AI102: 0 | AJ102: 0 | AK102: 0 | AL102: 0 | AM102: 0 | AN102: 0 | AO102: 0 | AP102: 0 | AQ102: 0 | AR102: 0 | AS102: 0 | AT102: 0 | AU102: 0 | AV102: 0 | AW102: 0 | AX102: 0 | AY102: 0 | AZ102: 0 | BA102: 0 | BB102: 0 | BC102: 0 | BD102: 0 | BE102: 0 | BF102: 0 | BG102: 0 | BH102: 0 | BI102: 0 | BJ102: 0 | BK102: 0 | BL102: 0 | BM102: 0 | BN102: 0 | BO102: 0 | BP102: 0 | BQ102: 0
C104: Taxes
D105: EBIT | J105: =J43 -> 0 | K105: =K43 -> 0 | L105: 0 | M105: -277.9472137 | N105: -151.1822686 | O105: -85.08344285 | P105: -84.31748221 | Q105: -83.55113445 | R105: 145.8821841 | S105: 146.6490551 | T105: 147.4160582 | U105: 148.1831045 | V105: 148.950103 | W105: 149.7169605 | X105: 150.4835817 | Y105: 151.2498691 | Z105: 152.0157231 | AA105: 152.7810418 | AB105: 153.5457209 | AC105: 154.3096539 | AD105: 155.0727319 | AE105: 155.8348435 | AF105: 156.5958749 | AG105: 157.3557099 | AH105: 158.1142296 | AI105: 158.8713126 | AJ105: 159.6268348 | AK105: 160.3806694 | AL105: 0 | AM105: 0 | AN105: 0 | AO105: 0 | AP105: 0 | AQ105: 0 | AR105: 0 | AS105: 0 | AT105: 0 | AU105: 0 | AV105: 0 | AW105: 0 | AX105: 0 | AY105: 0 | AZ105: 0 | BA105: 0 | BB105: 0 | BC105: 0 | BD105: 0 | BE105: 0 | BF105: 0 | BG105: 0 | BH105: 0 | BI105: 0 | BJ105: 0 | BK105: 0 | BL105: 0 | BM105: 0 | BN105: 0 | BO105: 0 | BP105: 0 | BQ105: 0
D106: Depreciation | J106: =J39 -> 0 | K106: =K39 -> 0 | L106: 0 | M106: 420 | N106: 294 | O106: 228.6666667 | P106: 228.6666667 | Q106: 228.6666667 | R106: 0 | S106: 0 | T106: 0 | U106: 0 | V106: 0 | W106: 0 | X106: 0 | Y106: 0 | Z106: 0 | AA106: 0 | AB106: 0 | AC106: 0 | AD106: 0 | AE106: 0 | AF106: 0 | AG106: 0 | AH106: 0 | AI106: 0 | AJ106: 0 | AK106: 0 | AL106: 0 | AM106: 0 | AN106: 0 | AO106: 0 | AP106: 0 | AQ106: 0 | AR106: 0 | AS106: 0 | AT106: 0 | AU106: 0 | AV106: 0 | AW106: 0 | AX106: 0 | AY106: 0 | AZ106: 0 | BA106: 0 | BB106: 0 | BC106: 0 | BD106: 0 | BE106: 0 | BF106: 0 | BG106: 0 | BH106: 0 | BI106: 0 | BJ106: 0 | BK106: 0 | BL106: 0 | BM106: 0 | BN106: 0 | BO106: 0 | BP106: 0 | BQ106: 0
D107: Interest | J107: =J97 -> 0 | K107: =K97 -> 0 | L107: 0 | M107: 26.40243309 | N107: 25.02590226 | O107: 23.62797608 | P107: 22.20831119 | Q107: 20.76655842 | R107: 19.30236265 | S107: 17.81536274 | T107: 16.3051914 | U107: 14.77147507 | V107: 13.21383378 | W107: 11.63188109 | X107: 10.02522394 | Y107: 8.393462485 | Z107: 6.736190041 | AA107: 5.052992902 | AB107: 3.343450231 | AC107: 1.607133917 | AD107: -0.1563915609 | AE107: -0.1563915609 | AF107: -0.1563915609 | AG107: -0.1563915609 | AH107: -0.1563915609 | AI107: -0.1563915609 | AJ107: -0.1563915609 | AK107: -0.1563915609 | AL107: 0 | AM107: 0 | AN107: 0 | AO107: 0 | AP107: 0 | AQ107: 0 | AR107: 0 | AS107: 0 | AT107: 0 | AU107: 0 | AV107: 0 | AW107: 0 | AX107: 0 | AY107: 0 | AZ107: 0 | BA107: 0 | BB107: 0 | BC107: 0 | BD107: 0 | BE107: 0 | BF107: 0 | BG107: 0 | BH107: 0 | BI107: 0 | BJ107: 0 | BK107: 0 | BL107: 0 | BM107: 0 | BN107: 0 | BO107: 0 | BP107: 0 | BQ107: 0
D108: EBT | J108: =J105-J106-J107 -> 0 | K108: =K105-K106-K107 -> 0 | L108: 0 | M108: -724.3496468 | N108: -470.2081709 | O108: -337.3780856 | P108: -335.1924601 | Q108: -332.9843595 | R108: 126.5798214 | S108: 128.8336923 | T108: 131.1108668 | U108: 133.4116295 | V108: 135.7362692 | W108: 138.0850794 | X108: 140.4583577 | Y108: 142.8564066 | Z108: 145.2795331 | AA108: 147.7280489 | AB108: 150.2022707 | AC108: 152.70252 | AD108: 155.2291234 | AE108: 155.991235 | AF108: 156.7522665 | AG108: 157.5121015 | AH108: 158.2706212 | AI108: 159.0277042 | AJ108: 159.7832263 | AK108: 160.5370609 | AL108: 0 | AM108: 0 | AN108: 0 | AO108: 0 | AP108: 0 | AQ108: 0 | AR108: 0 | AS108: 0 | AT108: 0 | AU108: 0 | AV108: 0 | AW108: 0 | AX108: 0 | AY108: 0 | AZ108: 0 | BA108: 0 | BB108: 0 | BC108: 0 | BD108: 0 | BE108: 0 | BF108: 0 | BG108: 0 | BH108: 0 | BI108: 0 | BJ108: 0 | BK108: 0 | BL108: 0 | BM108: 0 | BN108: 0 | BO108: 0 | BP108: 0 | BQ108: 0
D110: NOL Balance
D111: Opening | J111: =I114 -> 0 | K111: =J114 -> 0 | L111: 0 | M111: 0 | N111: 724.3496468 | O111: 1194.557818 | P111: 1531.935903 | Q111: 1867.128363 | R111: 2200.112723 | S111: 2073.532901 | T111: 1944.699209 | U111: 1813.588342 | V111: 1680.176713 | W111: 1544.440444 | X111: 1406.355364 | Y111: 1265.897007 | Z111: 1123.0406 | AA111: 977.7610669 | AB111: 830.033018 | AC111: 679.8307473 | AD111: 527.1282274 | AE111: 371.8991039 | AF111: 215.9078689 | AG111: 59.15560238 | AH111: 0 | AI111: 0 | AJ111: 0 | AK111: 0 | AL111: 0 | AM111: 0 | AN111: 0 | AO111: 0 | AP111: 0 | AQ111: 0 | AR111: 0 | AS111: 0 | AT111: 0 | AU111: 0 | AV111: 0 | AW111: 0 | AX111: 0 | AY111: 0 | AZ111: 0 | BA111: 0 | BB111: 0 | BC111: 0 | BD111: 0 | BE111: 0 | BF111: 0 | BG111: 0 | BH111: 0 | BI111: 0 | BJ111: 0 | BK111: 0 | BL111: 0 | BM111: 0 | BN111: 0 | BO111: 0 | BP111: 0 | BQ111: 0
D112: Add: Carried | J112: =MAX(-J108,0) -> 0 | K112: =MAX(-K108,0) -> 0 | L112: 0 | M112: 724.3496468 | N112: 470.2081709 | O112: 337.3780856 | P112: 335.1924601 | Q112: 332.9843595 | R112: 0 | S112: 0 | T112: 0 | U112: 0 | V112: 0 | W112: 0 | X112: 0 | Y112: 0 | Z112: 0 | AA112: 0 | AB112: 0 | AC112: 0 | AD112: 0 | AE112: 0 | AF112: 0 | AG112: 0 | AH112: 0 | AI112: 0 | AJ112: 0 | AK112: 0 | AL112: 0 | AM112: 0 | AN112: 0 | AO112: 0 | AP112: 0 | AQ112: 0 | AR112: 0 | AS112: 0 | AT112: 0 | AU112: 0 | AV112: 0 | AW112: 0 | AX112: 0 | AY112: 0 | AZ112: 0 | BA112: 0 | BB112: 0 | BC112: 0 | BD112: 0 | BE112: 0 | BF112: 0 | BG112: 0 | BH112: 0 | BI112: 0 | BJ112: 0 | BK112: 0 | BL112: 0 | BM112: 0 | BN112: 0 | BO112: 0 | BP112: 0 | BQ112: 0
D113: Less: Used | J113: =MIN(MAX(J108,0),J111) -> 0 | K113: =MIN(MAX(K108,0),K111) -> 0 | L113: 0 | M113: 0 | N113: 0 | O113: 0 | P113: 0 | Q113: 0 | R113: 126.5798214 | S113: 128.8336923 | T113: 131.1108668 | U113: 133.4116295 | V113: 135.7362692 | W113: 138.0850794 | X113: 140.4583577 | Y113: 142.8564066 | Z113: 145.2795331 | AA113: 147.7280489 | AB113: 150.2022707 | AC113: 152.70252 | AD113: 155.2291234 | AE113: 155.991235 | AF113: 156.7522665 | AG113: 59.15560238 | AH113: 0 | AI113: 0 | AJ113: 0 | AK113: 0 | AL113: 0 | AM113: 0 | AN113: 0 | AO113: 0 | AP113: 0 | AQ113: 0 | AR113: 0 | AS113: 0 | AT113: 0 | AU113: 0 | AV113: 0 | AW113: 0 | AX113: 0 | AY113: 0 | AZ113: 0 | BA113: 0 | BB113: 0 | BC113: 0 | BD113: 0 | BE113: 0 | BF113: 0 | BG113: 0 | BH113: 0 | BI113: 0 | BJ113: 0 | BK113: 0 | BL113: 0 | BM113: 0 | BN113: 0 | BO113: 0 | BP113: 0 | BQ113: 0
D114: Closing | J114: =J111+J112-J113 -> 0 | K114: =K111+K112-K113 -> 0 | L114: 0 | M114: 724.3496468 | N114: 1194.557818 | O114: 1531.935903 | P114: 1867.128363 | Q114: 2200.112723 | R114: 2073.532901 | S114: 1944.699209 | T114: 1813.588342 | U114: 1680.176713 | V114: 1544.440444 | W114: 1406.355364 | X114: 1265.897007 | Y114: 1123.0406 | Z114: 977.7610669 | AA114: 830.033018 | AB114: 679.8307473 | AC114: 527.1282274 | AD114: 371.8991039 | AE114: 215.9078689 | AF114: 59.15560238 | AG114: 0 | AH114: 0 | AI114: 0 | AJ114: 0 | AK114: 0 | AL114: 0 | AM114: 0 | AN114: 0 | AO114: 0 | AP114: 0 | AQ114: 0 | AR114: 0 | AS114: 0 | AT114: 0 | AU114: 0 | AV114: 0 | AW114: 0 | AX114: 0 | AY114: 0 | AZ114: 0 | BA114: 0 | BB114: 0 | BC114: 0 | BD114: 0 | BE114: 0 | BF114: 0 | BG114: 0 | BH114: 0 | BI114: 0 | BJ114: 0 | BK114: 0 | BL114: 0 | BM114: 0 | BN114: 0 | BO114: 0 | BP114: 0 | BQ114: 0
D116: Adjusted EBT | J116: =J108+J112-J113 -> 0 | K116: =K108+K112-K113 -> 0 | L116: 0 | M116: 0 | N116: 0 | O116: 0 | P116: 0 | Q116: 0 | R116: 0 | S116: 0 | T116: 0 | U116: 0 | V116: 0 | W116: 0 | X116: 0 | Y116: 0 | Z116: 0 | AA116: 0 | AB116: 0 | AC116: 0 | AD116: 0 | AE116: 0 | AF116: 0 | AG116: 98.35649911 | AH116: 158.2706212 | AI116: 159.0277042 | AJ116: 159.7832263 | AK116: 160.5370609 | AL116: 0 | AM116: 0 | AN116: 0 | AO116: 0 | AP116: 0 | AQ116: 0 | AR116: 0 | AS116: 0 | AT116: 0 | AU116: 0 | AV116: 0 | AW116: 0 | AX116: 0 | AY116: 0 | AZ116: 0 | BA116: 0 | BB116: 0 | BC116: 0 | BD116: 0 | BE116: 0 | BF116: 0 | BG116: 0 | BH116: 0 | BI116: 0 | BJ116: 0 | BK116: 0 | BL116: 0 | BM116: 0 | BN116: 0 | BO116: 0 | BP116: 0 | BQ116: 0
D117: Taxes Paid | F117: =Inputs!F26 -> 0.25 | J117: =J116*$F$117 -> 0 | K117: =K116*$F$117 -> 0 | L117: 0 | M117: 0 | N117: 0 | O117: 0 | P117: 0 | Q117: 0 | R117: 0 | S117: 0 | T117: 0 | U117: 0 | V117: 0 | W117: 0 | X117: 0 | Y117: 0 | Z117: 0 | AA117: 0 | AB117: 0 | AC117: 0 | AD117: 0 | AE117: 0 | AF117: 0 | AG117: 24.58912478 | AH117: 39.5676553 | AI117: 39.75692604 | AJ117: 39.94580658 | AK117: 40.13426523 | AL117: 0 | AM117: 0 | AN117: 0 | AO117: 0 | AP117: 0 | AQ117: 0 | AR117: 0 | AS117: 0 | AT117: 0 | AU117: 0 | AV117: 0 | AW117: 0 | AX117: 0 | AY117: 0 | AZ117: 0 | BA117: 0 | BB117: 0 | BC117: 0 | BD117: 0 | BE117: 0 | BF117: 0 | BG117: 0 | BH117: 0 | BI117: 0 | BJ117: 0 | BK117: 0 | BL117: 0 | BM117: 0 | BN117: 0 | BO117: 0 | BP117: 0 | BQ117: 0
B119: Waterfall

Sheet P50Inputs
A1: =RIGHT(CELL("filename", A1), LEN(CELL("filename", A1)) - SEARCH("]", CELL("filename", A1))) -> P50Inputs
E2: Case Sensiitive Variable Name in UDF | G2: Input | J2: 1 | K2: 2 | L2: 3 | M2: 4 | N2: 5 | O2: 6 | P2: 7 | Q2: 8 | R2: 9 | S2: 10 | T2: 11 | U2: 12 | V2: 13 | W2: 14 | X2: 15 | Y2: 16 | Z2: 17 | AA2: 18 | AB2: 19 | AC2: 20 | AD2: 21 | AE2: 22 | AF2: 23 | AG2: 24 | AH2: 25 | AI2: 26 | AJ2: 27 | AK2: 28 | AL2: 29 | AM2: 30 | AN2: 31 | AO2: 32 | AP2: 33 | AQ2: 34 | AR2: 35 | AS2: 36 | AT2: 37 | AU2: 38 | AV2: 39 | AW2: 40 | AX2: 41 | AY2: 42 | AZ2: 43 | BA2: 44 | BB2: 45 | BC2: 46 | BD2: 47 | BE2: 48 | BF2: 49 | BG2: 50 | BH2: 51 | BI2: 52 | BJ2: 53 | BK2: 54 | BL2: 55 | BM2: 56 | BN2: 57 | BO2: 58 | BP2: 59 | BQ2: 60 | BR2: 61 | BS2: 62 | BT2: 63 | BU2: 64 | BV2: 65 | BW2: 66 | BX2: 67 | BY2: 68 | BZ2: 69 | CA2: 70 | CB2: 71 | CC2: 72 | CD2: 73 | CE2: 74 | CF2: 75 | CG2: 76 | CH2: 77 | CI2: 78 | CJ2: 79 | CK2: 80 | CL2: 81 | CM2: 82 | CN2: 83 | CO2: 84 | CP2: 85
E3: (Corresponds to program) | F3: Labels - You can Name this Yourself | G3: Type | H3: Constant | I3: Units
B4: Flags and Switches - Make Very Clear What Sections Will Be Calculated and Displayed
B5: Flags from The Model
E6: dev_swA | F6: Development period flag ( No TRUE/FALSE) | G6: InputS | I6: Flag | J6: 1 | K6: 0 | L6: 0 | M6: 0 | N6: 0 | O6: 0 | P6: 0 | Q6: 0 | R6: 0 | S6: 0 | T6: 0 | U6: 0 | V6: 0 | W6: 0 | X6: 0 | Y6: 0 | Z6: 0 | AA6: 0 | AB6: 0 | AC6: 0 | AD6: 0 | AE6: 0 | AF6: 0 | AG6: 0 | AH6: 0 | AI6: 0 | AJ6: 0 | AK6: 0 | AL6: 0 | AM6: 0 | AN6: 0 | AO6: 0 | AP6: 0 | AQ6: 0 | AR6: 0 | AS6: 0 | AT6: 0 | AU6: 0 | AV6: 0 | AW6: 0 | AX6: 0 | AY6: 0 | AZ6: 0 | BA6: 0 | BB6: 0 | BC6: 0 | BD6: 0 | BE6: 0 | BF6: 0 | BG6: 0 | BH6: 0 | BI6: 0 | BJ6: 0 | BK6: 0 | BL6: 0 | BM6: 0 | BN6: 0 | BO6: 0 | BP6: 0 | BQ6: 0 | BR6: 0 | BS6: 0 | BT6: 0 | BU6: 0 | BV6: 0 | BW6: 0 | BX6: 0 | BY6: 0 | BZ6: 0 | CA6: 0 | CB6: 0 | CC6: 0 | CD6: 0 | CE6: 0 | CF6: 0 | CG6: 0 | CH6: 0 | CI6: 0 | CJ6: 0 | CK6: 0 | CL6: 0 | CM6: 0 | CN6: 0 | CO6: 0 | CP6: 0 | CQ6: 0 | CR6: 0 | CS6: 0 | CT6: 0 | CU6: 0 | CV6: 0 | CW6: 0 | CX6: 0 | CY6: 0 | CZ6: 0 | DA6: 0 | DB6: 0 | DC6: 0 | DD6: 0 | DE6: 0 | DF6: 0 | DG6: 0 | DH6: 0 | DI6: 0 | DJ6: 0 | DK6: 0 | DL6: 0 | DM6: 0 | DN6: 0 | DO6: 0 | DP6: 0 | DQ6: 0 | DR6: 0 | DS6: 0 | DT6: 0 | DU6: 0 | DV6: 0 | DW6: 0 | DX6: 0 | DY6: 0 | DZ6: 0 | EA6: 0 | EB6: 0 | EC6: 0 | ED6: 0 | EE6: 0 | EF6: 0 | EG6: 0 | EH6: 0 | EI6: 0 | EJ6: 0 | EK6: 0 | EL6: 0 | EM6: 0 | EN6: 0 | EO6: 0 | EP6: 0 | EQ6: 0 | ER6: 0 | ES6: 0 | ET6: 0 | EU6: 0 | EV6: 0 | EW6: 0 | EX6: 0 | EY6: 0 | EZ6: 0 | FA6: 0 | FB6: 0 | FC6: 0 | FD6: 0 | FE6: 0 | FF6: 0 | FG6: 0 | FH6: 0 | FI6: 0 | FJ6: 0 | FK6: 0 | FL6: 0 | FM6: 0 | FN6: 0 | FO6: 0 | FP6: 0 | FQ6: 0 | FR6: 0 | FS6: 0 | FT6: 0 | FU6: 0 | FV6: 0 | FW6: 0 | FX6: 0 | FY6: 0 | FZ6: 0 | GA6: 0 | GB6: 0 | GC6: 0 | GD6: 0 | GE6: 0 | GF6: 0 | GG6: 0 | GH6: 0 | GI6: 0 | GJ6: 0 | GK6: 0 | GL6: 0 | GM6: 0 | GN6: 0 | GO6: 0 | GP6: 0 | GQ6: 0 | GR6: 0 | GS6: 0 | GT6: 0 | GU6: 0 | GV6: 0 | GW6: 0 | GX6: 0 | GY6: 0 | GZ6: 0 | HA6: 0 | HB6: 0 | HC6: 0 | HD6: 0 | HE6: 0 | HF6: 0 | HG6: 0 | HH6: 0 | HI6: 0 | HJ6: 0 | HK6: 0 | HL6: 0 | HM6: 0 | HN6: 0 | HO6: 0 | HP6: 0 | HQ6: 0 | HR6: 0 | HS6: 0 | HT6: 0 | HU6: 0 | HV6: 0 | HW6: 0 | HX6: 0 | HY6: 0 | HZ6: 0 | IA6: 0 | IB6: 0 | IC6: 0 | ID6: 0 | IE6: 0 | IF6: 0 | IG6: 0 | IH6: 0 | II6: 0 | IJ6: 0 | IK6: 0 | IL6: 0 | IM6: 0 | IN6: 0 | IO6: 0 | IP6: 0 | IQ6: 0 | IR6: 0 | IS6: 0 | IT6: 0 | IU6: 0 | IV6: 0 | IW6: 0 | IX6: 0 | IY6: 0 | IZ6: 0 | JA6: 0 | JB6: 0 | JC6: 0 | JD6: 0 | JE6: 0 | JF6: 0 | JG6: 0 | JH6: 0 | JI6: 0 | JJ6: 0 | JK6: 0 | JL6: 0 | JM6: 0 | JN6: 0 | JO6: 0 | JP6: 0 | JQ6: 0 | JR6: 0 | JS6: 0 | JT6: 0 | JU6: 0 | JV6: 0 | JW6: 0 | JX6: 0 | JY6: 0 | JZ6: 0 | KA6: 0 | KB6: 0 | KC6: 0 | KD6: 0 | KE6: 0 | KF6: 0 | KG6: 0 | KH6: 0 | KI6: 0 | KJ6: 0 | KK6: 0 | KL6: 0 | KM6: 0 | KN6: 0 | KO6: 0 | KP6: 0 | KQ6: 0 | KR6: 0 | KS6: 0 | KT6: 0 | KU6: 0 | KV6: 0 | KW6: 0
E7: cons_swA | F7: Construction period flag (No TRUE/FALSE) | G7: InputS | I7: Flag | J7: 0 | K7: 1 | L7: 1 | M7: 1 | N7: 0 | O7: 0 | P7: 0 | Q7: 0 | R7: 0 | S7: 0 | T7: 0 | U7: 0 | V7: 0 | W7: 0 | X7: 0 | Y7: 0 | Z7: 0 | AA7: 0 | AB7: 0 | AC7: 0 | AD7: 0 | AE7: 0 | AF7: 0 | AG7: 0 | AH7: 0 | AI7: 0 | AJ7: 0 | AK7: 0 | AL7: 0 | AM7: 0 | AN7: 0 | AO7: 0 | AP7: 0 | AQ7: 0 | AR7: 0 | AS7: 0 | AT7: 0 | AU7: 0 | AV7: 0 | AW7: 0 | AX7: 0 | AY7: 0 | AZ7: 0 | BA7: 0 | BB7: 0 | BC7: 0 | BD7: 0 | BE7: 0 | BF7: 0 | BG7: 0 | BH7: 0 | BI7: 0 | BJ7: 0 | BK7: 0 | BL7: 0 | BM7: 0 | BN7: 0 | BO7: 0 | BP7: 0 | BQ7: 0 | BR7: 0 | BS7: 0 | BT7: 0 | BU7: 0 | BV7: 0 | BW7: 0 | BX7: 0 | BY7: 0 | BZ7: 0 | CA7: 0 | CB7: 0 | CC7: 0 | CD7: 0 | CE7: 0 | CF7: 0 | CG7: 0 | CH7: 0 | CI7: 0 | CJ7: 0 | CK7: 0 | CL7: 0 | CM7: 0 | CN7: 0 | CO7: 0 | CP7: 0 | CQ7: 0 | CR7: 0 | CS7: 0 | CT7: 0 | CU7: 0 | CV7: 0 | CW7: 0 | CX7: 0 | CY7: 0 | CZ7: 0 | DA7: 0 | DB7: 0 | DC7: 0 | DD7: 0 | DE7: 0 | DF7: 0 | DG7: 0 | DH7: 0 | DI7: 0 | DJ7: 0 | DK7: 0 | DL7: 0 | DM7: 0 | DN7: 0 | DO7: 0 | DP7: 0 | DQ7: 0 | DR7: 0 | DS7: 0 | DT7: 0 | DU7: 0 | DV7: 0 | DW7: 0 | DX7: 0 | DY7: 0 | DZ7: 0 | EA7: 0 | EB7: 0 | EC7: 0 | ED7: 0 | EE7: 0 | EF7: 0 | EG7: 0 | EH7: 0 | EI7: 0 | EJ7: 0 | EK7: 0 | EL7: 0 | EM7: 0 | EN7: 0 | EO7: 0 | EP7: 0 | EQ7: 0 | ER7: 0 | ES7: 0 | ET7: 0 | EU7: 0 | EV7: 0 | EW7: 0 | EX7: 0 | EY7: 0 | EZ7: 0 | FA7: 0 | FB7: 0 | FC7: 0 | FD7: 0 | FE7: 0 | FF7: 0 | FG7: 0 | FH7: 0 | FI7: 0 | FJ7: 0 | FK7: 0 | FL7: 0 | FM7: 0 | FN7: 0 | FO7: 0 | FP7: 0 | FQ7: 0 | FR7: 0 | FS7: 0 | FT7: 0 | FU7: 0 | FV7: 0 | FW7: 0 | FX7: 0 | FY7: 0 | FZ7: 0 | GA7: 0 | GB7: 0 | GC7: 0 | GD7: 0 | GE7: 0 | GF7: 0 | GG7: 0 | GH7: 0 | GI7: 0 | GJ7: 0 | GK7: 0 | GL7: 0 | GM7: 0 | GN7: 0 | GO7: 0 | GP7: 0 | GQ7: 0 | GR7: 0 | GS7: 0 | GT7: 0 | GU7: 0 | GV7: 0 | GW7: 0 | GX7: 0 | GY7: 0 | GZ7: 0 | HA7: 0 | HB7: 0 | HC7: 0 | HD7: 0 | HE7: 0 | HF7: 0 | HG7: 0 | HH7: 0 | HI7: 0 | HJ7: 0 | HK7: 0 | HL7: 0 | HM7: 0 | HN7: 0 | HO7: 0 | HP7: 0 | HQ7: 0 | HR7: 0 | HS7: 0 | HT7: 0 | HU7: 0 | HV7: 0 | HW7: 0 | HX7: 0 | HY7: 0 | HZ7: 0 | IA7: 0 | IB7: 0 | IC7: 0 | ID7: 0 | IE7: 0 | IF7: 0 | IG7: 0 | IH7: 0 | II7: 0 | IJ7: 0 | IK7: 0 | IL7: 0 | IM7: 0 | IN7: 0 | IO7: 0 | IP7: 0 | IQ7: 0 | IR7: 0 | IS7: 0 | IT7: 0 | IU7: 0 | IV7: 0 | IW7: 0 | IX7: 0 | IY7: 0 | IZ7: 0 | JA7: 0 | JB7: 0 | JC7: 0 | JD7: 0 | JE7: 0 | JF7: 0 | JG7: 0 | JH7: 0 | JI7: 0 | JJ7: 0 | JK7: 0 | JL7: 0 | JM7: 0 | JN7: 0 | JO7: 0 | JP7: 0 | JQ7: 0 | JR7: 0 | JS7: 0 | JT7: 0 | JU7: 0 | JV7: 0 | JW7: 0 | JX7: 0 | JY7: 0 | JZ7: 0 | KA7: 0 | KB7: 0 | KC7: 0 | KD7: 0 | KE7: 0 | KF7: 0 | KG7: 0 | KH7: 0 | KI7: 0 | KJ7: 0 | KK7: 0 | KL7: 0 | KM7: 0 | KN7: 0 | KO7: 0 | KP7: 0 | KQ7: 0 | KR7: 0 | KS7: 0 | KT7: 0 | KU7: 0 | KV7: 0 | KW7: 0
E8: ops_swA | F8: Operation Flag (Must be No TRUE/FALSE) | G8: =G6 -> InputS | I8: Flag | J8: 0 | K8: 0 | L8: 0 | M8: 0 | N8: 1 | O8: 1 | P8: 1 | Q8: 1 | R8: 1 | S8: 1 | T8: 1 | U8: 1 | V8: 1 | W8: 1 | X8: 1 | Y8: 1 | Z8: 1 | AA8: 1 | AB8: 1 | AC8: 1 | AD8: 1 | AE8: 1 | AF8: 1 | AG8: 1 | AH8: 1 | AI8: 1 | AJ8: 1 | AK8: 1 | AL8: 1 | AM8: 0 | AN8: 0 | AO8: 0 | AP8: 0 | AQ8: 0 | AR8: 0 | AS8: 0 | AT8: 0 | AU8: 0 | AV8: 0 | AW8: 0 | AX8: 0 | AY8: 0 | AZ8: 0 | BA8: 0 | BB8: 0 | BC8: 0 | BD8: 0 | BE8: 0 | BF8: 0 | BG8: 0 | BH8: 0 | BI8: 0 | BJ8: 0 | BK8: 0 | BL8: 0 | BM8: 0 | BN8: 0 | BO8: 0 | BP8: 0 | BQ8: 0 | BR8: 0 | BS8: 0 | BT8: 0 | BU8: 0 | BV8: 0 | BW8: 0 | BX8: 0 | BY8: 0 | BZ8: 0 | CA8: 0 | CB8: 0 | CC8: 0 | CD8: 0 | CE8: 0 | CF8: 0 | CG8: 0 | CH8: 0 | CI8: 0 | CJ8: 0 | CK8: 0 | CL8: 0 | CM8: 0 | CN8: 0 | CO8: 0 | CP8: 0 | CQ8: 0 | CR8: 0 | CS8: 0 | CT8: 0 | CU8: 0 | CV8: 0 | CW8: 0 | CX8: 0 | CY8: 0 | CZ8: 0 | DA8: 0 | DB8: 0 | DC8: 0 | DD8: 0 | DE8: 0 | DF8: 0 | DG8: 0 | DH8: 0 | DI8: 0 | DJ8: 0 | DK8: 0 | DL8: 0 | DM8: 0 | DN8: 0 | DO8: 0 | DP8: 0 | DQ8: 0 | DR8: 0 | DS8: 0 | DT8: 0 | DU8: 0 | DV8: 0 | DW8: 0 | DX8: 0 | DY8: 0 | DZ8: 0 | EA8: 0 | EB8: 0 | EC8: 0 | ED8: 0 | EE8: 0 | EF8: 0 | EG8: 0 | EH8: 0 | EI8: 0 | EJ8: 0 | EK8: 0 | EL8: 0 | EM8: 0 | EN8: 0 | EO8: 0 | EP8: 0 | EQ8: 0 | ER8: 0 | ES8: 0 | ET8: 0 | EU8: 0 | EV8: 0 | EW8: 0 | EX8: 0 | EY8: 0 | EZ8: 0 | FA8: 0 | FB8: 0 | FC8: 0 | FD8: 0 | FE8: 0 | FF8: 0 | FG8: 0 | FH8: 0 | FI8: 0 | FJ8: 0 | FK8: 0 | FL8: 0 | FM8: 0 | FN8: 0 | FO8: 0 | FP8: 0 | FQ8: 0 | FR8: 0 | FS8: 0 | FT8: 0 | FU8: 0 | FV8: 0 | FW8: 0 | FX8: 0 | FY8: 0 | FZ8: 0 | GA8: 0 | GB8: 0 | GC8: 0 | GD8: 0 | GE8: 0 | GF8: 0 | GG8: 0 | GH8: 0 | GI8: 0 | GJ8: 0 | GK8: 0 | GL8: 0 | GM8: 0 | GN8: 0 | GO8: 0 | GP8: 0 | GQ8: 0 | GR8: 0 | GS8: 0 | GT8: 0 | GU8: 0 | GV8: 0 | GW8: 0 | GX8: 0 | GY8: 0 | GZ8: 0 | HA8: 0 | HB8: 0 | HC8: 0 | HD8: 0 | HE8: 0 | HF8: 0 | HG8: 0 | HH8: 0 | HI8: 0 | HJ8: 0 | HK8: 0 | HL8: 0 | HM8: 0 | HN8: 0 | HO8: 0 | HP8: 0 | HQ8: 0 | HR8: 0 | HS8: 0 | HT8: 0 | HU8: 0 | HV8: 0 | HW8: 0 | HX8: 0 | HY8: 0 | HZ8: 0 | IA8: 0 | IB8: 0 | IC8: 0 | ID8: 0 | IE8: 0 | IF8: 0 | IG8: 0 | IH8: 0 | II8: 0 | IJ8: 0 | IK8: 0 | IL8: 0 | IM8: 0 | IN8: 0 | IO8: 0 | IP8: 0 | IQ8: 0 | IR8: 0 | IS8: 0 | IT8: 0 | IU8: 0 | IV8: 0 | IW8: 0 | IX8: 0 | IY8: 0 | IZ8: 0 | JA8: 0 | JB8: 0 | JC8: 0 | JD8: 0 | JE8: 0 | JF8: 0 | JG8: 0 | JH8: 0 | JI8: 0 | JJ8: 0 | JK8: 0 | JL8: 0 | JM8: 0 | JN8: 0 | JO8: 0 | JP8: 0 | JQ8: 0 | JR8: 0 | JS8: 0 | JT8: 0 | JU8: 0 | JV8: 0 | JW8: 0 | JX8: 0 | JY8: 0 | JZ8: 0 | KA8: 0 | KB8: 0 | KC8: 0 | KD8: 0 | KE8: 0 | KF8: 0 | KG8: 0 | KH8: 0 | KI8: 0 | KJ8: 0 | KK8: 0 | KL8: 0 | KM8: 0 | KN8: 0 | KO8: 0 | KP8: 0 | KQ8: 0 | KR8: 0 | KS8: 0 | KT8: 0 | KU8: 0 | KV8: 0 | KW8: 0
B10: Operating Inputs from Your Model
C11: Operating Data
E12: capexA | F12: Total capex w/o dependencies like IDC and Fees | G12: InputS | I12: mns EUR | J12: 0 | K12: =Model!J13 -> 466.6666667 | L12: =Model!K13 -> 466.6666667 | M12: =Model!L13 -> 466.6666667 | N12: =Model!M13 -> 0 | O12: =Model!N13 -> 0 | P12: =Model!O13 -> 0 | Q12: =Model!P13 -> 0 | R12: =Model!Q13 -> 0 | S12: =Model!R13 -> 0 | T12: =Model!S13 -> 0 | U12: =Model!T13 -> 0 | V12: =Model!U13 -> 0 | W12: =Model!V13 -> 0 | X12: =Model!W13 -> 0 | Y12: =Model!X13 -> 0 | Z12: =Model!Y13 -> 0 | AA12: =Model!Z13 -> 0 | AB12: =Model!AA13 -> 0 | AC12: =Model!AB13 -> 0 | AD12: =Model!AC13 -> 0 | AE12: =Model!AD13 -> 0 | AF12: =Model!AE13 -> 0 | AG12: =Model!AF13 -> 0 | AH12: =Model!AG13 -> 0 | AI12: =Model!AH13 -> 0 | AJ12: =Model!AI13 -> 0 | AK12: =Model!AJ13 -> 0 | AL12: =Model!AK13 -> 0 | AM12: =Model!AL13 -> 0 | AN12: =Model!AM13 -> 0 | AO12: =Model!AN13 -> 0 | AP12: =Model!AO13 -> 0 | AQ12: =Model!AP13 -> 0 | AR12: =Model!AQ13 -> 0 | AS12: =Model!AR13 -> 0 | AT12: =Model!AS13 -> 0 | AU12: =Model!AT13 -> 0 | AV12: =Model!AU13 -> 0 | AW12: =Model!AV13 -> 0 | AX12: =Model!AW13 -> 0 | AY12: =Model!AX13 -> 0 | AZ12: =Model!AY13 -> 0 | BA12: =Model!AZ13 -> 0 | BB12: =Model!BA13 -> 0 | BC12: =Model!BB13 -> 0 | BD12: =Model!BC13 -> 0 | BE12: =Model!BD13 -> 0 | BF12: =Model!BE13 -> 0 | BG12: =Model!BF13 -> 0 | BH12: =Model!BG13 -> 0 | BI12: =Model!BH13 -> 0 | BJ12: =Model!BI13 -> 0 | BK12: =Model!BJ13 -> 0 | BL12: =Model!BK13 -> 0 | BM12: =Model!BL13 -> 0 | BN12: =Model!BM13 -> 0 | BO12: =Model!BN13 -> 0 | BP12: =Model!BO13 -> 0 | BQ12: =Model!BP13 -> 0 | BR12: =Model!BQ13 -> 0 | BS12: =Model!BR13 -> 0 | BT12: =Model!BS13 -> 0 | BU12: =Model!BT13 -> 0 | BV12: =Model!BU13 -> 0 | BW12: =Model!BV13 -> 0 | BX12: =Model!BW13 -> 0 | BY12: =Model!BX13 -> 0 | BZ12: =Model!BY13 -> 0 | CA12: =Model!BZ13 -> 0 | CB12: =Model!CA13 -> 0 | CC12: =Model!CB13 -> 0 | CD12: =Model!CC13 -> 0 | CE12: =Model!CD13 -> 0 | CF12: =Model!CE13 -> 0 | CG12: =Model!CF13 -> 0 | CH12: =Model!CG13 -> 0 | CI12: =Model!CH13 -> 0 | CJ12: =Model!CI13 -> 0 | CK12: =Model!CJ13 -> 0 | CL12: =Model!CK13 -> 0 | CM12: =Model!CL13 -> 0 | CN12: =Model!CM13 -> 0 | CO12: =Model!CN13 -> 0 | CP12: =Model!CO13 -> 0 | CQ12: =Model!CP13 -> 0 | CR12: =Model!CQ13 -> 0 | CS12: =Model!CR13 -> 0 | CT12: =Model!CS13 -> 0 | CU12: =Model!CT13 -> 0 | CV12: =Model!CU13 -> 0 | CW12: =Model!CV13 -> 0 | CX12: =Model!CW13 -> 0 | CY12: =Model!CX13 -> 0 | CZ12: =Model!CY13 -> 0 | DA12: =Model!CZ13 -> 0 | DB12: =Model!DA13 -> 0 | DC12: =Model!DB13 -> 0 | DD12: =Model!DC13 -> 0 | DE12: =Model!DD13 -> 0 | DF12: =Model!DE13 -> 0 | DG12: =Model!DF13 -> 0 | DH12: =Model!DG13 -> 0 | DI12: =Model!DH13 -> 0 | DJ12: =Model!DI13 -> 0 | DK12: =Model!DJ13 -> 0 | DL12: =Model!DK13 -> 0 | DM12: =Model!DL13 -> 0 | DN12: =Model!DM13 -> 0 | DO12: =Model!DN13 -> 0 | DP12: =Model!DO13 -> 0 | DQ12: =Model!DP13 -> 0 | DR12: =Model!DQ13 -> 0 | DS12: =Model!DR13 -> 0 | DT12: =Model!DS13 -> 0 | DU12: =Model!DT13 -> 0 | DV12: =Model!DU13 -> 0 | DW12: =Model!DV13 -> 0 | DX12: =Model!DW13 -> 0 | DY12: =Model!DX13 -> 0 | DZ12: =Model!DY13 -> 0 | EA12: =Model!DZ13 -> 0 | EB12: =Model!EA13 -> 0 | EC12: =Model!EB13 -> 0 | ED12: =Model!EC13 -> 0 | EE12: =Model!ED13 -> 0 | EF12: =Model!EE13 -> 0 | EG12: =Model!EF13 -> 0 | EH12: =Model!EG13 -> 0 | EI12: =Model!EH13 -> 0 | EJ12: =Model!EI13 -> 0 | EK12: =Model!EJ13 -> 0 | EL12: =Model!EK13 -> 0 | EM12: =Model!EL13 -> 0 | EN12: =Model!EM13 -> 0 | EO12: =Model!EN13 -> 0 | EP12: =Model!EO13 -> 0 | EQ12: =Model!EP13 -> 0 | ER12: =Model!EQ13 -> 0 | ES12: =Model!ER13 -> 0 | ET12: =Model!ES13 -> 0 | EU12: =Model!ET13 -> 0 | EV12: =Model!EU13 -> 0 | EW12: =Model!EV13 -> 0 | EX12: =Model!EW13 -> 0 | EY12: =Model!EX13 -> 0 | EZ12: =Model!EY13 -> 0 | FA12: =Model!EZ13 -> 0 | FB12: =Model!FA13 -> 0 | FC12: =Model!FB13 -> 0 | FD12: =Model!FC13 -> 0 | FE12: =Model!FD13 -> 0 | FF12: =Model!FE13 -> 0 | FG12: =Model!FF13 -> 0 | FH12: =Model!FG13 -> 0 | FI12: =Model!FH13 -> 0 | FJ12: =Model!FI13 -> 0 | FK12: =Model!FJ13 -> 0 | FL12: =Model!FK13 -> 0 | FM12: =Model!FL13 -> 0 | FN12: =Model!FM13 -> 0 | FO12: =Model!FN13 -> 0 | FP12: =Model!FO13 -> 0 | FQ12: =Model!FP13 -> 0 | FR12: =Model!FQ13 -> 0 | FS12: =Model!FR13 -> 0 | FT12: =Model!FS13 -> 0 | FU12: =Model!FT13 -> 0 | FV12: =Model!FU13 -> 0 | FW12: =Model!FV13 -> 0 | FX12: =Model!FW13 -> 0 | FY12: =Model!FX13 -> 0 | FZ12: =Model!FY13 -> 0 | GA12: =Model!FZ13 -> 0 | GB12: =Model!GA13 -> 0 | GC12: =Model!GB13 -> 0 | GD12: =Model!GC13 -> 0 | GE12: =Model!GD13 -> 0 | GF12: =Model!GE13 -> 0 | GG12: =Model!GF13 -> 0 | GH12: =Model!GG13 -> 0 | GI12: =Model!GH13 -> 0 | GJ12: =Model!GI13 -> 0 | GK12: =Model!GJ13 -> 0 | GL12: =Model!GK13 -> 0 | GM12: =Model!GL13 -> 0 | GN12: =Model!GM13 -> 0 | GO12: =Model!GN13 -> 0 | GP12: =Model!GO13 -> 0 | GQ12: =Model!GP13 -> 0 | GR12: =Model!GQ13 -> 0 | GS12: =Model!GR13 -> 0 | GT12: =Model!GS13 -> 0 | GU12: =Model!GT13 -> 0 | GV12: =Model!GU13 -> 0 | GW12: =Model!GV13 -> 0 | GX12: =Model!GW13 -> 0 | GY12: =Model!GX13 -> 0 | GZ12: =Model!GY13 -> 0 | HA12: =Model!GZ13 -> 0 | HB12: =Model!HA13 -> 0 | HC12: =Model!HB13 -> 0 | HD12: =Model!HC13 -> 0 | HE12: =Model!HD13 -> 0 | HF12: =Model!HE13 -> 0 | HG12: =Model!HF13 -> 0 | HH12: =Model!HG13 -> 0 | HI12: =Model!HH13 -> 0 | HJ12: =Model!HI13 -> 0 | HK12: =Model!HJ13 -> 0 | HL12: =Model!HK13 -> 0 | HM12: =Model!HL13 -> 0 | HN12: =Model!HM13 -> 0 | HO12: =Model!HN13 -> 0 | HP12: =Model!HO13 -> 0 | HQ12: =Model!HP13 -> 0 | HR12: =Model!HQ13 -> 0 | HS12: =Model!HR13 -> 0 | HT12: =Model!HS13 -> 0 | HU12: =Model!HT13 -> 0 | HV12: =Model!HU13 -> 0 | HW12: =Model!HV13 -> 0 | HX12: =Model!HW13 -> 0 | HY12: =Model!HX13 -> 0 | HZ12: =Model!HY13 -> 0 | IA12: =Model!HZ13 -> 0 | IB12: =Model!IA13 -> 0 | IC12: =Model!IB13 -> 0 | ID12: =Model!IC13 -> 0 | IE12: =Model!ID13 -> 0 | IF12: =Model!IE13 -> 0 | IG12: =Model!IF13 -> 0 | IH12: =Model!IG13 -> 0 | II12: =Model!IH13 -> 0 | IJ12: =Model!II13 -> 0 | IK12: =Model!IJ13 -> 0 | IL12: =Model!IK13 -> 0 | IM12: =Model!IL13 -> 0 | IN12: =Model!IM13 -> 0 | IO12: =Model!IN13 -> 0 | IP12: =Model!IO13 -> 0 | IQ12: =Model!IP13 -> 0 | IR12: =Model!IQ13 -> 0 | IS12: =Model!IR13 -> 0 | IT12: =Model!IS13 -> 0 | IU12: =Model!IT13 -> 0 | IV12: =Model!IU13 -> 0 | IW12: =Model!IV13 -> 0 | IX12: =Model!IW13 -> 0 | IY12: =Model!IX13 -> 0 | IZ12: =Model!IY13 -> 0 | JA12: =Model!IZ13 -> 0 | JB12: =Model!JA13 -> 0 | JC12: =Model!JB13 -> 0 | JD12: =Model!JC13 -> 0 | JE12: =Model!JD13 -> 0 | JF12: =Model!JE13 -> 0 | JG12: =Model!JF13 -> 0 | JH12: =Model!JG13 -> 0 | JI12: =Model!JH13 -> 0 | JJ12: =Model!JI13 -> 0 | JK12: =Model!JJ13 -> 0 | JL12: =Model!JK13 -> 0 | JM12: =Model!JL13 -> 0 | JN12: =Model!JM13 -> 0 | JO12: =Model!JN13 -> 0 | JP12: =Model!JO13 -> 0 | JQ12: =Model!JP13 -> 0 | JR12: =Model!JQ13 -> 0 | JS12: =Model!JR13 -> 0 | JT12: =Model!JS13 -> 0 | JU12: =Model!JT13 -> 0 | JV12: =Model!JU13 -> 0 | JW12: =Model!JV13 -> 0 | JX12: =Model!JW13 -> 0 | JY12: =Model!JX13 -> 0 | JZ12: =Model!JY13 -> 0 | KA12: =Model!JZ13 -> 0 | KB12: =Model!KA13 -> 0 | KC12: =Model!KB13 -> 0 | KD12: =Model!KC13 -> 0 | KE12: =Model!KD13 -> 0 | KF12: =Model!KE13 -> 0 | KG12: =Model!KF13 -> 0 | KH12: =Model!KG13 -> 0 | KI12: =Model!KH13 -> 0 | KJ12: =Model!KI13 -> 0 | KK12: =Model!KJ13 -> 0 | KL12: =Model!KK13 -> 0 | KM12: =Model!KL13 -> 0 | KN12: =Model!KM13 -> 0 | KO12: =Model!KN13 -> 0 | KP12: =Model!KO13 -> 0 | KQ12: =Model!KP13 -> 0 | KR12: =Model!KQ13 -> 0 | KS12: =Model!KR13 -> 0 | KT12: =Model!KS13 -> 0 | KU12: =Model!KT13 -> 0 | KV12: =Model!KU13 -> 0 | KW12: =Model!KV13 -> 0
E13: ebitda | F13: EBITDA | G13: InputS | I13: mns EUR | J13: 0 | K13: =Model!J26 -> 0 | L13: =Model!K26 -> 0 | M13: =Model!L26 -> 0 | N13: =Model!M26 -> 120.3574076 | O13: =Model!N26 -> 120.4285128 | P13: =Model!O26 -> 120.4920134 | Q13: =Model!P26 -> 120.5477518 | R13: =Model!Q26 -> 120.5955681 | S13: =Model!R26 -> 120.6352997 | T13: =Model!S26 -> 120.6667812 | U13: =Model!T26 -> 120.6898447 | V13: =Model!U26 -> 120.7043194 | W13: =Model!V26 -> 120.710032 | X13: =Model!W26 -> 120.7068059 | Y13: =Model!X26 -> 120.6944621 | Z13: =Model!Y26 -> 120.6728183 | AA13: =Model!Z26 -> 120.6416897 | AB13: =Model!AA26 -> 120.6008879 | AC13: =Model!AB26 -> 120.5502221 | AD13: =Model!AC26 -> 120.4894978 | AE13: =Model!AD26 -> 120.4185178 | AF13: =Model!AE26 -> 120.3370815 | AG13: =Model!AF26 -> 120.244985 | AH13: =Model!AG26 -> 120.1420214 | AI13: =Model!AH26 -> 120.0279801 | AJ13: =Model!AI26 -> 119.9026473 | AK13: =Model!AJ26 -> 119.7658058 | AL13: =Model!AK26 -> 119.6172347 | AM13: =Model!AL26 -> 0 | AN13: =Model!AM26 -> 0 | AO13: =Model!AN26 -> 0 | AP13: =Model!AO26 -> 0 | AQ13: =Model!AP26 -> 0 | AR13: =Model!AQ26 -> 0 | AS13: =Model!AR26 -> 0 | AT13: =Model!AS26 -> 0 | AU13: =Model!AT26 -> 0 | AV13: =Model!AU26 -> 0 | AW13: =Model!AV26 -> 0 | AX13: =Model!AW26 -> 0 | AY13: =Model!AX26 -> 0 | AZ13: =Model!AY26 -> 0 | BA13: =Model!AZ26 -> 0 | BB13: =Model!BA26 -> 0 | BC13: =Model!BB26 -> 0 | BD13: =Model!BC26 -> 0 | BE13: =Model!BD26 -> 0 | BF13: =Model!BE26 -> 0 | BG13: =Model!BF26 -> 0 | BH13: =Model!BG26 -> 0 | BI13: =Model!BH26 -> 0 | BJ13: =Model!BI26 -> 0 | BK13: =Model!BJ26 -> 0 | BL13: =Model!BK26 -> 0 | BM13: =Model!BL26 -> 0 | BN13: =Model!BM26 -> 0 | BO13: =Model!BN26 -> 0 | BP13: =Model!BO26 -> 0 | BQ13: =Model!BP26 -> 0 | BR13: =Model!BQ26 -> 0 | BS13: =Model!BR26 -> 0 | BT13: =Model!BS26 -> 0 | BU13: =Model!BT26 -> 0 | BV13: =Model!BU26 -> 0 | BW13: =Model!BV26 -> 0 | BX13: =Model!BW26 -> 0 | BY13: =Model!BX26 -> 0 | BZ13: =Model!BY26 -> 0 | CA13: =Model!BZ26 -> 0 | CB13: =Model!CA26 -> 0 | CC13: =Model!CB26 -> 0 | CD13: =Model!CC26 -> 0 | CE13: =Model!CD26 -> 0 | CF13: =Model!CE26 -> 0 | CG13: =Model!CF26 -> 0 | CH13: =Model!CG26 -> 0 | CI13: =Model!CH26 -> 0 | CJ13: =Model!CI26 -> 0 | CK13: =Model!CJ26 -> 0 | CL13: =Model!CK26 -> 0 | CM13: =Model!CL26 -> 0 | CN13: =Model!CM26 -> 0 | CO13: =Model!CN26 -> 0 | CP13: =Model!CO26 -> 0 | CQ13: =Model!CP26 -> 0 | CR13: =Model!CQ26 -> 0 | CS13: =Model!CR26 -> 0 | CT13: =Model!CS26 -> 0 | CU13: =Model!CT26 -> 0 | CV13: =Model!CU26 -> 0 | CW13: =Model!CV26 -> 0 | CX13: =Model!CW26 -> 0 | CY13: =Model!CX26 -> 0 | CZ13: =Model!CY26 -> 0 | DA13: =Model!CZ26 -> 0 | DB13: =Model!DA26 -> 0 | DC13: =Model!DB26 -> 0 | DD13: =Model!DC26 -> 0 | DE13: =Model!DD26 -> 0 | DF13: =Model!DE26 -> 0 | DG13: =Model!DF26 -> 0 | DH13: =Model!DG26 -> 0 | DI13: =Model!DH26 -> 0 | DJ13: =Model!DI26 -> 0 | DK13: =Model!DJ26 -> 0 | DL13: =Model!DK26 -> 0 | DM13: =Model!DL26 -> 0 | DN13: =Model!DM26 -> 0 | DO13: =Model!DN26 -> 0 | DP13: =Model!DO26 -> 0 | DQ13: =Model!DP26 -> 0 | DR13: =Model!DQ26 -> 0 | DS13: =Model!DR26 -> 0 | DT13: =Model!DS26 -> 0 | DU13: =Model!DT26 -> 0 | DV13: =Model!DU26 -> 0 | DW13: =Model!DV26 -> 0 | DX13: =Model!DW26 -> 0 | DY13: =Model!DX26 -> 0 | DZ13: =Model!DY26 -> 0 | EA13: =Model!DZ26 -> 0 | EB13: =Model!EA26 -> 0 | EC13: =Model!EB26 -> 0 | ED13: =Model!EC26 -> 0 | EE13: =Model!ED26 -> 0 | EF13: =Model!EE26 -> 0 | EG13: =Model!EF26 -> 0 | EH13: =Model!EG26 -> 0 | EI13: =Model!EH26 -> 0 | EJ13: =Model!EI26 -> 0 | EK13: =Model!EJ26 -> 0 | EL13: =Model!EK26 -> 0 | EM13: =Model!EL26 -> 0 | EN13: =Model!EM26 -> 0 | EO13: =Model!EN26 -> 0 | EP13: =Model!EO26 -> 0 | EQ13: =Model!EP26 -> 0 | ER13: =Model!EQ26 -> 0 | ES13: =Model!ER26 -> 0 | ET13: =Model!ES26 -> 0 | EU13: =Model!ET26 -> 0 | EV13: =Model!EU26 -> 0 | EW13: =Model!EV26 -> 0 | EX13: =Model!EW26 -> 0 | EY13: =Model!EX26 -> 0 | EZ13: =Model!EY26 -> 0 | FA13: =Model!EZ26 -> 0 | FB13: =Model!FA26 -> 0 | FC13: =Model!FB26 -> 0 | FD13: =Model!FC26 -> 0 | FE13: =Model!FD26 -> 0 | FF13: =Model!FE26 -> 0 | FG13: =Model!FF26 -> 0 | FH13: =Model!FG26 -> 0 | FI13: =Model!FH26 -> 0 | FJ13: =Model!FI26 -> 0 | FK13: =Model!FJ26 -> 0 | FL13: =Model!FK26 -> 0 | FM13: =Model!FL26 -> 0 | FN13: =Model!FM26 -> 0 | FO13: =Model!FN26 -> 0 | FP13: =Model!FO26 -> 0 | FQ13: =Model!FP26 -> 0 | FR13: =Model!FQ26 -> 0 | FS13: =Model!FR26 -> 0 | FT13: =Model!FS26 -> 0 | FU13: =Model!FT26 -> 0 | FV13: =Model!FU26 -> 0 | FW13: =Model!FV26 -> 0 | FX13: =Model!FW26 -> 0 | FY13: =Model!FX26 -> 0 | FZ13: =Model!FY26 -> 0 | GA13: =Model!FZ26 -> 0 | GB13: =Model!GA26 -> 0 | GC13: =Model!GB26 -> 0 | GD13: =Model!GC26 -> 0 | GE13: =Model!GD26 -> 0 | GF13: =Model!GE26 -> 0 | GG13: =Model!GF26 -> 0 | GH13: =Model!GG26 -> 0 | GI13: =Model!GH26 -> 0 | GJ13: =Model!GI26 -> 0 | GK13: =Model!GJ26 -> 0 | GL13: =Model!GK26 -> 0 | GM13: =Model!GL26 -> 0 | GN13: =Model!GM26 -> 0 | GO13: =Model!GN26 -> 0 | GP13: =Model!GO26 -> 0 | GQ13: =Model!GP26 -> 0 | GR13: =Model!GQ26 -> 0 | GS13: =Model!GR26 -> 0 | GT13: =Model!GS26 -> 0 | GU13: =Model!GT26 -> 0 | GV13: =Model!GU26 -> 0 | GW13: =Model!GV26 -> 0 | GX13: =Model!GW26 -> 0 | GY13: =Model!GX26 -> 0 | GZ13: =Model!GY26 -> 0 | HA13: =Model!GZ26 -> 0 | HB13: =Model!HA26 -> 0 | HC13: =Model!HB26 -> 0 | HD13: =Model!HC26 -> 0 | HE13: =Model!HD26 -> 0 | HF13: =Model!HE26 -> 0 | HG13: =Model!HF26 -> 0 | HH13: =Model!HG26 -> 0 | HI13: =Model!HH26 -> 0 | HJ13: =Model!HI26 -> 0 | HK13: =Model!HJ26 -> 0 | HL13: =Model!HK26 -> 0 | HM13: =Model!HL26 -> 0 | HN13: =Model!HM26 -> 0 | HO13: =Model!HN26 -> 0 | HP13: =Model!HO26 -> 0 | HQ13: =Model!HP26 -> 0 | HR13: =Model!HQ26 -> 0 | HS13: =Model!HR26 -> 0 | HT13: =Model!HS26 -> 0 | HU13: =Model!HT26 -> 0 | HV13: =Model!HU26 -> 0 | HW13: =Model!HV26 -> 0 | HX13: =Model!HW26 -> 0 | HY13: =Model!HX26 -> 0 | HZ13: =Model!HY26 -> 0 | IA13: =Model!HZ26 -> 0 | IB13: =Model!IA26 -> 0 | IC13: =Model!IB26 -> 0 | ID13: =Model!IC26 -> 0 | IE13: =Model!ID26 -> 0 | IF13: =Model!IE26 -> 0 | IG13: =Model!IF26 -> 0 | IH13: =Model!IG26 -> 0 | II13: =Model!IH26 -> 0 | IJ13: =Model!II26 -> 0 | IK13: =Model!IJ26 -> 0 | IL13: =Model!IK26 -> 0 | IM13: =Model!IL26 -> 0 | IN13: =Model!IM26 -> 0 | IO13: =Model!IN26 -> 0 | IP13: =Model!IO26 -> 0 | IQ13: =Model!IP26 -> 0 | IR13: =Model!IQ26 -> 0 | IS13: =Model!IR26 -> 0 | IT13: =Model!IS26 -> 0 | IU13: =Model!IT26 -> 0 | IV13: =Model!IU26 -> 0 | IW13: =Model!IV26 -> 0 | IX13: =Model!IW26 -> 0 | IY13: =Model!IX26 -> 0 | IZ13: =Model!IY26 -> 0 | JA13: =Model!IZ26 -> 0 | JB13: =Model!JA26 -> 0 | JC13: =Model!JB26 -> 0 | JD13: =Model!JC26 -> 0 | JE13: =Model!JD26 -> 0 | JF13: =Model!JE26 -> 0 | JG13: =Model!JF26 -> 0 | JH13: =Model!JG26 -> 0 | JI13: =Model!JH26 -> 0 | JJ13: =Model!JI26 -> 0 | JK13: =Model!JJ26 -> 0 | JL13: =Model!JK26 -> 0 | JM13: =Model!JL26 -> 0 | JN13: =Model!JM26 -> 0 | JO13: =Model!JN26 -> 0 | JP13: =Model!JO26 -> 0 | JQ13: =Model!JP26 -> 0 | JR13: =Model!JQ26 -> 0 | JS13: =Model!JR26 -> 0 | JT13: =Model!JS26 -> 0 | JU13: =Model!JT26 -> 0 | JV13: =Model!JU26 -> 0 | JW13: =Model!JV26 -> 0 | JX13: =Model!JW26 -> 0 | JY13: =Model!JX26 -> 0 | JZ13: =Model!JY26 -> 0 | KA13: =Model!JZ26 -> 0 | KB13: =Model!KA26 -> 0 | KC13: =Model!KB26 -> 0 | KD13: =Model!KC26 -> 0 | KE13: =Model!KD26 -> 0 | KF13: =Model!KE26 -> 0 | KG13: =Model!KF26 -> 0 | KH13: =Model!KG26 -> 0 | KI13: =Model!KH26 -> 0 | KJ13: =Model!KI26 -> 0 | KK13: =Model!KJ26 -> 0 | KL13: =Model!KK26 -> 0 | KM13: =Model!KL26 -> 0 | KN13: =Model!KM26 -> 0 | KO13: =Model!KN26 -> 0 | KP13: =Model!KO26 -> 0 | KQ13: =Model!KP26 -> 0 | KR13: =Model!KQ26 -> 0 | KS13: =Model!KR26 -> 0 | KT13: =Model!KS26 -> 0 | KU13: =Model!KT26 -> 0 | KV13: =Model!KU26 -> 0 | KW13: =Model!KV26 -> 0
E14: WC_Change | F14: Working Capital Changes per Period | G14: InputS | I14: mns EUR | J14: 0 | K14: 0 | L14: 0 | M14: 0 | N14: 0 | O14: 0 | P14: 0 | Q14: 0 | R14: 0 | S14: 0 | T14: 0 | U14: 0 | V14: 0 | W14: 0 | X14: 0 | Y14: 0 | Z14: 0 | AA14: 0 | AB14: 0 | AC14: 0 | AD14: 0 | AE14: 0 | AF14: 0 | AG14: 0 | AH14: 0 | AI14: 0 | AJ14: 0 | AK14: 0 | AL14: 0 | AM14: 0 | AN14: 0 | AO14: 0 | AP14: 0 | AQ14: 0 | AR14: 0 | AS14: 0 | AT14: 0 | AU14: 0 | AV14: 0 | AW14: 0 | AX14: 0 | AY14: 0 | AZ14: 0 | BA14: 0 | BB14: 0 | BC14: 0 | BD14: 0 | BE14: 0 | BF14: 0 | BG14: 0 | BH14: 0 | BI14: 0 | BJ14: 0 | BK14: 0 | BL14: 0 | BM14: 0 | BN14: 0 | BO14: 0 | BP14: 0 | BQ14: 0 | BR14: 0 | BS14: 0 | BT14: 0 | BU14: 0 | BV14: 0 | BW14: 0 | BX14: 0 | BY14: 0 | BZ14: 0 | CA14: 0 | CB14: 0 | CC14: 0 | CD14: 0 | CE14: 0 | CF14: 0 | CG14: 0 | CH14: 0 | CI14: 0 | CJ14: 0 | CK14: 0 | CL14: 0 | CM14: 0 | CN14: 0 | CO14: 0 | CP14: 0 | CQ14: 0 | CR14: 0 | CS14: 0 | CT14: 0 | CU14: 0 | CV14: 0 | CW14: 0 | CX14: 0 | CY14: 0 | CZ14: 0 | DA14: 0 | DB14: 0 | DC14: 0 | DD14: 0 | DE14: 0 | DF14: 0 | DG14: 0 | DH14: 0 | DI14: 0 | DJ14: 0 | DK14: 0 | DL14: 0 | DM14: 0 | DN14: 0 | DO14: 0 | DP14: 0 | DQ14: 0 | DR14: 0 | DS14: 0 | DT14: 0 | DU14: 0 | DV14: 0 | DW14: 0 | DX14: 0 | DY14: 0 | DZ14: 0 | EA14: 0 | EB14: 0 | EC14: 0 | ED14: 0 | EE14: 0 | EF14: 0 | EG14: 0 | EH14: 0 | EI14: 0 | EJ14: 0 | EK14: 0 | EL14: 0 | EM14: 0 | EN14: 0 | EO14: 0 | EP14: 0 | EQ14: 0 | ER14: 0 | ES14: 0 | ET14: 0 | EU14: 0 | EV14: 0 | EW14: 0 | EX14: 0 | EY14: 0 | EZ14: 0 | FA14: 0 | FB14: 0 | FC14: 0 | FD14: 0 | FE14: 0 | FF14: 0 | FG14: 0 | FH14: 0 | FI14: 0 | FJ14: 0 | FK14: 0 | FL14: 0 | FM14: 0 | FN14: 0 | FO14: 0 | FP14: 0 | FQ14: 0 | FR14: 0 | FS14: 0 | FT14: 0 | FU14: 0 | FV14: 0 | FW14: 0 | FX14: 0 | FY14: 0 | FZ14: 0 | GA14: 0 | GB14: 0 | GC14: 0 | GD14: 0 | GE14: 0 | GF14: 0 | GG14: 0 | GH14: 0 | GI14: 0 | GJ14: 0 | GK14: 0 | GL14: 0 | GM14: 0 | GN14: 0 | GO14: 0 | GP14: 0 | GQ14: 0 | GR14: 0 | GS14: 0 | GT14: 0 | GU14: 0 | GV14: 0 | GW14: 0 | GX14: 0 | GY14: 0 | GZ14: 0 | HA14: 0 | HB14: 0 | HC14: 0 | HD14: 0 | HE14: 0 | HF14: 0 | HG14: 0 | HH14: 0 | HI14: 0 | HJ14: 0 | HK14: 0 | HL14: 0 | HM14: 0 | HN14: 0 | HO14: 0 | HP14: 0 | HQ14: 0 | HR14: 0 | HS14: 0 | HT14: 0 | HU14: 0 | HV14: 0 | HW14: 0 | HX14: 0 | HY14: 0 | HZ14: 0 | IA14: 0 | IB14: 0 | IC14: 0 | ID14: 0 | IE14: 0 | IF14: 0 | IG14: 0 | IH14: 0 | II14: 0 | IJ14: 0 | IK14: 0 | IL14: 0 | IM14: 0 | IN14: 0 | IO14: 0 | IP14: 0 | IQ14: 0 | IR14: 0 | IS14: 0 | IT14: 0 | IU14: 0 | IV14: 0 | IW14: 0 | IX14: 0 | IY14: 0 | IZ14: 0 | JA14: 0 | JB14: 0 | JC14: 0 | JD14: 0 | JE14: 0 | JF14: 0 | JG14: 0 | JH14: 0 | JI14: 0 | JJ14: 0 | JK14: 0 | JL14: 0 | JM14: 0 | JN14: 0 | JO14: 0 | JP14: 0 | JQ14: 0 | JR14: 0 | JS14: 0 | JT14: 0 | JU14: 0 | JV14: 0 | JW14: 0 | JX14: 0 | JY14: 0 | JZ14: 0 | KA14: 0 | KB14: 0 | KC14: 0 | KD14: 0 | KE14: 0 | KF14: 0 | KG14: 0 | KH14: 0 | KI14: 0 | KJ14: 0 | KK14: 0 | KL14: 0 | KM14: 0 | KN14: 0 | KO14: 0 | KP14: 0 | KQ14: 0 | KR14: 0 | KS14: 0 | KT14: 0 | KU14: 0 | KV14: 0 | KW14: 0
E15: depreciation_base | F15: Depreciation Base | G15: InputS | I15: mns EUR | J15: 0 | K15: =Model!J39 -> 0 | L15: =Model!K39 -> 0 | M15: =Model!L39 -> 0 | N15: =Model!M39 -> 420 | O15: =Model!N39 -> 294 | P15: =Model!O39 -> 228.6666667 | Q15: =Model!P39 -> 228.6666667 | R15: =Model!Q39 -> 228.6666667 | S15: =Model!R39 -> 0 | T15: =Model!S39 -> 0 | U15: =Model!T39 -> 0 | V15: =Model!U39 -> 0 | W15: =Model!V39 -> 0 | X15: =Model!W39 -> 0 | Y15: =Model!X39 -> 0 | Z15: =Model!Y39 -> 0 | AA15: =Model!Z39 -> 0 | AB15: =Model!AA39 -> 0 | AC15: =Model!AB39 -> 0 | AD15: =Model!AC39 -> 0 | AE15: =Model!AD39 -> 0 | AF15: =Model!AE39 -> 0 | AG15: =Model!AF39 -> 0 | AH15: =Model!AG39 -> 0 | AI15: =Model!AH39 -> 0 | AJ15: =Model!AI39 -> 0 | AK15: =Model!AJ39 -> 0 | AL15: =Model!AK39 -> 0 | AM15: =Model!AL39 -> 0 | AN15: =Model!AM39 -> 0 | AO15: =Model!AN39 -> 0 | AP15: =Model!AO39 -> 0 | AQ15: =Model!AP39 -> 0 | AR15: =Model!AQ39 -> 0 | AS15: =Model!AR39 -> 0 | AT15: =Model!AS39 -> 0 | AU15: =Model!AT39 -> 0 | AV15: =Model!AU39 -> 0 | AW15: =Model!AV39 -> 0 | AX15: =Model!AW39 -> 0 | AY15: =Model!AX39 -> 0 | AZ15: =Model!AY39 -> 0 | BA15: =Model!AZ39 -> 0 | BB15: =Model!BA39 -> 0 | BC15: =Model!BB39 -> 0 | BD15: =Model!BC39 -> 0 | BE15: =Model!BD39 -> 0 | BF15: =Model!BE39 -> 0 | BG15: =Model!BF39 -> 0 | BH15: =Model!BG39 -> 0 | BI15: =Model!BH39 -> 0 | BJ15: =Model!BI39 -> 0 | BK15: =Model!BJ39 -> 0 | BL15: =Model!BK39 -> 0 | BM15: =Model!BL39 -> 0 | BN15: =Model!BM39 -> 0 | BO15: =Model!BN39 -> 0 | BP15: =Model!BO39 -> 0 | BQ15: =Model!BP39 -> 0 | BR15: =Model!BQ39 -> 0 | BS15: =Model!BR39 -> 0 | BT15: =Model!BS39 -> 0 | BU15: =Model!BT39 -> 0 | BV15: =Model!BU39 -> 0 | BW15: =Model!BV39 -> 0 | BX15: =Model!BW39 -> 0 | BY15: =Model!BX39 -> 0 | BZ15: =Model!BY39 -> 0 | CA15: =Model!BZ39 -> 0 | CB15: =Model!CA39 -> 0 | CC15: =Model!CB39 -> 0 | CD15: =Model!CC39 -> 0 | CE15: =Model!CD39 -> 0 | CF15: =Model!CE39 -> 0 | CG15: =Model!CF39 -> 0 | CH15: =Model!CG39 -> 0 | CI15: =Model!CH39 -> 0 | CJ15: =Model!CI39 -> 0 | CK15: =Model!CJ39 -> 0 | CL15: =Model!CK39 -> 0 | CM15: =Model!CL39 -> 0 | CN15: =Model!CM39 -> 0 | CO15: =Model!CN39 -> 0 | CP15: =Model!CO39 -> 0 | CQ15: =Model!CP39 -> 0 | CR15: =Model!CQ39 -> 0 | CS15: =Model!CR39 -> 0 | CT15: =Model!CS39 -> 0 | CU15: =Model!CT39 -> 0 | CV15: =Model!CU39 -> 0 | CW15: =Model!CV39 -> 0 | CX15: =Model!CW39 -> 0 | CY15: =Model!CX39 -> 0 | CZ15: =Model!CY39 -> 0 | DA15: =Model!CZ39 -> 0 | DB15: =Model!DA39 -> 0 | DC15: =Model!DB39 -> 0 | DD15: =Model!DC39 -> 0 | DE15: =Model!DD39 -> 0 | DF15: =Model!DE39 -> 0 | DG15: =Model!DF39 -> 0 | DH15: =Model!DG39 -> 0 | DI15: =Model!DH39 -> 0 | DJ15: =Model!DI39 -> 0 | DK15: =Model!DJ39 -> 0 | DL15: =Model!DK39 -> 0 | DM15: =Model!DL39 -> 0 | DN15: =Model!DM39 -> 0 | DO15: =Model!DN39 -> 0 | DP15: =Model!DO39 -> 0 | DQ15: =Model!DP39 -> 0 | DR15: =Model!DQ39 -> 0 | DS15: =Model!DR39 -> 0 | DT15: =Model!DS39 -> 0 | DU15: =Model!DT39 -> 0 | DV15: =Model!DU39 -> 0 | DW15: =Model!DV39 -> 0 | DX15: =Model!DW39 -> 0 | DY15: =Model!DX39 -> 0 | DZ15: =Model!DY39 -> 0 | EA15: =Model!DZ39 -> 0 | EB15: =Model!EA39 -> 0 | EC15: =Model!EB39 -> 0 | ED15: =Model!EC39 -> 0 | EE15: =Model!ED39 -> 0 | EF15: =Model!EE39 -> 0 | EG15: =Model!EF39 -> 0 | EH15: =Model!EG39 -> 0 | EI15: =Model!EH39 -> 0 | EJ15: =Model!EI39 -> 0 | EK15: =Model!EJ39 -> 0 | EL15: =Model!EK39 -> 0 | EM15: =Model!EL39 -> 0 | EN15: =Model!EM39 -> 0 | EO15: =Model!EN39 -> 0 | EP15: =Model!EO39 -> 0 | EQ15: =Model!EP39 -> 0 | ER15: =Model!EQ39 -> 0 | ES15: =Model!ER39 -> 0 | ET15: =Model!ES39 -> 0 | EU15: =Model!ET39 -> 0 | EV15: =Model!EU39 -> 0 | EW15: =Model!EV39 -> 0 | EX15: =Model!EW39 -> 0 | EY15: =Model!EX39 -> 0 | EZ15: =Model!EY39 -> 0 | FA15: =Model!EZ39 -> 0 | FB15: =Model!FA39 -> 0 | FC15: =Model!FB39 -> 0 | FD15: =Model!FC39 -> 0 | FE15: =Model!FD39 -> 0 | FF15: =Model!FE39 -> 0 | FG15: =Model!FF39 -> 0 | FH15: =Model!FG39 -> 0 | FI15: =Model!FH39 -> 0 | FJ15: =Model!FI39 -> 0 | FK15: =Model!FJ39 -> 0 | FL15: =Model!FK39 -> 0 | FM15: =Model!FL39 -> 0 | FN15: =Model!FM39 -> 0 | FO15: =Model!FN39 -> 0 | FP15: =Model!FO39 -> 0 | FQ15: =Model!FP39 -> 0 | FR15: =Model!FQ39 -> 0 | FS15: =Model!FR39 -> 0 | FT15: =Model!FS39 -> 0 | FU15: =Model!FT39 -> 0 | FV15: =Model!FU39 -> 0 | FW15: =Model!FV39 -> 0 | FX15: =Model!FW39 -> 0 | FY15: =Model!FX39 -> 0 | FZ15: =Model!FY39 -> 0 | GA15: =Model!FZ39 -> 0 | GB15: =Model!GA39 -> 0 | GC15: =Model!GB39 -> 0 | GD15: =Model!GC39 -> 0 | GE15: =Model!GD39 -> 0 | GF15: =Model!GE39 -> 0 | GG15: =Model!GF39 -> 0 | GH15: =Model!GG39 -> 0 | GI15: =Model!GH39 -> 0 | GJ15: =Model!GI39 -> 0 | GK15: =Model!GJ39 -> 0 | GL15: =Model!GK39 -> 0 | GM15: =Model!GL39 -> 0 | GN15: =Model!GM39 -> 0 | GO15: =Model!GN39 -> 0 | GP15: =Model!GO39 -> 0 | GQ15: =Model!GP39 -> 0 | GR15: =Model!GQ39 -> 0 | GS15: =Model!GR39 -> 0 | GT15: =Model!GS39 -> 0 | GU15: =Model!GT39 -> 0 | GV15: =Model!GU39 -> 0 | GW15: =Model!GV39 -> 0 | GX15: =Model!GW39 -> 0 | GY15: =Model!GX39 -> 0 | GZ15: =Model!GY39 -> 0 | HA15: =Model!GZ39 -> 0 | HB15: =Model!HA39 -> 0 | HC15: =Model!HB39 -> 0 | HD15: =Model!HC39 -> 0 | HE15: =Model!HD39 -> 0 | HF15: =Model!HE39 -> 0 | HG15: =Model!HF39 -> 0 | HH15: =Model!HG39 -> 0 | HI15: =Model!HH39 -> 0 | HJ15: =Model!HI39 -> 0 | HK15: =Model!HJ39 -> 0 | HL15: =Model!HK39 -> 0 | HM15: =Model!HL39 -> 0 | HN15: =Model!HM39 -> 0 | HO15: =Model!HN39 -> 0 | HP15: =Model!HO39 -> 0 | HQ15: =Model!HP39 -> 0 | HR15: =Model!HQ39 -> 0 | HS15: =Model!HR39 -> 0 | HT15: =Model!HS39 -> 0 | HU15: =Model!HT39 -> 0 | HV15: =Model!HU39 -> 0 | HW15: =Model!HV39 -> 0 | HX15: =Model!HW39 -> 0 | HY15: =Model!HX39 -> 0 | HZ15: =Model!HY39 -> 0 | IA15: =Model!HZ39 -> 0 | IB15: =Model!IA39 -> 0 | IC15: =Model!IB39 -> 0 | ID15: =Model!IC39 -> 0 | IE15: =Model!ID39 -> 0 | IF15: =Model!IE39 -> 0 | IG15: =Model!IF39 -> 0 | IH15: =Model!IG39 -> 0 | II15: =Model!IH39 -> 0 | IJ15: =Model!II39 -> 0 | IK15: =Model!IJ39 -> 0 | IL15: =Model!IK39 -> 0 | IM15: =Model!IL39 -> 0 | IN15: =Model!IM39 -> 0 | IO15: =Model!IN39 -> 0 | IP15: =Model!IO39 -> 0 | IQ15: =Model!IP39 -> 0 | IR15: =Model!IQ39 -> 0 | IS15: =Model!IR39 -> 0 | IT15: =Model!IS39 -> 0 | IU15: =Model!IT39 -> 0 | IV15: =Model!IU39 -> 0 | IW15: =Model!IV39 -> 0 | IX15: =Model!IW39 -> 0 | IY15: =Model!IX39 -> 0 | IZ15: =Model!IY39 -> 0 | JA15: =Model!IZ39 -> 0 | JB15: =Model!JA39 -> 0 | JC15: =Model!JB39 -> 0 | JD15: =Model!JC39 -> 0 | JE15: =Model!JD39 -> 0 | JF15: =Model!JE39 -> 0 | JG15: =Model!JF39 -> 0 | JH15: =Model!JG39 -> 0 | JI15: =Model!JH39 -> 0 | JJ15: =Model!JI39 -> 0 | JK15: =Model!JJ39 -> 0 | JL15: =Model!JK39 -> 0 | JM15: =Model!JL39 -> 0 | JN15: =Model!JM39 -> 0 | JO15: =Model!JN39 -> 0 | JP15: =Model!JO39 -> 0 | JQ15: =Model!JP39 -> 0 | JR15: =Model!JQ39 -> 0 | JS15: =Model!JR39 -> 0 | JT15: =Model!JS39 -> 0 | JU15: =Model!JT39 -> 0 | JV15: =Model!JU39 -> 0 | JW15: =Model!JV39 -> 0 | JX15: =Model!JW39 -> 0 | JY15: =Model!JX39 -> 0 | JZ15: =Model!JY39 -> 0 | KA15: =Model!JZ39 -> 0 | KB15: =Model!KA39 -> 0 | KC15: =Model!KB39 -> 0 | KD15: =Model!KC39 -> 0 | KE15: =Model!KD39 -> 0 | KF15: =Model!KE39 -> 0 | KG15: =Model!KF39 -> 0 | KH15: =Model!KG39 -> 0 | KI15: =Model!KH39 -> 0 | KJ15: =Model!KI39 -> 0 | KK15: =Model!KJ39 -> 0 | KL15: =Model!KK39 -> 0 | KM15: =Model!KL39 -> 0 | KN15: =Model!KM39 -> 0 | KO15: =Model!KN39 -> 0 | KP15: =Model!KO39 -> 0 | KQ15: =Model!KP39 -> 0 | KR15: =Model!KQ39 -> 0 | KS15: =Model!KR39 -> 0 | KT15: =Model!KS39 -> 0 | KU15: =Model!KT39 -> 0 | KV15: =Model!KU39 -> 0 | KW15: =Model!KV39 -> 0
E16: tax_rate | F16: Income Tax Rate | G16: InputS | I16: % | J16: =Inputs!$F$26 -> 0.25 | K16: =Inputs!$F$26 -> 0.25 | L16: =Inputs!$F$26 -> 0.25 | M16: =Inputs!$F$26 -> 0.25 | N16: =Inputs!$F$26 -> 0.25 | O16: =Inputs!$F$26 -> 0.25 | P16: =Inputs!$F$26 -> 0.25 | Q16: =Inputs!$F$26 -> 0.25 | R16: =Inputs!$F$26 -> 0.25 | S16: =Inputs!$F$26 -> 0.25 | T16: =Inputs!$F$26 -> 0.25 | U16: =Inputs!$F$26 -> 0.25 | V16: =Inputs!$F$26 -> 0.25 | W16: =Inputs!$F$26 -> 0.25 | X16: =Inputs!$F$26 -> 0.25 | Y16: =Inputs!$F$26 -> 0.25 | Z16: =Inputs!$F$26 -> 0.25 | AA16: =Inputs!$F$26 -> 0.25 | AB16: =Inputs!$F$26 -> 0.25 | AC16: =Inputs!$F$26 -> 0.25 | AD16: =Inputs!$F$26 -> 0.25 | AE16: =Inputs!$F$26 -> 0.25 | AF16: =Inputs!$F$26 -> 0.25 | AG16: =Inputs!$F$26 -> 0.25 | AH16: =Inputs!$F$26 -> 0.25 | AI16: =Inputs!$F$26 -> 0.25 | AJ16: =Inputs!$F$26 -> 0.25 | AK16: =Inputs!$F$26 -> 0.25 | AL16: =Inputs!$F$26 -> 0.25 | AM16: =Inputs!$F$26 -> 0.25 | AN16: =Inputs!$F$26 -> 0.25 | AO16: =Inputs!$F$26 -> 0.25 | AP16: =Inputs!$F$26 -> 0.25 | AQ16: =Inputs!$F$26 -> 0.25 | AR16: =Inputs!$F$26 -> 0.25 | AS16: =Inputs!$F$26 -> 0.25 | AT16: =Inputs!$F$26 -> 0.25 | AU16: =Inputs!$F$26 -> 0.25 | AV16: =Inputs!$F$26 -> 0.25 | AW16: =Inputs!$F$26 -> 0.25 | AX16: =Inputs!$F$26 -> 0.25 | AY16: =Inputs!$F$26 -> 0.25 | AZ16: =Inputs!$F$26 -> 0.25 | BA16: =Inputs!$F$26 -> 0.25 | BB16: =Inputs!$F$26 -> 0.25 | BC16: =Inputs!$F$26 -> 0.25 | BD16: =Inputs!$F$26 -> 0.25 | BE16: =Inputs!$F$26 -> 0.25 | BF16: =Inputs!$F$26 -> 0.25 | BG16: =Inputs!$F$26 -> 0.25 | BH16: =Inputs!$F$26 -> 0.25 | BI16: =Inputs!$F$26 -> 0.25 | BJ16: =Inputs!$F$26 -> 0.25 | BK16: =Inputs!$F$26 -> 0.25 | BL16: =Inputs!$F$26 -> 0.25 | BM16: =Inputs!$F$26 -> 0.25 | BN16: =Inputs!$F$26 -> 0.25 | BO16: =Inputs!$F$26 -> 0.25 | BP16: =Inputs!$F$26 -> 0.25 | BQ16: =Inputs!$F$26 -> 0.25 | BR16: =Inputs!$F$26 -> 0.25 | BS16: =Inputs!$F$26 -> 0.25 | BT16: =Inputs!$F$26 -> 0.25 | BU16: =Inputs!$F$26 -> 0.25 | BV16: =Inputs!$F$26 -> 0.25 | BW16: =Inputs!$F$26 -> 0.25 | BX16: =Inputs!$F$26 -> 0.25 | BY16: =Inputs!$F$26 -> 0.25 | BZ16: =Inputs!$F$26 -> 0.25 | CA16: =Inputs!$F$26 -> 0.25 | CB16: =Inputs!$F$26 -> 0.25 | CC16: =Inputs!$F$26 -> 0.25 | CD16: =Inputs!$F$26 -> 0.25 | CE16: =Inputs!$F$26 -> 0.25 | CF16: =Inputs!$F$26 -> 0.25 | CG16: =Inputs!$F$26 -> 0.25 | CH16: =Inputs!$F$26 -> 0.25 | CI16: =Inputs!$F$26 -> 0.25 | CJ16: =Inputs!$F$26 -> 0.25 | CK16: =Inputs!$F$26 -> 0.25 | CL16: =Inputs!$F$26 -> 0.25 | CM16: =Inputs!$F$26 -> 0.25 | CN16: =Inputs!$F$26 -> 0.25 | CO16: =Inputs!$F$26 -> 0.25 | CP16: =Inputs!$F$26 -> 0.25 | CQ16: =Inputs!$F$26 -> 0.25 | CR16: =Inputs!$F$26 -> 0.25 | CS16: =Inputs!$F$26 -> 0.25 | CT16: =Inputs!$F$26 -> 0.25 | CU16: =Inputs!$F$26 -> 0.25 | CV16: =Inputs!$F$26 -> 0.25 | CW16: =Inputs!$F$26 -> 0.25 | CX16: =Inputs!$F$26 -> 0.25 | CY16: =Inputs!$F$26 -> 0.25 | CZ16: =Inputs!$F$26 -> 0.25 | DA16: =Inputs!$F$26 -> 0.25 | DB16: =Inputs!$F$26 -> 0.25 | DC16: =Inputs!$F$26 -> 0.25 | DD16: =Inputs!$F$26 -> 0.25 | DE16: =Inputs!$F$26 -> 0.25 | DF16: =Inputs!$F$26 -> 0.25 | DG16: =Inputs!$F$26 -> 0.25 | DH16: =Inputs!$F$26 -> 0.25 | DI16: =Inputs!$F$26 -> 0.25 | DJ16: =Inputs!$F$26 -> 0.25 | DK16: =Inputs!$F$26 -> 0.25 | DL16: =Inputs!$F$26 -> 0.25 | DM16: =Inputs!$F$26 -> 0.25 | DN16: =Inputs!$F$26 -> 0.25 | DO16: =Inputs!$F$26 -> 0.25 | DP16: =Inputs!$F$26 -> 0.25 | DQ16: =Inputs!$F$26 -> 0.25 | DR16: =Inputs!$F$26 -> 0.25 | DS16: =Inputs!$F$26 -> 0.25 | DT16: =Inputs!$F$26 -> 0.25 | DU16: =Inputs!$F$26 -> 0.25 | DV16: =Inputs!$F$26 -> 0.25 | DW16: =Inputs!$F$26 -> 0.25 | DX16: =Inputs!$F$26 -> 0.25 | DY16: =Inputs!$F$26 -> 0.25 | DZ16: =Inputs!$F$26 -> 0.25 | EA16: =Inputs!$F$26 -> 0.25 | EB16: =Inputs!$F$26 -> 0.25 | EC16: =Inputs!$F$26 -> 0.25 | ED16: =Inputs!$F$26 -> 0.25 | EE16: =Inputs!$F$26 -> 0.25 | EF16: =Inputs!$F$26 -> 0.25 | EG16: =Inputs!$F$26 -> 0.25 | EH16: =Inputs!$F$26 -> 0.25 | EI16: =Inputs!$F$26 -> 0.25 | EJ16: =Inputs!$F$26 -> 0.25 | EK16: =Inputs!$F$26 -> 0.25 | EL16: =Inputs!$F$26 -> 0.25 | EM16: =Inputs!$F$26 -> 0.25 | EN16: =Inputs!$F$26 -> 0.25 | EO16: =Inputs!$F$26 -> 0.25 | EP16: =Inputs!$F$26 -> 0.25 | EQ16: =Inputs!$F$26 -> 0.25 | ER16: =Inputs!$F$26 -> 0.25 | ES16: =Inputs!$F$26 -> 0.25 | ET16: =Inputs!$F$26 -> 0.25 | EU16: =Inputs!$F$26 -> 0.25 | EV16: =Inputs!$F$26 -> 0.25 | EW16: =Inputs!$F$26 -> 0.25 | EX16: =Inputs!$F$26 -> 0.25 | EY16: =Inputs!$F$26 -> 0.25 | EZ16: =Inputs!$F$26 -> 0.25 | FA16: =Inputs!$F$26 -> 0.25 | FB16: =Inputs!$F$26 -> 0.25 | FC16: =Inputs!$F$26 -> 0.25 | FD16: =Inputs!$F$26 -> 0.25 | FE16: =Inputs!$F$26 -> 0.25 | FF16: =Inputs!$F$26 -> 0.25 | FG16: =Inputs!$F$26 -> 0.25 | FH16: =Inputs!$F$26 -> 0.25 | FI16: =Inputs!$F$26 -> 0.25 | FJ16: =Inputs!$F$26 -> 0.25 | FK16: =Inputs!$F$26 -> 0.25 | FL16: =Inputs!$F$26 -> 0.25 | FM16: =Inputs!$F$26 -> 0.25 | FN16: =Inputs!$F$26 -> 0.25 | FO16: =Inputs!$F$26 -> 0.25 | FP16: =Inputs!$F$26 -> 0.25 | FQ16: =Inputs!$F$26 -> 0.25 | FR16: =Inputs!$F$26 -> 0.25 | FS16: =Inputs!$F$26 -> 0.25 | FT16: =Inputs!$F$26 -> 0.25 | FU16: =Inputs!$F$26 -> 0.25 | FV16: =Inputs!$F$26 -> 0.25 | FW16: =Inputs!$F$26 -> 0.25 | FX16: =Inputs!$F$26 -> 0.25 | FY16: =Inputs!$F$26 -> 0.25 | FZ16: =Inputs!$F$26 -> 0.25 | GA16: =Inputs!$F$26 -> 0.25 | GB16: =Inputs!$F$26 -> 0.25 | GC16: =Inputs!$F$26 -> 0.25 | GD16: =Inputs!$F$26 -> 0.25 | GE16: =Inputs!$F$26 -> 0.25 | GF16: =Inputs!$F$26 -> 0.25 | GG16: =Inputs!$F$26 -> 0.25 | GH16: =Inputs!$F$26 -> 0.25 | GI16: =Inputs!$F$26 -> 0.25 | GJ16: =Inputs!$F$26 -> 0.25 | GK16: =Inputs!$F$26 -> 0.25 | GL16: =Inputs!$F$26 -> 0.25 | GM16: =Inputs!$F$26 -> 0.25 | GN16: =Inputs!$F$26 -> 0.25 | GO16: =Inputs!$F$26 -> 0.25 | GP16: =Inputs!$F$26 -> 0.25 | GQ16: =Inputs!$F$26 -> 0.25 | GR16: =Inputs!$F$26 -> 0.25 | GS16: =Inputs!$F$26 -> 0.25 | GT16: =Inputs!$F$26 -> 0.25 | GU16: =Inputs!$F$26 -> 0.25 | GV16: =Inputs!$F$26 -> 0.25 | GW16: =Inputs!$F$26 -> 0.25 | GX16: =Inputs!$F$26 -> 0.25 | GY16: =Inputs!$F$26 -> 0.25 | GZ16: =Inputs!$F$26 -> 0.25 | HA16: =Inputs!$F$26 -> 0.25 | HB16: =Inputs!$F$26 -> 0.25 | HC16: =Inputs!$F$26 -> 0.25 | HD16: =Inputs!$F$26 -> 0.25 | HE16: =Inputs!$F$26 -> 0.25 | HF16: =Inputs!$F$26 -> 0.25 | HG16: =Inputs!$F$26 -> 0.25 | HH16: =Inputs!$F$26 -> 0.25 | HI16: =Inputs!$F$26 -> 0.25 | HJ16: =Inputs!$F$26 -> 0.25 | HK16: =Inputs!$F$26 -> 0.25 | HL16: =Inputs!$F$26 -> 0.25 | HM16: =Inputs!$F$26 -> 0.25 | HN16: =Inputs!$F$26 -> 0.25 | HO16: =Inputs!$F$26 -> 0.25 | HP16: =Inputs!$F$26 -> 0.25 | HQ16: =Inputs!$F$26 -> 0.25 | HR16: =Inputs!$F$26 -> 0.25 | HS16: =Inputs!$F$26 -> 0.25 | HT16: =Inputs!$F$26 -> 0.25 | HU16: =Inputs!$F$26 -> 0.25 | HV16: =Inputs!$F$26 -> 0.25 | HW16: =Inputs!$F$26 -> 0.25 | HX16: =Inputs!$F$26 -> 0.25 | HY16: =Inputs!$F$26 -> 0.25 | HZ16: =Inputs!$F$26 -> 0.25 | IA16: =Inputs!$F$26 -> 0.25 | IB16: =Inputs!$F$26 -> 0.25 | IC16: =Inputs!$F$26 -> 0.25 | ID16: =Inputs!$F$26 -> 0.25 | IE16: =Inputs!$F$26 -> 0.25 | IF16: =Inputs!$F$26 -> 0.25 | IG16: =Inputs!$F$26 -> 0.25 | IH16: =Inputs!$F$26 -> 0.25 | II16: =Inputs!$F$26 -> 0.25 | IJ16: =Inputs!$F$26 -> 0.25 | IK16: =Inputs!$F$26 -> 0.25 | IL16: =Inputs!$F$26 -> 0.25 | IM16: =Inputs!$F$26 -> 0.25 | IN16: =Inputs!$F$26 -> 0.25 | IO16: =Inputs!$F$26 -> 0.25 | IP16: =Inputs!$F$26 -> 0.25 | IQ16: =Inputs!$F$26 -> 0.25 | IR16: =Inputs!$F$26 -> 0.25 | IS16: =Inputs!$F$26 -> 0.25 | IT16: =Inputs!$F$26 -> 0.25 | IU16: =Inputs!$F$26 -> 0.25 | IV16: =Inputs!$F$26 -> 0.25 | IW16: =Inputs!$F$26 -> 0.25 | IX16: =Inputs!$F$26 -> 0.25 | IY16: =Inputs!$F$26 -> 0.25 | IZ16: =Inputs!$F$26 -> 0.25 | JA16: =Inputs!$F$26 -> 0.25 | JB16: =Inputs!$F$26 -> 0.25 | JC16: =Inputs!$F$26 -> 0.25 | JD16: =Inputs!$F$26 -> 0.25 | JE16: =Inputs!$F$26 -> 0.25 | JF16: =Inputs!$F$26 -> 0.25 | JG16: =Inputs!$F$26 -> 0.25 | JH16: =Inputs!$F$26 -> 0.25 | JI16: =Inputs!$F$26 -> 0.25 | JJ16: =Inputs!$F$26 -> 0.25 | JK16: =Inputs!$F$26 -> 0.25 | JL16: =Inputs!$F$26 -> 0.25 | JM16: =Inputs!$F$26 -> 0.25 | JN16: =Inputs!$F$26 -> 0.25 | JO16: =Inputs!$F$26 -> 0.25 | JP16: =Inputs!$F$26 -> 0.25 | JQ16: =Inputs!$F$26 -> 0.25 | JR16: =Inputs!$F$26 -> 0.25 | JS16: =Inputs!$F$26 -> 0.25 | JT16: =Inputs!$F$26 -> 0.25 | JU16: =Inputs!$F$26 -> 0.25 | JV16: =Inputs!$F$26 -> 0.25 | JW16: =Inputs!$F$26 -> 0.25 | JX16: =Inputs!$F$26 -> 0.25 | JY16: =Inputs!$F$26 -> 0.25 | JZ16: =Inputs!$F$26 -> 0.25 | KA16: =Inputs!$F$26 -> 0.25 | KB16: =Inputs!$F$26 -> 0.25 | KC16: =Inputs!$F$26 -> 0.25 | KD16: =Inputs!$F$26 -> 0.25 | KE16: =Inputs!$F$26 -> 0.25 | KF16: =Inputs!$F$26 -> 0.25 | KG16: =Inputs!$F$26 -> 0.25 | KH16: =Inputs!$F$26 -> 0.25 | KI16: =Inputs!$F$26 -> 0.25 | KJ16: =Inputs!$F$26 -> 0.25 | KK16: =Inputs!$F$26 -> 0.25 | KL16: =Inputs!$F$26 -> 0.25 | KM16: =Inputs!$F$26 -> 0.25 | KN16: =Inputs!$F$26 -> 0.25 | KO16: =Inputs!$F$26 -> 0.25 | KP16: =Inputs!$F$26 -> 0.25 | KQ16: =Inputs!$F$26 -> 0.25 | KR16: =Inputs!$F$26 -> 0.25 | KS16: =Inputs!$F$26 -> 0.25 | KT16: =Inputs!$F$26 -> 0.25 | KU16: =Inputs!$F$26 -> 0.25 | KV16: =Inputs!$F$26 -> 0.25 | KW16: =Inputs!$F$26 -> 0.25
E17: VAT_Rate | F17: Vat Rate | G17: InputC | I17: % | J17: 0
E18: VAT_Refund_Period | F18: Refunding Period after COD | G18: InputC | I18: Number | J18: 2
B20: General Debt Parameters (Not Issue by Issue)
C21: General Debt Inputs and Debt Size
E22: number_of_issues | F22: Number of issues | G22: =G24 -> InputC | H22: 1
E23: fixed_debt_input | F23: Fixed debt if Debt Option is Set to One (Good for Verification) | G23: InputC | H23: 1000
E24: debt_pct_sr | F24: Debt / capital ratio | G24: InputC | H24: =Inputs!F36 -> 0.85
E25: DSCR_Input | F25: DSCR for Debt Sizing Base | G25: InputC | H25: =Inputs!F34 -> 1.3
E26: eq_up_pct | F26: Upfront equity Percent (Zero% is Pro-Rata) | G26: InputC | H26: 0
E27: debt_sizing_option | F27: Debt Sizing Option Code (Fixed, Debt/Cap, DSCR, Min) | G27: InputC | H27: 3 | I27: 1. Fixed; 2 Debt/Cap; 3. Sculpting; 4. Minimum
B29: Issue by Issue
C30: Inputs for Commercial Tranche
E31: debt_pct1 | F31: Senior debt One | G31: InputC | H31: 1
E32: senior_debt1_grace_period | F32: senior_debt1_grace_period | G32: =G31 -> InputC | H32: 0
